Workbook

Sheet Notes
A1: The 2018 Razzball *Excel* War Room
A2: Features
A3: 1) | B3: Color Coded Dashboard that crosses off" selected players | Q3: HOW TO USE (2017 screenshots):
A4: 2) | B4: Team by Team analysis of players taken, players left.
A5: 3) | B5: Real time projected totals, along with real time projected league standings
A6: 4) | B6: Goal Tracking Dashboard | Q6: Click any of the drop-down arrow boxes to sort by that ranking
A7: 5) | B7: Auto updating Draftee List for your team.
A8: 6) | B8: User customizable for Team Names,League Type, and Goals
A10: User Steps
A11: 1) | B11: Complete User Input Tab based upon league parameters
B12: (Enter "Your Team" in the first slot. This populates the War Room page with your selected players.)
A13: 2) | B13: Populate Players Tab during Draft
A14: 3) | B14: Dashboard and War Room Tabs will automatically update
B15: NOTE: On the War Room tab, the box top left indicates "# of Players Taken". In order to get a "true" evaluation of my team, I add/drop players from specific teams until each has 13 hitters and 9 pitchers.
A16: Notes
A17: 1) | B17: All statistics based upon Grey Albright, RAZZBALL.COM, and Razzball's Steamer projections
A19: ANY QUESTIONS? Post a comment at the official website: | G19: http://razzball.com/2018-excel-fantasy-baseball-war-room/
A22: Created by Lou Poulas
A23: 2011 updates: Fred Barker
A24: 2012 updates: John Hassett
A25: 2013 updates: Trevor Gallo & John Hassett
A26: 2014-2016 updates: Nick Kern
A27: 2016 tweaks: Jimmy Bond
A28: 2017 update: Hot Rod
A29: 2018 update: Hot Rod
A30: (thanks to Knucks for first pass on tiers!)

Sheet User Input
A1: Team 1 Name | C1: a | D1: ← ← ← | E1: YOUR TEAM | G1: Hitting Categories | H1: Points | J1: Pitching Categories | K1: Points
A2: Team 2 Name | C2: b | G2: 1B | H2: 1 | J2: Win | K2: 7
A3: Team 3 Name | C3: c | G3: 2B | H3: 2 | J3: Loss | K3: -5
A4: Team 4 Name | C4: d | G4: 3B | H4: 3 | J4: Save | K4: 7
A5: Team 5 Name | C5: e | G5: HR | H5: 4 | J5: Blown Save | K5: 0 | M5: not supported 2018 due to using Steamer projections
A6: Team 6 Name | C6: f | G6: RBI | H6: 1 | J6: Inning Pitched | K6: 3
A7: Team 7 Name | C7: g | G7: Run | H7: 1 | J7: Strikeout | K7: 0.5
A8: Team 8 Name | C8: h | G8: Walk | H8: 1 | J8: Walk | K8: -1
A9: Team 9 Name | C9: i | G9: Strikeout | H9: -0.5 | J9: ER | K9: -1
A10: Team 10 Name | C10: j | G10: Stolen Base | H10: 2 | J10: Hit | K10: -1
A11: Team 11 Name | C11: k | G11: Caught Stealing | H11: -1 | J11: Hold | K11: 0
A12: Team 12 Name | C12: l | D12: 12 team | G12: Hit By Pitch | H12: 0 | J12: Quality Start | K12: 3
A13: Team 13 Name | G13: Sacrifice Fly | H13: 0 | J13: Complete Game | K13: 0 | M13: not supported 2018 due to using Steamer projections
A14: Team 14 Name | G14: Total Bases | H14: 0 | J14: Shutout | K14: 0 | M14: not supported 2018 due to using Steamer projections
A15: Team 15 Name | D15: 15 team | G15: Hit | H15: 0 | J15: Hit Batsman | K15: 0 | M15: not supported 2018 due to using Steamer projections
A16: Team 16 Name | G16: Plate Appearances | H16: 0 | J16: Wild Pitch | K16: 0 | M16: not supported 2018 due to using Steamer projections
A17: Team 17 Name | G17: At Bat | H17: 0 | J17: HR Allowed | K17: 0 | M17: not supported 2018 due to using Steamer projections
A18: Team 18 Name
A19: Team 19 Name | G19: POINTS LEAGUES - ENTER YOUR SCORING SYSTEM ABOVE IN YELLOW BOXES
A20: Team 20 Name | G20: (default is Malamoney's 2017 scoring system)
A21: Team 21 Name
A22: Team 22 Name
A23: Team 23 Name | J23: Preferred standings ranking style: | K23: 0
A24: Team 24 Name | D24: 24 team | K24: where: | L24: 0 | M24: = | N24: descending 1-25 (1 is best, 25 worst)
A25: Team 25 Name | D25: 25 team | L25: 1 | M25: = | N25: descending 25-1 (25 is best, 1 worst)
D26: Examples / default
A27: Team Budget | C27: 280 | D27: ($280, $260, etc)
A29: # of Batters Per Team | C29: 17 | D29: 17, 15, 14, 9
A30: # of Pitchers Per Team | C30: 15 | D30: 15, 10, 7
A31: # of BENCH Per Team | C31: 0 | D31: 0, 5
A32: Total players | C32: =SUM(C29:C31) -> 32
A34: Personal Team Goals (Optional)
A35: R | C35: 1021 | D35: 1021
A36: HR | C36: 255 | D36: 255
A37: RBI | C37: 973 | D37: 973
A38: SB | C38: 177 | D38: 177
A39: AVG | C39: 0.271 | D39: 0.271
A41: ERA | C41: 3.56 | D41: 3.56
A42: WHIP | C42: 1.23 | D42: 1.23
A43: W | C43: 86 | D43: 86
A44: S | C44: 122 | D44: 122
A45: K | C45: 1272 | D45: 1272

Sheet Dashboard
B1: C | F1: 1B | J1: 2B | N1: 3B | R1: SS | V1: OF | Z1: DH | AA1: hitter | AB1: pitcher | AE1: SP | AF1: pitcher | AG1: hitter | AJ1: CLOSERS & RP | AN1: Prospects - ALL | AS1: Prospects - HITTERS | AX1: Prospects - PITCHERS | BC1: by ETA - Prospects HIT | BH1: by ETA - Prospects PITCH
A2: 1 | B2: Gary Sanchez | C2: =VLOOKUP($B2,Players!$M$3:$N$1251,2,FALSE) -> 0 | D2: =IF(C2>0,1,0) -> 0 | F2: Paul Goldschmidt | G2: =VLOOKUP($F2,Players!$M$3:$N$1251,2,FALSE) -> 0 | H2: =IF(G2>0,1,0) -> 0 | J2: Jose Altuve | K2: =VLOOKUP($J2,Players!$M$3:$N$1251,2,FALSE) -> 0 | L2: =IF(K2>0,1,0) -> 0 | N2: Nolan Arenado | O2: =VLOOKUP($N2,Players!$M$3:$N$1251,2,FALSE) -> 0 | P2: =IF(O2>0,1,0) -> 0 | R2: Trea Turner | S2: =VLOOKUP($R2,Players!$M$3:$N$1251,2,FALSE) -> 0 | T2: =IF(S2>0,1,0) -> 0 | V2: Mike Trout | W2: =VLOOKUP($V2,Players!$M$3:$N$1251,2,FALSE) -> 0 | X2: =IF(W2>0,1,0) -> 0 | Z2: Nelson Cruz | AA2: =VLOOKUP($Z2,Players!$M$3:$N$1251,2,FALSE) -> 0 | AC2: =IF(AA2>0,1,0) -> 0 | AE2: Max Scherzer | AF2: =VLOOKUP($AE2,Players!$AT$3:$AU$1425,2,FALSE) -> 0 | AH2: =IF(AF2>0,1,0) -> 0 | AJ2: Kenley Jansen | AK2: =VLOOKUP($AJ2,Players!$AT$3:$AU$1425,2,FALSE) -> 0 | AL2: =IF(AK2>0,1,0) -> 0 | AN2: OF | AO2: Ronald Acuna | AP2: =IF(ISERROR(VLOOKUP($AO2,Players!$M$3:$N$1434,2,FALSE)),(VLOOKUP($AO2,Players!$AT$3:$AU$1425,2,FALSE)),(VLOOKUP($AO2,Players!$M$3:$N$1434,2,FALSE))) -> 0 | AQ2: =IF(AP2>0,1,0) -> 0 | AS2: OF | AT2: Ronald Acuna | AU2: =VLOOKUP($AT2,Players!$M$3:$N$1434,2,FALSE) -> 0 | AV2: =IF(AU2>0,1,0) -> 0 | AX2: RHP | AY2: Michael Kopech | AZ2: =VLOOKUP($AY2,Players!$AT$3:$AU$1425,2,FALSE) -> 0 | BA2: =IF(AZ2>0,1,0) -> 0 | BD2: 2018 | BI2: 2018
A3: 2 | B3: Willson Contreras | C3: =VLOOKUP($B3,Players!$M$3:$N$1251,2,FALSE) -> 0 | D3: =IF(C3>0,1,0) -> 0 | F3: Freddie Freeman | G3: =VLOOKUP($F3,Players!$M$3:$N$1251,2,FALSE) -> 0 | H3: =IF(G3>0,1,0) -> 0 | J3: Jose Ramirez | K3: =VLOOKUP($J3,Players!$M$3:$N$1251,2,FALSE) -> 0 | L3: =IF(K3>0,1,0) -> 0 | N3: Manny Machado | O3: =VLOOKUP($N3,Players!$M$3:$N$1251,2,FALSE) -> 0 | P3: =IF(O3>0,1,0) -> 0 | R3: Francisco Lindor | S3: =VLOOKUP($R3,Players!$M$3:$N$1251,2,FALSE) -> 0 | T3: =IF(S3>0,1,0) -> 0 | V3: Bryce Harper | W3: =VLOOKUP($V3,Players!$M$3:$N$1251,2,FALSE) -> 0 | X3: =IF(W3>0,1,0) -> 0 | Z3: Hanley Ramirez | AA3: =VLOOKUP($Z3,Players!$M$3:$N$1251,2,FALSE) -> 0 | AC3: =IF(AA3>0,1,0) -> 0 | AE3: Clayton Kershaw | AF3: =VLOOKUP($AE3,Players!$AT$3:$AU$1425,2,FALSE) -> 0 | AH3: =IF(AF3>0,1,0) -> 0 | AJ3: Craig Kimbrel | AK3: =VLOOKUP($AJ3,Players!$AT$3:$AU$1425,2,FALSE) -> 0 | AL3: 0 | AN3: 3B | AO3: Vladimir Guerrero Jr | AP3: =IF(ISERROR(VLOOKUP($AO3,Players!$M$3:$N$1434,2,FALSE)),(VLOOKUP($AO3,Players!$AT$3:$AU$1425,2,FALSE)),(VLOOKUP($AO3,Players!$M$3:$N$1434,2,FALSE))) -> 0 | AQ3: =IF(AP3>0,1,0) -> 0 | AS3: 3B | AT3: Vladimir Guerrero Jr | AU3: =VLOOKUP($AT3,Players!$M$3:$N$1434,2,FALSE) -> 0 | AV3: =IF(AU3>0,1,0) -> 0 | AX3: RHP | AY3: Alex Reyes | AZ3: =VLOOKUP($AY3,Players!$AT$3:$AU$1425,2,FALSE) -> 0 | BA3: 0 | BC3: OF | BD3: Ronald Acuna | BE3: =VLOOKUP($BD3,Players!$M$3:$N$1434,2,FALSE) -> 0 | BF3: =IF(BE3>0,1,0) -> 0 | BH3: RHP | BI3: Michael Kopech | BJ3: =VLOOKUP($BI3,Players!$AT$3:$AU$1425,2,FALSE) -> 0 | BK3: =IF(BJ3>0,1,0) -> 0 | BN3: Grey's Pitcher Pairings
A4: 3 | B4: J.T. Realmuto | C4: =VLOOKUP($B4,Players!$M$3:$N$1251,2,FALSE) -> 0 | D4: 0 | F4: Anthony Rizzo | G4: =VLOOKUP($F4,Players!$M$3:$N$1251,2,FALSE) -> 0 | H4: 0 | J4: Anthony Rizzo | K4: =VLOOKUP($J4,Players!$M$3:$N$1251,2,FALSE) -> 0 | L4: 0 | N4: Kris Bryant | O4: =VLOOKUP($N4,Players!$M$3:$N$1251,2,FALSE) -> 0 | P4: 0 | R4: Carlos Correa | S4: =VLOOKUP($R4,Players!$M$3:$N$1251,2,FALSE) -> 0 | T4: 0 | V4: Mookie Betts | W4: =VLOOKUP($V4,Players!$M$3:$N$1251,2,FALSE) -> 0 | X4: 0 | Z4: Kendrys Morales | AA4: =VLOOKUP($Z4,Players!$M$3:$N$1251,2,FALSE) -> 0 | AC4: 0 | AE4: Corey Kluber | AF4: =VLOOKUP($AE4,Players!$AT$3:$AU$1425,2,FALSE) -> 0 | AH4: 0 | AJ4: Aroldis Chapman | AK4: =VLOOKUP($AJ4,Players!$AT$3:$AU$1425,2,FALSE) -> 0 | AL4: 0 | AN4: OF | AO4: Eloy Jimenez | AP4: =IF(ISERROR(VLOOKUP($AO4,Players!$M$3:$N$1434,2,FALSE)),(VLOOKUP($AO4,Players!$AT$3:$AU$1425,2,FALSE)),(VLOOKUP($AO4,Players!$M$3:$N$1434,2,FALSE))) -> 0 | AQ4: 0 | AS4: OF | AT4: Eloy Jimenez | AU4: =VLOOKUP($AT4,Players!$M$3:$N$1434,2,FALSE) -> 0 | AV4: 0 | AX4: RHP | AY4: Forrest Whitley | AZ4: =VLOOKUP($AY4,Players!$AT$3:$AU$1425,2,FALSE) -> 0 | BA4: 0 | BC4: OF | BD4: Victor Robles | BE4: =VLOOKUP($BD4,Players!$M$3:$N$1434,2,FALSE) -> 0 | BF4: =IF(BE4>0,1,0) -> 0 | BH4: RHP | BI4: Alex Reyes | BJ4: =VLOOKUP($BI4,Players!$AT$3:$AU$1425,2,FALSE) -> 0 | BK4: =IF(BJ4>0,1,0) -> 0
A5: 4 | B5: Salvador Perez | C5: =VLOOKUP($B5,Players!$M$3:$N$1251,2,FALSE) -> 0 | D5: 0 | F5: Cody Bellinger | G5: =VLOOKUP($F5,Players!$M$3:$N$1251,2,FALSE) -> 0 | H5: 0 | J5: Dee Gordon | K5: =VLOOKUP($J5,Players!$M$3:$N$1251,2,FALSE) -> 0 | L5: 0 | N5: Freddie Freeman | O5: =VLOOKUP($N5,Players!$M$3:$N$1251,2,FALSE) -> 0 | P5: 0 | R5: Alex Bregman | S5: =VLOOKUP($R5,Players!$M$3:$N$1251,2,FALSE) -> 0 | T5: 0 | V5: Giancarlo Stanton | W5: =VLOOKUP($V5,Players!$M$3:$N$1251,2,FALSE) -> 0 | X5: 0 | Z5: Albert Pujols | AA5: =VLOOKUP($Z5,Players!$M$3:$N$1251,2,FALSE) -> 0 | AC5: =IF(AA5>0,1,0) -> 0 | AE5: Chris Sale | AF5: =VLOOKUP($AE5,Players!$AT$3:$AU$1425,2,FALSE) -> 0 | AH5: 0 | AJ5: Ken Giles | AK5: =VLOOKUP($AJ5,Players!$AT$3:$AU$1425,2,FALSE) -> 0 | AL5: 0 | AN5: OF | AO5: Victor Robles | AP5: =IF(ISERROR(VLOOKUP($AO5,Players!$M$3:$N$1434,2,FALSE)),(VLOOKUP($AO5,Players!$AT$3:$AU$1425,2,FALSE)),(VLOOKUP($AO5,Players!$M$3:$N$1434,2,FALSE))) -> 0 | AQ5: 0 | AS5: OF | AT5: Victor Robles | AU5: =VLOOKUP($AT5,Players!$M$3:$N$1434,2,FALSE) -> 0 | AV5: 0 | AX5: RHP | AY5: Walker Buehler | AZ5: =VLOOKUP($AY5,Players!$AT$3:$AU$1425,2,FALSE) -> 0 | BA5: 0 | BC5: SS | BD5: Gleyber Torres | BE5: =VLOOKUP($BD5,Players!$M$3:$N$1434,2,FALSE) -> 0 | BF5: 0 | BH5: RHP | BI5: Walker Buehler | BJ5: =VLOOKUP($BI5,Players!$AT$3:$AU$1425,2,FALSE) -> 0 | BK5: 0
A6: 5 | B6: Buster Posey | C6: =VLOOKUP($B6,Players!$M$3:$N$1251,2,FALSE) -> 0 | D6: 0 | F6: Joey Votto | G6: =VLOOKUP($F6,Players!$M$3:$N$1251,2,FALSE) -> 0 | H6: 0 | J6: Brian Dozier | K6: =VLOOKUP($J6,Players!$M$3:$N$1251,2,FALSE) -> 0 | L6: 0 | N6: Jose Ramirez | O6: =VLOOKUP($N6,Players!$M$3:$N$1251,2,FALSE) -> 0 | P6: 0 | R6: Corey Seager | S6: =VLOOKUP($R6,Players!$M$3:$N$1251,2,FALSE) -> 0 | T6: 0 | V6: Kris Bryant | W6: =VLOOKUP($V6,Players!$M$3:$N$1251,2,FALSE) -> 0 | X6: 0 | Z6: Shohei Ohtani | AA6: =VLOOKUP($Z6,Players!$M$3:$N$1251,2,FALSE) -> 0 | AC6: =IF(AA6>0,1,0) -> 0 | AE6: Madison Bumgarner | AF6: =VLOOKUP($AE6,Players!$AT$3:$AU$1425,2,FALSE) -> 0 | AH6: 0 | AJ6: Cody Allen | AK6: =VLOOKUP($AJ6,Players!$AT$3:$AU$1425,2,FALSE) -> 0 | AL6: 0 | AN6: OF | AO6: Kyle Tucker | AP6: =IF(ISERROR(VLOOKUP($AO6,Players!$M$3:$N$1434,2,FALSE)),(VLOOKUP($AO6,Players!$AT$3:$AU$1425,2,FALSE)),(VLOOKUP($AO6,Players!$M$3:$N$1434,2,FALSE))) -> 0 | AQ6: 0 | AS6: OF | AT6: Kyle Tucker | AU6: =VLOOKUP($AT6,Players!$M$3:$N$1434,2,FALSE) -> 0 | AV6: 0 | AX6: RHP | AY6: Triston McKenzie | AZ6: =VLOOKUP($AY6,Players!$AT$3:$AU$1425,2,FALSE) -> 0 | BA6: 0 | BC6: 3B | BD6: Nick Senzel | BE6: =VLOOKUP($BD6,Players!$M$3:$N$1434,2,FALSE) -> 0 | BF6: 0 | BH6: LHP | BI6: Luiz Gohara | BJ6: =VLOOKUP($BI6,Players!$AT$3:$AU$1425,2,FALSE) -> 0 | BK6: 0
A7: 6 | B7: Yadier Molina | C7: =VLOOKUP($B7,Players!$M$3:$N$1251,2,FALSE) -> 0 | D7: 0 | F7: Jose Abreu | G7: =VLOOKUP($F7,Players!$M$3:$N$1251,2,FALSE) -> 0 | H7: 0 | J7: Jonathan Schoop | K7: =VLOOKUP($J7,Players!$M$3:$N$1251,2,FALSE) -> 0 | L7: 0 | N7: Anthony Rendon | O7: =VLOOKUP($N7,Players!$M$3:$N$1251,2,FALSE) -> 0 | P7: 0 | R7: Chris Taylor | S7: =VLOOKUP($R7,Players!$M$3:$N$1251,2,FALSE) -> 0 | T7: 0 | V7: J.D. Martinez | W7: =VLOOKUP($V7,Players!$M$3:$N$1251,2,FALSE) -> 0 | X7: 0 | Z7: Victor Martinez | AA7: =VLOOKUP($Z7,Players!$M$3:$N$1251,2,FALSE) -> 0 | AC7: 0 | AE7: Stephen Strasburg | AF7: =VLOOKUP($AE7,Players!$AT$3:$AU$1425,2,FALSE) -> 0 | AH7: 0 | AJ7: Roberto Osuna | AK7: =VLOOKUP($AJ7,Players!$AT$3:$AU$1425,2,FALSE) -> 0 | AL7: 0 | AN7: SS | AO7: Fernando Tatis Jr | AP7: =IF(ISERROR(VLOOKUP($AO7,Players!$M$3:$N$1434,2,FALSE)),(VLOOKUP($AO7,Players!$AT$3:$AU$1425,2,FALSE)),(VLOOKUP($AO7,Players!$M$3:$N$1434,2,FALSE))) -> 0 | AQ7: 0 | AS7: SS | AT7: Fernando Tatis Jr | AU7: =VLOOKUP($AT7,Players!$M$3:$N$1434,2,FALSE) -> 0 | AV7: 0 | AX7: RHP | AY7: Michel Baez | AZ7: =VLOOKUP($AY7,Players!$AT$3:$AU$1425,2,FALSE) -> 0 | BA7: 0 | BC7: OF | BD7: Willie Calhoun | BE7: =VLOOKUP($BD7,Players!$M$3:$N$1434,2,FALSE) -> 0 | BF7: 0 | BH7: RHP | BI7: Jack Flaherty | BJ7: =VLOOKUP($BI7,Players!$AT$3:$AU$1425,2,FALSE) -> 0 | BK7: 0
A8: 7 | B8: Wilson Ramos | C8: =VLOOKUP($B8,Players!$M$3:$N$1251,2,FALSE) -> 0 | D8: 0 | F8: Edwin Encarnacion | G8: =VLOOKUP($F8,Players!$M$3:$N$1251,2,FALSE) -> 0 | H8: 0 | J8: Daniel Murphy | K8: =VLOOKUP($J8,Players!$M$3:$N$1251,2,FALSE) -> 0 | L8: 0 | N8: Alex Bregman | O8: =VLOOKUP($N8,Players!$M$3:$N$1251,2,FALSE) -> 0 | P8: 0 | R8: Jean Segura | S8: =VLOOKUP($R8,Players!$M$3:$N$1251,2,FALSE) -> 0 | T8: 0 | V8: George Springer | W8: =VLOOKUP($V8,Players!$M$3:$N$1251,2,FALSE) -> 0 | X8: 0 | AE8: Noah Syndergaard | AF8: =VLOOKUP($AE8,Players!$AT$3:$AU$1425,2,FALSE) -> 0 | AH8: 0 | AJ8: Corey Knebel | AK8: =VLOOKUP($AJ8,Players!$AT$3:$AU$1425,2,FALSE) -> 0 | AL8: 0 | AN8: SS | AO8: Gleyber Torres | AP8: =IF(ISERROR(VLOOKUP($AO8,Players!$M$3:$N$1434,2,FALSE)),(VLOOKUP($AO8,Players!$AT$3:$AU$1425,2,FALSE)),(VLOOKUP($AO8,Players!$M$3:$N$1434,2,FALSE))) -> 0 | AQ8: 0 | AS8: SS | AT8: Gleyber Torres | AU8: =VLOOKUP($AT8,Players!$M$3:$N$1434,2,FALSE) -> 0 | AV8: 0 | AX8: LHP | AY8: Mackenzie Gore | AZ8: =VLOOKUP($AY8,Players!$AT$3:$AU$1425,2,FALSE) -> 0 | BA8: 0 | BC8: OF | BD8: Lewis Brinson | BE8: =VLOOKUP($BD8,Players!$M$3:$N$1434,2,FALSE) -> 0 | BF8: 0 | BH8: RHP | BI8: Chance Adams | BJ8: =VLOOKUP($BI8,Players!$AT$3:$AU$1425,2,FALSE) -> 0 | BK8: 0
A9: 8 | B9: Welington Castillo | C9: =VLOOKUP($B9,Players!$M$3:$N$1251,2,FALSE) -> 0 | D9: 0 | F9: Eric Hosmer | G9: =VLOOKUP($F9,Players!$M$3:$N$1251,2,FALSE) -> 0 | H9: 0 | J9: Chris Taylor | K9: =VLOOKUP($J9,Players!$M$3:$N$1251,2,FALSE) -> 0 | L9: 0 | N9: Miguel Sano | O9: =VLOOKUP($N9,Players!$M$3:$N$1251,2,FALSE) -> 0 | P9: 0 | R9: Xander Bogaerts | S9: =VLOOKUP($R9,Players!$M$3:$N$1251,2,FALSE) -> 0 | T9: 0 | V9: Cody Bellinger | W9: =VLOOKUP($V9,Players!$M$3:$N$1251,2,FALSE) -> 0 | X9: 0 | AE9: Jacob deGrom | AF9: =VLOOKUP($AE9,Players!$AT$3:$AU$1425,2,FALSE) -> 0 | AH9: 0 | AJ9: Felipe Rivero | AK9: =VLOOKUP($AJ9,Players!$AT$3:$AU$1425,2,FALSE) -> 0 | AL9: 0 | AN9: RHP | AO9: Michael Kopech | AP9: =IF(ISERROR(VLOOKUP($AO9,Players!$M$3:$N$1434,2,FALSE)),(VLOOKUP($AO9,Players!$AT$3:$AU$1425,2,FALSE)),(VLOOKUP($AO9,Players!$M$3:$N$1434,2,FALSE))) -> 0 | AQ9: 0 | AS9: 3B | AT9: Nick Senzel | AU9: =VLOOKUP($AT9,Players!$M$3:$N$1434,2,FALSE) -> 0 | AV9: 0 | AX9: RHP | AY9: Hunter Greene | AZ9: =VLOOKUP($AY9,Players!$AT$3:$AU$1425,2,FALSE) -> 0 | BA9: 0 | BC9: 3B | BD9: Ryan McMahon | BE9: =VLOOKUP($BD9,Players!$M$3:$N$1434,2,FALSE) -> 0 | BF9: 0 | BH9: RHP | BI9: Corbin Burnes | BJ9: =VLOOKUP($BI9,Players!$AT$3:$AU$1425,2,FALSE) -> 0 | BK9: 0
A10: 9 | B10: Mike Zunino | C10: =VLOOKUP($B10,Players!$M$3:$N$1251,2,FALSE) -> 0 | D10: 0 | F10: Rhys Hoskins | G10: =VLOOKUP($F10,Players!$M$3:$N$1251,2,FALSE) -> 0 | H10: 0 | J10: Robinson Cano | K10: =VLOOKUP($J10,Players!$M$3:$N$1251,2,FALSE) -> 0 | L10: 0 | N10: Josh Donaldson | O10: =VLOOKUP($N10,Players!$M$3:$N$1251,2,FALSE) -> 0 | P10: 0 | R10: Javier Baez | S10: =VLOOKUP($R10,Players!$M$3:$N$1251,2,FALSE) -> 0 | T10: 0 | V10: Charlie Blackmon | W10: =VLOOKUP($V10,Players!$M$3:$N$1251,2,FALSE) -> 0 | X10: 0 | AE10: Carlos Carrasco | AF10: =VLOOKUP($AE10,Players!$AT$3:$AU$1425,2,FALSE) -> 0 | AH10: 0 | AJ10: Brad Hand | AK10: =VLOOKUP($AJ10,Players!$AT$3:$AU$1425,2,FALSE) -> 0 | AL10: 0 | AN10: 3B | AO10: Nick Senzel | AP10: =IF(ISERROR(VLOOKUP($AO10,Players!$M$3:$N$1434,2,FALSE)),(VLOOKUP($AO10,Players!$AT$3:$AU$1425,2,FALSE)),(VLOOKUP($AO10,Players!$M$3:$N$1434,2,FALSE))) -> 0 | AQ10: 0 | AS10: OF | AT10: Willie Calhoun | AU10: =VLOOKUP($AT10,Players!$M$3:$N$1434,2,FALSE) -> 0 | AV10: 0 | AX10: RHP | AY10: Sixto Sanchez | AZ10: =VLOOKUP($AY10,Players!$AT$3:$AU$1425,2,FALSE) -> 0 | BA10: 0 | BC10: C | BD10: Francisco Mejia | BE10: =VLOOKUP($BD10,Players!$M$3:$N$1434,2,FALSE) -> 0 | BF10: 0 | BI10: 2019 | BJ10: =VLOOKUP($BI10,Players!$AT$3:$AU$1425,2,FALSE) -> 
A11: 10 | B11: Jorge Alfaro | C11: =VLOOKUP($B11,Players!$M$3:$N$1251,2,FALSE) -> 0 | D11: 0 | F11: Miguel Sano | G11: =VLOOKUP($F11,Players!$M$3:$N$1251,2,FALSE) -> 0 | H11: 0 | J11: Rougned Odor | K11: =VLOOKUP($J11,Players!$M$3:$N$1251,2,FALSE) -> 0 | L11: 0 | N11: Justin Turner | O11: =VLOOKUP($N11,Players!$M$3:$N$1251,2,FALSE) -> 0 | P11: 0 | R11: Tim Anderson | S11: =VLOOKUP($R11,Players!$M$3:$N$1251,2,FALSE) -> 0 | T11: 0 | V11: Aaron Judge | W11: =VLOOKUP($V11,Players!$M$3:$N$1251,2,FALSE) -> 0 | X11: 0 | AE11: Luis Severino | AF11: =VLOOKUP($AE11,Players!$AT$3:$AU$1425,2,FALSE) -> 0 | AH11: 0 | AJ11: Sean Doolittle | AK11: =VLOOKUP($AJ11,Players!$AT$3:$AU$1425,2,FALSE) -> 0 | AL11: 0 | AN11: OF | AO11: Willie Calhoun | AP11: =IF(ISERROR(VLOOKUP($AO11,Players!$M$3:$N$1434,2,FALSE)),(VLOOKUP($AO11,Players!$AT$3:$AU$1425,2,FALSE)),(VLOOKUP($AO11,Players!$M$3:$N$1434,2,FALSE))) -> 0 | AQ11: 0 | AS11: OF | AT11: Lewis Brinson | AU11: =VLOOKUP($AT11,Players!$M$3:$N$1434,2,FALSE) -> 0 | AV11: 0 | AX11: LHP | AY11: Kolby Allard | AZ11: =VLOOKUP($AY11,Players!$AT$3:$AU$1425,2,FALSE) -> 0 | BA11: 0 | BC11: OF | BD11: Austin Hays | BE11: =VLOOKUP($BD11,Players!$M$3:$N$1434,2,FALSE) -> 0 | BF11: 0 | BH11: RHP | BI11: Brent Honeywell | BJ11: =VLOOKUP($BI11,Players!$AT$3:$AU$1425,2,FALSE) -> 0 | BK11: 0 | BN11: *moved from 2018
A12: 11 | B12: Austin Hedges | C12: =VLOOKUP($B12,Players!$M$3:$N$1251,2,FALSE) -> 0 | D12: 0 | F12: Wil Myers | G12: =VLOOKUP($F12,Players!$M$3:$N$1251,2,FALSE) -> 0 | H12: 0 | J12: Whit Merrifield | K12: =VLOOKUP($J12,Players!$M$3:$N$1251,2,FALSE) -> 0 | L12: 0 | N12: Travis Shaw | O12: =VLOOKUP($N12,Players!$M$3:$N$1251,2,FALSE) -> 0 | P12: 0 | R12: Trevor Story | S12: =VLOOKUP($R12,Players!$M$3:$N$1251,2,FALSE) -> 0 | T12: 0 | V12: Marcell Ozuna | W12: =VLOOKUP($V12,Players!$M$3:$N$1251,2,FALSE) -> 0 | X12: 0 | AE12: Robbie Ray | AF12: =VLOOKUP($AE12,Players!$AT$3:$AU$1425,2,FALSE) -> 0 | AH12: 0 | AJ12: Raisel Iglesias | AK12: =VLOOKUP($AJ12,Players!$AT$3:$AU$1425,2,FALSE) -> 0 | AL12: 0 | AN12: OF | AO12: Lewis Brinson | AP12: =IF(ISERROR(VLOOKUP($AO12,Players!$M$3:$N$1434,2,FALSE)),(VLOOKUP($AO12,Players!$AT$3:$AU$1425,2,FALSE)),(VLOOKUP($AO12,Players!$M$3:$N$1434,2,FALSE))) -> 0 | AQ12: 0 | AS12: SS | AT12: Brendan Rodgers | AU12: =VLOOKUP($AT12,Players!$M$3:$N$1434,2,FALSE) -> 0 | AV12: 0 | AX12: LHP | AY12: Luiz Gohara | AZ12: =VLOOKUP($AY12,Players!$AT$3:$AU$1425,2,FALSE) -> 0 | BA12: 0 | BC12: 2B | BD12: Scott Kingery | BE12: =VLOOKUP($BD12,Players!$M$3:$N$1434,2,FALSE) -> 0 | BF12: 0 | BH12: RHP | BI12: Forrest Whitley | BJ12: =VLOOKUP($BI12,Players!$AT$3:$AU$1425,2,FALSE) -> 0 | BK12: 0
A13: 12 | B13: James McCann | C13: =VLOOKUP($B13,Players!$M$3:$N$1251,2,FALSE) -> 0 | D13: 0 | F13: Joey Gallo | G13: =VLOOKUP($F13,Players!$M$3:$N$1251,2,FALSE) -> 0 | H13: 0 | J13: Javier Baez | K13: =VLOOKUP($J13,Players!$M$3:$N$1251,2,FALSE) -> 0 | L13: 0 | N13: Mike Moustakas | O13: =VLOOKUP($N13,Players!$M$3:$N$1251,2,FALSE) -> 0 | P13: 0 | R13: Paul DeJong | S13: =VLOOKUP($R13,Players!$M$3:$N$1251,2,FALSE) -> 0 | T13: 0 | V13: Starling Marte | W13: =VLOOKUP($V13,Players!$M$3:$N$1251,2,FALSE) -> 0 | X13: 0 | AE13: Carlos Martinez | AF13: =VLOOKUP($AE13,Players!$AT$3:$AU$1425,2,FALSE) -> 0 | AH13: 0 | AJ13: Edwin Diaz | AK13: =VLOOKUP($AJ13,Players!$AT$3:$AU$1425,2,FALSE) -> 0 | AL13: 0 | AN13: SS | AO13: Brendan Rodgers | AP13: =IF(ISERROR(VLOOKUP($AO13,Players!$M$3:$N$1434,2,FALSE)),(VLOOKUP($AO13,Players!$AT$3:$AU$1425,2,FALSE)),(VLOOKUP($AO13,Players!$M$3:$N$1434,2,FALSE))) -> 0 | AQ13: 0 | AS13: SS | AT13: Bo Bichette | AU13: =VLOOKUP($AT13,Players!$M$3:$N$1434,2,FALSE) -> 0 | AV13: 0 | AX13: LHP | AY13: A.J. Puk | AZ13: =VLOOKUP($AY13,Players!$AT$3:$AU$1425,2,FALSE) -> 0 | BA13: 0 | BC13: OF | BD13: Anthony Alford | BE13: =VLOOKUP($BD13,Players!$M$3:$N$1434,2,FALSE) -> 0 | BF13: 0 | BH13: RHP | BI13: Triston McKenzie | BJ13: =VLOOKUP($BI13,Players!$AT$3:$AU$1425,2,FALSE) -> 0 | BK13: 0
A14: 13 | B14: Travis D’Arnaud | C14: =VLOOKUP($B14,Players!$M$3:$N$1251,2,FALSE) -> 0 | D14: 0 | F14: Trey Mancini | G14: =VLOOKUP($F14,Players!$M$3:$N$1251,2,FALSE) -> 0 | H14: 0 | J14: Ian Happ | K14: =VLOOKUP($J14,Players!$M$3:$N$1251,2,FALSE) -> 0 | L14: 0 | N14: Joey Gallo | O14: =VLOOKUP($N14,Players!$M$3:$N$1251,2,FALSE) -> 0 | P14: 0 | R14: Tim Beckham | S14: =VLOOKUP($R14,Players!$M$3:$N$1251,2,FALSE) -> 0 | T14: 0 | V14: Andrew Benintendi | W14: =VLOOKUP($V14,Players!$M$3:$N$1251,2,FALSE) -> 0 | X14: 0 | AE14: Justin Verlander | AF14: =VLOOKUP($AE14,Players!$AT$3:$AU$1425,2,FALSE) -> 0 | AH14: 0 | AJ14: Wade Davis | AK14: =VLOOKUP($AJ14,Players!$AT$3:$AU$1425,2,FALSE) -> 0 | AL14: 0 | AN14: SS | AO14: Bo Bichette | AP14: =IF(ISERROR(VLOOKUP($AO14,Players!$M$3:$N$1434,2,FALSE)),(VLOOKUP($AO14,Players!$AT$3:$AU$1425,2,FALSE)),(VLOOKUP($AO14,Players!$M$3:$N$1434,2,FALSE))) -> 0 | AQ14: 0 | AS14: 3B | AT14: Ryan McMahon | AU14: =VLOOKUP($AT14,Players!$M$3:$N$1434,2,FALSE) -> 0 | AV14: 0 | AX14: RHP | AY14: Mike Soroka | AZ14: =VLOOKUP($AY14,Players!$AT$3:$AU$1425,2,FALSE) -> 0 | BA14: 0 | BC14: OF | BD14: Austin Meadows | BE14: =VLOOKUP($BD14,Players!$M$3:$N$1434,2,FALSE) -> 0 | BF14: 0 | BH14: RHP | BI14: Michel Baez | BJ14: =VLOOKUP($BI14,Players!$AT$3:$AU$1425,2,FALSE) -> 0 | BK14: 0
A15: 14 | B15: Jonathan Lucroy | C15: =VLOOKUP($B15,Players!$M$3:$N$1251,2,FALSE) -> 0 | D15: 0 | F15: Justin Smoak | G15: =VLOOKUP($F15,Players!$M$3:$N$1251,2,FALSE) -> 0 | H15: 0 | J15: Yoan Moncada | K15: =VLOOKUP($J15,Players!$M$3:$N$1251,2,FALSE) -> 0 | L15: 0 | N15: Rafael Devers | O15: =VLOOKUP($N15,Players!$M$3:$N$1251,2,FALSE) -> 0 | P15: 0 | R15: Jose Peraza | S15: =VLOOKUP($R15,Players!$M$3:$N$1251,2,FALSE) -> 0 | T15: 0 | V15: Justin Upton | W15: =VLOOKUP($V15,Players!$M$3:$N$1251,2,FALSE) -> 0 | X15: 0 | AE15: Yu Darvish | AF15: =VLOOKUP($AE15,Players!$AT$3:$AU$1425,2,FALSE) -> 0 | AH15: 0 | AJ15: Alex Colome | AK15: =VLOOKUP($AJ15,Players!$AT$3:$AU$1425,2,FALSE) -> 0 | AL15: 0 | AN15: 3B | AO15: Ryan McMahon | AP15: =IF(ISERROR(VLOOKUP($AO15,Players!$M$3:$N$1434,2,FALSE)),(VLOOKUP($AO15,Players!$AT$3:$AU$1425,2,FALSE)),(VLOOKUP($AO15,Players!$M$3:$N$1434,2,FALSE))) -> 0 | AQ15: 0 | AS15: OF | AT15: Taylor Trammell | AU15: =VLOOKUP($AT15,Players!$M$3:$N$1434,2,FALSE) -> 0 | AV15: 0 | AX15: RHP | AY15: Mitch Keller | AZ15: =VLOOKUP($AY15,Players!$AT$3:$AU$1425,2,FALSE) -> 0 | BA15: 0 | BC15: OF | BD15: Harrison Bader | BE15: =VLOOKUP($BD15,Players!$M$3:$N$1434,2,FALSE) -> 0 | BF15: 0 | BH15: LHP | BI15: Kolby Allard | BJ15: =VLOOKUP($BI15,Players!$AT$3:$AU$1425,2,FALSE) -> 0 | BK15: 0
A16: 15 | B16: Yasmani Grandal | C16: =VLOOKUP($B16,Players!$M$3:$N$1251,2,FALSE) -> 0 | D16: 0 | F16: Miguel Cabrera | G16: =VLOOKUP($F16,Players!$M$3:$N$1251,2,FALSE) -> 0 | H16: 0 | J16: Paul DeJong | K16: =VLOOKUP($J16,Players!$M$3:$N$1251,2,FALSE) -> 0 | L16: 0 | N16: Jake Lamb | O16: =VLOOKUP($N16,Players!$M$3:$N$1251,2,FALSE) -> 0 | P16: 0 | R16: Orlando Arcia | S16: =VLOOKUP($R16,Players!$M$3:$N$1251,2,FALSE) -> 0 | T16: 0 | V16: Nelson Cruz | W16: =VLOOKUP($V16,Players!$M$3:$N$1251,2,FALSE) -> 0 | X16: 0 | AE16: Chris Archer | AF16: =VLOOKUP($AE16,Players!$AT$3:$AU$1425,2,FALSE) -> 0 | AH16: 0 | AJ16: Brandon Morrow | AK16: =VLOOKUP($AJ16,Players!$AT$3:$AU$1425,2,FALSE) -> 0 | AL16: 0 | AN16: RHP | AO16: Brent Honeywell | AP16: =IF(ISERROR(VLOOKUP($AO16,Players!$M$3:$N$1434,2,FALSE)),(VLOOKUP($AO16,Players!$AT$3:$AU$1425,2,FALSE)),(VLOOKUP($AO16,Players!$M$3:$N$1434,2,FALSE))) -> 0 | AQ16: 0 | AS16: C | AT16: Francisco Mejia | AU16: =VLOOKUP($AT16,Players!$M$3:$N$1434,2,FALSE) -> 0 | AV16: 0 | AX16: RHP | AY16: Jack Flaherty | AZ16: =VLOOKUP($AY16,Players!$AT$3:$AU$1425,2,FALSE) -> 0 | BA16: 0 | BC16: OF | BD16: Alex Verdugo | BE16: =VLOOKUP($BD16,Players!$M$3:$N$1434,2,FALSE) -> 0 | BF16: 0 | BH16: LHP | BI16: A.J. Puk | BJ16: =VLOOKUP($BI16,Players!$AT$3:$AU$1425,2,FALSE) -> 0 | BK16: 0
A17: 16 | B17: Evan Gattis | C17: =VLOOKUP($B17,Players!$M$3:$N$1251,2,FALSE) -> 0 | D17: 0 | F17: Ryan Zimmerman | G17: =VLOOKUP($F17,Players!$M$3:$N$1251,2,FALSE) -> 0 | H17: 0 | J17: Tim Beckham | K17: =VLOOKUP($J17,Players!$M$3:$N$1251,2,FALSE) -> 0 | L17: 0 | N17: Nicholas Castellanos | O17: =VLOOKUP($N17,Players!$M$3:$N$1251,2,FALSE) -> 0 | P17: 0 | R17: Amed Rosario | S17: =VLOOKUP($R17,Players!$M$3:$N$1251,2,FALSE) -> 0 | T17: 0 | V17: Rhys Hoskins | W17: =VLOOKUP($V17,Players!$M$3:$N$1251,2,FALSE) -> 0 | X17: 0 | AE17: Zack Greinke | AF17: =VLOOKUP($AE17,Players!$AT$3:$AU$1425,2,FALSE) -> 0 | AH17: 0 | AJ17: Mark Melancon | AK17: =VLOOKUP($AJ17,Players!$AT$3:$AU$1425,2,FALSE) -> 0 | AL17: 0 | AN17: OF | AO17: Taylor Trammell | AP17: =IF(ISERROR(VLOOKUP($AO17,Players!$M$3:$N$1434,2,FALSE)),(VLOOKUP($AO17,Players!$AT$3:$AU$1425,2,FALSE)),(VLOOKUP($AO17,Players!$M$3:$N$1434,2,FALSE))) -> 0 | AQ17: 0 | AS17: OF | AT17: Luis Robert | AU17: =VLOOKUP($AT17,Players!$M$3:$N$1434,2,FALSE) -> 0 | AV17: 0 | AX17: RHP | AY17: Matt Manning | AZ17: =VLOOKUP($AY17,Players!$AT$3:$AU$1425,2,FALSE) -> 0 | BA17: 0 | BC17: OF | BD17: Christin Stewart | BE17: =VLOOKUP($BD17,Players!$M$3:$N$1434,2,FALSE) -> 0 | BF17: 0 | BH17: RHP | BI17: Mike Soroka | BJ17: =VLOOKUP($BI17,Players!$AT$3:$AU$1425,2,FALSE) -> 0 | BK17: 0
A18: 17 | B18: Brian McCann | C18: =VLOOKUP($B18,Players!$M$3:$N$1251,2,FALSE) -> 0 | D18: 0 | F18: Carlos Santana | G18: =VLOOKUP($F18,Players!$M$3:$N$1251,2,FALSE) -> 0 | H18: 0 | J18: Jose Peraza | K18: =VLOOKUP($J18,Players!$M$3:$N$1251,2,FALSE) -> 0 | L18: 0 | N18: Kyle Seager | O18: =VLOOKUP($N18,Players!$M$3:$N$1251,2,FALSE) -> 0 | P18: 0 | R18: Zack Cozart | S18: =VLOOKUP($R18,Players!$M$3:$N$1251,2,FALSE) -> 0 | T18: 0 | V18: Byron Buxton | W18: =VLOOKUP($V18,Players!$M$3:$N$1251,2,FALSE) -> 0 | X18: 0 | AE18: Aaron Nola | AF18: =VLOOKUP($AE18,Players!$AT$3:$AU$1425,2,FALSE) -> 0 | AH18: 0 | AJ18: Greg Holland | AK18: =VLOOKUP($AJ18,Players!$AT$3:$AU$1425,2,FALSE) -> 0 | AL18: 0 | AN18: C | AO18: Francisco Mejia | AP18: =IF(ISERROR(VLOOKUP($AO18,Players!$M$3:$N$1434,2,FALSE)),(VLOOKUP($AO18,Players!$AT$3:$AU$1425,2,FALSE)),(VLOOKUP($AO18,Players!$M$3:$N$1434,2,FALSE))) -> 0 | AQ18: 0 | AS18: OF | AT18: Austin Hays | AU18: =VLOOKUP($AT18,Players!$M$3:$N$1434,2,FALSE) -> 0 | AV18: 0 | AX18: RHP | AY18: Alec Hansen | AZ18: =VLOOKUP($AY18,Players!$AT$3:$AU$1425,2,FALSE) -> 0 | BA18: 0 | BC18: SS | BD18: J.P. Crawford | BE18: =VLOOKUP($BD18,Players!$M$3:$N$1434,2,FALSE) -> 0 | BF18: 0 | BH18: RHP | BI18: Mitch Keller | BJ18: =VLOOKUP($BI18,Players!$AT$3:$AU$1425,2,FALSE) -> 0 | BK18: 0
A19: 18 | B19: Russell Martin | C19: =VLOOKUP($B19,Players!$M$3:$N$1251,2,FALSE) -> 0 | D19: 0 | F19: Josh Bell | G19: =VLOOKUP($F19,Players!$M$3:$N$1251,2,FALSE) -> 0 | H19: 0 | J19: Ozzie Albies | K19: =VLOOKUP($J19,Players!$M$3:$N$1251,2,FALSE) -> 0 | L19: 0 | N19: Adrian Beltre | O19: =VLOOKUP($N19,Players!$M$3:$N$1251,2,FALSE) -> 0 | P19: 0 | R19: Elvis Andrus | S19: =VLOOKUP($R19,Players!$M$3:$N$1251,2,FALSE) -> 0 | T19: 0 | V19: Chris Taylor | W19: =VLOOKUP($V19,Players!$M$3:$N$1251,2,FALSE) -> 0 | X19: 0 | AE19: Jose Quintana | AF19: =VLOOKUP($AE19,Players!$AT$3:$AU$1425,2,FALSE) -> 0 | AH19: 0 | AJ19: Kelvin Herrera | AK19: =VLOOKUP($AJ19,Players!$AT$3:$AU$1425,2,FALSE) -> 0 | AL19: 0 | AN19: RHP | AO19: Alex Reyes | AP19: =IF(ISERROR(VLOOKUP($AO19,Players!$M$3:$N$1434,2,FALSE)),(VLOOKUP($AO19,Players!$AT$3:$AU$1425,2,FALSE)),(VLOOKUP($AO19,Players!$M$3:$N$1434,2,FALSE))) -> 0 | AQ19: 0 | AS19: SS | AT19: Royce Lewis | AU19: =VLOOKUP($AT19,Players!$M$3:$N$1434,2,FALSE) -> 0 | AV19: 0 | AX19: RHP | AY19: Franklin Perez | AZ19: =VLOOKUP($AY19,Players!$AT$3:$AU$1425,2,FALSE) -> 0 | BA19: 0 | BC19: OF | BD19: Tyler O’Neill | BE19: =VLOOKUP($BD19,Players!$M$3:$N$1434,2,FALSE) -> 0 | BF19: 0 | BH19: RHP | BI19: Alec Hansen | BJ19: =VLOOKUP($BI19,Players!$AT$3:$AU$1425,2,FALSE) -> 0 | BK19: 0
A20: 19 | B20: Chris Iannetta | C20: =VLOOKUP($B20,Players!$M$3:$N$1251,2,FALSE) -> 0 | D20: 0 | F20: Yuli Gurriel | G20: =VLOOKUP($F20,Players!$M$3:$N$1251,2,FALSE) -> 0 | H20: 0 | J20: DJ LeMahieu | K20: =VLOOKUP($J20,Players!$M$3:$N$1251,2,FALSE) -> 0 | L20: 0 | N20: Evan Longoria | O20: =VLOOKUP($N20,Players!$M$3:$N$1251,2,FALSE) -> 0 | P20: 0 | R20: Eduardo Nunez | S20: =VLOOKUP($R20,Players!$M$3:$N$1251,2,FALSE) -> 0 | T20: 0 | V20: Yasiel Puig | W20: =VLOOKUP($V20,Players!$M$3:$N$1251,2,FALSE) -> 0 | X20: 0 | AE20: Trevor Bauer | AF20: =VLOOKUP($AE20,Players!$AT$3:$AU$1425,2,FALSE) -> 0 | AH20: 0 | AJ20: Andrew Miller | AK20: =VLOOKUP($AJ20,Players!$AT$3:$AU$1425,2,FALSE) -> 0 | AL20: 0 | AN20: OF | AO20: Luis Robert | AP20: =IF(ISERROR(VLOOKUP($AO20,Players!$M$3:$N$1434,2,FALSE)),(VLOOKUP($AO20,Players!$AT$3:$AU$1425,2,FALSE)),(VLOOKUP($AO20,Players!$M$3:$N$1434,2,FALSE))) -> 0 | AQ20: 0 | AS20: 2B | AT20: Scott Kingery | AU20: =VLOOKUP($AT20,Players!$M$3:$N$1434,2,FALSE) -> 0 | AV20: 0 | AX20: RHP | AY20: Jon Duplantier | AZ20: =VLOOKUP($AY20,Players!$AT$3:$AU$1425,2,FALSE) -> 0 | BA20: 0 | BC20: 3B | BD20: Miguel Andujar | BE20: =VLOOKUP($BD20,Players!$M$3:$N$1434,2,FALSE) -> 0 | BF20: 0 | BH20: RHP | BI20: Franklin Perez | BJ20: =VLOOKUP($BI20,Players!$AT$3:$AU$1425,2,FALSE) -> 0 | BK20: 0
A21: 20 | B21: Tyler Flowers | C21: =VLOOKUP($B21,Players!$M$3:$N$1251,2,FALSE) -> 0 | D21: 0 | F21: Hanley Ramirez | G21: =VLOOKUP($F21,Players!$M$3:$N$1251,2,FALSE) -> 0 | H21: 0 | J21: Eduardo Nunez | K21: =VLOOKUP($J21,Players!$M$3:$N$1251,2,FALSE) -> 0 | L21: 0 | N21: Eugenio Suarez | O21: =VLOOKUP($N21,Players!$M$3:$N$1251,2,FALSE) -> 0 | P21: 0 | R21: Marwin Gonzalez | S21: =VLOOKUP($R21,Players!$M$3:$N$1251,2,FALSE) -> 0 | T21: 0 | V21: Khris Davis | W21: =VLOOKUP($V21,Players!$M$3:$N$1251,2,FALSE) -> 0 | X21: 0 | AE21: Dallas Keuchel | AF21: =VLOOKUP($AE21,Players!$AT$3:$AU$1425,2,FALSE) -> 0 | AH21: 0 | AJ21: Blake Treinen | AK21: =VLOOKUP($AJ21,Players!$AT$3:$AU$1425,2,FALSE) -> 0 | AL21: 0 | AN21: OF | AO21: Austin Hays | AP21: =IF(ISERROR(VLOOKUP($AO21,Players!$M$3:$N$1434,2,FALSE)),(VLOOKUP($AO21,Players!$AT$3:$AU$1425,2,FALSE)),(VLOOKUP($AO21,Players!$M$3:$N$1434,2,FALSE))) -> 0 | AQ21: 0 | AS21: OF | AT21: Anthony Alford | AU21: =VLOOKUP($AT21,Players!$M$3:$N$1434,2,FALSE) -> 0 | AV21: 0 | AX21: RHP | AY21: Ian Anderson | AZ21: =VLOOKUP($AY21,Players!$AT$3:$AU$1425,2,FALSE) -> 0 | BA21: 0 | BC21: SS | BD21: Willy Adames | BE21: =VLOOKUP($BD21,Players!$M$3:$N$1434,2,FALSE) -> 0 | BF21: 0 | BH21: RHP | BI21: Jon Duplantier | BJ21: =VLOOKUP($BI21,Players!$AT$3:$AU$1425,2,FALSE) -> 0 | BK21: 0
A22: 21 | B22: Robinson Chirinos | C22: =VLOOKUP($B22,Players!$M$3:$N$1251,2,FALSE) -> 0 | D22: 0 | F22: J.T. Realmuto | G22: =VLOOKUP($F22,Players!$M$3:$N$1251,2,FALSE) -> 0 | H22: 0 | J22: Matt Carpenter | K22: =VLOOKUP($J22,Players!$M$3:$N$1251,2,FALSE) -> 0 | L22: 0 | N22: Maikel Franco | O22: =VLOOKUP($N22,Players!$M$3:$N$1251,2,FALSE) -> 0 | P22: 0 | R22: Chris Owings | S22: =VLOOKUP($R22,Players!$M$3:$N$1251,2,FALSE) -> 0 | T22: 0 | V22: Christian Yelich | W22: =VLOOKUP($V22,Players!$M$3:$N$1251,2,FALSE) -> 0 | X22: 0 | AE22: Shohei Ohtani | AF22: =VLOOKUP($AE22,Players!$AT$3:$AU$1425,2,FALSE) -> 0 | AH22: =IF(AF22>0,1,0) -> 0 | AJ22: Archie Bradley | AK22: =VLOOKUP($AJ22,Players!$AT$3:$AU$1425,2,FALSE) -> 0 | AL22: 0 | AN22: SS | AO22: Royce Lewis | AP22: =IF(ISERROR(VLOOKUP($AO22,Players!$M$3:$N$1434,2,FALSE)),(VLOOKUP($AO22,Players!$AT$3:$AU$1425,2,FALSE)),(VLOOKUP($AO22,Players!$M$3:$N$1434,2,FALSE))) -> 0 | AQ22: 0 | AS22: OF | AT22: Juan Soto | AU22: =VLOOKUP($AT22,Players!$M$3:$N$1434,2,FALSE) -> 0 | AV22: 0 | AX22: RHP | AY22: Jorge Guzman | AZ22: =VLOOKUP($AY22,Players!$AT$3:$AU$1425,2,FALSE) -> 0 | BA22: 0 | BC22: SS | BD22: Franklin Barreto | BE22: =VLOOKUP($BD22,Players!$M$3:$N$1434,2,FALSE) -> 0 | BF22: 0 | BH22: RHP | BI22: Kyle Wright | BJ22: =VLOOKUP($BI22,Players!$AT$3:$AU$1425,2,FALSE) -> 0 | BK22: 0
A23: 22 | B23: Alex Avila | C23: =VLOOKUP($B23,Players!$M$3:$N$1251,2,FALSE) -> 0 | D23: 0 | F23: Buster Posey | G23: =VLOOKUP($F23,Players!$M$3:$N$1251,2,FALSE) -> 0 | H23: 0 | J23: Marwin Gonzalez | K23: =VLOOKUP($J23,Players!$M$3:$N$1251,2,FALSE) -> 0 | L23: 0 | N23: Eduardo Nunez | O23: =VLOOKUP($N23,Players!$M$3:$N$1251,2,FALSE) -> 0 | P23: 0 | R23: Didi Gregorius | S23: =VLOOKUP($R23,Players!$M$3:$N$1251,2,FALSE) -> 0 | T23: 0 | V23: Lorenzo Cain | W23: =VLOOKUP($V23,Players!$M$3:$N$1251,2,FALSE) -> 0 | X23: 0 | AE23: Alex Wood | AF23: =VLOOKUP($AE23,Players!$AT$3:$AU$1425,2,FALSE) -> 0 | AH23: 0 | AJ23: Shane Greene | AK23: =VLOOKUP($AJ23,Players!$AT$3:$AU$1425,2,FALSE) -> 0 | AL23: 0 | AN23: 2B | AO23: Scott Kingery | AP23: =IF(ISERROR(VLOOKUP($AO23,Players!$M$3:$N$1434,2,FALSE)),(VLOOKUP($AO23,Players!$AT$3:$AU$1425,2,FALSE)),(VLOOKUP($AO23,Players!$M$3:$N$1434,2,FALSE))) -> 0 | AQ23: 0 | AS23: OF | AT23: Austin Meadows | AU23: =VLOOKUP($AT23,Players!$M$3:$N$1434,2,FALSE) -> 0 | AV23: 0 | AX23: LHP | AY23: Adrian Morejon | AZ23: =VLOOKUP($AY23,Players!$AT$3:$AU$1425,2,FALSE) -> 0 | BA23: 0 | BC23: 1B | BD23: Edwin Rios | BE23: =VLOOKUP($BD23,Players!$M$3:$N$1434,2,FALSE) -> 0 | BF23: 0 | BH23: RHP | BI23: Cal Quantrill | BJ23: =VLOOKUP($BI23,Players!$AT$3:$AU$1425,2,FALSE) -> 0 | BK23: 0
A24: 23 | B24: Matt Wieters | C24: =VLOOKUP($B24,Players!$M$3:$N$1251,2,FALSE) -> 0 | D24: 0 | F24: Matt Olson | G24: =VLOOKUP($F24,Players!$M$3:$N$1251,2,FALSE) -> 0 | H24: 0 | J24: Ian Kinsler | K24: =VLOOKUP($J24,Players!$M$3:$N$1251,2,FALSE) -> 0 | L24: 0 | N24: Matt Carpenter | O24: =VLOOKUP($N24,Players!$M$3:$N$1251,2,FALSE) -> 0 | P24: 0 | R24: Andrelton Simmons | S24: =VLOOKUP($R24,Players!$M$3:$N$1251,2,FALSE) -> 0 | T24: 0 | V24: Billy Hamilton | W24: =VLOOKUP($V24,Players!$M$3:$N$1251,2,FALSE) -> 0 | X24: 0 | AE24: Luis Castillo | AF24: =VLOOKUP($AE24,Players!$AT$3:$AU$1425,2,FALSE) -> 0 | AH24: 0 | AJ24: Fernando Rodney | AK24: =VLOOKUP($AJ24,Players!$AT$3:$AU$1425,2,FALSE) -> 0 | AL24: 0 | AN24: OF | AO24: Anthony Alford | AP24: =IF(ISERROR(VLOOKUP($AO24,Players!$M$3:$N$1434,2,FALSE)),(VLOOKUP($AO24,Players!$AT$3:$AU$1425,2,FALSE)),(VLOOKUP($AO24,Players!$M$3:$N$1434,2,FALSE))) -> 0 | AQ24: 0 | AS24: OF | AT24: Harrison Bader | AU24: =VLOOKUP($AT24,Players!$M$3:$N$1434,2,FALSE) -> 0 | AV24: 0 | AX24: RHP | AY24: Kyle Wright | AZ24: =VLOOKUP($AY24,Players!$AT$3:$AU$1425,2,FALSE) -> 0 | BA24: 0 | BC24: 1B/OF | BD24: Jake Bauers | BE24: =VLOOKUP($BD24,Players!$M$3:$N$1434,2,FALSE) -> 0 | BF24: 0 | BH24: RHP | BI24: Dylan Cease | BJ24: =VLOOKUP($BI24,Players!$AT$3:$AU$1425,2,FALSE) -> 0 | BK24: 0
A25: 24 | B25: Christian Vazquez | C25: =VLOOKUP($B25,Players!$M$3:$N$1251,2,FALSE) -> 0 | D25: 0 | F25: Ian Desmond | G25: =VLOOKUP($F25,Players!$M$3:$N$1251,2,FALSE) -> 0 | H25: 0 | J25: Scooter Gennett | K25: =VLOOKUP($J25,Players!$M$3:$N$1251,2,FALSE) -> 0 | L25: 0 | N25: Marwin Gonzalez | O25: =VLOOKUP($N25,Players!$M$3:$N$1251,2,FALSE) -> 0 | P25: 0 | R25: Addison Russell | S25: =VLOOKUP($R25,Players!$M$3:$N$1251,2,FALSE) -> 0 | T25: 0 | V25: A.J. Pollock | W25: =VLOOKUP($V25,Players!$M$3:$N$1251,2,FALSE) -> 0 | X25: 0 | AE25: Masahiro Tanaka | AF25: =VLOOKUP($AE25,Players!$AT$3:$AU$1425,2,FALSE) -> 0 | AH25: 0 | AJ25: Hector Neris | AK25: =VLOOKUP($AJ25,Players!$AT$3:$AU$1425,2,FALSE) -> 0 | AL25: 0 | AN25: OF | AO25: Juan Soto | AP25: =IF(ISERROR(VLOOKUP($AO25,Players!$M$3:$N$1434,2,FALSE)),(VLOOKUP($AO25,Players!$AT$3:$AU$1425,2,FALSE)),(VLOOKUP($AO25,Players!$M$3:$N$1434,2,FALSE))) -> 0 | AQ25: 0 | AS25: OF | AT25: Alex Verdugo | AU25: =VLOOKUP($AT25,Players!$M$3:$N$1434,2,FALSE) -> 0 | AV25: 0 | AX25: RHP | AY25: Chance Adams | AZ25: =VLOOKUP($AY25,Players!$AT$3:$AU$1425,2,FALSE) -> 0 | BA25: 0 | BC25: 3B | BD25: Brian Anderson | BE25: =VLOOKUP($BD25,Players!$M$3:$N$1434,2,FALSE) -> 0 | BF25: 0 | BH25: LHP | BI25: Stephen Gonsalves | BJ25: =VLOOKUP($BI25,Players!$AT$3:$AU$1425,2,FALSE) -> 0 | BK25: 0
A26: 25 | B26: Martin Maldonado | C26: =VLOOKUP($B26,Players!$M$3:$N$1251,2,FALSE) -> 0 | D26: 0 | F26: Greg Bird | G26: =VLOOKUP($F26,Players!$M$3:$N$1251,2,FALSE) -> 0 | H26: 0 | J26: Chris Owings | K26: =VLOOKUP($J26,Players!$M$3:$N$1251,2,FALSE) -> 0 | L26: 0 | N26: Scooter Gennett | O26: =VLOOKUP($N26,Players!$M$3:$N$1251,2,FALSE) -> 0 | P26: 0 | R26: Yangervis Solarte | S26: =VLOOKUP($R26,Players!$M$3:$N$1251,2,FALSE) -> 0 | T26: 0 | V26: Ronald Acuna | W26: =VLOOKUP($V26,Players!$M$3:$N$1251,2,FALSE) -> 0 | X26: 0 | AE26: Sonny Gray | AF26: =VLOOKUP($AE26,Players!$AT$3:$AU$1425,2,FALSE) -> 0 | AH26: 0 | AJ26: Blake Parker | AK26: =VLOOKUP($AJ26,Players!$AT$3:$AU$1425,2,FALSE) -> 0 | AL26: 0 | AN26: RHP | AO26: Forrest Whitley | AP26: =IF(ISERROR(VLOOKUP($AO26,Players!$M$3:$N$1434,2,FALSE)),(VLOOKUP($AO26,Players!$AT$3:$AU$1425,2,FALSE)),(VLOOKUP($AO26,Players!$M$3:$N$1434,2,FALSE))) -> 0 | AQ26: 0 | AS26: OF | AT26: Kyle Lewis | AU26: =VLOOKUP($AT26,Players!$M$3:$N$1434,2,FALSE) -> 0 | AV26: 0 | AX26: RHP | AY26: Cal Quantrill | AZ26: =VLOOKUP($AY26,Players!$AT$3:$AU$1425,2,FALSE) -> 0 | BA26: 0 | BC26: OF | BD26: Brett Phillips | BE26: =VLOOKUP($BD26,Players!$M$3:$N$1434,2,FALSE) -> 0 | BF26: 0 | BI26: 2020 | BJ26: =VLOOKUP($BI26,Players!$AT$3:$AU$1425,2,FALSE) -> 
A27: 26 | B27: Chance Sisco | C27: =VLOOKUP($B27,Players!$M$3:$N$1251,2,FALSE) -> 0 | D27: 0 | F27: Matt Carpenter | G27: =VLOOKUP($F27,Players!$M$3:$N$1251,2,FALSE) -> 0 | H27: 0 | J27: Jonathan Villar | K27: =VLOOKUP($J27,Players!$M$3:$N$1251,2,FALSE) -> 0 | L27: 0 | N27: Ryon Healy | O27: =VLOOKUP($N27,Players!$M$3:$N$1251,2,FALSE) -> 0 | P27: 0 | R27: Eduardo Escobar | S27: =VLOOKUP($R27,Players!$M$3:$N$1251,2,FALSE) -> 0 | T27: 0 | V27: Whit Merrifield | W27: =VLOOKUP($V27,Players!$M$3:$N$1251,2,FALSE) -> 0 | X27: 0 | AE27: Lance McCullers Jr. | AF27: =VLOOKUP($AE27,Players!$AT$3:$AU$1425,2,FALSE) -> 0 | AH27: 0 | AJ27: Arodys Vizcaino | AK27: =VLOOKUP($AJ27,Players!$AT$3:$AU$1425,2,FALSE) -> 0 | AL27: 0 | AN27: RHP | AO27: Walker Buehler | AP27: =IF(ISERROR(VLOOKUP($AO27,Players!$M$3:$N$1434,2,FALSE)),(VLOOKUP($AO27,Players!$AT$3:$AU$1425,2,FALSE)),(VLOOKUP($AO27,Players!$M$3:$N$1434,2,FALSE))) -> 0 | AQ27: 0 | AS27: OF | AT27: Christin Stewart | AU27: =VLOOKUP($AT27,Players!$M$3:$N$1434,2,FALSE) -> 0 | AV27: 0 | AX27: RHP | AY27: Dylan Cease | AZ27: =VLOOKUP($AY27,Players!$AT$3:$AU$1425,2,FALSE) -> 0 | BA27: 0 | BC27: 1B | BD27: Chris Shaw | BE27: =VLOOKUP($BD27,Players!$M$3:$N$1434,2,FALSE) -> 0 | BF27: 0 | BH27: LHP | BI27: Mackenzie Gore | BJ27: =VLOOKUP($BI27,Players!$AT$3:$AU$1425,2,FALSE) -> 0 | BK27: 0
A28: 27 | B28: Francisco Mejia | C28: =VLOOKUP($B28,Players!$M$3:$N$1251,2,FALSE) -> 0 | D28: 0 | F28: Kendrys Morales | G28: =VLOOKUP($F28,Players!$M$3:$N$1251,2,FALSE) -> 0 | H28: 0 | J28: Raul Mondesi | K28: =VLOOKUP($J28,Players!$M$3:$N$1251,2,FALSE) -> 0 | L28: 0 | N28: Nick Delmonico | O28: =VLOOKUP($N28,Players!$M$3:$N$1251,2,FALSE) -> 0 | P28: 0 | R28: Jorge Polanco | S28: =VLOOKUP($R28,Players!$M$3:$N$1251,2,FALSE) -> 0 | T28: 0 | V28: Yoenis Cespedes | W28: =VLOOKUP($V28,Players!$M$3:$N$1251,2,FALSE) -> 0 | X28: 0 | AE28: James Paxton | AF28: =VLOOKUP($AE28,Players!$AT$3:$AU$1425,2,FALSE) -> 0 | AH28: 0 | AJ28: Alex Claudio | AK28: =VLOOKUP($AJ28,Players!$AT$3:$AU$1425,2,FALSE) -> 0 | AL28: 0 | AN28: OF | AO28: Austin Meadows | AP28: =IF(ISERROR(VLOOKUP($AO28,Players!$M$3:$N$1434,2,FALSE)),(VLOOKUP($AO28,Players!$AT$3:$AU$1425,2,FALSE)),(VLOOKUP($AO28,Players!$M$3:$N$1434,2,FALSE))) -> 0 | AQ28: 0 | AS28: OF | AT28: Estevan Florial | AU28: =VLOOKUP($AT28,Players!$M$3:$N$1434,2,FALSE) -> 0 | AV28: 0 | AX28: RHP | AY28: Corbin Burnes | AZ28: =VLOOKUP($AY28,Players!$AT$3:$AU$1425,2,FALSE) -> 0 | BA28: 0 | BC28: C | BD28: Danny Jansen | BE28: =VLOOKUP($BD28,Players!$M$3:$N$1434,2,FALSE) -> 0 | BF28: 0 | BH28: RHP | BI28: Hunter Greene | BJ28: =VLOOKUP($BI28,Players!$AT$3:$AU$1425,2,FALSE) -> 0 | BK28: 0
A29: 28 | B29: Austin Barnes | C29: =VLOOKUP($B29,Players!$M$3:$N$1251,2,FALSE) -> 0 | D29: 0 | F29: Jay Bruce | G29: =VLOOKUP($F29,Players!$M$3:$N$1251,2,FALSE) -> 0 | H29: 0 | J29: Jason Kipnis | K29: =VLOOKUP($J29,Players!$M$3:$N$1251,2,FALSE) -> 0 | L29: 0 | N29: Yangervis Solarte | O29: =VLOOKUP($N29,Players!$M$3:$N$1251,2,FALSE) -> 0 | P29: 0 | R29: Ketel Marte | S29: =VLOOKUP($R29,Players!$M$3:$N$1251,2,FALSE) -> 0 | T29: 0 | V29: Eddie Rosario | W29: =VLOOKUP($V29,Players!$M$3:$N$1251,2,FALSE) -> 0 | X29: 0 | AE29: Luke Weaver | AF29: =VLOOKUP($AE29,Players!$AT$3:$AU$1425,2,FALSE) -> 0 | AH29: 0 | AJ29: Brad Brach | AK29: =VLOOKUP($AJ29,Players!$AT$3:$AU$1425,2,FALSE) -> 0 | AL29: 0 | AN29: RHP | AO29: Triston McKenzie | AP29: =IF(ISERROR(VLOOKUP($AO29,Players!$M$3:$N$1434,2,FALSE)),(VLOOKUP($AO29,Players!$AT$3:$AU$1425,2,FALSE)),(VLOOKUP($AO29,Players!$M$3:$N$1434,2,FALSE))) -> 0 | AQ29: 0 | AS29: OF | AT29: Jahmai Jones | AU29: =VLOOKUP($AT29,Players!$M$3:$N$1434,2,FALSE) -> 0 | AV29: 0 | AX29: RHP | AY29: Anderson Espinoza | AZ29: =VLOOKUP($AY29,Players!$AT$3:$AU$1425,2,FALSE) -> 0 | BA29: 0 | BD29: 2019 | BE29: =VLOOKUP($BD29,Players!$M$3:$N$1434,2,FALSE) ->  | BH29: RHP | BI29: Sixto Sanchez | BJ29: =VLOOKUP($BI29,Players!$AT$3:$AU$1425,2,FALSE) -> 0 | BK29: 0
A30: 29 | B30: Yan Gomes | C30: =VLOOKUP($B30,Players!$M$3:$N$1251,2,FALSE) -> 0 | D30: 0 | F30: Marwin Gonzalez | G30: =VLOOKUP($F30,Players!$M$3:$N$1251,2,FALSE) -> 0 | H30: 0 | J30: Yangervis Solarte | K30: =VLOOKUP($J30,Players!$M$3:$N$1251,2,FALSE) -> 0 | L30: 0 | N30: Eduardo Escobar | O30: =VLOOKUP($N30,Players!$M$3:$N$1251,2,FALSE) -> 0 | P30: 0 | R30: Marcus Semien | S30: =VLOOKUP($R30,Players!$M$3:$N$1251,2,FALSE) -> 0 | T30: 0 | V30: Joey Gallo | W30: =VLOOKUP($V30,Players!$M$3:$N$1251,2,FALSE) -> 0 | X30: 0 | AE30: Rich Hill | AF30: =VLOOKUP($AE30,Players!$AT$3:$AU$1425,2,FALSE) -> 0 | AH30: 0 | AJ30: Jeurys Familia | AK30: =VLOOKUP($AJ30,Players!$AT$3:$AU$1425,2,FALSE) -> 0 | AL30: 0 | AN30: OF | AO30: Harrison Bader | AP30: =IF(ISERROR(VLOOKUP($AO30,Players!$M$3:$N$1434,2,FALSE)),(VLOOKUP($AO30,Players!$AT$3:$AU$1425,2,FALSE)),(VLOOKUP($AO30,Players!$M$3:$N$1434,2,FALSE))) -> 0 | AQ30: 0 | AS30: OF | AT30: Jo Adell | AU30: =VLOOKUP($AT30,Players!$M$3:$N$1434,2,FALSE) -> 0 | AV30: 0 | AX30: LHP | AY30: Stephen Gonsalves | AZ30: =VLOOKUP($AY30,Players!$AT$3:$AU$1425,2,FALSE) -> 0 | BA30: 0 | BC30: OF | BD30: Eloy Jimenez | BE30: =VLOOKUP($BD30,Players!$M$3:$N$1434,2,FALSE) -> 0 | BF30: 0 | BH30: RHP | BI30: Ian Anderson | BJ30: =VLOOKUP($BI30,Players!$AT$3:$AU$1425,2,FALSE) -> 0 | BK30: 0
A31: 30 | B31: Carson Kelly | C31: =VLOOKUP($B31,Players!$M$3:$N$1251,2,FALSE) -> 0 | D31: 0 | F31: Ryon Healy | G31: =VLOOKUP($F31,Players!$M$3:$N$1251,2,FALSE) -> 0 | H31: 0 | J31: Eduardo Escobar | K31: =VLOOKUP($J31,Players!$M$3:$N$1251,2,FALSE) -> 0 | L31: 0 | N31: Josh Harrison | O31: =VLOOKUP($N31,Players!$M$3:$N$1251,2,FALSE) -> 0 | P31: 0 | R31: Brandon Crawford | S31: =VLOOKUP($R31,Players!$M$3:$N$1251,2,FALSE) -> 0 | T31: 0 | V31: Trey Mancini | W31: =VLOOKUP($V31,Players!$M$3:$N$1251,2,FALSE) -> 0 | X31: 0 | AE31: Jose Berrios | AF31: =VLOOKUP($AE31,Players!$AT$3:$AU$1425,2,FALSE) -> 0 | AH31: 0 | AJ31: Addison Reed | AK31: =VLOOKUP($AJ31,Players!$AT$3:$AU$1425,2,FALSE) -> 0 | AL31: 0 | AN31: RHP | AO31: Michel Baez | AP31: =IF(ISERROR(VLOOKUP($AO31,Players!$M$3:$N$1434,2,FALSE)),(VLOOKUP($AO31,Players!$AT$3:$AU$1425,2,FALSE)),(VLOOKUP($AO31,Players!$M$3:$N$1434,2,FALSE))) -> 0 | AQ31: 0 | AS31: SS | AT31: J.P. Crawford | AU31: =VLOOKUP($AT31,Players!$M$3:$N$1434,2,FALSE) -> 0 | AV31: 0 | AX31: RHP | AY31: Brent Honeywell | AZ31: =VLOOKUP($AY31,Players!$AT$3:$AU$1425,2,FALSE) -> 0 | BA31: 0 | BC31: OF | BD31: Kyle Tucker | BE31: =VLOOKUP($BD31,Players!$M$3:$N$1434,2,FALSE) -> 0 | BF31: 0 | BH31: RHP | BI31: Jorge Guzman | BJ31: =VLOOKUP($BI31,Players!$AT$3:$AU$1425,2,FALSE) -> 0 | BK31: 0
A32: 31 | B32: Stephen Vogt | C32: =VLOOKUP($B32,Players!$M$3:$N$1251,2,FALSE) -> 0 | D32: 0 | F32: Justin Bour | G32: =VLOOKUP($F32,Players!$M$3:$N$1251,2,FALSE) -> 0 | H32: 0 | J32: Cesar Hernandez | K32: =VLOOKUP($J32,Players!$M$3:$N$1251,2,FALSE) -> 0 | L32: 0 | N32: Matt Chapman | O32: =VLOOKUP($N32,Players!$M$3:$N$1251,2,FALSE) -> 0 | P32: 0 | R32: Jose Reyes | S32: =VLOOKUP($R32,Players!$M$3:$N$1251,2,FALSE) -> 0 | T32: 0 | V32: Tommy Pham | W32: =VLOOKUP($V32,Players!$M$3:$N$1251,2,FALSE) -> 0 | X32: 0 | AE32: Michael Wacha | AF32: =VLOOKUP($AE32,Players!$AT$3:$AU$1425,2,FALSE) -> 0 | AH32: =IF(AF32>0,1,0) -> 0 | AJ32: Chad Green | AK32: =VLOOKUP($AJ32,Players!$AT$3:$AU$1425,2,FALSE) -> 0 | AL32: 0 | AN32: LHP | AO32: Mackenzie Gore | AP32: =IF(ISERROR(VLOOKUP($AO32,Players!$M$3:$N$1434,2,FALSE)),(VLOOKUP($AO32,Players!$AT$3:$AU$1425,2,FALSE)),(VLOOKUP($AO32,Players!$M$3:$N$1434,2,FALSE))) -> 0 | AQ32: 0 | AS32: SS | AT32: Kevin Maitan | AU32: =VLOOKUP($AT32,Players!$M$3:$N$1434,2,FALSE) -> 0 | AV32: 0 | BC32: SS | BD32: Fernando Tatis Jr | BE32: =VLOOKUP($BD32,Players!$M$3:$N$1434,2,FALSE) -> 0 | BF32: 0 | BH32: LHP | BI32: Adrian Morejon | BJ32: =VLOOKUP($BI32,Players!$AT$3:$AU$1425,2,FALSE) -> 0 | BK32: 0
A33: 32 | B33: Manny Pina | C33: =VLOOKUP($B33,Players!$M$3:$N$1251,2,FALSE) -> 0 | D33: 0 | F33: Eric Thames | G33: =VLOOKUP($F33,Players!$M$3:$N$1251,2,FALSE) -> 0 | H33: 0 | J33: Josh Harrison | K33: =VLOOKUP($J33,Players!$M$3:$N$1251,2,FALSE) -> 0 | L33: 0 | N33: Todd Frazier | O33: =VLOOKUP($N33,Players!$M$3:$N$1251,2,FALSE) -> 0 | P33: 0 | R33: Asdrubal Cabrera | S33: =VLOOKUP($R33,Players!$M$3:$N$1251,2,FALSE) -> 0 | T33: 0 | V33: Andrew McCutchen | W33: =VLOOKUP($V33,Players!$M$3:$N$1251,2,FALSE) -> 0 | X33: 0 | AE33: Kevin Gausman | AF33: =VLOOKUP($AE33,Players!$AT$3:$AU$1425,2,FALSE) -> 0 | AH33: 0 | AJ33: Brad Peacock | AK33: =VLOOKUP($AJ33,Players!$AT$3:$AU$1425,2,FALSE) -> 0 | AL33: 0 | AN33: RHP | AO33: Hunter Greene | AP33: =IF(ISERROR(VLOOKUP($AO33,Players!$M$3:$N$1434,2,FALSE)),(VLOOKUP($AO33,Players!$AT$3:$AU$1425,2,FALSE)),(VLOOKUP($AO33,Players!$M$3:$N$1434,2,FALSE))) -> 0 | AQ33: 0 | AS33: OF | AT33: Leody Taveras | AU33: =VLOOKUP($AT33,Players!$M$3:$N$1434,2,FALSE) -> 0 | AV33: 0 | BC33: SS | BD33: Brendan Rodgers | BE33: =VLOOKUP($BD33,Players!$M$3:$N$1434,2,FALSE) -> 0 | BF33: 0 | BI33: 2021 | BJ33: =VLOOKUP($BI33,Players!$AT$3:$AU$1425,2,FALSE) -> 
A34: 33 | B34: Cameron Rupp | C34: =VLOOKUP($B34,Players!$M$3:$N$1251,2,FALSE) -> 0 | D34: 0 | F34: Albert Pujols | G34: =VLOOKUP($F34,Players!$M$3:$N$1251,2,FALSE) -> 0 | H34: 0 | J34: Starlin Castro | K34: =VLOOKUP($J34,Players!$M$3:$N$1251,2,FALSE) -> 0 | L34: 0 | N34: Jose Reyes | O34: =VLOOKUP($N34,Players!$M$3:$N$1251,2,FALSE) -> 0 | P34: 0 | R34: J.P. Crawford | S34: =VLOOKUP($R34,Players!$M$3:$N$1251,2,FALSE) -> 0 | T34: 0 | V34: Gregory Polanco | W34: =VLOOKUP($V34,Players!$M$3:$N$1251,2,FALSE) -> 0 | X34: 0 | AE34: Charlie Morton | AF34: =VLOOKUP($AE34,Players!$AT$3:$AU$1425,2,FALSE) -> 0 | AH34: 0 | AJ34: A.J. Ramos | AK34: =VLOOKUP($AJ34,Players!$AT$3:$AU$1425,2,FALSE) -> 0 | AL34: =IF(AK34>0,1,0) -> 0 | AN34: OF | AO34: Alex Verdugo | AP34: =IF(ISERROR(VLOOKUP($AO34,Players!$M$3:$N$1434,2,FALSE)),(VLOOKUP($AO34,Players!$AT$3:$AU$1425,2,FALSE)),(VLOOKUP($AO34,Players!$M$3:$N$1434,2,FALSE))) -> 0 | AQ34: 0 | AS34: OF | AT34: Tyler O’Neill | AU34: =VLOOKUP($AT34,Players!$M$3:$N$1434,2,FALSE) -> 0 | AV34: 0 | BC34: SS | BD34: Bo Bichette | BE34: =VLOOKUP($BD34,Players!$M$3:$N$1434,2,FALSE) -> 0 | BF34: 0 | BH34: RHP | BI34: Matt Manning | BJ34: =VLOOKUP($BI34,Players!$AT$3:$AU$1425,2,FALSE) -> 0 | BK34: 0
A35: 34 | B35: Devin Mesoraco | C35: =VLOOKUP($B35,Players!$M$3:$N$1251,2,FALSE) -> 0 | D35: 0 | F35: C.J. Cron | G35: =VLOOKUP($F35,Players!$M$3:$N$1251,2,FALSE) -> 0 | H35: 0 | J35: Austin Barnes | K35: =VLOOKUP($J35,Players!$M$3:$N$1251,2,FALSE) -> 0 | L35: 0 | N35: Asdrubal Cabrera | O35: =VLOOKUP($N35,Players!$M$3:$N$1251,2,FALSE) -> 0 | P35: 0 | R35: Gleyber Torres | S35: =VLOOKUP($R35,Players!$M$3:$N$1251,2,FALSE) -> 0 | T35: 0 | V35: Ryan Braun | W35: =VLOOKUP($V35,Players!$M$3:$N$1251,2,FALSE) -> 0 | X35: 0 | AE35: Zack Godley | AF35: =VLOOKUP($AE35,Players!$AT$3:$AU$1425,2,FALSE) -> 0 | AH35: 0 | AJ35: Juan Nicasio | AK35: =VLOOKUP($AJ35,Players!$AT$3:$AU$1425,2,FALSE) -> 0 | AL35: 0 | AN35: OF | AO35: Kyle Lewis | AP35: =IF(ISERROR(VLOOKUP($AO35,Players!$M$3:$N$1434,2,FALSE)),(VLOOKUP($AO35,Players!$AT$3:$AU$1425,2,FALSE)),(VLOOKUP($AO35,Players!$M$3:$N$1434,2,FALSE))) -> 0 | AQ35: 0 | AS35: 3B | AT35: Michael Chavis | AU35: =VLOOKUP($AT35,Players!$M$3:$N$1434,2,FALSE) -> 0 | AV35: 0 | BC35: OF | BD35: Kyle Lewis | BE35: =VLOOKUP($BD35,Players!$M$3:$N$1434,2,FALSE) -> 0 | BF35: 0 | BH35: RHP | BI35: Anderson Espinoza | BJ35: =VLOOKUP($BI35,Players!$AT$3:$AU$1425,2,FALSE) -> 0 | BK35: 0
A36: 35 | B36: Kurt Suzuki | C36: =VLOOKUP($B36,Players!$M$3:$N$1251,2,FALSE) -> 0 | D36: 0 | F36: Chris Davis | G36: =VLOOKUP($F36,Players!$M$3:$N$1251,2,FALSE) -> 0 | H36: 0 | J36: Ben Zobrist | K36: =VLOOKUP($J36,Players!$M$3:$N$1251,2,FALSE) -> 0 | L36: 0 | N36: J.P. Crawford | O36: =VLOOKUP($N36,Players!$M$3:$N$1251,2,FALSE) -> 0 | P36: 0 | R36: Willy Adames | S36: =VLOOKUP($R36,Players!$M$3:$N$1251,2,FALSE) -> 0 | T36: 0 | V36: Carlos Santana | W36: =VLOOKUP($V36,Players!$M$3:$N$1251,2,FALSE) -> 0 | X36: 0 | AE36: Drew Pomeranz | AF36: =VLOOKUP($AE36,Players!$AT$3:$AU$1425,2,FALSE) -> 0 | AH36: 0 | AJ36: Luke Gregerson | AK36: =VLOOKUP($AJ36,Players!$AT$3:$AU$1425,2,FALSE) -> 0 | AL36: 0 | AN36: OF | AO36: Christin Stewart | AP36: =IF(ISERROR(VLOOKUP($AO36,Players!$M$3:$N$1434,2,FALSE)),(VLOOKUP($AO36,Players!$AT$3:$AU$1425,2,FALSE)),(VLOOKUP($AO36,Players!$M$3:$N$1434,2,FALSE))) -> 0 | AQ36: 0 | AS36: 1B | AT36: Bobby Bradley | AU36: =VLOOKUP($AT36,Players!$M$3:$N$1434,2,FALSE) -> 0 | AV36: 0 | BC36: OF | BD36: Jahmai Jones | BE36: =VLOOKUP($BD36,Players!$M$3:$N$1434,2,FALSE) -> 0 | BF36: 0
A37: 36 | B37: Sandy Leon | C37: =VLOOKUP($B37,Players!$M$3:$N$1251,2,FALSE) -> 0 | D37: 0 | F37: Yonder Alonso | G37: =VLOOKUP($F37,Players!$M$3:$N$1251,2,FALSE) -> 0 | H37: 0 | J37: Brad Miller | K37: =VLOOKUP($J37,Players!$M$3:$N$1251,2,FALSE) -> 0 | L37: 0 | N37: Jedd Gyorko | O37: =VLOOKUP($N37,Players!$M$3:$N$1251,2,FALSE) -> 0 | P37: 0 | R37: Franklin Barreto | S37: =VLOOKUP($R37,Players!$M$3:$N$1251,2,FALSE) -> 0 | T37: 0 | V37: Matt Olson | W37: =VLOOKUP($V37,Players!$M$3:$N$1251,2,FALSE) -> 0 | X37: 0 | AE37: Gerrit Cole | AF37: =VLOOKUP($AE37,Players!$AT$3:$AU$1425,2,FALSE) -> 0 | AH37: 0 | AJ37: Juan Minaya | AK37: =VLOOKUP($AJ37,Players!$AT$3:$AU$1425,2,FALSE) -> 0 | AL37: 0 | AN37: RHP | AO37: Sixto Sanchez | AP37: =IF(ISERROR(VLOOKUP($AO37,Players!$M$3:$N$1434,2,FALSE)),(VLOOKUP($AO37,Players!$AT$3:$AU$1425,2,FALSE)),(VLOOKUP($AO37,Players!$M$3:$N$1434,2,FALSE))) -> 0 | AQ37: 0 | AS37: 1B/OF | AT37: Yordan Alvarez | AU37: =VLOOKUP($AT37,Players!$M$3:$N$1434,2,FALSE) -> 0 | AV37: 0 | BC37: 3B | BD37: Michael Chavis | BE37: =VLOOKUP($BD37,Players!$M$3:$N$1434,2,FALSE) -> 0 | BF37: 0
A38: 37 | B38: Bruce Maxwell | C38: =VLOOKUP($B38,Players!$M$3:$N$1251,2,FALSE) -> 0 | D38: 0 | F38: Ryan McMahon | G38: =VLOOKUP($F38,Players!$M$3:$N$1251,2,FALSE) -> 0 | H38: 0 | J38: Kolten Wong | K38: =VLOOKUP($J38,Players!$M$3:$N$1251,2,FALSE) -> 0 | L38: 0 | N38: Wilmer Flores | O38: =VLOOKUP($N38,Players!$M$3:$N$1251,2,FALSE) -> 0 | P38: 0 | R38: Chad Pinder | S38: =VLOOKUP($R38,Players!$M$3:$N$1251,2,FALSE) -> 0 | T38: 0 | V38: Ian Desmond | W38: =VLOOKUP($V38,Players!$M$3:$N$1251,2,FALSE) -> 0 | X38: 0 | AE38: Jake Arrieta | AF38: =VLOOKUP($AE38,Players!$AT$3:$AU$1425,2,FALSE) -> 0 | AH38: 0 | AJ38: Brad Ziegler | AK38: =VLOOKUP($AJ38,Players!$AT$3:$AU$1425,2,FALSE) -> 0 | AL38: 0 | AN38: OF | AO38: Estevan Florial | AP38: =IF(ISERROR(VLOOKUP($AO38,Players!$M$3:$N$1434,2,FALSE)),(VLOOKUP($AO38,Players!$AT$3:$AU$1425,2,FALSE)),(VLOOKUP($AO38,Players!$M$3:$N$1434,2,FALSE))) -> 0 | AQ38: 0 | AS38: OF | AT38: Jesus Sanchez | AU38: =VLOOKUP($AT38,Players!$M$3:$N$1434,2,FALSE) -> 0 | AV38: 0 | BC38: 1B | BD38: Bobby Bradley | BE38: =VLOOKUP($BD38,Players!$M$3:$N$1434,2,FALSE) -> 0 | BF38: 0
A39: 38 | B39: Caleb Joseph | C39: =VLOOKUP($B39,Players!$M$3:$N$1251,2,FALSE) -> 0 | D39: 0 | F39: Logan Morrison | G39: =VLOOKUP($F39,Players!$M$3:$N$1251,2,FALSE) -> 0 | H39: 0 | J39: Jed Lowrie | K39: =VLOOKUP($J39,Players!$M$3:$N$1251,2,FALSE) -> 0 | L39: 0 | N39: Derek Dietrich | O39: =VLOOKUP($N39,Players!$M$3:$N$1251,2,FALSE) -> 0 | P39: 0 | R39: Dansby Swanson | S39: =VLOOKUP($R39,Players!$M$3:$N$1251,2,FALSE) -> 0 | T39: 0 | V39: Nomar Mazara | W39: =VLOOKUP($V39,Players!$M$3:$N$1251,2,FALSE) -> 0 | X39: 0 | AE39: Marcus Stroman | AF39: =VLOOKUP($AE39,Players!$AT$3:$AU$1425,2,FALSE) -> 0 | AH39: 0 | AJ39: Keone Kela | AK39: =VLOOKUP($AJ39,Players!$AT$3:$AU$1425,2,FALSE) -> 0 | AL39: 0 | AN39: OF | AO39: Jahmai Jones | AP39: =IF(ISERROR(VLOOKUP($AO39,Players!$M$3:$N$1434,2,FALSE)),(VLOOKUP($AO39,Players!$AT$3:$AU$1425,2,FALSE)),(VLOOKUP($AO39,Players!$M$3:$N$1434,2,FALSE))) -> 0 | AQ39: 0 | AS39: SS | AT39: Jorge Mateo | AU39: =VLOOKUP($AT39,Players!$M$3:$N$1434,2,FALSE) -> 0 | AV39: 0 | BC39: 1B/OF | BD39: Yordan Alvarez | BE39: =VLOOKUP($BD39,Players!$M$3:$N$1434,2,FALSE) -> 0 | BF39: 0
A40: 39 | B40: Tucker Barnhart | C40: =VLOOKUP($B40,Players!$M$3:$N$1251,2,FALSE) -> 0 | D40: =IF(C40>0,1,0) -> 0 | F40: Mark Reynolds | G40: =VLOOKUP($F40,Players!$M$3:$N$1251,2,FALSE) -> 0 | H40: 0 | J40: Neil Walker | K40: =VLOOKUP($J40,Players!$M$3:$N$1251,2,FALSE) -> 0 | L40: 0 | N40: Nick Senzel | O40: =VLOOKUP($N40,Players!$M$3:$N$1251,2,FALSE) -> 0 | P40: 0 | R40: Troy Tulowitzki | S40: =VLOOKUP($R40,Players!$M$3:$N$1251,2,FALSE) -> 0 | T40: 0 | V40: Ender Inciarte | W40: =VLOOKUP($V40,Players!$M$3:$N$1251,2,FALSE) -> 0 | X40: 0 | AE40: Kyle Hendricks | AF40: =VLOOKUP($AE40,Players!$AT$3:$AU$1425,2,FALSE) -> 0 | AH40: 0 | AJ40: Kyle Barraclough | AK40: =VLOOKUP($AJ40,Players!$AT$3:$AU$1425,2,FALSE) -> 0 | AL40: 0 | AN40: OF | AO40: Jo Adell | AP40: =IF(ISERROR(VLOOKUP($AO40,Players!$M$3:$N$1434,2,FALSE)),(VLOOKUP($AO40,Players!$AT$3:$AU$1425,2,FALSE)),(VLOOKUP($AO40,Players!$M$3:$N$1434,2,FALSE))) -> 0 | AQ40: 0 | AS40: 3B | AT40: Miguel Andujar | AU40: =VLOOKUP($AT40,Players!$M$3:$N$1434,2,FALSE) -> 0 | AV40: 0 | BC40: OF | BD40: Jesus Sanchez | BE40: =VLOOKUP($BD40,Players!$M$3:$N$1434,2,FALSE) -> 0 | BF40: 0
A41: 40 | B41: Francisco Cervelli | C41: =VLOOKUP($B41,Players!$M$3:$N$1251,2,FALSE) -> 0 | D41: 0 | F41: Neil Walker | G41: =VLOOKUP($F41,Players!$M$3:$N$1251,2,FALSE) -> 0 | H41: 0 | J41: Jose Reyes | K41: =VLOOKUP($J41,Players!$M$3:$N$1251,2,FALSE) -> 0 | L41: 0 | N41: Cory Spangenberg | O41: =VLOOKUP($N41,Players!$M$3:$N$1251,2,FALSE) -> 0 | P41: 0 | R41: Jose Iglesias | S41: =VLOOKUP($R41,Players!$M$3:$N$1251,2,FALSE) -> 0 | T41: 0 | V41: Domingo Santana | W41: =VLOOKUP($V41,Players!$M$3:$N$1251,2,FALSE) -> 0 | X41: 0 | AE41: David Price | AF41: =VLOOKUP($AE41,Players!$AT$3:$AU$1425,2,FALSE) -> 0 | AH41: 0 | AJ41: Mike Minor | AK41: =VLOOKUP($AJ41,Players!$AT$3:$AU$1425,2,FALSE) -> 0 | AL41: 0 | AN41: SS | AO41: J.P. Crawford | AP41: =IF(ISERROR(VLOOKUP($AO41,Players!$M$3:$N$1434,2,FALSE)),(VLOOKUP($AO41,Players!$AT$3:$AU$1425,2,FALSE)),(VLOOKUP($AO41,Players!$M$3:$N$1434,2,FALSE))) -> 0 | AQ41: 0 | AS41: 2B | AT41: Keston Hiura | AU41: =VLOOKUP($AT41,Players!$M$3:$N$1434,2,FALSE) -> 0 | AV41: 0 | BC41: SS | BD41: Jorge Mateo | BE41: =VLOOKUP($BD41,Players!$M$3:$N$1434,2,FALSE) -> 0 | BF41: 0
A42: 41 | B42: Jeff Mathis | C42: =VLOOKUP($B42,Players!$M$3:$N$1251,2,FALSE) -> 0 | D42: 0 | F42: Joe Mauer | G42: =VLOOKUP($F42,Players!$M$3:$N$1251,2,FALSE) -> 0 | H42: 0 | J42: Asdrubal Cabrera | K42: =VLOOKUP($J42,Players!$M$3:$N$1251,2,FALSE) -> 0 | L42: 0 | N42: Brian Anderson | O42: =VLOOKUP($N42,Players!$M$3:$N$1251,2,FALSE) -> 0 | P42: 0 | R42: Adeiny Hechavarria | S42: =VLOOKUP($R42,Players!$M$3:$N$1251,2,FALSE) -> 0 | T42: 0 | V42: Manuel Margot | W42: =VLOOKUP($V42,Players!$M$3:$N$1251,2,FALSE) -> 0 | X42: 0 | AE42: Danny Salazar | AF42: =VLOOKUP($AE42,Players!$AT$3:$AU$1425,2,FALSE) -> 0 | AH42: 0 | AJ42: Dellin Betances | AK42: =VLOOKUP($AJ42,Players!$AT$3:$AU$1425,2,FALSE) -> 0 | AL42: 0 | AN42: LHP | AO42: Kolby Allard | AP42: =IF(ISERROR(VLOOKUP($AO42,Players!$M$3:$N$1434,2,FALSE)),(VLOOKUP($AO42,Players!$AT$3:$AU$1425,2,FALSE)),(VLOOKUP($AO42,Players!$M$3:$N$1434,2,FALSE))) -> 0 | AQ42: 0 | AS42: SS | AT42: Willy Adames | AU42: =VLOOKUP($AT42,Players!$M$3:$N$1434,2,FALSE) -> 0 | AV42: 0 | BC42: 2B | BD42: Keston Hiura | BE42: =VLOOKUP($BD42,Players!$M$3:$N$1434,2,FALSE) -> 0 | BF42: 0
A43: 42 | B43: Roberto Perez | C43: =VLOOKUP($B43,Players!$M$3:$N$1251,2,FALSE) -> 0 | D43: 0 | F43: Brandon Belt | G43: =VLOOKUP($F43,Players!$M$3:$N$1251,2,FALSE) -> 0 | H43: 0 | J43: Adam Frazier | K43: =VLOOKUP($J43,Players!$M$3:$N$1251,2,FALSE) -> 0 | L43: 0 | N43: Russell Martin | O43: =VLOOKUP($N43,Players!$M$3:$N$1251,2,FALSE) -> 0 | P43: 0 | R43: Jordy Mercer | S43: =VLOOKUP($R43,Players!$M$3:$N$1251,2,FALSE) -> 0 | T43: 0 | V43: Michael A. Taylor | W43: =VLOOKUP($V43,Players!$M$3:$N$1251,2,FALSE) -> 0 | X43: 0 | AE43: Taijuan Walker | AF43: =VLOOKUP($AE43,Players!$AT$3:$AU$1425,2,FALSE) -> 0 | AH43: 0 | AJ43: Ryan Madson | AK43: =VLOOKUP($AJ43,Players!$AT$3:$AU$1425,2,FALSE) -> 0 | AL43: 0 | AN43: SS | AO43: Kevin Maitan | AP43: =IF(ISERROR(VLOOKUP($AO43,Players!$M$3:$N$1434,2,FALSE)),(VLOOKUP($AO43,Players!$AT$3:$AU$1425,2,FALSE)),(VLOOKUP($AO43,Players!$M$3:$N$1434,2,FALSE))) -> 0 | AQ43: 0 | AS43: OF | AT43: Heliot Ramos | AU43: =VLOOKUP($AT43,Players!$M$3:$N$1434,2,FALSE) -> 0 | AV43: 0 | BC43: SS | BD43: Ryan Mountcastle | BE43: =VLOOKUP($BD43,Players!$M$3:$N$1434,2,FALSE) -> 0 | BF43: 0
A44: 43 | B44: Tom Murphy | C44: =VLOOKUP($B44,Players!$M$3:$N$1251,2,FALSE) -> 0 | D44: 0 | F44: Jose Martinez | G44: =VLOOKUP($F44,Players!$M$3:$N$1251,2,FALSE) -> 0 | H44: 0 | J44: Jedd Gyorko | K44: =VLOOKUP($J44,Players!$M$3:$N$1251,2,FALSE) -> 0 | L44: 0 | N44: Jeimer Candelario | O44: =VLOOKUP($N44,Players!$M$3:$N$1251,2,FALSE) -> 0 | P44: 0 | R44: Freddy Galvis | S44: =VLOOKUP($R44,Players!$M$3:$N$1251,2,FALSE) -> 0 | T44: =IF(S44>0,1,0) -> 0 | V44: Kyle Schwarber | W44: =VLOOKUP($V44,Players!$M$3:$N$1251,2,FALSE) -> 0 | X44: 0 | AE44: Jon Lester | AF44: =VLOOKUP($AE44,Players!$AT$3:$AU$1425,2,FALSE) -> 0 | AH44: 0 | AJ44: Cam Bedrosian | AK44: =VLOOKUP($AJ44,Players!$AT$3:$AU$1425,2,FALSE) -> 0 | AL44: 0 | AN44: OF | AO44: Leody Taveras | AP44: =IF(ISERROR(VLOOKUP($AO44,Players!$M$3:$N$1434,2,FALSE)),(VLOOKUP($AO44,Players!$AT$3:$AU$1425,2,FALSE)),(VLOOKUP($AO44,Players!$M$3:$N$1434,2,FALSE))) -> 0 | AQ44: 0 | AS44: SS | AT44: Franklin Barreto | AU44: =VLOOKUP($AT44,Players!$M$3:$N$1434,2,FALSE) -> 0 | AV44: 0 | BC44: C | BD44: Zack Collins | BE44: =VLOOKUP($BD44,Players!$M$3:$N$1434,2,FALSE) -> 0 | BF44: 0
A45: 44 | B45: Jason Castro | C45: =VLOOKUP($B45,Players!$M$3:$N$1251,2,FALSE) -> 0 | D45: 0 | F45: Mitch Moreland | G45: =VLOOKUP($F45,Players!$M$3:$N$1251,2,FALSE) -> 0 | H45: 0 | J45: Wilmer Flores | K45: =VLOOKUP($J45,Players!$M$3:$N$1251,2,FALSE) -> 0 | L45: 0 | N45: Matt Davidson | O45: =VLOOKUP($N45,Players!$M$3:$N$1251,2,FALSE) -> 0 | P45: 0 | R45: Alcides Escobar | S45: =VLOOKUP($R45,Players!$M$3:$N$1251,2,FALSE) -> 0 | T45: 0 | V45: Nicholas Castellanos | W45: =VLOOKUP($V45,Players!$M$3:$N$1251,2,FALSE) -> 0 | X45: 0 | AE45: Johnny Cueto | AF45: =VLOOKUP($AE45,Players!$AT$3:$AU$1425,2,FALSE) -> 0 | AH45: 0 | AJ45: Josh Hader | AK45: =VLOOKUP($AJ45,Players!$AT$3:$AU$1425,2,FALSE) -> 0 | AL45: 0 | AN45: OF | AO45: Tyler O’Neill | AP45: =IF(ISERROR(VLOOKUP($AO45,Players!$M$3:$N$1434,2,FALSE)),(VLOOKUP($AO45,Players!$AT$3:$AU$1425,2,FALSE)),(VLOOKUP($AO45,Players!$M$3:$N$1434,2,FALSE))) -> 0 | AQ45: 0 | AS45: SS | AT45: Ryan Mountcastle | AU45: =VLOOKUP($AT45,Players!$M$3:$N$1434,2,FALSE) -> 0 | AV45: 0 | BC45: 1B | BD45: Brent Rooker | BE45: =VLOOKUP($BD45,Players!$M$3:$N$1434,2,FALSE) -> 0 | BF45: 0
A46: 45 | B46: Tony Wolters | C46: =VLOOKUP($B46,Players!$M$3:$N$1251,2,FALSE) -> 0 | D46: 0 | F46: Jedd Gyorko | G46: =VLOOKUP($F46,Players!$M$3:$N$1251,2,FALSE) -> 0 | H46: 0 | J46: Derek Dietrich | K46: =VLOOKUP($J46,Players!$M$3:$N$1251,2,FALSE) -> 0 | L46: =IF(K46>0,1,0) -> 0 | N46: Colin Moran | O46: =VLOOKUP($N46,Players!$M$3:$N$1251,2,FALSE) -> 0 | P46: 0 | R46: Wilmer Difo | S46: =VLOOKUP($R46,Players!$M$3:$N$1251,2,FALSE) -> 0 | T46: 0 | V46: Adam Eaton | W46: =VLOOKUP($V46,Players!$M$3:$N$1251,2,FALSE) -> 0 | X46: 0 | AE46: Jon Gray | AF46: =VLOOKUP($AE46,Players!$AT$3:$AU$1425,2,FALSE) -> 0 | AH46: 0 | AJ46: David Robertson | AK46: =VLOOKUP($AJ46,Players!$AT$3:$AU$1425,2,FALSE) -> 0 | AL46: 0 | AN46: 3B | AO46: Michael Chavis | AP46: =IF(ISERROR(VLOOKUP($AO46,Players!$M$3:$N$1434,2,FALSE)),(VLOOKUP($AO46,Players!$AT$3:$AU$1425,2,FALSE)),(VLOOKUP($AO46,Players!$M$3:$N$1434,2,FALSE))) -> 0 | AQ46: 0 | AS46: OF | AT46: Starling Heredia | AU46: =VLOOKUP($AT46,Players!$M$3:$N$1434,2,FALSE) -> 0 | AV46: 0 | BC46: SS | BD46: Nick Gordon | BE46: =VLOOKUP($BD46,Players!$M$3:$N$1434,2,FALSE) -> 0 | BF46: 0
A47: 46 | F47: Lucas Duda | G47: =VLOOKUP($F47,Players!$M$3:$N$1251,2,FALSE) -> 0 | H47: 0 | J47: Scott Kingery | K47: =VLOOKUP($J47,Players!$M$3:$N$1251,2,FALSE) -> 0 | L47: 0 | N47: Luis Valbuena | O47: =VLOOKUP($N47,Players!$M$3:$N$1251,2,FALSE) -> 0 | P47: 0 | R47: Johan Camargo | S47: =VLOOKUP($R47,Players!$M$3:$N$1251,2,FALSE) -> 0 | T47: 0 | V47: Michael Conforto | W47: =VLOOKUP($V47,Players!$M$3:$N$1251,2,FALSE) -> 0 | X47: 0 | AE47: Blake Snell | AF47: =VLOOKUP($AE47,Players!$AT$3:$AU$1425,2,FALSE) -> 0 | AH47: 0 | AJ47: Carl Edwards Jr. | AK47: =VLOOKUP($AJ47,Players!$AT$3:$AU$1425,2,FALSE) -> 0 | AL47: 0 | AN47: LHP | AO47: Luiz Gohara | AP47: =IF(ISERROR(VLOOKUP($AO47,Players!$M$3:$N$1434,2,FALSE)),(VLOOKUP($AO47,Players!$AT$3:$AU$1425,2,FALSE)),(VLOOKUP($AO47,Players!$M$3:$N$1434,2,FALSE))) -> 0 | AQ47: 0 | AS47: C | AT47: Zack Collins | AU47: =VLOOKUP($AT47,Players!$M$3:$N$1434,2,FALSE) -> 0 | AV47: 0 | BC47: 2B | BD47: Luis Urias | BE47: =VLOOKUP($BD47,Players!$M$3:$N$1434,2,FALSE) -> 0 | BF47: 0
A48: 47 | F48: Matt Adams | G48: =VLOOKUP($F48,Players!$M$3:$N$1251,2,FALSE) -> 0 | H48: 0 | J48: Franklin Barreto | K48: =VLOOKUP($J48,Players!$M$3:$N$1251,2,FALSE) -> 0 | L48: 0 | N48: Jordan Luplow | O48: =VLOOKUP($N48,Players!$M$3:$N$1251,2,FALSE) -> 0 | P48: 0 | R48: J.T. Riddle | S48: =VLOOKUP($R48,Players!$M$3:$N$1251,2,FALSE) -> 0 | T48: 0 | V48: Mitch Haniger | W48: =VLOOKUP($V48,Players!$M$3:$N$1251,2,FALSE) -> 0 | X48: 0 | AE48: Chase Anderson | AF48: =VLOOKUP($AE48,Players!$AT$3:$AU$1425,2,FALSE) -> 0 | AH48: 0 | AJ48: Chris Devenski | AK48: =VLOOKUP($AJ48,Players!$AT$3:$AU$1425,2,FALSE) -> 0 | AL48: 0 | AN48: LHP | AO48: A.J. Puk | AP48: =IF(ISERROR(VLOOKUP($AO48,Players!$M$3:$N$1434,2,FALSE)),(VLOOKUP($AO48,Players!$AT$3:$AU$1425,2,FALSE)),(VLOOKUP($AO48,Players!$M$3:$N$1434,2,FALSE))) -> 0 | AQ48: 0 | AS48: OF | AT48: Jhailyn Ortiz | AU48: =VLOOKUP($AT48,Players!$M$3:$N$1434,2,FALSE) -> 0 | AV48: 0 | BC48: 1B | BD48: Peter Alonso | BE48: =VLOOKUP($BD48,Players!$M$3:$N$1434,2,FALSE) -> 0 | BF48: 0
A49: 48 | F49: Wilmer Flores | G49: =VLOOKUP($F49,Players!$M$3:$N$1251,2,FALSE) -> 0 | H49: 0 | J49: Chad Pinder | K49: =VLOOKUP($J49,Players!$M$3:$N$1251,2,FALSE) -> 0 | L49: 0 | N49: Chase Headley | O49: =VLOOKUP($N49,Players!$M$3:$N$1251,2,FALSE) -> 0 | P49: =IF(O49>0,1,0) -> 0 | R49: Dixon Machado | S49: =VLOOKUP($R49,Players!$M$3:$N$1251,2,FALSE) -> 0 | T49: 0 | V49: Bradley Zimmer | W49: =VLOOKUP($V49,Players!$M$3:$N$1251,2,FALSE) -> 0 | X49: 0 | AE49: Jameson Taillon | AF49: =VLOOKUP($AE49,Players!$AT$3:$AU$1425,2,FALSE) -> 0 | AH49: 0 | AJ49: Nate Jones | AK49: =VLOOKUP($AJ49,Players!$AT$3:$AU$1425,2,FALSE) -> 0 | AL49: 0 | AN49: 1B | AO49: Bobby Bradley | AP49: =IF(ISERROR(VLOOKUP($AO49,Players!$M$3:$N$1434,2,FALSE)),(VLOOKUP($AO49,Players!$AT$3:$AU$1425,2,FALSE)),(VLOOKUP($AO49,Players!$M$3:$N$1434,2,FALSE))) -> 0 | AQ49: 0 | AS49: OF | AT49: Brandon Marsh | AU49: =VLOOKUP($AT49,Players!$M$3:$N$1434,2,FALSE) -> 0 | AV49: 0 | BC49: 3B | BD49: Austin Riley | BE49: =VLOOKUP($BD49,Players!$M$3:$N$1434,2,FALSE) -> 0 | BF49: 0
A50: 49 | F50: Dominic Smith | G50: =VLOOKUP($F50,Players!$M$3:$N$1251,2,FALSE) -> 0 | H50: 0 | J50: Jurickson Profar | K50: =VLOOKUP($J50,Players!$M$3:$N$1251,2,FALSE) -> 0 | L50: 0 | N50: Martin Prado | O50: =VLOOKUP($N50,Players!$M$3:$N$1251,2,FALSE) -> 0 | P50: 0 | R50: Aledmys Diaz | S50: =VLOOKUP($R50,Players!$M$3:$N$1251,2,FALSE) -> 0 | T50: 0 | V50: Ian Happ | W50: =VLOOKUP($V50,Players!$M$3:$N$1251,2,FALSE) -> 0 | X50: 0 | AE50: Patrick Corbin | AF50: =VLOOKUP($AE50,Players!$AT$3:$AU$1425,2,FALSE) -> 0 | AH50: 0 | AJ50: Joakim Soria | AK50: =VLOOKUP($AJ50,Players!$AT$3:$AU$1425,2,FALSE) -> 0 | AL50: 0 | AN50: 1B/OF | AO50: Yordan Alvarez | AP50: =IF(ISERROR(VLOOKUP($AO50,Players!$M$3:$N$1434,2,FALSE)),(VLOOKUP($AO50,Players!$AT$3:$AU$1425,2,FALSE)),(VLOOKUP($AO50,Players!$M$3:$N$1434,2,FALSE))) -> 0 | AQ50: 0 | AS50: 3B | AT50: Colton Welker | AU50: =VLOOKUP($AT50,Players!$M$3:$N$1434,2,FALSE) -> 0 | AV50: 0 | BC50: 2B | BD50: Shed Long | BE50: =VLOOKUP($BD50,Players!$M$3:$N$1434,2,FALSE) -> 0 | BF50: 0
A51: 50 | F51: Derek Dietrich | G51: =VLOOKUP($F51,Players!$M$3:$N$1251,2,FALSE) -> 0 | H51: 0 | J51: Joe Panik | K51: =VLOOKUP($J51,Players!$M$3:$N$1251,2,FALSE) -> 0 | L51: 0 | N51: Matt Duffy | O51: =VLOOKUP($N51,Players!$M$3:$N$1251,2,FALSE) -> 0 | P51: 0 | R51: Hernan Perez | S51: =VLOOKUP($R51,Players!$M$3:$N$1251,2,FALSE) -> 0 | T51: 0 | V51: Avisail Garcia | W51: =VLOOKUP($V51,Players!$M$3:$N$1251,2,FALSE) -> 0 | X51: 0 | AE51: Dylan Bundy | AF51: =VLOOKUP($AE51,Players!$AT$3:$AU$1425,2,FALSE) -> 0 | AH51: 0 | AJ51: Sam Dyson | AK51: =VLOOKUP($AJ51,Players!$AT$3:$AU$1425,2,FALSE) -> 0 | AL51: 0 | AN51: RHP | AO51: Mike Soroka | AP51: =IF(ISERROR(VLOOKUP($AO51,Players!$M$3:$N$1434,2,FALSE)),(VLOOKUP($AO51,Players!$AT$3:$AU$1425,2,FALSE)),(VLOOKUP($AO51,Players!$M$3:$N$1434,2,FALSE))) -> 0 | AQ51: 0 | AS51: 1B | AT51: Brent Rooker | AU51: =VLOOKUP($AT51,Players!$M$3:$N$1434,2,FALSE) -> 0 | AV51: 0 | BC51: 2B | BD51: Isan Diaz | BE51: =VLOOKUP($BD51,Players!$M$3:$N$1434,2,FALSE) -> 0 | BF51: 0
A52: 51 | F52: Matt Davidson | G52: =VLOOKUP($F52,Players!$M$3:$N$1251,2,FALSE) -> 0 | H52: =IF(G52>0,1,0) -> 0 | J52: Dustin Pedroia | K52: =VLOOKUP($J52,Players!$M$3:$N$1251,2,FALSE) -> 0 | L52: 0 | N52: Miguel Andujar | O52: =VLOOKUP($N52,Players!$M$3:$N$1251,2,FALSE) -> 0 | P52: 0 | R52: Pat Valaika | S52: =VLOOKUP($R52,Players!$M$3:$N$1251,2,FALSE) -> 0 | T52: 0 | V52: Jay Bruce | W52: =VLOOKUP($V52,Players!$M$3:$N$1251,2,FALSE) -> 0 | X52: 0 | AE52: Jeff Samardzija | AF52: =VLOOKUP($AE52,Players!$AT$3:$AU$1425,2,FALSE) -> 0 | AH52: 0 | AJ52: Drew Steckenrider | AK52: =VLOOKUP($AJ52,Players!$AT$3:$AU$1425,2,FALSE) -> 0 | AL52: 0 | AN52: OF | AO52: Jesus Sanchez | AP52: =IF(ISERROR(VLOOKUP($AO52,Players!$M$3:$N$1434,2,FALSE)),(VLOOKUP($AO52,Players!$AT$3:$AU$1425,2,FALSE)),(VLOOKUP($AO52,Players!$M$3:$N$1434,2,FALSE))) -> 0 | AQ52: 0 | AS52: C | AT52: Keibert Ruiz | AU52: =VLOOKUP($AT52,Players!$M$3:$N$1434,2,FALSE) -> 0 | AV52: 0 | BC52: OF | BD52: Monte Harrison | BE52: =VLOOKUP($BD52,Players!$M$3:$N$1434,2,FALSE) -> 0 | BF52: 0
A53: 52 | F53: Colin Moran | G53: =VLOOKUP($F53,Players!$M$3:$N$1251,2,FALSE) -> 0 | H53: 0 | J53: Devon Travis | K53: =VLOOKUP($J53,Players!$M$3:$N$1251,2,FALSE) -> 0 | L53: 0 | N53: Pablo Sandoval | O53: =VLOOKUP($N53,Players!$M$3:$N$1251,2,FALSE) -> 0 | P53: 0 | V53: Eduardo Nunez | W53: =VLOOKUP($V53,Players!$M$3:$N$1251,2,FALSE) -> 0 | X53: 0 | AE53: Lance Lynn | AF53: =VLOOKUP($AE53,Players!$AT$3:$AU$1425,2,FALSE) -> 0 | AH53: 0 | AJ53: A.J. Minter | AK53: =VLOOKUP($AJ53,Players!$AT$3:$AU$1425,2,FALSE) -> 0 | AL53: 0 | AN53: RHP | AO53: Mitch Keller | AP53: =IF(ISERROR(VLOOKUP($AO53,Players!$M$3:$N$1434,2,FALSE)),(VLOOKUP($AO53,Players!$AT$3:$AU$1425,2,FALSE)),(VLOOKUP($AO53,Players!$M$3:$N$1434,2,FALSE))) -> 0 | AQ53: 0 | AS53: SS | AT53: Wander Javier | AU53: =VLOOKUP($AT53,Players!$M$3:$N$1434,2,FALSE) -> 0 | AV53: 0 | BD53: 2020 | BE53: =VLOOKUP($BD53,Players!$M$3:$N$1434,2,FALSE) -> 
A54: 53 | F54: Luis Valbuena | G54: =VLOOKUP($F54,Players!$M$3:$N$1251,2,FALSE) -> 0 | H54: 0 | J54: Dixon Machado | K54: =VLOOKUP($J54,Players!$M$3:$N$1251,2,FALSE) -> 0 | L54: 0 | N54: Wilmer Difo | O54: =VLOOKUP($N54,Players!$M$3:$N$1251,2,FALSE) -> 0 | P54: 0 | V54: Marwin Gonzalez | W54: =VLOOKUP($V54,Players!$M$3:$N$1251,2,FALSE) -> 0 | X54: 0 | AE54: Gio Gonzalez | AF54: =VLOOKUP($AE54,Players!$AT$3:$AU$1425,2,FALSE) -> 0 | AH54: 0 | AJ54: Joe Kelly | AK54: =VLOOKUP($AJ54,Players!$AT$3:$AU$1425,2,FALSE) -> 0 | AL54: 0 | AN54: SS | AO54: Jorge Mateo | AP54: =IF(ISERROR(VLOOKUP($AO54,Players!$M$3:$N$1434,2,FALSE)),(VLOOKUP($AO54,Players!$AT$3:$AU$1425,2,FALSE)),(VLOOKUP($AO54,Players!$M$3:$N$1434,2,FALSE))) -> 0 | AQ54: 0 | AS54: 1B | AT54: Edwin Rios | AU54: =VLOOKUP($AT54,Players!$M$3:$N$1434,2,FALSE) -> 0 | AV54: 0 | BC54: 3B | BD54: Vladimir Guerrero Jr | BE54: =VLOOKUP($BD54,Players!$M$3:$N$1434,2,FALSE) -> 0 | BF54: 0
A55: 54 | F55: Mike Napoli | G55: =VLOOKUP($F55,Players!$M$3:$N$1251,2,FALSE) -> 0 | H55: 0 | J55: Carlos Asuaje | K55: =VLOOKUP($J55,Players!$M$3:$N$1251,2,FALSE) -> 0 | L55: 0 | N55: Johan Camargo | O55: =VLOOKUP($N55,Players!$M$3:$N$1251,2,FALSE) -> 0 | P55: 0 | V55: Scooter Gennett | W55: =VLOOKUP($V55,Players!$M$3:$N$1251,2,FALSE) -> 0 | X55: 0 | AE55: Michael Fulmer | AF55: =VLOOKUP($AE55,Players!$AT$3:$AU$1425,2,FALSE) -> 0 | AH55: 0 | AJ55: Tyler Lyons | AK55: =VLOOKUP($AJ55,Players!$AT$3:$AU$1425,2,FALSE) -> 0 | AL55: 0 | AN55: 3B | AO55: Miguel Andujar | AP55: =IF(ISERROR(VLOOKUP($AO55,Players!$M$3:$N$1434,2,FALSE)),(VLOOKUP($AO55,Players!$AT$3:$AU$1425,2,FALSE)),(VLOOKUP($AO55,Players!$M$3:$N$1434,2,FALSE))) -> 0 | AQ55: 0 | AS55: SS | AT55: Nick Gordon | AU55: =VLOOKUP($AT55,Players!$M$3:$N$1434,2,FALSE) -> 0 | AV55: 0 | BC55: OF | BD55: Taylor Trammell | BE55: =VLOOKUP($BD55,Players!$M$3:$N$1434,2,FALSE) -> 0 | BF55: 0
A56: 55 | F56: Adrian Gonzalez | G56: =VLOOKUP($F56,Players!$M$3:$N$1251,2,FALSE) -> 0 | H56: 0 | J56: Wilmer Difo | K56: =VLOOKUP($J56,Players!$M$3:$N$1251,2,FALSE) -> 0 | L56: 0 | N56: Hernan Perez | O56: =VLOOKUP($N56,Players!$M$3:$N$1251,2,FALSE) -> 0 | P56: 0 | V56: Chris Owings | W56: =VLOOKUP($V56,Players!$M$3:$N$1251,2,FALSE) -> 0 | X56: 0 | AE56: Kenta Maeda | AF56: =VLOOKUP($AE56,Players!$AT$3:$AU$1425,2,FALSE) -> 0 | AH56: 0 | AJ56: Brad Boxberger | AK56: =VLOOKUP($AJ56,Players!$AT$3:$AU$1425,2,FALSE) -> 0 | AL56: 0 | AN56: RHP | AO56: Jack Flaherty | AP56: =IF(ISERROR(VLOOKUP($AO56,Players!$M$3:$N$1434,2,FALSE)),(VLOOKUP($AO56,Players!$AT$3:$AU$1425,2,FALSE)),(VLOOKUP($AO56,Players!$M$3:$N$1434,2,FALSE))) -> 0 | AQ56: 0 | AS56: 2B | AT56: Luis Urias | AU56: =VLOOKUP($AT56,Players!$M$3:$N$1434,2,FALSE) -> 0 | AV56: 0 | BC56: OF | BD56: Luis Robert | BE56: =VLOOKUP($BD56,Players!$M$3:$N$1434,2,FALSE) -> 0 | BF56: 0
A57: 56 | F57: Chase Headley | G57: =VLOOKUP($F57,Players!$M$3:$N$1251,2,FALSE) -> 0 | H57: 0 | J57: Johan Camargo | K57: =VLOOKUP($J57,Players!$M$3:$N$1251,2,FALSE) -> 0 | L57: 0 | N57: Logan Forsythe | O57: =VLOOKUP($N57,Players!$M$3:$N$1251,2,FALSE) -> 0 | P57: 0 | V57: Adam Jones | W57: =VLOOKUP($V57,Players!$M$3:$N$1251,2,FALSE) -> 0 | X57: 0 | AE57: Danny Duffy | AF57: =VLOOKUP($AE57,Players!$AT$3:$AU$1425,2,FALSE) -> 0 | AH57: 0 | AJ57: Joe Musgrove | AK57: =VLOOKUP($AJ57,Players!$AT$3:$AU$1425,2,FALSE) -> 0 | AL57: 0 | AN57: 2B | AO57: Keston Hiura | AP57: =IF(ISERROR(VLOOKUP($AO57,Players!$M$3:$N$1434,2,FALSE)),(VLOOKUP($AO57,Players!$AT$3:$AU$1425,2,FALSE)),(VLOOKUP($AO57,Players!$M$3:$N$1434,2,FALSE))) -> 0 | AQ57: 0 | AS57: 1B/OF | AT57: Jake Bauers | AU57: =VLOOKUP($AT57,Players!$M$3:$N$1434,2,FALSE) -> 0 | AV57: 0 | BC57: SS | BD57: Royce Lewis | BE57: =VLOOKUP($BD57,Players!$M$3:$N$1434,2,FALSE) -> 0 | BF57: 0
A58: 57 | F58: A.J. Reed | G58: =VLOOKUP($F58,Players!$M$3:$N$1251,2,FALSE) -> 0 | H58: 0 | J58: Howie Kendrick | K58: =VLOOKUP($J58,Players!$M$3:$N$1251,2,FALSE) -> 0 | L58: 0 | N58: Pat Valaika | O58: =VLOOKUP($N58,Players!$M$3:$N$1251,2,FALSE) -> 0 | P58: 0 | V58: Corey Dickerson | W58: =VLOOKUP($V58,Players!$M$3:$N$1251,2,FALSE) -> 0 | X58: 0 | AE58: Jacob Faria | AF58: =VLOOKUP($AE58,Players!$AT$3:$AU$1425,2,FALSE) -> 0 | AH58: 0 | AJ58: Dominic Leone | AK58: =VLOOKUP($AJ58,Players!$AT$3:$AU$1425,2,FALSE) -> 0 | AL58: 0 | AN58: SS | AO58: Willy Adames | AP58: =IF(ISERROR(VLOOKUP($AO58,Players!$M$3:$N$1434,2,FALSE)),(VLOOKUP($AO58,Players!$AT$3:$AU$1425,2,FALSE)),(VLOOKUP($AO58,Players!$M$3:$N$1434,2,FALSE))) -> 0 | AQ58: 0 | AS58: 1B | AT58: Lewin Diaz | AU58: =VLOOKUP($AT58,Players!$M$3:$N$1434,2,FALSE) -> 0 | AV58: 0 | BC58: OF | BD58: Juan Soto | BE58: =VLOOKUP($BD58,Players!$M$3:$N$1434,2,FALSE) -> 0 | BF58: 0
A59: 58 | F59: Steve Pearce | G59: =VLOOKUP($F59,Players!$M$3:$N$1251,2,FALSE) -> 0 | H59: 0 | J59: Hernan Perez | K59: =VLOOKUP($J59,Players!$M$3:$N$1251,2,FALSE) -> 0 | L59: 0 | V59: Jonathan Villar | W59: =VLOOKUP($V59,Players!$M$3:$N$1251,2,FALSE) -> 0 | X59: 0 | AE59: Jordan Montgomery | AF59: =VLOOKUP($AE59,Players!$AT$3:$AU$1425,2,FALSE) -> 0 | AH59: 0 | AJ59: Mychal Givens | AK59: =VLOOKUP($AJ59,Players!$AT$3:$AU$1425,2,FALSE) -> 0 | AL59: 0 | AN59: RHP | AO59: Matt Manning | AP59: =IF(ISERROR(VLOOKUP($AO59,Players!$M$3:$N$1434,2,FALSE)),(VLOOKUP($AO59,Players!$AT$3:$AU$1425,2,FALSE)),(VLOOKUP($AO59,Players!$M$3:$N$1434,2,FALSE))) -> 0 | AQ59: 0 | AS59: 1B | AT59: Peter Alonso | AU59: =VLOOKUP($AT59,Players!$M$3:$N$1434,2,FALSE) -> 0 | AV59: 0 | BC59: OF | BD59: Estevan Florial | BE59: =VLOOKUP($BD59,Players!$M$3:$N$1434,2,FALSE) -> 0 | BF59: 0
A60: 59 | F60: Pablo Sandoval | G60: =VLOOKUP($F60,Players!$M$3:$N$1251,2,FALSE) -> 0 | H60: 0 | J60: Logan Forsythe | K60: =VLOOKUP($J60,Players!$M$3:$N$1251,2,FALSE) -> 0 | L60: 0 | V60: Nick Delmonico | W60: =VLOOKUP($V60,Players!$M$3:$N$1251,2,FALSE) -> 0 | X60: 0 | AE60: Trevor Williams | AF60: =VLOOKUP($AE60,Players!$AT$3:$AU$1425,2,FALSE) -> 0 | AH60: 0 | AJ60: Jacob Barnes | AK60: =VLOOKUP($AJ60,Players!$AT$3:$AU$1425,2,FALSE) -> 0 | AL60: 0 | AN60: OF | AO60: Heliot Ramos | AP60: =IF(ISERROR(VLOOKUP($AO60,Players!$M$3:$N$1434,2,FALSE)),(VLOOKUP($AO60,Players!$AT$3:$AU$1425,2,FALSE)),(VLOOKUP($AO60,Players!$M$3:$N$1434,2,FALSE))) -> 0 | AQ60: 0 | AS60: 3B | AT60: Brian Anderson | AU60: =VLOOKUP($AT60,Players!$M$3:$N$1434,2,FALSE) -> 0 | AV60: 0 | BC60: OF | BD60: Jo Adell | BE60: =VLOOKUP($BD60,Players!$M$3:$N$1434,2,FALSE) -> 0 | BF60: 0
A61: 60 | V61: Eric Thames | W61: =VLOOKUP($V61,Players!$M$3:$N$1251,2,FALSE) -> 0 | X61: 0 | AE61: Mike Clevinger | AF61: =VLOOKUP($AE61,Players!$AT$3:$AU$1425,2,FALSE) -> 0 | AH61: 0 | AJ61: Anthony Swarzak | AK61: =VLOOKUP($AJ61,Players!$AT$3:$AU$1425,2,FALSE) -> 0 | AL61: 0 | AN61: SS | AO61: Franklin Barreto | AP61: =IF(ISERROR(VLOOKUP($AO61,Players!$M$3:$N$1434,2,FALSE)),(VLOOKUP($AO61,Players!$AT$3:$AU$1425,2,FALSE)),(VLOOKUP($AO61,Players!$M$3:$N$1434,2,FALSE))) -> 0 | AQ61: 0 | AS61: 1B | AT61: Nick Pratto | AU61: =VLOOKUP($AT61,Players!$M$3:$N$1434,2,FALSE) -> 0 | AV61: 0 | BC61: OF | BD61: Leody Taveras | BE61: =VLOOKUP($BD61,Players!$M$3:$N$1434,2,FALSE) -> 0 | BF61: 0
A62: 61 | V62: Steven Souza Jr. | W62: =VLOOKUP($V62,Players!$M$3:$N$1251,2,FALSE) -> 0 | X62: 0 | AE62: Hyun-Jin Ryu | AF62: =VLOOKUP($AE62,Players!$AT$3:$AU$1425,2,FALSE) -> 0 | AH62: 0 | AJ62: Pat Neshek | AK62: =VLOOKUP($AJ62,Players!$AT$3:$AU$1425,2,FALSE) -> 0 | AL62: 0 | AN62: SS | AO62: Ryan Mountcastle | AP62: =IF(ISERROR(VLOOKUP($AO62,Players!$M$3:$N$1434,2,FALSE)),(VLOOKUP($AO62,Players!$AT$3:$AU$1425,2,FALSE)),(VLOOKUP($AO62,Players!$M$3:$N$1434,2,FALSE))) -> 0 | AQ62: 0 | AS62: OF | AT62: Tristen Lutz | AU62: =VLOOKUP($AT62,Players!$M$3:$N$1434,2,FALSE) -> 0 | AV62: 0 | BC62: OF | BD62: Starling Heredia | BE62: =VLOOKUP($BD62,Players!$M$3:$N$1434,2,FALSE) -> 0 | BF62: 0
A63: 62 | V63: Brett Gardner | W63: =VLOOKUP($V63,Players!$M$3:$N$1251,2,FALSE) -> 0 | X63: 0 | AE63: Vince Velasquez | AF63: =VLOOKUP($AE63,Players!$AT$3:$AU$1425,2,FALSE) -> 0 | AH63: 0 | AJ63: Scott Alexander | AK63: =VLOOKUP($AJ63,Players!$AT$3:$AU$1425,2,FALSE) -> 0 | AL63: 0 | AN63: RHP | AO63: Alec Hansen | AP63: =IF(ISERROR(VLOOKUP($AO63,Players!$M$3:$N$1434,2,FALSE)),(VLOOKUP($AO63,Players!$AT$3:$AU$1425,2,FALSE)),(VLOOKUP($AO63,Players!$M$3:$N$1434,2,FALSE))) -> 0 | AQ63: 0 | AS63: SS | AT63: Isaac Paredes | AU63: =VLOOKUP($AT63,Players!$M$3:$N$1434,2,FALSE) -> 0 | AV63: 0 | BC63: OF | BD63: Jhailyn Ortiz | BE63: =VLOOKUP($BD63,Players!$M$3:$N$1434,2,FALSE) -> 0 | BF63: 0
A64: 63 | V64: Jason Kipnis | W64: =VLOOKUP($V64,Players!$M$3:$N$1251,2,FALSE) -> 0 | X64: 0 | AE64: Alex Reyes | AF64: =VLOOKUP($AE64,Players!$AT$3:$AU$1425,2,FALSE) -> 0 | AH64: 0 | AJ64: Matt Barnes | AK64: =VLOOKUP($AJ64,Players!$AT$3:$AU$1425,2,FALSE) -> 0 | AL64: 0 | AN64: OF | AO64: Starling Heredia | AP64: =IF(ISERROR(VLOOKUP($AO64,Players!$M$3:$N$1434,2,FALSE)),(VLOOKUP($AO64,Players!$AT$3:$AU$1425,2,FALSE)),(VLOOKUP($AO64,Players!$M$3:$N$1434,2,FALSE))) -> 0 | AQ64: 0 | AS64: OF | AT64: Marcus Wilson | AU64: =VLOOKUP($AT64,Players!$M$3:$N$1434,2,FALSE) -> 0 | AV64: 0 | BC64: OF | BD64: Brandon Marsh | BE64: =VLOOKUP($BD64,Players!$M$3:$N$1434,2,FALSE) -> 0 | BF64: 0
A65: 64 | V65: Shin-Soo Choo | W65: =VLOOKUP($V65,Players!$M$3:$N$1251,2,FALSE) -> 0 | X65: 0 | AE65: Sean Manaea | AF65: =VLOOKUP($AE65,Players!$AT$3:$AU$1425,2,FALSE) -> 0 | AH65: 0 | AJ65: Zach Britton | AK65: =VLOOKUP($AJ65,Players!$AT$3:$AU$1425,2,FALSE) -> 0 | AL65: 0 | AN65: C | AO65: Zack Collins | AP65: =IF(ISERROR(VLOOKUP($AO65,Players!$M$3:$N$1434,2,FALSE)),(VLOOKUP($AO65,Players!$AT$3:$AU$1425,2,FALSE)),(VLOOKUP($AO65,Players!$M$3:$N$1434,2,FALSE))) -> 0 | AQ65: 0 | AS65: OF | AT65: Brett Phillips | AU65: =VLOOKUP($AT65,Players!$M$3:$N$1434,2,FALSE) -> 0 | AV65: 0 | BC65: 3B | BD65: Colton Welker | BE65: =VLOOKUP($BD65,Players!$M$3:$N$1434,2,FALSE) -> 0 | BF65: 0
A66: 65 | V66: Dexter Fowler | W66: =VLOOKUP($V66,Players!$M$3:$N$1251,2,FALSE) -> 0 | X66: 0 | AE66: Dinelson Lamet | AF66: =VLOOKUP($AE66,Players!$AT$3:$AU$1425,2,FALSE) -> 0 | AH66: 0 | AJ66: Seung Hwan Oh | AK66: =VLOOKUP($AJ66,Players!$AT$3:$AU$1425,2,FALSE) -> 0 | AL66: =IF(AK66>0,1,0) -> 0 | AN66: OF | AO66: Jhailyn Ortiz | AP66: =IF(ISERROR(VLOOKUP($AO66,Players!$M$3:$N$1434,2,FALSE)),(VLOOKUP($AO66,Players!$AT$3:$AU$1425,2,FALSE)),(VLOOKUP($AO66,Players!$M$3:$N$1434,2,FALSE))) -> 0 | AQ66: 0 | AS66: 3B | AT66: Austin Riley | AU66: =VLOOKUP($AT66,Players!$M$3:$N$1434,2,FALSE) -> 0 | AV66: 0 | BC66: 1B | BD66: Lewin Diaz | BE66: =VLOOKUP($BD66,Players!$M$3:$N$1434,2,FALSE) -> 0 | BF66: 0
A67: 66 | V67: Mark Trumbo | W67: =VLOOKUP($V67,Players!$M$3:$N$1251,2,FALSE) -> 0 | X67: =IF(W67>0,1,0) -> 0 | AE67: Lucas Giolito | AF67: =VLOOKUP($AE67,Players!$AT$3:$AU$1425,2,FALSE) -> 0 | AH67: =IF(AF67>0,1,0) -> 0 | AJ67: Darren O’Day | AK67: =VLOOKUP($AJ67,Players!$AT$3:$AU$1425,2,FALSE) -> 0 | AL67: 0 | AN67: OF | AO67: Brandon Marsh | AP67: =IF(ISERROR(VLOOKUP($AO67,Players!$M$3:$N$1434,2,FALSE)),(VLOOKUP($AO67,Players!$AT$3:$AU$1425,2,FALSE)),(VLOOKUP($AO67,Players!$M$3:$N$1434,2,FALSE))) -> 0 | AQ67: =IF(AP67>0,1,0) -> 0 | AS67: 2B | AT67: Shed Long | AU67: =VLOOKUP($AT67,Players!$M$3:$N$1434,2,FALSE) -> 0 | AV67: =IF(AU67>0,1,0) -> 0 | BC67: OF | BD67: Tristen Lutz | BE67: =VLOOKUP($BD67,Players!$M$3:$N$1434,2,FALSE) -> 0 | BF67: 0
A68: 67 | V68: Jackie Bradley Jr. | W68: =VLOOKUP($V68,Players!$M$3:$N$1251,2,FALSE) -> 0 | X68: 0 | AE68: Garrett Richards | AF68: =VLOOKUP($AE68,Players!$AT$3:$AU$1425,2,FALSE) -> 0 | AH68: 0 | AJ68: Steve Cishek | AK68: =VLOOKUP($AJ68,Players!$AT$3:$AU$1425,2,FALSE) -> 0 | AL68: 0 | AN68: RHP | AO68: Franklin Perez | AP68: =IF(ISERROR(VLOOKUP($AO68,Players!$M$3:$N$1434,2,FALSE)),(VLOOKUP($AO68,Players!$AT$3:$AU$1425,2,FALSE)),(VLOOKUP($AO68,Players!$M$3:$N$1434,2,FALSE))) -> 0 | AQ68: =IF(AP68>0,1,0) -> 0 | AS68: 2B | AT68: Isan Diaz | AU68: =VLOOKUP($AT68,Players!$M$3:$N$1434,2,FALSE) -> 0 | AV68: =IF(AU68>0,1,0) -> 0 | BC68: SS | BD68: Isaac Paredes | BE68: =VLOOKUP($BD68,Players!$M$3:$N$1434,2,FALSE) -> 0 | BF68: =IF(BE68>0,1,0) -> 0
A69: 68 | V69: Delino DeShields | W69: =VLOOKUP($V69,Players!$M$3:$N$1251,2,FALSE) -> 0 | X69: 0 | AE69: Cole Hamels | AF69: =VLOOKUP($AE69,Players!$AT$3:$AU$1425,2,FALSE) -> 0 | AH69: 0 | AJ69: Alex Wilson | AK69: =VLOOKUP($AJ69,Players!$AT$3:$AU$1425,2,FALSE) -> 0 | AL69: 0 | AN69: 3B | AO69: Colton Welker | AP69: =IF(ISERROR(VLOOKUP($AO69,Players!$M$3:$N$1434,2,FALSE)),(VLOOKUP($AO69,Players!$AT$3:$AU$1425,2,FALSE)),(VLOOKUP($AO69,Players!$M$3:$N$1434,2,FALSE))) -> 0 | AQ69: 0 | AS69: OF | AT69: Monte Harrison | AU69: =VLOOKUP($AT69,Players!$M$3:$N$1434,2,FALSE) -> 0 | AV69: 0 | BC69: OF | BD69: Marcus Wilson | BE69: =VLOOKUP($BD69,Players!$M$3:$N$1434,2,FALSE) -> 0 | BF69: 0
A70: 69 | V70: David Peralta | W70: =VLOOKUP($V70,Players!$M$3:$N$1251,2,FALSE) -> 0 | X70: 0 | AE70: Julio Teheran | AF70: =VLOOKUP($AE70,Players!$AT$3:$AU$1425,2,FALSE) -> 0 | AH70: 0 | AJ70: Brandon Maurer | AK70: =VLOOKUP($AJ70,Players!$AT$3:$AU$1425,2,FALSE) -> 0 | AL70: 0 | AN70: RHP | AO70: Jon Duplantier | AP70: =IF(ISERROR(VLOOKUP($AO70,Players!$M$3:$N$1434,2,FALSE)),(VLOOKUP($AO70,Players!$AT$3:$AU$1425,2,FALSE)),(VLOOKUP($AO70,Players!$M$3:$N$1434,2,FALSE))) -> 0 | AQ70: 0 | AS70: 1B | AT70: Chris Shaw | AU70: =VLOOKUP($AT70,Players!$M$3:$N$1434,2,FALSE) -> 0 | AV70: 0 | BD70: 2021 | BE70: =VLOOKUP($BD70,Players!$M$3:$N$1434,2,FALSE) -> 
A71: 70 | V71: Aaron Hicks | W71: =VLOOKUP($V71,Players!$M$3:$N$1251,2,FALSE) -> 0 | X71: 0 | AE71: Alex Cobb | AF71: =VLOOKUP($AE71,Players!$AT$3:$AU$1425,2,FALSE) -> 0 | AH71: 0 | AJ71: Michael Lorenzen | AK71: =VLOOKUP($AJ71,Players!$AT$3:$AU$1425,2,FALSE) -> 0 | AL71: 0 | AN71: 1B | AO71: Brent Rooker | AP71: =IF(ISERROR(VLOOKUP($AO71,Players!$M$3:$N$1434,2,FALSE)),(VLOOKUP($AO71,Players!$AT$3:$AU$1425,2,FALSE)),(VLOOKUP($AO71,Players!$M$3:$N$1434,2,FALSE))) -> 0 | AQ71: 0 | AS71: C | AT71: Danny Jansen | AU71: =VLOOKUP($AT71,Players!$M$3:$N$1434,2,FALSE) -> 0 | AV71: 0 | BC71: SS | BD71: Kevin Maitan | BE71: =VLOOKUP($BD71,Players!$M$3:$N$1434,2,FALSE) -> 0 | BF71: 0
A72: 71 | V72: Lewis Brinson | W72: =VLOOKUP($V72,Players!$M$3:$N$1251,2,FALSE) -> 0 | X72: 0 | AE72: Aaron Sanchez | AF72: =VLOOKUP($AE72,Players!$AT$3:$AU$1425,2,FALSE) -> 0 | AH72: 0 | AJ72: Chris Hatcher | AK72: =VLOOKUP($AJ72,Players!$AT$3:$AU$1425,2,FALSE) -> 0 | AL72: 0 | AN72: RHP | AO72: Ian Anderson | AP72: =IF(ISERROR(VLOOKUP($AO72,Players!$M$3:$N$1434,2,FALSE)),(VLOOKUP($AO72,Players!$AT$3:$AU$1425,2,FALSE)),(VLOOKUP($AO72,Players!$M$3:$N$1434,2,FALSE))) -> 0 | AQ72: 0 | BC72: OF | BD72: Heliot Ramos | BE72: =VLOOKUP($BD72,Players!$M$3:$N$1434,2,FALSE) -> 0 | BF72: 0
A73: 72 | V73: Hunter Renfroe | W73: =VLOOKUP($V73,Players!$M$3:$N$1251,2,FALSE) -> 0 | X73: 0 | AE73: J.A. Happ | AF73: =VLOOKUP($AE73,Players!$AT$3:$AU$1425,2,FALSE) -> 0 | AH73: 0 | AJ73: Josh Fields | AK73: =VLOOKUP($AJ73,Players!$AT$3:$AU$1425,2,FALSE) -> 0 | AL73: 0 | AN73: RHP | AO73: Jorge Guzman | AP73: =IF(ISERROR(VLOOKUP($AO73,Players!$M$3:$N$1434,2,FALSE)),(VLOOKUP($AO73,Players!$AT$3:$AU$1425,2,FALSE)),(VLOOKUP($AO73,Players!$M$3:$N$1434,2,FALSE))) -> 0 | AQ73: 0 | BC73: C | BD73: Keibert Ruiz | BE73: =VLOOKUP($BD73,Players!$M$3:$N$1434,2,FALSE) -> 0 | BF73: 0
A74: 73 | V74: Josh Harrison | W74: =VLOOKUP($V74,Players!$M$3:$N$1251,2,FALSE) -> 0 | X74: 0 | AE74: Jake Odorizzi | AF74: =VLOOKUP($AE74,Players!$AT$3:$AU$1425,2,FALSE) -> 0 | AH74: 0 | AJ74: Mike Fiers | AK74: =VLOOKUP($AJ74,Players!$AT$3:$AU$1425,2,FALSE) -> 0 | AL74: 0 | AN74: LHP | AO74: Adrian Morejon | AP74: =IF(ISERROR(VLOOKUP($AO74,Players!$M$3:$N$1434,2,FALSE)),(VLOOKUP($AO74,Players!$AT$3:$AU$1425,2,FALSE)),(VLOOKUP($AO74,Players!$M$3:$N$1434,2,FALSE))) -> 0 | AQ74: 0 | BC74: SS | BD74: Wander Javier | BE74: =VLOOKUP($BD74,Players!$M$3:$N$1434,2,FALSE) -> 0 | BF74: 0
A75: 74 | V75: Odubel Herrera | W75: =VLOOKUP($V75,Players!$M$3:$N$1251,2,FALSE) -> 0 | X75: 0 | AE75: Tanner Roark | AF75: =VLOOKUP($AE75,Players!$AT$3:$AU$1425,2,FALSE) -> 0 | AH75: 0 | AJ75: Ryan Tepera | AK75: =VLOOKUP($AJ75,Players!$AT$3:$AU$1425,2,FALSE) -> 0 | AL75: 0 | AN75: C | AO75: Keibert Ruiz | AP75: =IF(ISERROR(VLOOKUP($AO75,Players!$M$3:$N$1434,2,FALSE)),(VLOOKUP($AO75,Players!$AT$3:$AU$1425,2,FALSE)),(VLOOKUP($AO75,Players!$M$3:$N$1434,2,FALSE))) -> 0 | AQ75: 0 | BC75: 1B | BD75: Nick Pratto | BE75: =VLOOKUP($BD75,Players!$M$3:$N$1434,2,FALSE) -> 0 | BF75: 0
A76: 75 | V76: Adam Duvall | W76: =VLOOKUP($V76,Players!$M$3:$N$1251,2,FALSE) -> 0 | X76: 0 | AE76: Rick Porcello | AF76: =VLOOKUP($AE76,Players!$AT$3:$AU$1425,2,FALSE) -> 0 | AH76: 0 | AJ76: Brett Cecil | AK76: =VLOOKUP($AJ76,Players!$AT$3:$AU$1425,2,FALSE) -> 0 | AL76: 0 | AN76: SS | AO76: Wander Javier | AP76: =IF(ISERROR(VLOOKUP($AO76,Players!$M$3:$N$1434,2,FALSE)),(VLOOKUP($AO76,Players!$AT$3:$AU$1425,2,FALSE)),(VLOOKUP($AO76,Players!$M$3:$N$1434,2,FALSE))) -> 0 | AQ76: 0
A77: 76 | V77: Nick Williams | W77: =VLOOKUP($V77,Players!$M$3:$N$1251,2,FALSE) -> 0 | X77: 0 | AE77: Miles Mikolas | AF77: =VLOOKUP($AE77,Players!$AT$3:$AU$1425,2,FALSE) -> 0 | AH77: 0 | AJ77: David Phelps | AK77: =VLOOKUP($AJ77,Players!$AT$3:$AU$1425,2,FALSE) -> 0 | AL77: 0 | AN77: RHP | AO77: Kyle Wright | AP77: =IF(ISERROR(VLOOKUP($AO77,Players!$M$3:$N$1434,2,FALSE)),(VLOOKUP($AO77,Players!$AT$3:$AU$1425,2,FALSE)),(VLOOKUP($AO77,Players!$M$3:$N$1434,2,FALSE))) -> 0 | AQ77: 0
A78: 77 | V78: Joc Pederson | W78: =VLOOKUP($V78,Players!$M$3:$N$1251,2,FALSE) -> 0 | X78: 0 | AE78: Brent Honeywell | AF78: =VLOOKUP($AE78,Players!$AT$3:$AU$1425,2,FALSE) -> 0 | AH78: 0 | AJ78: Kirby Yates | AN78: RHP | AO78: Chance Adams | AP78: =IF(ISERROR(VLOOKUP($AO78,Players!$M$3:$N$1434,2,FALSE)),(VLOOKUP($AO78,Players!$AT$3:$AU$1425,2,FALSE)),(VLOOKUP($AO78,Players!$M$3:$N$1434,2,FALSE))) -> 0 | AQ78: 0
A79: 78 | V79: Willie Calhoun | W79: =VLOOKUP($V79,Players!$M$3:$N$1251,2,FALSE) -> 0 | X79: 0 | AE79: Dan Straily | AF79: =VLOOKUP($AE79,Players!$AT$3:$AU$1425,2,FALSE) -> 0 | AH79: 0 | AJ79: Jake McGee | AN79: 1B | AO79: Edwin Rios | AP79: =IF(ISERROR(VLOOKUP($AO79,Players!$M$3:$N$1434,2,FALSE)),(VLOOKUP($AO79,Players!$AT$3:$AU$1425,2,FALSE)),(VLOOKUP($AO79,Players!$M$3:$N$1434,2,FALSE))) -> 0 | AQ79: 0
A80: 79 | V80: Ben Gamel | W80: =VLOOKUP($V80,Players!$M$3:$N$1251,2,FALSE) -> 0 | X80: 0 | AE80: Jimmy Nelson | AF80: =VLOOKUP($AE80,Players!$AT$3:$AU$1425,2,FALSE) -> 0 | AH80: 0 | AJ80: Pedro Strop | AN80: RHP | AO80: Cal Quantrill | AP80: =IF(ISERROR(VLOOKUP($AO80,Players!$M$3:$N$1434,2,FALSE)),(VLOOKUP($AO80,Players!$AT$3:$AU$1425,2,FALSE)),(VLOOKUP($AO80,Players!$M$3:$N$1434,2,FALSE))) -> 0 | AQ80: 0
A81: 80 | V81: Austin Hays | W81: =VLOOKUP($V81,Players!$M$3:$N$1251,2,FALSE) -> 0 | X81: 0 | AE81: Mike Minor | AF81: =VLOOKUP($AE81,Players!$AT$3:$AU$1425,2,FALSE) -> 0 | AH81: 0 | AJ81: Liam Hendriks | AN81: SS | AO81: Nick Gordon | AP81: =IF(ISERROR(VLOOKUP($AO81,Players!$M$3:$N$1434,2,FALSE)),(VLOOKUP($AO81,Players!$AT$3:$AU$1425,2,FALSE)),(VLOOKUP($AO81,Players!$M$3:$N$1434,2,FALSE))) -> 0 | AQ81: 0
A82: 81 | V82: Jesse Winker | W82: =VLOOKUP($V82,Players!$M$3:$N$1251,2,FALSE) -> 0 | X82: 0 | AE82: Eduardo Rodriguez | AF82: =VLOOKUP($AE82,Players!$AT$3:$AU$1425,2,FALSE) -> 0 | AH82: 0 | AJ82: Yusmeiro Petit | AN82: 2B | AO82: Luis Urias | AP82: =IF(ISERROR(VLOOKUP($AO82,Players!$M$3:$N$1434,2,FALSE)),(VLOOKUP($AO82,Players!$AT$3:$AU$1425,2,FALSE)),(VLOOKUP($AO82,Players!$M$3:$N$1434,2,FALSE))) -> 0 | AQ82: 0
A83: 82 | V83: Max Kepler | W83: =VLOOKUP($V83,Players!$M$3:$N$1251,2,FALSE) -> 0 | X83: 0 | AE83: Luiz Gohara | AF83: =VLOOKUP($AE83,Players!$AT$3:$AU$1425,2,FALSE) -> 0 | AH83: 0 | AJ83: Hector Rondon | AN83: 1B/OF | AO83: Jake Bauers | AP83: =IF(ISERROR(VLOOKUP($AO83,Players!$M$3:$N$1434,2,FALSE)),(VLOOKUP($AO83,Players!$AT$3:$AU$1425,2,FALSE)),(VLOOKUP($AO83,Players!$M$3:$N$1434,2,FALSE))) -> 0 | AQ83: 0
A84: 83 | V84: Randal Grichuk | W84: =VLOOKUP($V84,Players!$M$3:$N$1251,2,FALSE) -> 0 | X84: 0 | AE84: Mike Montgomery | AF84: =VLOOKUP($AE84,Players!$AT$3:$AU$1425,2,FALSE) -> 0 | AH84: 0 | AJ84: Jimmie Sherfy | AN84: 1B | AO84: Lewin Diaz | AP84: =IF(ISERROR(VLOOKUP($AO84,Players!$M$3:$N$1434,2,FALSE)),(VLOOKUP($AO84,Players!$AT$3:$AU$1425,2,FALSE)),(VLOOKUP($AO84,Players!$M$3:$N$1434,2,FALSE))) -> 0 | AQ84: 0
A85: 84 | V85: Victor Robles | W85: =VLOOKUP($V85,Players!$M$3:$N$1251,2,FALSE) -> 0 | X85: 0 | AE85: Kyle Gibson | AF85: =VLOOKUP($AE85,Players!$AT$3:$AU$1425,2,FALSE) -> 0 | AH85: 0 | AJ85: Craig Stammen | AN85: RHP | AO85: Dylan Cease | AP85: =IF(ISERROR(VLOOKUP($AO85,Players!$M$3:$N$1434,2,FALSE)),(VLOOKUP($AO85,Players!$AT$3:$AU$1425,2,FALSE)),(VLOOKUP($AO85,Players!$M$3:$N$1434,2,FALSE))) -> 0 | AQ85: 0
A86: 85 | V86: Kevin Kiermaier | W86: =VLOOKUP($V86,Players!$M$3:$N$1251,2,FALSE) -> 0 | X86: 0 | AE86: Erasmo Ramirez | AF86: =VLOOKUP($AE86,Players!$AT$3:$AU$1425,2,FALSE) -> 0 | AH86: 0 | AN86: RHP | AO86: Corbin Burnes | AP86: =IF(ISERROR(VLOOKUP($AO86,Players!$M$3:$N$1434,2,FALSE)),(VLOOKUP($AO86,Players!$AT$3:$AU$1425,2,FALSE)),(VLOOKUP($AO86,Players!$M$3:$N$1434,2,FALSE))) -> 0 | AQ86: 0
A87: 86 | V87: Cameron Maybin | W87: =VLOOKUP($V87,Players!$M$3:$N$1251,2,FALSE) -> 0 | X87: 0 | AE87: Mike Foltynewicz | AF87: =VLOOKUP($AE87,Players!$AT$3:$AU$1425,2,FALSE) -> 0 | AH87: 0 | AN87: 1B | AO87: Peter Alonso | AP87: =IF(ISERROR(VLOOKUP($AO87,Players!$M$3:$N$1434,2,FALSE)),(VLOOKUP($AO87,Players!$AT$3:$AU$1425,2,FALSE)),(VLOOKUP($AO87,Players!$M$3:$N$1434,2,FALSE))) -> 0 | AQ87: 0
A88: 87 | V88: Raimel Tapia | W88: =VLOOKUP($V88,Players!$M$3:$N$1251,2,FALSE) -> 0 | X88: 0 | AE88: Sean Newcomb | AF88: =VLOOKUP($AE88,Players!$AT$3:$AU$1425,2,FALSE) -> 0 | AH88: 0 | AN88: 3B | AO88: Brian Anderson | AP88: =IF(ISERROR(VLOOKUP($AO88,Players!$M$3:$N$1434,2,FALSE)),(VLOOKUP($AO88,Players!$AT$3:$AU$1425,2,FALSE)),(VLOOKUP($AO88,Players!$M$3:$N$1434,2,FALSE))) -> 0 | AQ88: 0
A89: 88 | V89: David Dahl | W89: =VLOOKUP($V89,Players!$M$3:$N$1251,2,FALSE) -> 0 | X89: 0 | AE89: Josh Hader | AF89: =VLOOKUP($AE89,Players!$AT$3:$AU$1425,2,FALSE) -> 0 | AH89: 0 | AN89: 1B | AO89: Nick Pratto | AP89: =IF(ISERROR(VLOOKUP($AO89,Players!$M$3:$N$1434,2,FALSE)),(VLOOKUP($AO89,Players!$AT$3:$AU$1425,2,FALSE)),(VLOOKUP($AO89,Players!$M$3:$N$1434,2,FALSE))) -> 0 | AQ89: 0
A90: 89 | V90: Gerardo Parra | W90: =VLOOKUP($V90,Players!$M$3:$N$1251,2,FALSE) -> 0 | X90: 0 | AE90: Jerad Eickhoff | AF90: =VLOOKUP($AE90,Players!$AT$3:$AU$1425,2,FALSE) -> 0 | AH90: 0 | AN90: RHP | AO90: Anderson Espinoza | AP90: =IF(ISERROR(VLOOKUP($AO90,Players!$M$3:$N$1434,2,FALSE)),(VLOOKUP($AO90,Players!$AT$3:$AU$1425,2,FALSE)),(VLOOKUP($AO90,Players!$M$3:$N$1434,2,FALSE))) -> 0 | AQ90: 0
A91: 90 | V91: Aaron Altherr | W91: =VLOOKUP($V91,Players!$M$3:$N$1251,2,FALSE) -> 0 | X91: 0 | AE91: Nick Pivetta | AF91: =VLOOKUP($AE91,Players!$AT$3:$AU$1425,2,FALSE) -> 0 | AH91: 0 | AN91: OF | AO91: Tristen Lutz | AP91: =IF(ISERROR(VLOOKUP($AO91,Players!$M$3:$N$1434,2,FALSE)),(VLOOKUP($AO91,Players!$AT$3:$AU$1425,2,FALSE)),(VLOOKUP($AO91,Players!$M$3:$N$1434,2,FALSE))) -> 0 | AQ91: 0
A92: 91 | V92: Yasmany Tomas | W92: =VLOOKUP($V92,Players!$M$3:$N$1251,2,FALSE) -> 0 | X92: 0 | AE92: Zack Wheeler | AF92: =VLOOKUP($AE92,Players!$AT$3:$AU$1425,2,FALSE) -> 0 | AH92: 0 | AN92: SS | AO92: Isaac Paredes | AP92: =IF(ISERROR(VLOOKUP($AO92,Players!$M$3:$N$1434,2,FALSE)),(VLOOKUP($AO92,Players!$AT$3:$AU$1425,2,FALSE)),(VLOOKUP($AO92,Players!$M$3:$N$1434,2,FALSE))) -> 0 | AQ92: 0
A93: 92 | V93: Jarrod Dyson | W93: =VLOOKUP($V93,Players!$M$3:$N$1251,2,FALSE) -> 0 | X93: 0 | AE93: Ervin Santana | AF93: =VLOOKUP($AE93,Players!$AT$3:$AU$1425,2,FALSE) -> 0 | AH93: 0 | AN93: OF | AO93: Marcus Wilson | AP93: =IF(ISERROR(VLOOKUP($AO93,Players!$M$3:$N$1434,2,FALSE)),(VLOOKUP($AO93,Players!$AT$3:$AU$1425,2,FALSE)),(VLOOKUP($AO93,Players!$M$3:$N$1434,2,FALSE))) -> 0 | AQ93: 0
A94: 93 | V94: Scott Schebler | W94: =VLOOKUP($V94,Players!$M$3:$N$1251,2,FALSE) -> 0 | X94: 0 | AE94: Anthony DeSclafani | AF94: =VLOOKUP($AE94,Players!$AT$3:$AU$1425,2,FALSE) -> 0 | AH94: 0 | AN94: LHP | AO94: Stephen Gonsalves | AP94: =IF(ISERROR(VLOOKUP($AO94,Players!$M$3:$N$1434,2,FALSE)),(VLOOKUP($AO94,Players!$AT$3:$AU$1425,2,FALSE)),(VLOOKUP($AO94,Players!$M$3:$N$1434,2,FALSE))) -> 0 | AQ94: 0
A95: 94 | V95: Stephen Piscotty | W95: =VLOOKUP($V95,Players!$M$3:$N$1251,2,FALSE) -> 0 | X95: 0 | AE95: Brandon Finnegan | AF95: =VLOOKUP($AE95,Players!$AT$3:$AU$1425,2,FALSE) -> 0 | AH95: 0 | AN95: OF | AO95: Brett Phillips | AP95: =IF(ISERROR(VLOOKUP($AO95,Players!$M$3:$N$1434,2,FALSE)),(VLOOKUP($AO95,Players!$AT$3:$AU$1425,2,FALSE)),(VLOOKUP($AO95,Players!$M$3:$N$1434,2,FALSE))) -> 0 | AQ95: 0
A96: 95 | V96: Denard Span | W96: =VLOOKUP($V96,Players!$M$3:$N$1251,2,FALSE) -> 0 | X96: 0 | AE96: Nate Karns | AF96: =VLOOKUP($AE96,Players!$AT$3:$AU$1425,2,FALSE) -> 0 | AH96: 0 | AN96: 3B | AO96: Austin Riley | AP96: =IF(ISERROR(VLOOKUP($AO96,Players!$M$3:$N$1434,2,FALSE)),(VLOOKUP($AO96,Players!$AT$3:$AU$1425,2,FALSE)),(VLOOKUP($AO96,Players!$M$3:$N$1434,2,FALSE))) -> 0 | AQ96: 0
A97: 96 | V97: Kole Calhoun | W97: =VLOOKUP($V97,Players!$M$3:$N$1251,2,FALSE) -> 0 | X97: 0 | AE97: Daniel Norris | AF97: =VLOOKUP($AE97,Players!$AT$3:$AU$1425,2,FALSE) -> 0 | AH97: 0 | AN97: 2B | AO97: Shed Long | AP97: =IF(ISERROR(VLOOKUP($AO97,Players!$M$3:$N$1434,2,FALSE)),(VLOOKUP($AO97,Players!$AT$3:$AU$1425,2,FALSE)),(VLOOKUP($AO97,Players!$M$3:$N$1434,2,FALSE))) -> 0 | AQ97: 0
A98: 97 | V98: Brandon Belt | W98: =VLOOKUP($V98,Players!$M$3:$N$1251,2,FALSE) -> 0 | X98: 0 | AE98: CC Sabathia | AF98: =VLOOKUP($AE98,Players!$AT$3:$AU$1425,2,FALSE) -> 0 | AH98: 0 | AN98: 2B | AO98: Isan Diaz | AP98: =IF(ISERROR(VLOOKUP($AO98,Players!$M$3:$N$1434,2,FALSE)),(VLOOKUP($AO98,Players!$AT$3:$AU$1425,2,FALSE)),(VLOOKUP($AO98,Players!$M$3:$N$1434,2,FALSE))) -> 0 | AQ98: 0
A99: 98 | V99: Melky Cabrera | W99: =VLOOKUP($V99,Players!$M$3:$N$1251,2,FALSE) -> 0 | X99: 0 | AE99: Felix Hernandez | AF99: =VLOOKUP($AE99,Players!$AT$3:$AU$1425,2,FALSE) -> 0 | AH99: 0 | AN99: OF | AO99: Monte Harrison | AP99: =IF(ISERROR(VLOOKUP($AO99,Players!$M$3:$N$1434,2,FALSE)),(VLOOKUP($AO99,Players!$AT$3:$AU$1425,2,FALSE)),(VLOOKUP($AO99,Players!$M$3:$N$1434,2,FALSE))) -> 0 | AQ99: 0
A100: 99 | V100: Michael Brantley | W100: =VLOOKUP($V100,Players!$M$3:$N$1251,2,FALSE) -> 0 | X100: 0 | AE100: Brandon McCarthy | AF100: =VLOOKUP($AE100,Players!$AT$3:$AU$1425,2,FALSE) -> 0 | AH100: 0 | AN100: 1B | AO100: Chris Shaw | AP100: =IF(ISERROR(VLOOKUP($AO100,Players!$M$3:$N$1434,2,FALSE)),(VLOOKUP($AO100,Players!$AT$3:$AU$1425,2,FALSE)),(VLOOKUP($AO100,Players!$M$3:$N$1434,2,FALSE))) -> 0 | AQ100: 0
A101: 100 | V101: Charlie Tilson | W101: =VLOOKUP($V101,Players!$M$3:$N$1251,2,FALSE) -> 0 | X101: 0 | AE101: Joe Musgrove | AF101: =VLOOKUP($AE101,Players!$AT$3:$AU$1425,2,FALSE) -> 0 | AH101: 0 | AN101: C | AO101: Danny Jansen | AP101: =IF(ISERROR(VLOOKUP($AO101,Players!$M$3:$N$1434,2,FALSE)),(VLOOKUP($AO101,Players!$AT$3:$AU$1425,2,FALSE)),(VLOOKUP($AO101,Players!$M$3:$N$1434,2,FALSE))) -> 0 | AQ101: 0
A102: 101 | V102: Josh Reddick | W102: =VLOOKUP($V102,Players!$M$3:$N$1251,2,FALSE) -> 0 | X102: 0 | AE102: Clayton Richard | AF102: =VLOOKUP($AE102,Players!$AT$3:$AU$1425,2,FALSE) -> 0 | AH102: 0
A103: 102 | V103: Mikie Mahtook | W103: =VLOOKUP($V103,Players!$M$3:$N$1251,2,FALSE) -> 0 | X103: 0 | AE103: Jhoulys Chacin | AF103: =VLOOKUP($AE103,Players!$AT$3:$AU$1425,2,FALSE) -> 0 | AH103: 0
A104: 103 | V104: Ben Zobrist | W104: =VLOOKUP($V104,Players!$M$3:$N$1251,2,FALSE) -> 0 | X104: 0 | AE104: Mike Fiers | AF104: =VLOOKUP($AE104,Players!$AT$3:$AU$1425,2,FALSE) -> 0 | AH104: 0
A105: 104 | V105: Adam Frazier | W105: =VLOOKUP($V105,Players!$M$3:$N$1251,2,FALSE) -> 0 | X105: 0 | AE105: Matt Moore | AF105: =VLOOKUP($AE105,Players!$AT$3:$AU$1425,2,FALSE) -> 0 | AH105: 0
A106: 105 | V106: Jose Pirela | W106: =VLOOKUP($V106,Players!$M$3:$N$1251,2,FALSE) -> 0 | X106: 0 | AE106: Matt Shoemaker | AF106: =VLOOKUP($AE106,Players!$AT$3:$AU$1425,2,FALSE) -> 0 | AH106: 0
A107: 106 | V107: Kevin Pillar | W107: =VLOOKUP($V107,Players!$M$3:$N$1251,2,FALSE) -> 0 | X107: 0 | AE107: Jose Urena | AF107: =VLOOKUP($AE107,Players!$AT$3:$AU$1425,2,FALSE) -> 0 | AH107: 0
A108: 107 | V108: Leonys Martin | W108: =VLOOKUP($V108,Players!$M$3:$N$1251,2,FALSE) -> 0 | X108: 0 | AE108: Carlos Rodon | AF108: =VLOOKUP($AE108,Players!$AT$3:$AU$1425,2,FALSE) -> 0 | AH108: 0
A109: 108 | V109: Jorge Bonifacio | W109: =VLOOKUP($V109,Players!$M$3:$N$1251,2,FALSE) -> 0 | X109: 0 | AE109: Steven Matz | AF109: =VLOOKUP($AE109,Players!$AT$3:$AU$1425,2,FALSE) -> 0 | AH109: 0
A110: 109 | V110: Curtis Granderson | W110: =VLOOKUP($V110,Players!$M$3:$N$1251,2,FALSE) -> 0 | X110: 0 | AE110: Reynaldo Lopez | AF110: =VLOOKUP($AE110,Players!$AT$3:$AU$1425,2,FALSE) -> 0 | AH110: 0
A111: 110 | V111: Jose Bautista | W111: =VLOOKUP($V111,Players!$M$3:$N$1251,2,FALSE) -> 0 | X111: 0 | AE111: Matt Harvey | AF111: =VLOOKUP($AE111,Players!$AT$3:$AU$1425,2,FALSE) -> 0 | AH111: 0
A112: 111 | V112: Matt Joyce | W112: =VLOOKUP($V112,Players!$M$3:$N$1251,2,FALSE) -> 0 | X112: 0 | AE112: Brad Peacock | AF112: =VLOOKUP($AE112,Players!$AT$3:$AU$1425,2,FALSE) -> 0 | AH112: 0
A113: 112 | V113: Jason Heyward | W113: =VLOOKUP($V113,Players!$M$3:$N$1251,2,FALSE) -> 0 | X113: 0 | AE113: Collin McHugh | AF113: =VLOOKUP($AE113,Players!$AT$3:$AU$1425,2,FALSE) -> 0 | AH113: 0
A114: 113 | V114: Lonnie Chisenhall | W114: =VLOOKUP($V114,Players!$M$3:$N$1251,2,FALSE) -> 0 | X114: 0 | AE114: Jose De Leon | AF114: =VLOOKUP($AE114,Players!$AT$3:$AU$1425,2,FALSE) -> 0 | AH114: 0
A115: 114 | V115: Harrison Bader | W115: =VLOOKUP($V115,Players!$M$3:$N$1251,2,FALSE) -> 0 | X115: 0 | AE115: Tom Koehler | AF115: =VLOOKUP($AE115,Players!$AT$3:$AU$1425,2,FALSE) -> 0 | AH115: 0
A116: 115 | V116: Alex Verdugo | W116: =VLOOKUP($V116,Players!$M$3:$N$1251,2,FALSE) -> 0 | X116: 0 | AE116: Michael Kopech | AF116: =VLOOKUP($AE116,Players!$AT$3:$AU$1425,2,FALSE) -> 0 | AH116: 0
A117: 116 | V117: Tyler O’Neill | W117: =VLOOKUP($V117,Players!$M$3:$N$1251,2,FALSE) -> 0 | X117: 0 | AE117: Walker Buehler | AF117: =VLOOKUP($AE117,Players!$AT$3:$AU$1425,2,FALSE) -> 0 | AH117: 0
A118: 117 | V118: Jose Martinez | W118: =VLOOKUP($V118,Players!$M$3:$N$1251,2,FALSE) -> 0 | X118: 0 | AE118: J.C. Ramirez | AF118: =VLOOKUP($AE118,Players!$AT$3:$AU$1425,2,FALSE) -> 0 | AH118: 0
A119: 118 | V119: Matt Adams | W119: =VLOOKUP($V119,Players!$M$3:$N$1251,2,FALSE) -> 0 | X119: 0 | AE119: Tyler Skaggs | AF119: =VLOOKUP($AE119,Players!$AT$3:$AU$1425,2,FALSE) -> 0 | AH119: 0
A120: 119 | V120: Chad Pinder | W120: =VLOOKUP($V120,Players!$M$3:$N$1251,2,FALSE) -> 0 | X120: 0 | AE120: Tyler Glasnow | AF120: =VLOOKUP($AE120,Players!$AT$3:$AU$1425,2,FALSE) -> 0 | AH120: 0
A121: 120 | V121: Albert Almora Jr. | W121: =VLOOKUP($V121,Players!$M$3:$N$1251,2,FALSE) -> 0 | X121: 0 | AE121: Jack Flaherty | AF121: =VLOOKUP($AE121,Players!$AT$3:$AU$1425,2,FALSE) -> 0 | AH121: 0
A122: 121 | V122: Derek Fisher | W122: =VLOOKUP($V122,Players!$M$3:$N$1251,2,FALSE) -> 0 | X122: 0 | AE122: Tyson Ross | AF122: =VLOOKUP($AE122,Players!$AT$3:$AU$1425,2,FALSE) -> 0 | AH122: 0
A123: 122 | V123: Jurickson Profar | W123: =VLOOKUP($V123,Players!$M$3:$N$1251,2,FALSE) -> 0 | X123: 0 | AE123: Erick Fedde | AF123: =VLOOKUP($AE123,Players!$AT$3:$AU$1425,2,FALSE) -> 0 | AH123: 0
A124: 123 | V124: Cory Spangenberg | W124: =VLOOKUP($V124,Players!$M$3:$N$1251,2,FALSE) -> 0 | X124: 0 | AE124: Marco Gonzales | AF124: =VLOOKUP($AE124,Players!$AT$3:$AU$1425,2,FALSE) -> 0 | AH124: 0
A125: 124 | V125: Mallex Smith | W125: =VLOOKUP($V125,Players!$M$3:$N$1251,2,FALSE) -> 0 | X125: 0 | AE125: Jesse Hahn | AF125: =VLOOKUP($AE125,Players!$AT$3:$AU$1425,2,FALSE) -> 0 | AH125: 0
A126: 125 | V126: Jorge Soler | W126: =VLOOKUP($V126,Players!$M$3:$N$1251,2,FALSE) -> 0 | X126: 0 | AE126: Kendall Graveman | AF126: =VLOOKUP($AE126,Players!$AT$3:$AU$1425,2,FALSE) -> 0 | AH126: 0
A127: 126 | V127: Teoscar Hernandez | W127: =VLOOKUP($V127,Players!$M$3:$N$1251,2,FALSE) -> 0 | X127: 0 | AE127: Jharel Cotton | AF127: =VLOOKUP($AE127,Players!$AT$3:$AU$1425,2,FALSE) -> 0 | AH127: 0
A128: 127 | V128: Keon Broxton | W128: =VLOOKUP($V128,Players!$M$3:$N$1251,2,FALSE) -> 0 | X128: 0 | AE128: Jake Junis | AF128: =VLOOKUP($AE128,Players!$AT$3:$AU$1425,2,FALSE) -> 0 | AH128: 0
A129: 128 | V129: Austin Jackson | W129: =VLOOKUP($V129,Players!$M$3:$N$1251,2,FALSE) -> 0 | X129: 0 | AE129: Dillon Peters | AF129: =VLOOKUP($AE129,Players!$AT$3:$AU$1425,2,FALSE) -> 0 | AH129: 0
A130: 129 | V130: Jordan Luplow | W130: =VLOOKUP($V130,Players!$M$3:$N$1251,2,FALSE) -> 0 | X130: 0 | AE130: Jason Hammel | AF130: =VLOOKUP($AE130,Players!$AT$3:$AU$1425,2,FALSE) -> 0 | AH130: 0
A131: 130 | V131: Hunter Pence | W131: =VLOOKUP($V131,Players!$M$3:$N$1251,2,FALSE) -> 0 | X131: =IF(W131>0,1,0) -> 0 | AE131: Matt Bush | AF131: =VLOOKUP($AE131,Players!$AT$3:$AU$1425,2,FALSE) -> 0 | AH131: =IF(AF131>0,1,0) -> 0
A132: 131 | V132: Matt Kemp | W132: =VLOOKUP($V132,Players!$M$3:$N$1251,2,FALSE) -> 0 | X132: 0 | AE132: Marco Estrada | AF132: =VLOOKUP($AE132,Players!$AT$3:$AU$1425,2,FALSE) -> 0 | AH132: 0
A133: 132 | V133: Boog Powell | W133: =VLOOKUP($V133,Players!$M$3:$N$1251,2,FALSE) -> 0 | X133: 0 | AE133: Tyler Chatwood | AF133: =VLOOKUP($AE133,Players!$AT$3:$AU$1425,2,FALSE) -> 0 | AH133: 0
A134: 133 | V134: Brandon Nimmo | W134: =VLOOKUP($V134,Players!$M$3:$N$1251,2,FALSE) -> 0 | X134: 0 | AE134: German Marquez | AF134: =VLOOKUP($AE134,Players!$AT$3:$AU$1425,2,FALSE) -> 0 | AH134: 0
A135: 134 | V135: Steve Pearce | W135: =VLOOKUP($V135,Players!$M$3:$N$1251,2,FALSE) -> 0 | X135: 0 | AE135: Ivan Nova | AF135: =VLOOKUP($AE135,Players!$AT$3:$AU$1425,2,FALSE) -> 0 | AH135: 0
A136: 135 | V136: Howie Kendrick | W136: =VLOOKUP($V136,Players!$M$3:$N$1251,2,FALSE) -> 0 | X136: 0 | AE136: Matthew Boyd | AF136: =VLOOKUP($AE136,Players!$AT$3:$AU$1425,2,FALSE) -> 0 | AH136: 0
A137: 136 | V137: Hernan Perez | W137: =VLOOKUP($V137,Players!$M$3:$N$1251,2,FALSE) -> 0 | X137: 0 | AE137: Robert Stephenson | AF137: =VLOOKUP($AE137,Players!$AT$3:$AU$1425,2,FALSE) -> 0 | AH137: 0
A138: 137 | V138: Paulo Orlando | W138: =VLOOKUP($V138,Players!$M$3:$N$1251,2,FALSE) -> 0 | X138: =IF(W138>0,1,0) -> 0 | AE138: Jordan Zimmermann | AF138: =VLOOKUP($AE138,Players!$AT$3:$AU$1425,2,FALSE) -> 0 | AH138: 0
A139: 138 | AE139: Matt Andriese | AF139: =VLOOKUP($AE139,Players!$AT$3:$AU$1425,2,FALSE) -> 0 | AH139: 0
A140: 139 | AE140: Chad Kuhl | AF140: =VLOOKUP($AE140,Players!$AT$3:$AU$1425,2,FALSE) -> 0 | AH140: 0
A141: 140
A142: 141
A143: 142
A144: 143
A145: 144
A146: 145
A147: 146
A148: 147
A149: 148
A150: 149
A151: 150
A152: 151
A153: 152
A154: 153
A155: 154
A156: 155
A157: 156
A158: 157
A159: 158
A160: 159
A161: 160
A162: 161
A163: 162
A164: 163
A165: 164
A166: 165
A167: 166
A168: 167
A169: 168
A170: 169
A171: 170
A172: 171
A173: 172
A174: 173
A175: 174
A176: 175
A177: 176
A178: 177
A179: 178
A180: 179
A181: 180
A182: 181
A183: 182
A184: 183
A185: 184
A186: 185
A187: 186
A188: 187
A189: 188
A190: 189
A191: 190
A192: 191
A193: 192
A194: 193
A195: 194
A196: 195
A197: 196
A198: 197
A199: 198
A200: 199
... 24 more rows

Sheet War Room
E1: Goal Tracking
E2: R | F2: HR | G2: RBI | H2: SB | I2: AVG
D3: Target | E3: ='User Input'!C35/'User Input'!C29 -> 60.05882353 | F3: ='User Input'!C36/'User Input'!C29 -> 15 | G3: ='User Input'!C37/'User Input'!C29 -> 57.23529412 | H3: ='User Input'!C38/'User Input'!C29 -> 10.41176471 | I3: ='User Input'!C39 -> 0.271 | Q3: (click '+' to expand above T & AC for salary details if required)
D4: Current | E4: =IF(ISERROR(C71),"N/A",C71) -> N/A | F4: =IF(ISERROR(D71),"N/A",D71) -> N/A | G4: =IF(ISERROR(E71),"N/A",E71) -> N/A | H4: =IF(ISERROR(F71),"N/A",F71) -> N/A | I4: =IF(ISERROR(G71),"N/A",G71) -> N/A
P5: Your Selected Players
E6: ERA | F6: WHIP | G6: W | H6: S | I6: K | P6: Batters | Y6: Pitchers
D7: Target | E7: ='User Input'!C41 -> 3.56 | F7: ='User Input'!C42 -> 1.23 | G7: ='User Input'!C43/'User Input'!C30 -> 5.733333333 | H7: ='User Input'!C44/'User Input'!C30 -> 8.133333333 | I7: ='User Input'!C45/'User Input'!C30 -> 84.8 | P7: # | Q7: Player | R7: Bid | S7: Proj | Y7: # | Z7: Player | AA7: Bid | AB7: Proj
D8: Current | E8: =IF(ISERROR(I71),"N/A",I71) -> N/A | F8: =IF(ISERROR(J71),"N/A",J71) -> N/A | G8: =IF(ISERROR(K71),"N/A",K71) -> N/A | H8: =IF(ISERROR(L71),"N/A",L71) -> N/A | I8: =IF(ISERROR(M71),"N/A",M71) -> N/A | P8: 1 | Q8: =IFERROR(VLOOKUP(P8,Players!$AE$3:$AG$997,2,FALSE),"") ->  | R8: =IFERROR(VLOOKUP(P8,Players!$AE$3:$AG$997,3,FALSE),"") ->  | S8: =VLOOKUP(P8,Players!$AE$3:$AH$997,4,FALSE) ->  | U8: =ISERROR(S8) -> TRUE | V8: =IF(U8=FALSE,R8,0) -> 0 | W8: =IF(U8=FALSE,S8,0) -> 0 | Y8: 1 | Z8: =IFERROR(VLOOKUP(Y8,Players!$BM$3:$BO$997,2,FALSE),"") ->  | AA8: =IFERROR(VLOOKUP(Y8,Players!$BM$3:$BO$997,3,FALSE),"") ->  | AB8: =VLOOKUP(Y8,Players!$BM$3:$BP$997,4,FALSE) ->  | AD8: =ISERROR(AB8) -> TRUE | AE8: =IF(AD8=FALSE,AA8,0) -> 0 | AF8: =IF(AD8=FALSE,AB8,0) -> 0
D9: =SUM(D13:D37) -> 0 | E9: Total Players Taken By All teams | P9: =P8+1 -> 2 | Q9: =IFERROR(VLOOKUP(P9,Players!$AE$3:$AG$997,2,FALSE),"") ->  | R9: =IFERROR(VLOOKUP(P9,Players!$AE$3:$AG$997,3,FALSE),"") ->  | S9: =VLOOKUP(P9,Players!$AE$3:$AH$997,4,FALSE) ->  | U9: TRUE | V9: 0 | W9: 0 | Y9: =Y8+1 -> 2 | Z9: =IFERROR(VLOOKUP(Y9,Players!$BM$3:$BO$997,2,FALSE),"") ->  | AA9: =IFERROR(VLOOKUP(Y9,Players!$BM$3:$BO$997,3,FALSE),"") ->  | AB9: =VLOOKUP(Y9,Players!$BM$3:$BP$997,4,FALSE) ->  | AD9: TRUE | AE9: 0 | AF9: 0
P10: =P9+1 -> 3 | Q10: =IFERROR(VLOOKUP(P10,Players!$AE$3:$AG$997,2,FALSE),"") ->  | R10: =IFERROR(VLOOKUP(P10,Players!$AE$3:$AG$997,3,FALSE),"") ->  | S10: =VLOOKUP(P10,Players!$AE$3:$AH$997,4,FALSE) ->  | U10: =ISERROR(S10) -> TRUE | V10: =IF(U10=FALSE,R10,0) -> 0 | W10: =IF(U10=FALSE,S10,0) -> 0 | Y10: =Y9+1 -> 3 | Z10: =IFERROR(VLOOKUP(Y10,Players!$BM$3:$BO$997,2,FALSE),"") ->  | AA10: =IFERROR(VLOOKUP(Y10,Players!$BM$3:$BO$997,3,FALSE),"") ->  | AB10: =VLOOKUP(Y10,Players!$BM$3:$BP$997,4,FALSE) ->  | AD10: TRUE | AE10: 0 | AF10: 0
B11: # of Players Taken | E11: Salaries | H11: # of Players Left | L11: Finances | P11: 4 | Q11: =IFERROR(VLOOKUP(P11,Players!$AE$3:$AG$997,2,FALSE),"") ->  | R11: =IFERROR(VLOOKUP(P11,Players!$AE$3:$AG$997,3,FALSE),"") ->  | S11: =VLOOKUP(P11,Players!$AE$3:$AH$997,4,FALSE) ->  | U11: TRUE | V11: 0 | W11: 0 | Y11: 4 | Z11: =IFERROR(VLOOKUP(Y11,Players!$BM$3:$BO$997,2,FALSE),"") ->  | AA11: =IFERROR(VLOOKUP(Y11,Players!$BM$3:$BO$997,3,FALSE),"") ->  | AB11: =VLOOKUP(Y11,Players!$BM$3:$BP$997,4,FALSE) ->  | AD11: TRUE | AE11: 0 | AF11: 0
A12: Team | B12: Bat | C12: Pit | D12: Tot | E12: Bat | F12: Pit | G12: Tot | H12: Bat | I12: Pit | J12: Bench | K12: Tot | L12: $$ Left | M12: APP | N12: Max Bid | P12: 5 | Q12: =IFERROR(VLOOKUP(P12,Players!$AE$3:$AG$997,2,FALSE),"") ->  | R12: =IFERROR(VLOOKUP(P12,Players!$AE$3:$AG$997,3,FALSE),"") ->  | S12: =VLOOKUP(P12,Players!$AE$3:$AH$997,4,FALSE) ->  | U12: TRUE | V12: 0 | W12: 0 | Y12: 5 | Z12: =IFERROR(VLOOKUP(Y12,Players!$BM$3:$BO$997,2,FALSE),"") ->  | AA12: =IFERROR(VLOOKUP(Y12,Players!$BM$3:$BO$997,3,FALSE),"") ->  | AB12: =VLOOKUP(Y12,Players!$BM$3:$BP$997,4,FALSE) ->  | AD12: TRUE | AE12: 0 | AF12: 0
A13: =IF('User Input'!C1 = 0,"",'User Input'!C1) -> a | B13: =IF('User Input'!C1=0,"",COUNTIF(Players!$N$3:$N$881,A13)) -> 0 | C13: =IF('User Input'!C1=0,"",COUNTIF(Players!$AT$3:$AU$915,A13)) -> 0 | D13: =IF('User Input'!C1=0,"",C13+B13) -> 0 | E13: =IF('User Input'!C1=0,"",SUMIF(Players!$N$3:$N$881,A13,Players!$O$3:$O$881)) -> 0 | F13: =IF('User Input'!C1=0,"",SUMIF(Players!$AU$3:$AU$915,A13,Players!$AV$3:$AV$915)) -> 0 | G13: =IF('User Input'!C1 = 0,"",F13+E13) -> 0 | H13: =IF('User Input'!C1=0,"",IF(('User Input'!$C$29-B13)<0,0,'User Input'!$C$29-B13)) -> 17 | I13: =IF('User Input'!C1=0,"",IF(('User Input'!$C$30-C13)<0,0,'User Input'!$C$30-C13)) -> 15 | J13: =IF('User Input'!C1=0,"",K13-H13-I13) -> 0 | K13: =IF('User Input'!C1 = 0,"",'User Input'!$C$29+'User Input'!$C$30+'User Input'!$C$31-D13) -> 32 | L13: =IF('User Input'!C1 = 0,"",'User Input'!$C$27-G13) -> 280 | M13: =IF('User Input'!C1=0,"",IF(K13<1,0,L13/K13)) -> 8.75 | N13: =IF('User Input'!C1 = 0,"",L13-K13+1) -> 249 | O13: ← YOUR TEAM | P13: 6 | Q13: =IFERROR(VLOOKUP(P13,Players!$AE$3:$AG$997,2,FALSE),"") ->  | R13: =IFERROR(VLOOKUP(P13,Players!$AE$3:$AG$997,3,FALSE),"") ->  | S13: =VLOOKUP(P13,Players!$AE$3:$AH$997,4,FALSE) ->  | U13: TRUE | V13: 0 | W13: 0 | Y13: 6 | Z13: =IFERROR(VLOOKUP(Y13,Players!$BM$3:$BO$997,2,FALSE),"") ->  | AA13: =IFERROR(VLOOKUP(Y13,Players!$BM$3:$BO$997,3,FALSE),"") ->  | AB13: =VLOOKUP(Y13,Players!$BM$3:$BP$997,4,FALSE) ->  | AD13: TRUE | AE13: 0 | AF13: 0
A14: =IF('User Input'!C2 = 0,"",'User Input'!C2) -> b | B14: =IF('User Input'!C2=0,"",COUNTIF(Players!$N$3:$N$881,A14)) -> 0 | C14: =IF('User Input'!C2=0,"",COUNTIF(Players!$AT$3:$AU$915,A14)) -> 0 | D14: =IF('User Input'!C2=0,"",C14+B14) -> 0 | E14: =IF('User Input'!C2=0,"",SUMIF(Players!$N$3:$N$881,A14,Players!$O$3:$O$881)) -> 0 | F14: =IF('User Input'!C2=0,"",SUMIF(Players!$AU$3:$AU$915,A14,Players!$AV$3:$AV$915)) -> 0 | G14: =IF('User Input'!C2 = 0,"",F14+E14) -> 0 | H14: =IF('User Input'!C2=0,"",IF(('User Input'!$C$29-B14)<0,0,'User Input'!$C$29-B14)) -> 17 | I14: =IF('User Input'!C2=0,"",IF(('User Input'!$C$30-C14)<0,0,'User Input'!$C$30-C14)) -> 15 | J14: =IF('User Input'!C2=0,"",K14-H14-I14) -> 0 | K14: =IF('User Input'!C2 = 0,"",'User Input'!$C$29+'User Input'!$C$30+'User Input'!$C$31-D14) -> 32 | L14: =IF('User Input'!C2 = 0,"",'User Input'!$C$27-G14) -> 280 | M14: =IF('User Input'!C2=0,"",IF(K14<1,0,L14/K14)) -> 8.75 | N14: =IF('User Input'!C2 = 0,"",L14-K14+1) -> 249 | P14: 7 | Q14: =IFERROR(VLOOKUP(P14,Players!$AE$3:$AG$997,2,FALSE),"") ->  | R14: =IFERROR(VLOOKUP(P14,Players!$AE$3:$AG$997,3,FALSE),"") ->  | S14: =VLOOKUP(P14,Players!$AE$3:$AH$997,4,FALSE) ->  | U14: TRUE | V14: 0 | W14: 0 | Y14: 7 | Z14: =IFERROR(VLOOKUP(Y14,Players!$BM$3:$BO$997,2,FALSE),"") ->  | AA14: =IFERROR(VLOOKUP(Y14,Players!$BM$3:$BO$997,3,FALSE),"") ->  | AB14: =VLOOKUP(Y14,Players!$BM$3:$BP$997,4,FALSE) ->  | AD14: TRUE | AE14: 0 | AF14: 0 | DT14: C | DU14: SP
A15: =IF('User Input'!C3 = 0,"",'User Input'!C3) -> c | B15: =IF('User Input'!C3=0,"",COUNTIF(Players!$N$3:$N$881,A15)) -> 0 | C15: =IF('User Input'!C3=0,"",COUNTIF(Players!$AT$3:$AU$915,A15)) -> 0 | D15: =IF('User Input'!C3=0,"",C15+B15) -> 0 | E15: =IF('User Input'!C3=0,"",SUMIF(Players!$N$3:$N$881,A15,Players!$O$3:$O$881)) -> 0 | F15: =IF('User Input'!C3=0,"",SUMIF(Players!$AU$3:$AU$915,A15,Players!$AV$3:$AV$915)) -> 0 | G15: =IF('User Input'!C3 = 0,"",F15+E15) -> 0 | H15: =IF('User Input'!C3=0,"",IF(('User Input'!$C$29-B15)<0,0,'User Input'!$C$29-B15)) -> 17 | I15: =IF('User Input'!C3=0,"",IF(('User Input'!$C$30-C15)<0,0,'User Input'!$C$30-C15)) -> 15 | J15: =IF('User Input'!C3=0,"",K15-H15-I15) -> 0 | K15: =IF('User Input'!C3 = 0,"",'User Input'!$C$29+'User Input'!$C$30+'User Input'!$C$31-D15) -> 32 | L15: =IF('User Input'!C3 = 0,"",'User Input'!$C$27-G15) -> 280 | M15: =IF('User Input'!C3=0,"",IF(K15<1,0,L15/K15)) -> 8.75 | N15: =IF('User Input'!C3 = 0,"",L15-K15+1) -> 249 | P15: 8 | Q15: =IFERROR(VLOOKUP(P15,Players!$AE$3:$AG$997,2,FALSE),"") ->  | R15: =IFERROR(VLOOKUP(P15,Players!$AE$3:$AG$997,3,FALSE),"") ->  | S15: =VLOOKUP(P15,Players!$AE$3:$AH$997,4,FALSE) ->  | U15: TRUE | V15: 0 | W15: 0 | Y15: 8 | Z15: =IFERROR(VLOOKUP(Y15,Players!$BM$3:$BO$997,2,FALSE),"") ->  | AA15: =IFERROR(VLOOKUP(Y15,Players!$BM$3:$BO$997,3,FALSE),"") ->  | AB15: =VLOOKUP(Y15,Players!$BM$3:$BP$997,4,FALSE) ->  | AD15: TRUE | AE15: 0 | AF15: 0 | DT15: 1B | DU15: RP
A16: =IF('User Input'!C4 = 0,"",'User Input'!C4) -> d | B16: =IF('User Input'!C4=0,"",COUNTIF(Players!$N$3:$N$881,A16)) -> 0 | C16: =IF('User Input'!C4=0,"",COUNTIF(Players!$AT$3:$AU$915,A16)) -> 0 | D16: =IF('User Input'!C4=0,"",C16+B16) -> 0 | E16: =IF('User Input'!C4=0,"",SUMIF(Players!$N$3:$N$881,A16,Players!$O$3:$O$881)) -> 0 | F16: =IF('User Input'!C4=0,"",SUMIF(Players!$AU$3:$AU$915,A16,Players!$AV$3:$AV$915)) -> 0 | G16: =IF('User Input'!C4 = 0,"",F16+E16) -> 0 | H16: =IF('User Input'!C4=0,"",IF(('User Input'!$C$29-B16)<0,0,'User Input'!$C$29-B16)) -> 17 | I16: =IF('User Input'!C4=0,"",IF(('User Input'!$C$30-C16)<0,0,'User Input'!$C$30-C16)) -> 15 | J16: =IF('User Input'!C4=0,"",K16-H16-I16) -> 0 | K16: =IF('User Input'!C4 = 0,"",'User Input'!$C$29+'User Input'!$C$30+'User Input'!$C$31-D16) -> 32 | L16: =IF('User Input'!C4 = 0,"",'User Input'!$C$27-G16) -> 280 | M16: =IF('User Input'!C4=0,"",IF(K16<1,0,L16/K16)) -> 8.75 | N16: =IF('User Input'!C4 = 0,"",L16-K16+1) -> 249 | P16: 9 | Q16: =IFERROR(VLOOKUP(P16,Players!$AE$3:$AG$997,2,FALSE),"") ->  | R16: =IFERROR(VLOOKUP(P16,Players!$AE$3:$AG$997,3,FALSE),"") ->  | S16: =VLOOKUP(P16,Players!$AE$3:$AH$997,4,FALSE) ->  | U16: TRUE | V16: 0 | W16: 0 | Y16: 9 | Z16: =IFERROR(VLOOKUP(Y16,Players!$BM$3:$BO$997,2,FALSE),"") ->  | AA16: =IFERROR(VLOOKUP(Y16,Players!$BM$3:$BO$997,3,FALSE),"") ->  | AB16: =VLOOKUP(Y16,Players!$BM$3:$BP$997,4,FALSE) ->  | AD16: TRUE | AE16: 0 | AF16: 0 | DT16: 2B
A17: =IF('User Input'!C5 = 0,"",'User Input'!C5) -> e | B17: =IF('User Input'!C5=0,"",COUNTIF(Players!$N$3:$N$881,A17)) -> 0 | C17: =IF('User Input'!C5=0,"",COUNTIF(Players!$AT$3:$AU$915,A17)) -> 0 | D17: =IF('User Input'!C5=0,"",C17+B17) -> 0 | E17: =IF('User Input'!C5=0,"",SUMIF(Players!$N$3:$N$881,A17,Players!$O$3:$O$881)) -> 0 | F17: =IF('User Input'!C5=0,"",SUMIF(Players!$AU$3:$AU$915,A17,Players!$AV$3:$AV$915)) -> 0 | G17: =IF('User Input'!C5 = 0,"",F17+E17) -> 0 | H17: =IF('User Input'!C5=0,"",IF(('User Input'!$C$29-B17)<0,0,'User Input'!$C$29-B17)) -> 17 | I17: =IF('User Input'!C5=0,"",IF(('User Input'!$C$30-C17)<0,0,'User Input'!$C$30-C17)) -> 15 | J17: =IF('User Input'!C5=0,"",K17-H17-I17) -> 0 | K17: =IF('User Input'!C5 = 0,"",'User Input'!$C$29+'User Input'!$C$30+'User Input'!$C$31-D17) -> 32 | L17: =IF('User Input'!C5 = 0,"",'User Input'!$C$27-G17) -> 280 | M17: =IF('User Input'!C5=0,"",IF(K17<1,0,L17/K17)) -> 8.75 | N17: =IF('User Input'!C5 = 0,"",L17-K17+1) -> 249 | P17: 10 | Q17: =IFERROR(VLOOKUP(P17,Players!$AE$3:$AG$997,2,FALSE),"") ->  | R17: =IFERROR(VLOOKUP(P17,Players!$AE$3:$AG$997,3,FALSE),"") ->  | S17: =VLOOKUP(P17,Players!$AE$3:$AH$997,4,FALSE) ->  | U17: TRUE | V17: 0 | W17: 0 | Y17: 10 | Z17: =IFERROR(VLOOKUP(Y17,Players!$BM$3:$BO$997,2,FALSE),"") ->  | AA17: =IFERROR(VLOOKUP(Y17,Players!$BM$3:$BO$997,3,FALSE),"") ->  | AB17: =VLOOKUP(Y17,Players!$BM$3:$BP$997,4,FALSE) ->  | AD17: TRUE | AE17: 0 | AF17: 0 | DT17: 3B
A18: =IF('User Input'!C6 = 0,"",'User Input'!C6) -> f | B18: =IF('User Input'!C6=0,"",COUNTIF(Players!$N$3:$N$881,A18)) -> 0 | C18: =IF('User Input'!C6=0,"",COUNTIF(Players!$AT$3:$AU$915,A18)) -> 0 | D18: =IF('User Input'!C6=0,"",C18+B18) -> 0 | E18: =IF('User Input'!C6=0,"",SUMIF(Players!$N$3:$N$881,A18,Players!$O$3:$O$881)) -> 0 | F18: =IF('User Input'!C6=0,"",SUMIF(Players!$AU$3:$AU$915,A18,Players!$AV$3:$AV$915)) -> 0 | G18: =IF('User Input'!C6 = 0,"",F18+E18) -> 0 | H18: =IF('User Input'!C6=0,"",IF(('User Input'!$C$29-B18)<0,0,'User Input'!$C$29-B18)) -> 17 | I18: =IF('User Input'!C6=0,"",IF(('User Input'!$C$30-C18)<0,0,'User Input'!$C$30-C18)) -> 15 | J18: =IF('User Input'!C6=0,"",K18-H18-I18) -> 0 | K18: =IF('User Input'!C6 = 0,"",'User Input'!$C$29+'User Input'!$C$30+'User Input'!$C$31-D18) -> 32 | L18: =IF('User Input'!C6 = 0,"",'User Input'!$C$27-G18) -> 280 | M18: =IF('User Input'!C6=0,"",IF(K18<1,0,L18/K18)) -> 8.75 | N18: =IF('User Input'!C6 = 0,"",L18-K18+1) -> 249 | P18: 11 | Q18: =IFERROR(VLOOKUP(P18,Players!$AE$3:$AG$997,2,FALSE),"") ->  | R18: =IFERROR(VLOOKUP(P18,Players!$AE$3:$AG$997,3,FALSE),"") ->  | S18: =VLOOKUP(P18,Players!$AE$3:$AH$997,4,FALSE) ->  | U18: TRUE | V18: 0 | W18: 0 | Y18: 11 | Z18: =IFERROR(VLOOKUP(Y18,Players!$BM$3:$BO$997,2,FALSE),"") ->  | AA18: =IFERROR(VLOOKUP(Y18,Players!$BM$3:$BO$997,3,FALSE),"") ->  | AB18: =VLOOKUP(Y18,Players!$BM$3:$BP$997,4,FALSE) ->  | AD18: TRUE | AE18: 0 | AF18: 0 | DT18: SS
A19: =IF('User Input'!C7 = 0,"",'User Input'!C7) -> g | B19: =IF('User Input'!C7=0,"",COUNTIF(Players!$N$3:$N$881,A19)) -> 0 | C19: =IF('User Input'!C7=0,"",COUNTIF(Players!$AT$3:$AU$915,A19)) -> 0 | D19: =IF('User Input'!C7=0,"",C19+B19) -> 0 | E19: =IF('User Input'!C7=0,"",SUMIF(Players!$N$3:$N$881,A19,Players!$O$3:$O$881)) -> 0 | F19: =IF('User Input'!C7=0,"",SUMIF(Players!$AU$3:$AU$915,A19,Players!$AV$3:$AV$915)) -> 0 | G19: =IF('User Input'!C7 = 0,"",F19+E19) -> 0 | H19: =IF('User Input'!C7=0,"",IF(('User Input'!$C$29-B19)<0,0,'User Input'!$C$29-B19)) -> 17 | I19: =IF('User Input'!C7=0,"",IF(('User Input'!$C$30-C19)<0,0,'User Input'!$C$30-C19)) -> 15 | J19: =IF('User Input'!C7=0,"",K19-H19-I19) -> 0 | K19: =IF('User Input'!C7 = 0,"",'User Input'!$C$29+'User Input'!$C$30+'User Input'!$C$31-D19) -> 32 | L19: =IF('User Input'!C7 = 0,"",'User Input'!$C$27-G19) -> 280 | M19: =IF('User Input'!C7=0,"",IF(K19<1,0,L19/K19)) -> 8.75 | N19: =IF('User Input'!C7 = 0,"",L19-K19+1) -> 249 | P19: 12 | Q19: =IFERROR(VLOOKUP(P19,Players!$AE$3:$AG$997,2,FALSE),"") ->  | R19: =IFERROR(VLOOKUP(P19,Players!$AE$3:$AG$997,3,FALSE),"") ->  | S19: =VLOOKUP(P19,Players!$AE$3:$AH$997,4,FALSE) ->  | U19: TRUE | V19: 0 | W19: 0 | Y19: 12 | Z19: =IFERROR(VLOOKUP(Y19,Players!$BM$3:$BO$997,2,FALSE),"") ->  | AA19: =IFERROR(VLOOKUP(Y19,Players!$BM$3:$BO$997,3,FALSE),"") ->  | AB19: =VLOOKUP(Y19,Players!$BM$3:$BP$997,4,FALSE) ->  | AD19: TRUE | AE19: 0 | AF19: 0 | DT19: OF
A20: =IF('User Input'!C8 = 0,"",'User Input'!C8) -> h | B20: =IF('User Input'!C8=0,"",COUNTIF(Players!$N$3:$N$881,A20)) -> 0 | C20: =IF('User Input'!C8=0,"",COUNTIF(Players!$AT$3:$AU$915,A20)) -> 0 | D20: =IF('User Input'!C8=0,"",C20+B20) -> 0 | E20: =IF('User Input'!C8=0,"",SUMIF(Players!$N$3:$N$881,A20,Players!$O$3:$O$881)) -> 0 | F20: =IF('User Input'!C8=0,"",SUMIF(Players!$AU$3:$AU$915,A20,Players!$AV$3:$AV$915)) -> 0 | G20: =IF('User Input'!C8 = 0,"",F20+E20) -> 0 | H20: =IF('User Input'!C8=0,"",IF(('User Input'!$C$29-B20)<0,0,'User Input'!$C$29-B20)) -> 17 | I20: =IF('User Input'!C8=0,"",IF(('User Input'!$C$30-C20)<0,0,'User Input'!$C$30-C20)) -> 15 | J20: =IF('User Input'!C8=0,"",K20-H20-I20) -> 0 | K20: =IF('User Input'!C8 = 0,"",'User Input'!$C$29+'User Input'!$C$30+'User Input'!$C$31-D20) -> 32 | L20: =IF('User Input'!C8 = 0,"",'User Input'!$C$27-G20) -> 280 | M20: =IF('User Input'!C8=0,"",IF(K20<1,0,L20/K20)) -> 8.75 | N20: =IF('User Input'!C8 = 0,"",L20-K20+1) -> 249 | P20: 13 | Q20: =IFERROR(VLOOKUP(P20,Players!$AE$3:$AG$997,2,FALSE),"") ->  | R20: =IFERROR(VLOOKUP(P20,Players!$AE$3:$AG$997,3,FALSE),"") ->  | S20: =VLOOKUP(P20,Players!$AE$3:$AH$997,4,FALSE) ->  | U20: TRUE | V20: 0 | W20: 0 | Y20: 13 | Z20: =IFERROR(VLOOKUP(Y20,Players!$BM$3:$BO$997,2,FALSE),"") ->  | AA20: =IFERROR(VLOOKUP(Y20,Players!$BM$3:$BO$997,3,FALSE),"") ->  | AB20: =VLOOKUP(Y20,Players!$BM$3:$BP$997,4,FALSE) ->  | AD20: TRUE | AE20: 0 | AF20: 0 | DT20: CI
A21: =IF('User Input'!C9 = 0,"",'User Input'!C9) -> i | B21: =IF('User Input'!C9=0,"",COUNTIF(Players!$N$3:$N$881,A21)) -> 0 | C21: =IF('User Input'!C9=0,"",COUNTIF(Players!$AT$3:$AU$915,A21)) -> 0 | D21: =IF('User Input'!C9=0,"",C21+B21) -> 0 | E21: =IF('User Input'!C9=0,"",SUMIF(Players!$N$3:$N$881,A21,Players!$O$3:$O$881)) -> 0 | F21: =IF('User Input'!C9=0,"",SUMIF(Players!$AU$3:$AU$915,A21,Players!$AV$3:$AV$915)) -> 0 | G21: =IF('User Input'!C9 = 0,"",F21+E21) -> 0 | H21: =IF('User Input'!C9=0,"",IF(('User Input'!$C$29-B21)<0,0,'User Input'!$C$29-B21)) -> 17 | I21: =IF('User Input'!C9=0,"",IF(('User Input'!$C$30-C21)<0,0,'User Input'!$C$30-C21)) -> 15 | J21: =IF('User Input'!C9=0,"",K21-H21-I21) -> 0 | K21: =IF('User Input'!C9 = 0,"",'User Input'!$C$29+'User Input'!$C$30+'User Input'!$C$31-D21) -> 32 | L21: =IF('User Input'!C9 = 0,"",'User Input'!$C$27-G21) -> 280 | M21: =IF('User Input'!C9=0,"",IF(K21<1,0,L21/K21)) -> 8.75 | N21: =IF('User Input'!C9 = 0,"",L21-K21+1) -> 249 | P21: 14 | Q21: =IFERROR(VLOOKUP(P21,Players!$AE$3:$AG$997,2,FALSE),"") ->  | R21: =IFERROR(VLOOKUP(P21,Players!$AE$3:$AG$997,3,FALSE),"") ->  | S21: =VLOOKUP(P21,Players!$AE$3:$AH$997,4,FALSE) ->  | U21: TRUE | V21: 0 | W21: 0 | Y21: 14 | Z21: =IFERROR(VLOOKUP(Y21,Players!$BM$3:$BO$997,2,FALSE),"") ->  | AA21: =IFERROR(VLOOKUP(Y21,Players!$BM$3:$BO$997,3,FALSE),"") ->  | AB21: =VLOOKUP(Y21,Players!$BM$3:$BP$997,4,FALSE) ->  | AD21: TRUE | AE21: 0 | AF21: 0 | DT21: MI
A22: =IF('User Input'!C10 = 0,"",'User Input'!C10) -> j | B22: =IF('User Input'!C10=0,"",COUNTIF(Players!$N$3:$N$881,A22)) -> 0 | C22: =IF('User Input'!C10=0,"",COUNTIF(Players!$AT$3:$AU$915,A22)) -> 0 | D22: =IF('User Input'!C10=0,"",C22+B22) -> 0 | E22: =IF('User Input'!C10=0,"",SUMIF(Players!$N$3:$N$881,A22,Players!$O$3:$O$881)) -> 0 | F22: =IF('User Input'!C10=0,"",SUMIF(Players!$AU$3:$AU$915,A22,Players!$AV$3:$AV$915)) -> 0 | G22: =IF('User Input'!C10 = 0,"",F22+E22) -> 0 | H22: =IF('User Input'!C10=0,"",IF(('User Input'!$C$29-B22)<0,0,'User Input'!$C$29-B22)) -> 17 | I22: =IF('User Input'!C10=0,"",IF(('User Input'!$C$30-C22)<0,0,'User Input'!$C$30-C22)) -> 15 | J22: =IF('User Input'!C10=0,"",K22-H22-I22) -> 0 | K22: =IF('User Input'!C10 = 0,"",'User Input'!$C$29+'User Input'!$C$30+'User Input'!$C$31-D22) -> 32 | L22: =IF('User Input'!C10 = 0,"",'User Input'!$C$27-G22) -> 280 | M22: =IF('User Input'!C10=0,"",IF(K22<1,0,L22/K22)) -> 8.75 | N22: =IF('User Input'!C10 = 0,"",L22-K22+1) -> 249 | P22: 15 | Q22: =IFERROR(VLOOKUP(P22,Players!$AE$3:$AG$997,2,FALSE),"") ->  | R22: =IFERROR(VLOOKUP(P22,Players!$AE$3:$AG$997,3,FALSE),"") ->  | S22: =VLOOKUP(P22,Players!$AE$3:$AH$997,4,FALSE) ->  | U22: TRUE | V22: 0 | W22: 0 | Y22: 15 | Z22: =IFERROR(VLOOKUP(Y22,Players!$BM$3:$BO$997,2,FALSE),"") ->  | AA22: =IFERROR(VLOOKUP(Y22,Players!$BM$3:$BO$997,3,FALSE),"") ->  | AB22: =VLOOKUP(Y22,Players!$BM$3:$BP$997,4,FALSE) ->  | AD22: TRUE | AE22: 0 | AF22: 0 | DT22: UT
A23: =IF('User Input'!C11 = 0,"",'User Input'!C11) -> k | B23: =IF('User Input'!C11=0,"",COUNTIF(Players!$N$3:$N$881,A23)) -> 0 | C23: =IF('User Input'!C11=0,"",COUNTIF(Players!$AT$3:$AU$915,A23)) -> 0 | D23: =IF('User Input'!C11=0,"",C23+B23) -> 0 | E23: =IF('User Input'!C11=0,"",SUMIF(Players!$N$3:$N$881,A23,Players!$O$3:$O$881)) -> 0 | F23: =IF('User Input'!C11=0,"",SUMIF(Players!$AU$3:$AU$915,A23,Players!$AV$3:$AV$915)) -> 0 | G23: =IF('User Input'!C11 = 0,"",F23+E23) -> 0 | H23: =IF('User Input'!C11=0,"",IF(('User Input'!$C$29-B23)<0,0,'User Input'!$C$29-B23)) -> 17 | I23: =IF('User Input'!C11=0,"",IF(('User Input'!$C$30-C23)<0,0,'User Input'!$C$30-C23)) -> 15 | J23: =IF('User Input'!C11=0,"",K23-H23-I23) -> 0 | K23: =IF('User Input'!C11 = 0,"",'User Input'!$C$29+'User Input'!$C$30+'User Input'!$C$31-D23) -> 32 | L23: =IF('User Input'!C11 = 0,"",'User Input'!$C$27-G23) -> 280 | M23: =IF('User Input'!C11=0,"",IF(K23<1,0,L23/K23)) -> 8.75 | N23: =IF('User Input'!C11 = 0,"",L23-K23+1) -> 249 | P23: 16 | Q23: =IFERROR(VLOOKUP(P23,Players!$AE$3:$AG$997,2,FALSE),"") ->  | R23: =IFERROR(VLOOKUP(P23,Players!$AE$3:$AG$997,3,FALSE),"") ->  | S23: =VLOOKUP(P23,Players!$AE$3:$AH$997,4,FALSE) ->  | U23: TRUE | V23: 0 | W23: 0 | Y23: 16 | Z23: =IFERROR(VLOOKUP(Y23,Players!$BM$3:$BO$997,2,FALSE),"") ->  | AA23: =IFERROR(VLOOKUP(Y23,Players!$BM$3:$BO$997,3,FALSE),"") ->  | AB23: =VLOOKUP(Y23,Players!$BM$3:$BP$997,4,FALSE) ->  | AD23: =ISERROR(AB23) -> TRUE | AE23: =IF(AD23=FALSE,AA23,0) -> 0 | AF23: =IF(AD23=FALSE,AB23,0) -> 0
A24: =IF('User Input'!C12 = 0,"",'User Input'!C12) -> l | B24: =IF('User Input'!C12=0,"",COUNTIF(Players!$N$3:$N$881,A24)) -> 0 | C24: =IF('User Input'!C12=0,"",COUNTIF(Players!$AT$3:$AU$915,A24)) -> 0 | D24: =IF('User Input'!C12=0,"",C24+B24) -> 0 | E24: =IF('User Input'!C12=0,"",SUMIF(Players!$N$3:$N$881,A24,Players!$O$3:$O$881)) -> 0 | F24: =IF('User Input'!C12=0,"",SUMIF(Players!$AU$3:$AU$915,A24,Players!$AV$3:$AV$915)) -> 0 | G24: =IF('User Input'!C12 = 0,"",F24+E24) -> 0 | H24: =IF('User Input'!C12=0,"",IF(('User Input'!$C$29-B24)<0,0,'User Input'!$C$29-B24)) -> 17 | I24: =IF('User Input'!C12=0,"",IF(('User Input'!$C$30-C24)<0,0,'User Input'!$C$30-C24)) -> 15 | J24: =IF('User Input'!C12=0,"",K24-H24-I24) -> 0 | K24: =IF('User Input'!C12 = 0,"",'User Input'!$C$29+'User Input'!$C$30+'User Input'!$C$31-D24) -> 32 | L24: =IF('User Input'!C12 = 0,"",'User Input'!$C$27-G24) -> 280 | M24: =IF('User Input'!C12=0,"",IF(K24<1,0,L24/K24)) -> 8.75 | N24: =IF('User Input'!C12 = 0,"",L24-K24+1) -> 249 | P24: 17 | Q24: =IFERROR(VLOOKUP(P24,Players!$AE$3:$AG$997,2,FALSE),"") ->  | R24: =IFERROR(VLOOKUP(P24,Players!$AE$3:$AG$997,3,FALSE),"") ->  | S24: =VLOOKUP(P24,Players!$AE$3:$AH$997,4,FALSE) ->  | U24: TRUE | V24: 0 | W24: 0 | Y24: 17 | Z24: =IFERROR(VLOOKUP(Y24,Players!$BM$3:$BO$997,2,FALSE),"") ->  | AA24: =IFERROR(VLOOKUP(Y24,Players!$BM$3:$BO$997,3,FALSE),"") ->  | AB24: =VLOOKUP(Y24,Players!$BM$3:$BP$997,4,FALSE) ->  | AD24: TRUE | AE24: 0 | AF24: 0
A25: =IF('User Input'!C13 = 0,"",'User Input'!C13) ->  | B25: =IF('User Input'!C13=0,"",COUNTIF(Players!$N$3:$N$881,A25)) ->  | C25: =IF('User Input'!C13=0,"",COUNTIF(Players!$AT$3:$AU$915,A25)) ->  | D25: =IF('User Input'!C13=0,"",C25+B25) ->  | E25: =IF('User Input'!C13=0,"",SUMIF(Players!$N$3:$N$881,A25,Players!$O$3:$O$881)) ->  | F25: =IF('User Input'!C13=0,"",SUMIF(Players!$AU$3:$AU$915,A25,Players!$AV$3:$AV$915)) ->  | G25: =IF('User Input'!C13 = 0,"",F25+E25) ->  | H25: =IF('User Input'!C13=0,"",IF(('User Input'!$C$29-B25)<0,0,'User Input'!$C$29-B25)) ->  | I25: =IF('User Input'!C13=0,"",IF(('User Input'!$C$30-C25)<0,0,'User Input'!$C$30-C25)) ->  | J25: =IF('User Input'!C13=0,"",K25-H25-I25) ->  | K25: =IF('User Input'!C13 = 0,"",'User Input'!$C$29+'User Input'!$C$30+'User Input'!$C$31-D25) ->  | L25: =IF('User Input'!C13 = 0,"",'User Input'!$C$27-G25) ->  | M25: =IF('User Input'!C13=0,"",IF(K25<1,0,L25/K25)) ->  | N25: =IF('User Input'!C13 = 0,"",L25-K25+1) ->  | P25: 18 | Q25: =IFERROR(VLOOKUP(P25,Players!$AE$3:$AG$997,2,FALSE),"") ->  | R25: =IFERROR(VLOOKUP(P25,Players!$AE$3:$AG$997,3,FALSE),"") ->  | S25: =VLOOKUP(P25,Players!$AE$3:$AH$997,4,FALSE) ->  | U25: TRUE | V25: 0 | W25: 0 | Y25: 18 | Z25: =IFERROR(VLOOKUP(Y25,Players!$BM$3:$BO$997,2,FALSE),"") ->  | AA25: =IFERROR(VLOOKUP(Y25,Players!$BM$3:$BO$997,3,FALSE),"") ->  | AB25: =VLOOKUP(Y25,Players!$BM$3:$BP$997,4,FALSE) ->  | AD25: TRUE | AE25: 0 | AF25: 0
A26: =IF('User Input'!C14 = 0,"",'User Input'!C14) ->  | B26: =IF('User Input'!C14=0,"",COUNTIF(Players!$N$3:$N$881,A26)) ->  | C26: =IF('User Input'!C14=0,"",COUNTIF(Players!$AT$3:$AU$915,A26)) ->  | D26: =IF('User Input'!C14=0,"",C26+B26) ->  | E26: =IF('User Input'!C14=0,"",SUMIF(Players!$N$3:$N$881,A26,Players!$O$3:$O$881)) ->  | F26: =IF('User Input'!C14=0,"",SUMIF(Players!$AU$3:$AU$915,A26,Players!$AV$3:$AV$915)) ->  | G26: =IF('User Input'!C14 = 0,"",F26+E26) ->  | H26: =IF('User Input'!C14=0,"",IF(('User Input'!$C$29-B26)<0,0,'User Input'!$C$29-B26)) ->  | I26: =IF('User Input'!C14=0,"",IF(('User Input'!$C$30-C26)<0,0,'User Input'!$C$30-C26)) ->  | J26: =IF('User Input'!C14=0,"",K26-H26-I26) ->  | K26: =IF('User Input'!C14 = 0,"",'User Input'!$C$29+'User Input'!$C$30+'User Input'!$C$31-D26) ->  | L26: =IF('User Input'!C14 = 0,"",'User Input'!$C$27-G26) ->  | M26: =IF('User Input'!C14=0,"",IF(K26<1,0,L26/K26)) ->  | N26: =IF('User Input'!C14 = 0,"",L26-K26+1) ->  | P26: 19 | Q26: =IFERROR(VLOOKUP(P26,Players!$AE$3:$AG$997,2,FALSE),"") ->  | R26: =IFERROR(VLOOKUP(P26,Players!$AE$3:$AG$997,3,FALSE),"") ->  | S26: =VLOOKUP(P26,Players!$AE$3:$AH$997,4,FALSE) ->  | U26: TRUE | V26: 0 | W26: 0 | Y26: 19 | Z26: =IFERROR(VLOOKUP(Y26,Players!$BM$3:$BO$997,2,FALSE),"") ->  | AA26: =IFERROR(VLOOKUP(Y26,Players!$BM$3:$BO$997,3,FALSE),"") ->  | AB26: =VLOOKUP(Y26,Players!$BM$3:$BP$997,4,FALSE) ->  | AD26: TRUE | AE26: 0 | AF26: 0
A27: =IF('User Input'!C15 = 0,"",'User Input'!C15) ->  | B27: =IF('User Input'!C15=0,"",COUNTIF(Players!$N$3:$N$881,A27)) ->  | C27: =IF('User Input'!C15=0,"",COUNTIF(Players!$AT$3:$AU$915,A27)) ->  | D27: =IF('User Input'!C15=0,"",C27+B27) ->  | E27: =IF('User Input'!C15=0,"",SUMIF(Players!$N$3:$N$881,A27,Players!$O$3:$O$881)) ->  | F27: =IF('User Input'!C15=0,"",SUMIF(Players!$AU$3:$AU$915,A27,Players!$AV$3:$AV$915)) ->  | G27: =IF('User Input'!C15 = 0,"",F27+E27) ->  | H27: =IF('User Input'!C15=0,"",IF(('User Input'!$C$29-B27)<0,0,'User Input'!$C$29-B27)) ->  | I27: =IF('User Input'!C15=0,"",IF(('User Input'!$C$30-C27)<0,0,'User Input'!$C$30-C27)) ->  | J27: =IF('User Input'!C15=0,"",K27-H27-I27) ->  | K27: =IF('User Input'!C15 = 0,"",'User Input'!$C$29+'User Input'!$C$30+'User Input'!$C$31-D27) ->  | L27: =IF('User Input'!C15 = 0,"",'User Input'!$C$27-G27) ->  | M27: =IF('User Input'!C15=0,"",IF(K27<1,0,L27/K27)) ->  | N27: =IF('User Input'!C15 = 0,"",L27-K27+1) ->  | P27: 20 | Q27: =IFERROR(VLOOKUP(P27,Players!$AE$3:$AG$997,2,FALSE),"") ->  | R27: =IFERROR(VLOOKUP(P27,Players!$AE$3:$AG$997,3,FALSE),"") ->  | S27: =VLOOKUP(P27,Players!$AE$3:$AH$997,4,FALSE) ->  | U27: TRUE | V27: 0 | W27: 0 | Y27: 20 | Z27: =IFERROR(VLOOKUP(Y27,Players!$BM$3:$BO$997,2,FALSE),"") ->  | AA27: =IFERROR(VLOOKUP(Y27,Players!$BM$3:$BO$997,3,FALSE),"") ->  | AB27: =VLOOKUP(Y27,Players!$BM$3:$BP$997,4,FALSE) ->  | AD27: TRUE | AE27: 0 | AF27: 0
A28: =IF('User Input'!C16 = 0,"",'User Input'!C16) ->  | B28: =IF('User Input'!C16=0,"",COUNTIF(Players!$N$3:$N$881,A28)) ->  | C28: =IF('User Input'!C16=0,"",COUNTIF(Players!$AT$3:$AU$915,A28)) ->  | D28: =IF('User Input'!C16=0,"",C28+B28) ->  | E28: =IF('User Input'!C16=0,"",SUMIF(Players!$N$3:$N$881,A28,Players!$O$3:$O$881)) ->  | F28: =IF('User Input'!C16=0,"",SUMIF(Players!$AU$3:$AU$915,A28,Players!$AV$3:$AV$915)) ->  | G28: =IF('User Input'!C16 = 0,"",F28+E28) ->  | H28: =IF('User Input'!C16=0,"",IF(('User Input'!$C$29-B28)<0,0,'User Input'!$C$29-B28)) ->  | I28: =IF('User Input'!C16=0,"",IF(('User Input'!$C$30-C28)<0,0,'User Input'!$C$30-C28)) ->  | J28: =IF('User Input'!C16=0,"",K28-H28-I28) ->  | K28: =IF('User Input'!C16 = 0,"",'User Input'!$C$29+'User Input'!$C$30+'User Input'!$C$31-D28) ->  | L28: =IF('User Input'!C16 = 0,"",'User Input'!$C$27-G28) ->  | M28: =IF('User Input'!C16=0,"",IF(K28<1,0,L28/K28)) ->  | N28: =IF('User Input'!C16 = 0,"",L28-K28+1) ->  | P28: 21 | Q28: =IFERROR(VLOOKUP(P28,Players!$AE$3:$AG$997,2,FALSE),"") ->  | R28: =IFERROR(VLOOKUP(P28,Players!$AE$3:$AG$997,3,FALSE),"") ->  | S28: =VLOOKUP(P28,Players!$AE$3:$AH$997,4,FALSE) ->  | U28: TRUE | V28: 0 | W28: 0 | Y28: 21 | Z28: =IFERROR(VLOOKUP(Y28,Players!$BM$3:$BO$997,2,FALSE),"") ->  | AA28: =IFERROR(VLOOKUP(Y28,Players!$BM$3:$BO$997,3,FALSE),"") ->  | AB28: =VLOOKUP(Y28,Players!$BM$3:$BP$997,4,FALSE) ->  | AD28: TRUE | AE28: 0 | AF28: 0
A29: =IF('User Input'!C17 = 0,"",'User Input'!C17) ->  | B29: =IF('User Input'!C17=0,"",COUNTIF(Players!$N$3:$N$881,A29)) ->  | C29: =IF('User Input'!C17=0,"",COUNTIF(Players!$AT$3:$AU$915,A29)) ->  | D29: =IF('User Input'!C17=0,"",C29+B29) ->  | E29: =IF('User Input'!C17=0,"",SUMIF(Players!$N$3:$N$881,A29,Players!$O$3:$O$881)) ->  | F29: =IF('User Input'!C17=0,"",SUMIF(Players!$AU$3:$AU$915,A29,Players!$AV$3:$AV$915)) ->  | G29: =IF('User Input'!C17 = 0,"",F29+E29) ->  | H29: =IF('User Input'!C17=0,"",IF(('User Input'!$C$29-B29)<0,0,'User Input'!$C$29-B29)) ->  | I29: =IF('User Input'!C17=0,"",IF(('User Input'!$C$30-C29)<0,0,'User Input'!$C$30-C29)) ->  | J29: =IF('User Input'!C17=0,"",K29-H29-I29) ->  | K29: =IF('User Input'!C17 = 0,"",'User Input'!$C$29+'User Input'!$C$30+'User Input'!$C$31-D29) ->  | L29: =IF('User Input'!C17 = 0,"",'User Input'!$C$27-G29) ->  | M29: =IF('User Input'!C17=0,"",IF(K29<1,0,L29/K29)) ->  | N29: =IF('User Input'!C17 = 0,"",L29-K29+1) ->  | P29: 22 | Q29: =IFERROR(VLOOKUP(P29,Players!$AE$3:$AG$997,2,FALSE),"") ->  | R29: =IFERROR(VLOOKUP(P29,Players!$AE$3:$AG$997,3,FALSE),"") ->  | S29: =VLOOKUP(P29,Players!$AE$3:$AH$997,4,FALSE) ->  | U29: TRUE | V29: 0 | W29: 0 | Y29: 22 | Z29: =IFERROR(VLOOKUP(Y29,Players!$BM$3:$BO$997,2,FALSE),"") ->  | AA29: =IFERROR(VLOOKUP(Y29,Players!$BM$3:$BO$997,3,FALSE),"") ->  | AB29: =VLOOKUP(Y29,Players!$BM$3:$BP$997,4,FALSE) ->  | AD29: TRUE | AE29: 0 | AF29: 0
A30: =IF('User Input'!C18 = 0,"",'User Input'!C18) ->  | B30: =IF('User Input'!C18=0,"",COUNTIF(Players!$N$3:$N$881,A30)) ->  | C30: =IF('User Input'!C18=0,"",COUNTIF(Players!$AT$3:$AU$915,A30)) ->  | D30: =IF('User Input'!C18=0,"",C30+B30) ->  | E30: =IF('User Input'!C18=0,"",SUMIF(Players!$N$3:$N$881,A30,Players!$O$3:$O$881)) ->  | F30: =IF('User Input'!C18=0,"",SUMIF(Players!$AU$3:$AU$915,A30,Players!$AV$3:$AV$915)) ->  | G30: =IF('User Input'!C18 = 0,"",F30+E30) ->  | H30: =IF('User Input'!C18=0,"",IF(('User Input'!$C$29-B30)<0,0,'User Input'!$C$29-B30)) ->  | I30: =IF('User Input'!C18=0,"",IF(('User Input'!$C$30-C30)<0,0,'User Input'!$C$30-C30)) ->  | J30: =IF('User Input'!C18=0,"",K30-H30-I30) ->  | K30: =IF('User Input'!C18 = 0,"",'User Input'!$C$29+'User Input'!$C$30+'User Input'!$C$31-D30) ->  | L30: =IF('User Input'!C18 = 0,"",'User Input'!$C$27-G30) ->  | M30: =IF('User Input'!C18=0,"",IF(K30<1,0,L30/K30)) ->  | N30: =IF('User Input'!C18 = 0,"",L30-K30+1) ->  | P30: 23 | Q30: =IFERROR(VLOOKUP(P30,Players!$AE$3:$AG$997,2,FALSE),"") ->  | R30: =IFERROR(VLOOKUP(P30,Players!$AE$3:$AG$997,3,FALSE),"") ->  | S30: =VLOOKUP(P30,Players!$AE$3:$AH$997,4,FALSE) ->  | U30: TRUE | V30: 0 | W30: 0 | Y30: 23 | Z30: =IFERROR(VLOOKUP(Y30,Players!$BM$3:$BO$997,2,FALSE),"") ->  | AA30: =IFERROR(VLOOKUP(Y30,Players!$BM$3:$BO$997,3,FALSE),"") ->  | AB30: =VLOOKUP(Y30,Players!$BM$3:$BP$997,4,FALSE) ->  | AD30: TRUE | AE30: 0 | AF30: 0
A31: =IF('User Input'!C19 = 0,"",'User Input'!C19) ->  | B31: =IF('User Input'!C19=0,"",COUNTIF(Players!$N$3:$N$881,A31)) ->  | C31: =IF('User Input'!C19=0,"",COUNTIF(Players!$AT$3:$AU$915,A31)) ->  | D31: =IF('User Input'!C19=0,"",C31+B31) ->  | E31: =IF('User Input'!C19=0,"",SUMIF(Players!$N$3:$N$881,A31,Players!$O$3:$O$881)) ->  | F31: =IF('User Input'!C19=0,"",SUMIF(Players!$AU$3:$AU$915,A31,Players!$AV$3:$AV$915)) ->  | G31: =IF('User Input'!C19 = 0,"",F31+E31) ->  | H31: =IF('User Input'!C19=0,"",IF(('User Input'!$C$29-B31)<0,0,'User Input'!$C$29-B31)) ->  | I31: =IF('User Input'!C19=0,"",IF(('User Input'!$C$30-C31)<0,0,'User Input'!$C$30-C31)) ->  | J31: =IF('User Input'!C19=0,"",K31-H31-I31) ->  | K31: =IF('User Input'!C19 = 0,"",'User Input'!$C$29+'User Input'!$C$30+'User Input'!$C$31-D31) ->  | L31: =IF('User Input'!C19 = 0,"",'User Input'!$C$27-G31) ->  | M31: =IF('User Input'!C19=0,"",IF(K31<1,0,L31/K31)) ->  | N31: =IF('User Input'!C19 = 0,"",L31-K31+1) ->  | P31: 24 | Q31: =IFERROR(VLOOKUP(P31,Players!$AE$3:$AG$997,2,FALSE),"") ->  | R31: =IFERROR(VLOOKUP(P31,Players!$AE$3:$AG$997,3,FALSE),"") ->  | S31: =VLOOKUP(P31,Players!$AE$3:$AH$997,4,FALSE) ->  | U31: TRUE | V31: 0 | W31: 0 | Y31: 24 | Z31: =IFERROR(VLOOKUP(Y31,Players!$BM$3:$BO$997,2,FALSE),"") ->  | AA31: =IFERROR(VLOOKUP(Y31,Players!$BM$3:$BO$997,3,FALSE),"") ->  | AB31: =VLOOKUP(Y31,Players!$BM$3:$BP$997,4,FALSE) ->  | AD31: TRUE | AE31: 0 | AF31: 0
A32: =IF('User Input'!C20 = 0,"",'User Input'!C20) ->  | B32: =IF('User Input'!C20=0,"",COUNTIF(Players!$N$3:$N$881,A32)) ->  | C32: =IF('User Input'!C20=0,"",COUNTIF(Players!$AT$3:$AU$915,A32)) ->  | D32: =IF('User Input'!C20=0,"",C32+B32) ->  | E32: =IF('User Input'!C20=0,"",SUMIF(Players!$N$3:$N$881,A32,Players!$O$3:$O$881)) ->  | F32: =IF('User Input'!C20=0,"",SUMIF(Players!$AU$3:$AU$915,A32,Players!$AV$3:$AV$915)) ->  | G32: =IF('User Input'!C20 = 0,"",F32+E32) ->  | H32: =IF('User Input'!C20=0,"",IF(('User Input'!$C$29-B32)<0,0,'User Input'!$C$29-B32)) ->  | I32: =IF('User Input'!C20=0,"",IF(('User Input'!$C$30-C32)<0,0,'User Input'!$C$30-C32)) ->  | J32: =IF('User Input'!C20=0,"",K32-H32-I32) ->  | K32: =IF('User Input'!C20 = 0,"",'User Input'!$C$29+'User Input'!$C$30+'User Input'!$C$31-D32) ->  | L32: =IF('User Input'!C20 = 0,"",'User Input'!$C$27-G32) ->  | M32: =IF('User Input'!C20=0,"",IF(K32<1,0,L32/K32)) ->  | N32: =IF('User Input'!C20 = 0,"",L32-K32+1) ->  | P32: 25 | Q32: =IFERROR(VLOOKUP(P32,Players!$AE$3:$AG$997,2,FALSE),"") ->  | R32: =IFERROR(VLOOKUP(P32,Players!$AE$3:$AG$997,3,FALSE),"") ->  | S32: =VLOOKUP(P32,Players!$AE$3:$AH$997,4,FALSE) ->  | U32: TRUE | V32: 0 | W32: 0 | Y32: 25 | Z32: =IFERROR(VLOOKUP(Y32,Players!$BM$3:$BO$997,2,FALSE),"") ->  | AA32: =IFERROR(VLOOKUP(Y32,Players!$BM$3:$BO$997,3,FALSE),"") ->  | AB32: =VLOOKUP(Y32,Players!$BM$3:$BP$997,4,FALSE) ->  | AD32: TRUE | AE32: 0 | AF32: 0
A33: =IF('User Input'!C21 = 0,"",'User Input'!C21) ->  | B33: =IF('User Input'!C21=0,"",COUNTIF(Players!$N$3:$N$881,A33)) ->  | C33: =IF('User Input'!C21=0,"",COUNTIF(Players!$AT$3:$AU$915,A33)) ->  | D33: =IF('User Input'!C21=0,"",C33+B33) ->  | E33: =IF('User Input'!C21=0,"",SUMIF(Players!$N$3:$N$881,A33,Players!$O$3:$O$881)) ->  | F33: =IF('User Input'!C21=0,"",SUMIF(Players!$AU$3:$AU$915,A33,Players!$AV$3:$AV$915)) ->  | G33: =IF('User Input'!C21 = 0,"",F33+E33) ->  | H33: =IF('User Input'!C21=0,"",IF(('User Input'!$C$29-B33)<0,0,'User Input'!$C$29-B33)) ->  | I33: =IF('User Input'!C21=0,"",IF(('User Input'!$C$30-C33)<0,0,'User Input'!$C$30-C33)) ->  | J33: =IF('User Input'!C21=0,"",K33-H33-I33) ->  | K33: =IF('User Input'!C21 = 0,"",'User Input'!$C$29+'User Input'!$C$30+'User Input'!$C$31-D33) ->  | L33: =IF('User Input'!C21 = 0,"",'User Input'!$C$27-G33) ->  | M33: =IF('User Input'!C21=0,"",IF(K33<1,0,L33/K33)) ->  | N33: =IF('User Input'!C21 = 0,"",L33-K33+1) ->  | P33: 26 | Q33: =IFERROR(VLOOKUP(P33,Players!$AE$3:$AG$997,2,FALSE),"") ->  | R33: =IFERROR(VLOOKUP(P33,Players!$AE$3:$AG$997,3,FALSE),"") ->  | S33: =VLOOKUP(P33,Players!$AE$3:$AH$997,4,FALSE) ->  | U33: TRUE | V33: 0 | W33: 0 | Y33: 26 | Z33: =IFERROR(VLOOKUP(Y33,Players!$BM$3:$BO$997,2,FALSE),"") ->  | AA33: =IFERROR(VLOOKUP(Y33,Players!$BM$3:$BO$997,3,FALSE),"") ->  | AB33: =VLOOKUP(Y33,Players!$BM$3:$BP$997,4,FALSE) ->  | AD33: TRUE | AE33: 0 | AF33: 0
A34: =IF('User Input'!C22 = 0,"",'User Input'!C22) ->  | B34: =IF('User Input'!C22=0,"",COUNTIF(Players!$N$3:$N$881,A34)) ->  | C34: =IF('User Input'!C22=0,"",COUNTIF(Players!$AT$3:$AU$915,A34)) ->  | D34: =IF('User Input'!C22=0,"",C34+B34) ->  | E34: =IF('User Input'!C22=0,"",SUMIF(Players!$N$3:$N$881,A34,Players!$O$3:$O$881)) ->  | F34: =IF('User Input'!C22=0,"",SUMIF(Players!$AU$3:$AU$915,A34,Players!$AV$3:$AV$915)) ->  | G34: =IF('User Input'!C22 = 0,"",F34+E34) ->  | H34: =IF('User Input'!C22=0,"",IF(('User Input'!$C$29-B34)<0,0,'User Input'!$C$29-B34)) ->  | I34: =IF('User Input'!C22=0,"",IF(('User Input'!$C$30-C34)<0,0,'User Input'!$C$30-C34)) ->  | J34: =IF('User Input'!C22=0,"",K34-H34-I34) ->  | K34: =IF('User Input'!C22 = 0,"",'User Input'!$C$29+'User Input'!$C$30+'User Input'!$C$31-D34) ->  | L34: =IF('User Input'!C22 = 0,"",'User Input'!$C$27-G34) ->  | M34: =IF('User Input'!C22=0,"",IF(K34<1,0,L34/K34)) ->  | N34: =IF('User Input'!C22 = 0,"",L34-K34+1) ->  | P34: 27 | Q34: =IFERROR(VLOOKUP(P34,Players!$AE$3:$AG$997,2,FALSE),"") ->  | R34: =IFERROR(VLOOKUP(P34,Players!$AE$3:$AG$997,3,FALSE),"") ->  | S34: =VLOOKUP(P34,Players!$AE$3:$AH$997,4,FALSE) ->  | U34: TRUE | V34: 0 | W34: 0 | Y34: 27 | Z34: =IFERROR(VLOOKUP(Y34,Players!$BM$3:$BO$997,2,FALSE),"") ->  | AA34: =IFERROR(VLOOKUP(Y34,Players!$BM$3:$BO$997,3,FALSE),"") ->  | AB34: =VLOOKUP(Y34,Players!$BM$3:$BP$997,4,FALSE) ->  | AD34: TRUE | AE34: 0 | AF34: 0
A35: =IF('User Input'!C23 = 0,"",'User Input'!C23) ->  | B35: =IF('User Input'!C23=0,"",COUNTIF(Players!$N$3:$N$881,A35)) ->  | C35: =IF('User Input'!C23=0,"",COUNTIF(Players!$AT$3:$AU$915,A35)) ->  | D35: =IF('User Input'!C23=0,"",C35+B35) ->  | E35: =IF('User Input'!C23=0,"",SUMIF(Players!$N$3:$N$881,A35,Players!$O$3:$O$881)) ->  | F35: =IF('User Input'!C23=0,"",SUMIF(Players!$AU$3:$AU$915,A35,Players!$AV$3:$AV$915)) ->  | G35: =IF('User Input'!C23 = 0,"",F35+E35) ->  | H35: =IF('User Input'!C23=0,"",IF(('User Input'!$C$29-B35)<0,0,'User Input'!$C$29-B35)) ->  | I35: =IF('User Input'!C23=0,"",IF(('User Input'!$C$30-C35)<0,0,'User Input'!$C$30-C35)) ->  | J35: =IF('User Input'!C23=0,"",K35-H35-I35) ->  | K35: =IF('User Input'!C23 = 0,"",'User Input'!$C$29+'User Input'!$C$30+'User Input'!$C$31-D35) ->  | L35: =IF('User Input'!C23 = 0,"",'User Input'!$C$27-G35) ->  | M35: =IF('User Input'!C23=0,"",IF(K35<1,0,L35/K35)) ->  | N35: =IF('User Input'!C23 = 0,"",L35-K35+1) ->  | P35: 28 | Q35: =IFERROR(VLOOKUP(P35,Players!$AE$3:$AG$997,2,FALSE),"") ->  | R35: =IFERROR(VLOOKUP(P35,Players!$AE$3:$AG$997,3,FALSE),"") ->  | S35: =VLOOKUP(P35,Players!$AE$3:$AH$997,4,FALSE) ->  | U35: TRUE | V35: 0 | W35: 0 | Y35: 28 | Z35: =IFERROR(VLOOKUP(Y35,Players!$BM$3:$BO$997,2,FALSE),"") ->  | AA35: =IFERROR(VLOOKUP(Y35,Players!$BM$3:$BO$997,3,FALSE),"") ->  | AB35: =VLOOKUP(Y35,Players!$BM$3:$BP$997,4,FALSE) ->  | AD35: TRUE | AE35: 0 | AF35: 0
A36: =IF('User Input'!C24 = 0,"",'User Input'!C24) ->  | B36: =IF('User Input'!C24=0,"",COUNTIF(Players!$N$3:$N$881,A36)) ->  | C36: =IF('User Input'!C24=0,"",COUNTIF(Players!$AT$3:$AU$915,A36)) ->  | D36: =IF('User Input'!C24=0,"",C36+B36) ->  | E36: =IF('User Input'!C24=0,"",SUMIF(Players!$N$3:$N$881,A36,Players!$O$3:$O$881)) ->  | F36: =IF('User Input'!C24=0,"",SUMIF(Players!$AU$3:$AU$915,A36,Players!$AV$3:$AV$915)) ->  | G36: =IF('User Input'!C24 = 0,"",F36+E36) ->  | H36: =IF('User Input'!C24=0,"",IF(('User Input'!$C$29-B36)<0,0,'User Input'!$C$29-B36)) ->  | I36: =IF('User Input'!C24=0,"",IF(('User Input'!$C$30-C36)<0,0,'User Input'!$C$30-C36)) ->  | J36: =IF('User Input'!C24=0,"",K36-H36-I36) ->  | K36: =IF('User Input'!C24 = 0,"",'User Input'!$C$29+'User Input'!$C$30+'User Input'!$C$31-D36) ->  | L36: =IF('User Input'!C24 = 0,"",'User Input'!$C$27-G36) ->  | M36: =IF('User Input'!C24=0,"",IF(K36<1,0,L36/K36)) ->  | N36: =IF('User Input'!C24 = 0,"",L36-K36+1) ->  | P36: 29 | Q36: =IFERROR(VLOOKUP(P36,Players!$AE$3:$AG$997,2,FALSE),"") ->  | R36: =IFERROR(VLOOKUP(P36,Players!$AE$3:$AG$997,3,FALSE),"") ->  | S36: =VLOOKUP(P36,Players!$AE$3:$AH$997,4,FALSE) ->  | U36: TRUE | V36: 0 | W36: 0 | Y36: 29 | Z36: =IFERROR(VLOOKUP(Y36,Players!$BM$3:$BO$997,2,FALSE),"") ->  | AA36: =IFERROR(VLOOKUP(Y36,Players!$BM$3:$BO$997,3,FALSE),"") ->  | AB36: =VLOOKUP(Y36,Players!$BM$3:$BP$997,4,FALSE) ->  | AD36: TRUE | AE36: 0 | AF36: 0
A37: =IF('User Input'!C25 = 0,"",'User Input'!C25) ->  | B37: =IF('User Input'!C25=0,"",COUNTIF(Players!$N$3:$N$881,A37)) ->  | C37: =IF('User Input'!C25=0,"",COUNTIF(Players!$AT$3:$AU$915,A37)) ->  | D37: =IF('User Input'!C25=0,"",C37+B37) ->  | E37: =IF('User Input'!C25=0,"",SUMIF(Players!$N$3:$N$881,A37,Players!$O$3:$O$881)) ->  | F37: =IF('User Input'!C25=0,"",SUMIF(Players!$AU$3:$AU$915,A37,Players!$AV$3:$AV$915)) ->  | G37: =IF('User Input'!C25 = 0,"",F37+E37) ->  | H37: =IF('User Input'!C25=0,"",IF(('User Input'!$C$29-B37)<0,0,'User Input'!$C$29-B37)) ->  | I37: =IF('User Input'!C25=0,"",IF(('User Input'!$C$30-C37)<0,0,'User Input'!$C$30-C37)) ->  | J37: =IF('User Input'!C25=0,"",K37-H37-I37) ->  | K37: =IF('User Input'!C25 = 0,"",'User Input'!$C$29+'User Input'!$C$30+'User Input'!$C$31-D37) ->  | L37: =IF('User Input'!C25 = 0,"",'User Input'!$C$27-G37) ->  | M37: =IF('User Input'!C25=0,"",IF(K37<1,0,L37/K37)) ->  | N37: =IF('User Input'!C25 = 0,"",L37-K37+1) ->  | P37: =P36+1 -> 30 | Q37: =IFERROR(VLOOKUP(P37,Players!$AE$3:$AG$997,2,FALSE),"") ->  | R37: =IFERROR(VLOOKUP(P37,Players!$AE$3:$AG$997,3,FALSE),"") ->  | S37: =VLOOKUP(P37,Players!$AE$3:$AH$997,4,FALSE) ->  | U37: =ISERROR(S37) -> TRUE | V37: =IF(U37=FALSE,R37,0) -> 0 | W37: =IF(U37=FALSE,S37,0) -> 0 | Y37: 30 | Z37: =IFERROR(VLOOKUP(Y37,Players!$BM$3:$BO$997,2,FALSE),"") ->  | AA37: =IFERROR(VLOOKUP(Y37,Players!$BM$3:$BO$997,3,FALSE),"") ->  | AB37: =VLOOKUP(Y37,Players!$BM$3:$BP$997,4,FALSE) ->  | AD37: TRUE | AE37: 0 | AF37: 0
R38: =SUM(V8:V37) -> 0 | S38: =SUM(W8:W37) -> 0 | AA38: =SUM(AE8:AE37) -> 0 | AB38: =SUM(AF8:AF37) -> 0
B39: RANKING STYLE: | C39: =IF(ranktype=1,'User Input'!N25,'User Input'!N24) -> descending 1-25 (1 is best, 25 worst) | I39: (change on User Input tab)
B40: Projected Batting Ranks | H40: Projected Pitching Ranks | M40: tot | N40: Team Rank** | O40: (** Total rank requires min 1 H and 1P from every active team)
B41: R | C41: HR | D41: RBI | E41: SB | F41: AVG | G41: IP | H41: ERA | I41: WHIP | J41: W | K41: S | L41: K
A42: =IF('User Input'!C1 = 0,"",'User Input'!C1) -> a | B42: =IF('User Input'!C1=0,"",RANK(C99,C$99:C$123,ranktype)) -> 1 | C42: =IF('User Input'!C1=0,"",RANK(D99,D$99:D$123,ranktype)) -> 1 | D42: =IF('User Input'!C1=0,"",RANK(E99,E$99:E$123,ranktype)) -> 1 | E42: =IF('User Input'!C1=0,"",RANK(F99,F$99:F$123,ranktype)) -> 1 | F42: =IF(ISERROR(IF('User Input'!C1=0,"",RANK(G99,G$99:G$123,ranktype))),"N/A",(IF('User Input'!C1=0,"",RANK(G99,G$99:G$123,ranktype)))) -> N/A | G42: =IF('User Input'!C1=0,"",SUMIF(Players!$AU$3:$AU$915,A42,Players!BB$3:BB$915)) -> 0 | H42: =IF(ISERROR(IF('User Input'!C1=0,"",RANK(I99,I$99:I$123,IF(ranktype=1,0,1)))),"N/A",(IF('User Input'!C1=0,"",RANK(I99,I$99:I$123,IF(ranktype=1,0,1))))) -> N/A | I42: =IF(ISERROR(IF('User Input'!C1=0,"",RANK(J99,J$99:J$123,IF(ranktype=1,0,1)))),"N/A",(IF('User Input'!C1=0,"",RANK(J99,J$99:J$123,IF(ranktype=1,0,1))))) -> N/A | J42: =IF('User Input'!C1=0,"",RANK(K99,K$99:K$123,ranktype)) -> 1 | K42: =IF('User Input'!C1=0,"",RANK(L99,L$99:L$123,ranktype)) -> 1 | L42: =IF('User Input'!C1=0,"",RANK(M99,M$99:M$123,ranktype)) -> 1 | M42: =IF(ISERROR(IF('User Input'!C1=0,"",B42+C42+D42+E42+F42+H42+I42+J42+K42+L42)),"N/A",(IF('User Input'!C1=0,"",B42+C42+D42+E42+F42+H42+I42+J42+K42+L42))) -> N/A | N42: =IF(ISERROR(IF('User Input'!C1=0,"",RANK(M42,M$42:M$66,IF(ranktype=1,0,1)))),"N/A",(IF('User Input'!C1=0,"",RANK(M42,M$42:M$66,IF(ranktype=1,0,1))))) -> N/A | O42: ← ← ← YOUR TEAM
A43: =IF('User Input'!C2 = 0,"",'User Input'!C2) -> b | B43: =IF('User Input'!C2=0,"",RANK(C100,C$99:C$123,ranktype)) -> 1 | C43: =IF('User Input'!C2=0,"",RANK(D100,D$99:D$123,ranktype)) -> 1 | D43: =IF('User Input'!C2=0,"",RANK(E100,E$99:E$123,ranktype)) -> 1 | E43: =IF('User Input'!C2=0,"",RANK(F100,F$99:F$123,ranktype)) -> 1 | F43: =IF(ISERROR(IF('User Input'!C2=0,"",RANK(G100,G$99:G$123,ranktype))),"N/A",(IF('User Input'!C2=0,"",RANK(G100,G$99:G$123,ranktype)))) -> N/A | G43: =IF('User Input'!C2=0,"",SUMIF(Players!$AU$3:$AU$915,A43,Players!BB$3:BB$915)) -> 0 | H43: =IF(ISERROR(IF('User Input'!C2=0,"",RANK(I100,I$99:I$123,IF(ranktype=1,0,1)))),"N/A",(IF('User Input'!C2=0,"",RANK(I100,I$99:I$123,IF(ranktype=1,0,1))))) -> N/A | I43: =IF(ISERROR(IF('User Input'!C2=0,"",RANK(J100,J$99:J$123,IF(ranktype=1,0,1)))),"N/A",(IF('User Input'!C2=0,"",RANK(J100,J$99:J$123,IF(ranktype=1,0,1))))) -> N/A | J43: =IF('User Input'!C2=0,"",RANK(K100,K$99:K$123,ranktype)) -> 1 | K43: =IF('User Input'!C2=0,"",RANK(L100,L$99:L$123,ranktype)) -> 1 | L43: =IF('User Input'!C2=0,"",RANK(M100,M$99:M$123,ranktype)) -> 1 | M43: =IF(ISERROR(IF('User Input'!C2=0,"",B43+C43+D43+E43+F43+H43+I43+J43+K43+L43)),"N/A",(IF('User Input'!C2=0,"",B43+C43+D43+E43+F43+H43+I43+J43+K43+L43))) -> N/A | N43: =IF(ISERROR(IF('User Input'!C2=0,"",RANK(M43,M$42:M$66,IF(ranktype=1,0,1)))),"N/A",(IF('User Input'!C2=0,"",RANK(M43,M$42:M$66,IF(ranktype=1,0,1))))) -> N/A
A44: =IF('User Input'!C3 = 0,"",'User Input'!C3) -> c | B44: =IF('User Input'!C3=0,"",RANK(C101,C$99:C$123,ranktype)) -> 1 | C44: =IF('User Input'!C3=0,"",RANK(D101,D$99:D$123,ranktype)) -> 1 | D44: =IF('User Input'!C3=0,"",RANK(E101,E$99:E$123,ranktype)) -> 1 | E44: =IF('User Input'!C3=0,"",RANK(F101,F$99:F$123,ranktype)) -> 1 | F44: =IF(ISERROR(IF('User Input'!C3=0,"",RANK(G101,G$99:G$123,ranktype))),"N/A",(IF('User Input'!C3=0,"",RANK(G101,G$99:G$123,ranktype)))) -> N/A | G44: =IF('User Input'!C3=0,"",SUMIF(Players!$AU$3:$AU$915,A44,Players!BB$3:BB$915)) -> 0 | H44: =IF(ISERROR(IF('User Input'!C3=0,"",RANK(I101,I$99:I$123,IF(ranktype=1,0,1)))),"N/A",(IF('User Input'!C3=0,"",RANK(I101,I$99:I$123,IF(ranktype=1,0,1))))) -> N/A | I44: =IF(ISERROR(IF('User Input'!C3=0,"",RANK(J101,J$99:J$123,IF(ranktype=1,0,1)))),"N/A",(IF('User Input'!C3=0,"",RANK(J101,J$99:J$123,IF(ranktype=1,0,1))))) -> N/A | J44: =IF('User Input'!C3=0,"",RANK(K101,K$99:K$123,ranktype)) -> 1 | K44: =IF('User Input'!C3=0,"",RANK(L101,L$99:L$123,ranktype)) -> 1 | L44: =IF('User Input'!C3=0,"",RANK(M101,M$99:M$123,ranktype)) -> 1 | M44: =IF(ISERROR(IF('User Input'!C3=0,"",B44+C44+D44+E44+F44+H44+I44+J44+K44+L44)),"N/A",(IF('User Input'!C3=0,"",B44+C44+D44+E44+F44+H44+I44+J44+K44+L44))) -> N/A | N44: =IF(ISERROR(IF('User Input'!C3=0,"",RANK(M44,M$42:M$66,IF(ranktype=1,0,1)))),"N/A",(IF('User Input'!C3=0,"",RANK(M44,M$42:M$66,IF(ranktype=1,0,1))))) -> N/A
A45: =IF('User Input'!C4 = 0,"",'User Input'!C4) -> d | B45: =IF('User Input'!C4=0,"",RANK(C102,C$99:C$123,ranktype)) -> 1 | C45: =IF('User Input'!C4=0,"",RANK(D102,D$99:D$123,ranktype)) -> 1 | D45: =IF('User Input'!C4=0,"",RANK(E102,E$99:E$123,ranktype)) -> 1 | E45: =IF('User Input'!C4=0,"",RANK(F102,F$99:F$123,ranktype)) -> 1 | F45: =IF(ISERROR(IF('User Input'!C4=0,"",RANK(G102,G$99:G$123,ranktype))),"N/A",(IF('User Input'!C4=0,"",RANK(G102,G$99:G$123,ranktype)))) -> N/A | G45: =IF('User Input'!C4=0,"",SUMIF(Players!$AU$3:$AU$915,A45,Players!BB$3:BB$915)) -> 0 | H45: =IF(ISERROR(IF('User Input'!C4=0,"",RANK(I102,I$99:I$123,IF(ranktype=1,0,1)))),"N/A",(IF('User Input'!C4=0,"",RANK(I102,I$99:I$123,IF(ranktype=1,0,1))))) -> N/A | I45: =IF(ISERROR(IF('User Input'!C4=0,"",RANK(J102,J$99:J$123,IF(ranktype=1,0,1)))),"N/A",(IF('User Input'!C4=0,"",RANK(J102,J$99:J$123,IF(ranktype=1,0,1))))) -> N/A | J45: =IF('User Input'!C4=0,"",RANK(K102,K$99:K$123,ranktype)) -> 1 | K45: =IF('User Input'!C4=0,"",RANK(L102,L$99:L$123,ranktype)) -> 1 | L45: =IF('User Input'!C4=0,"",RANK(M102,M$99:M$123,ranktype)) -> 1 | M45: =IF(ISERROR(IF('User Input'!C4=0,"",B45+C45+D45+E45+F45+H45+I45+J45+K45+L45)),"N/A",(IF('User Input'!C4=0,"",B45+C45+D45+E45+F45+H45+I45+J45+K45+L45))) -> N/A | N45: =IF(ISERROR(IF('User Input'!C4=0,"",RANK(M45,M$42:M$66,IF(ranktype=1,0,1)))),"N/A",(IF('User Input'!C4=0,"",RANK(M45,M$42:M$66,IF(ranktype=1,0,1))))) -> N/A
A46: =IF('User Input'!C5 = 0,"",'User Input'!C5) -> e | B46: =IF('User Input'!C5=0,"",RANK(C103,C$99:C$123,ranktype)) -> 1 | C46: =IF('User Input'!C5=0,"",RANK(D103,D$99:D$123,ranktype)) -> 1 | D46: =IF('User Input'!C5=0,"",RANK(E103,E$99:E$123,ranktype)) -> 1 | E46: =IF('User Input'!C5=0,"",RANK(F103,F$99:F$123,ranktype)) -> 1 | F46: =IF(ISERROR(IF('User Input'!C5=0,"",RANK(G103,G$99:G$123,ranktype))),"N/A",(IF('User Input'!C5=0,"",RANK(G103,G$99:G$123,ranktype)))) -> N/A | G46: =IF('User Input'!C5=0,"",SUMIF(Players!$AU$3:$AU$915,A46,Players!BB$3:BB$915)) -> 0 | H46: =IF(ISERROR(IF('User Input'!C5=0,"",RANK(I103,I$99:I$123,IF(ranktype=1,0,1)))),"N/A",(IF('User Input'!C5=0,"",RANK(I103,I$99:I$123,IF(ranktype=1,0,1))))) -> N/A | I46: =IF(ISERROR(IF('User Input'!C5=0,"",RANK(J103,J$99:J$123,IF(ranktype=1,0,1)))),"N/A",(IF('User Input'!C5=0,"",RANK(J103,J$99:J$123,IF(ranktype=1,0,1))))) -> N/A | J46: =IF('User Input'!C5=0,"",RANK(K103,K$99:K$123,ranktype)) -> 1 | K46: =IF('User Input'!C5=0,"",RANK(L103,L$99:L$123,ranktype)) -> 1 | L46: =IF('User Input'!C5=0,"",RANK(M103,M$99:M$123,ranktype)) -> 1 | M46: =IF(ISERROR(IF('User Input'!C5=0,"",B46+C46+D46+E46+F46+H46+I46+J46+K46+L46)),"N/A",(IF('User Input'!C5=0,"",B46+C46+D46+E46+F46+H46+I46+J46+K46+L46))) -> N/A | N46: =IF(ISERROR(IF('User Input'!C5=0,"",RANK(M46,M$42:M$66,IF(ranktype=1,0,1)))),"N/A",(IF('User Input'!C5=0,"",RANK(M46,M$42:M$66,IF(ranktype=1,0,1))))) -> N/A
A47: =IF('User Input'!C6 = 0,"",'User Input'!C6) -> f | B47: =IF('User Input'!C6=0,"",RANK(C104,C$99:C$123,ranktype)) -> 1 | C47: =IF('User Input'!C6=0,"",RANK(D104,D$99:D$123,ranktype)) -> 1 | D47: =IF('User Input'!C6=0,"",RANK(E104,E$99:E$123,ranktype)) -> 1 | E47: =IF('User Input'!C6=0,"",RANK(F104,F$99:F$123,ranktype)) -> 1 | F47: =IF(ISERROR(IF('User Input'!C6=0,"",RANK(G104,G$99:G$123,ranktype))),"N/A",(IF('User Input'!C6=0,"",RANK(G104,G$99:G$123,ranktype)))) -> N/A | G47: =IF('User Input'!C6=0,"",SUMIF(Players!$AU$3:$AU$915,A47,Players!BB$3:BB$915)) -> 0 | H47: =IF(ISERROR(IF('User Input'!C6=0,"",RANK(I104,I$99:I$123,IF(ranktype=1,0,1)))),"N/A",(IF('User Input'!C6=0,"",RANK(I104,I$99:I$123,IF(ranktype=1,0,1))))) -> N/A | I47: =IF(ISERROR(IF('User Input'!C6=0,"",RANK(J104,J$99:J$123,IF(ranktype=1,0,1)))),"N/A",(IF('User Input'!C6=0,"",RANK(J104,J$99:J$123,IF(ranktype=1,0,1))))) -> N/A | J47: =IF('User Input'!C6=0,"",RANK(K104,K$99:K$123,ranktype)) -> 1 | K47: =IF('User Input'!C6=0,"",RANK(L104,L$99:L$123,ranktype)) -> 1 | L47: =IF('User Input'!C6=0,"",RANK(M104,M$99:M$123,ranktype)) -> 1 | M47: =IF(ISERROR(IF('User Input'!C6=0,"",B47+C47+D47+E47+F47+H47+I47+J47+K47+L47)),"N/A",(IF('User Input'!C6=0,"",B47+C47+D47+E47+F47+H47+I47+J47+K47+L47))) -> N/A | N47: =IF(ISERROR(IF('User Input'!C6=0,"",RANK(M47,M$42:M$66,IF(ranktype=1,0,1)))),"N/A",(IF('User Input'!C6=0,"",RANK(M47,M$42:M$66,IF(ranktype=1,0,1))))) -> N/A
A48: =IF('User Input'!C7 = 0,"",'User Input'!C7) -> g | B48: =IF('User Input'!C7=0,"",RANK(C105,C$99:C$123,ranktype)) -> 1 | C48: =IF('User Input'!C7=0,"",RANK(D105,D$99:D$123,ranktype)) -> 1 | D48: =IF('User Input'!C7=0,"",RANK(E105,E$99:E$123,ranktype)) -> 1 | E48: =IF('User Input'!C7=0,"",RANK(F105,F$99:F$123,ranktype)) -> 1 | F48: =IF(ISERROR(IF('User Input'!C7=0,"",RANK(G105,G$99:G$123,ranktype))),"N/A",(IF('User Input'!C7=0,"",RANK(G105,G$99:G$123,ranktype)))) -> N/A | G48: =IF('User Input'!C7=0,"",SUMIF(Players!$AU$3:$AU$915,A48,Players!BB$3:BB$915)) -> 0 | H48: =IF(ISERROR(IF('User Input'!C7=0,"",RANK(I105,I$99:I$123,IF(ranktype=1,0,1)))),"N/A",(IF('User Input'!C7=0,"",RANK(I105,I$99:I$123,IF(ranktype=1,0,1))))) -> N/A | I48: =IF(ISERROR(IF('User Input'!C7=0,"",RANK(J105,J$99:J$123,IF(ranktype=1,0,1)))),"N/A",(IF('User Input'!C7=0,"",RANK(J105,J$99:J$123,IF(ranktype=1,0,1))))) -> N/A | J48: =IF('User Input'!C7=0,"",RANK(K105,K$99:K$123,ranktype)) -> 1 | K48: =IF('User Input'!C7=0,"",RANK(L105,L$99:L$123,ranktype)) -> 1 | L48: =IF('User Input'!C7=0,"",RANK(M105,M$99:M$123,ranktype)) -> 1 | M48: =IF(ISERROR(IF('User Input'!C7=0,"",B48+C48+D48+E48+F48+H48+I48+J48+K48+L48)),"N/A",(IF('User Input'!C7=0,"",B48+C48+D48+E48+F48+H48+I48+J48+K48+L48))) -> N/A | N48: =IF(ISERROR(IF('User Input'!C7=0,"",RANK(M48,M$42:M$66,IF(ranktype=1,0,1)))),"N/A",(IF('User Input'!C7=0,"",RANK(M48,M$42:M$66,IF(ranktype=1,0,1))))) -> N/A
A49: =IF('User Input'!C8 = 0,"",'User Input'!C8) -> h | B49: =IF('User Input'!C8=0,"",RANK(C106,C$99:C$123,ranktype)) -> 1 | C49: =IF('User Input'!C8=0,"",RANK(D106,D$99:D$123,ranktype)) -> 1 | D49: =IF('User Input'!C8=0,"",RANK(E106,E$99:E$123,ranktype)) -> 1 | E49: =IF('User Input'!C8=0,"",RANK(F106,F$99:F$123,ranktype)) -> 1 | F49: =IF(ISERROR(IF('User Input'!C8=0,"",RANK(G106,G$99:G$123,ranktype))),"N/A",(IF('User Input'!C8=0,"",RANK(G106,G$99:G$123,ranktype)))) -> N/A | G49: =IF('User Input'!C8=0,"",SUMIF(Players!$AU$3:$AU$915,A49,Players!BB$3:BB$915)) -> 0 | H49: =IF(ISERROR(IF('User Input'!C8=0,"",RANK(I106,I$99:I$123,IF(ranktype=1,0,1)))),"N/A",(IF('User Input'!C8=0,"",RANK(I106,I$99:I$123,IF(ranktype=1,0,1))))) -> N/A | I49: =IF(ISERROR(IF('User Input'!C8=0,"",RANK(J106,J$99:J$123,IF(ranktype=1,0,1)))),"N/A",(IF('User Input'!C8=0,"",RANK(J106,J$99:J$123,IF(ranktype=1,0,1))))) -> N/A | J49: =IF('User Input'!C8=0,"",RANK(K106,K$99:K$123,ranktype)) -> 1 | K49: =IF('User Input'!C8=0,"",RANK(L106,L$99:L$123,ranktype)) -> 1 | L49: =IF('User Input'!C8=0,"",RANK(M106,M$99:M$123,ranktype)) -> 1 | M49: =IF(ISERROR(IF('User Input'!C8=0,"",B49+C49+D49+E49+F49+H49+I49+J49+K49+L49)),"N/A",(IF('User Input'!C8=0,"",B49+C49+D49+E49+F49+H49+I49+J49+K49+L49))) -> N/A | N49: =IF(ISERROR(IF('User Input'!C8=0,"",RANK(M49,M$42:M$66,IF(ranktype=1,0,1)))),"N/A",(IF('User Input'!C8=0,"",RANK(M49,M$42:M$66,IF(ranktype=1,0,1))))) -> N/A
A50: =IF('User Input'!C9 = 0,"",'User Input'!C9) -> i | B50: =IF('User Input'!C9=0,"",RANK(C107,C$99:C$123,ranktype)) -> 1 | C50: =IF('User Input'!C9=0,"",RANK(D107,D$99:D$123,ranktype)) -> 1 | D50: =IF('User Input'!C9=0,"",RANK(E107,E$99:E$123,ranktype)) -> 1 | E50: =IF('User Input'!C9=0,"",RANK(F107,F$99:F$123,ranktype)) -> 1 | F50: =IF(ISERROR(IF('User Input'!C9=0,"",RANK(G107,G$99:G$123,ranktype))),"N/A",(IF('User Input'!C9=0,"",RANK(G107,G$99:G$123,ranktype)))) -> N/A | G50: =IF('User Input'!C9=0,"",SUMIF(Players!$AU$3:$AU$915,A50,Players!BB$3:BB$915)) -> 0 | H50: =IF(ISERROR(IF('User Input'!C9=0,"",RANK(I107,I$99:I$123,IF(ranktype=1,0,1)))),"N/A",(IF('User Input'!C9=0,"",RANK(I107,I$99:I$123,IF(ranktype=1,0,1))))) -> N/A | I50: =IF(ISERROR(IF('User Input'!C9=0,"",RANK(J107,J$99:J$123,IF(ranktype=1,0,1)))),"N/A",(IF('User Input'!C9=0,"",RANK(J107,J$99:J$123,IF(ranktype=1,0,1))))) -> N/A | J50: =IF('User Input'!C9=0,"",RANK(K107,K$99:K$123,ranktype)) -> 1 | K50: =IF('User Input'!C9=0,"",RANK(L107,L$99:L$123,ranktype)) -> 1 | L50: =IF('User Input'!C9=0,"",RANK(M107,M$99:M$123,ranktype)) -> 1 | M50: =IF(ISERROR(IF('User Input'!C9=0,"",B50+C50+D50+E50+F50+H50+I50+J50+K50+L50)),"N/A",(IF('User Input'!C9=0,"",B50+C50+D50+E50+F50+H50+I50+J50+K50+L50))) -> N/A | N50: =IF(ISERROR(IF('User Input'!C9=0,"",RANK(M50,M$42:M$66,IF(ranktype=1,0,1)))),"N/A",(IF('User Input'!C9=0,"",RANK(M50,M$42:M$66,IF(ranktype=1,0,1))))) -> N/A
A51: =IF('User Input'!C10 = 0,"",'User Input'!C10) -> j | B51: =IF('User Input'!C10=0,"",RANK(C108,C$99:C$123,ranktype)) -> 1 | C51: =IF('User Input'!C10=0,"",RANK(D108,D$99:D$123,ranktype)) -> 1 | D51: =IF('User Input'!C10=0,"",RANK(E108,E$99:E$123,ranktype)) -> 1 | E51: =IF('User Input'!C10=0,"",RANK(F108,F$99:F$123,ranktype)) -> 1 | F51: =IF(ISERROR(IF('User Input'!C10=0,"",RANK(G108,G$99:G$123,ranktype))),"N/A",(IF('User Input'!C10=0,"",RANK(G108,G$99:G$123,ranktype)))) -> N/A | G51: =IF('User Input'!C10=0,"",SUMIF(Players!$AU$3:$AU$915,A51,Players!BB$3:BB$915)) -> 0 | H51: =IF(ISERROR(IF('User Input'!C10=0,"",RANK(I108,I$99:I$123,IF(ranktype=1,0,1)))),"N/A",(IF('User Input'!C10=0,"",RANK(I108,I$99:I$123,IF(ranktype=1,0,1))))) -> N/A | I51: =IF(ISERROR(IF('User Input'!C10=0,"",RANK(J108,J$99:J$123,IF(ranktype=1,0,1)))),"N/A",(IF('User Input'!C10=0,"",RANK(J108,J$99:J$123,IF(ranktype=1,0,1))))) -> N/A | J51: =IF('User Input'!C10=0,"",RANK(K108,K$99:K$123,ranktype)) -> 1 | K51: =IF('User Input'!C10=0,"",RANK(L108,L$99:L$123,ranktype)) -> 1 | L51: =IF('User Input'!C10=0,"",RANK(M108,M$99:M$123,ranktype)) -> 1 | M51: =IF(ISERROR(IF('User Input'!C10=0,"",B51+C51+D51+E51+F51+H51+I51+J51+K51+L51)),"N/A",(IF('User Input'!C10=0,"",B51+C51+D51+E51+F51+H51+I51+J51+K51+L51))) -> N/A | N51: =IF(ISERROR(IF('User Input'!C10=0,"",RANK(M51,M$42:M$66,IF(ranktype=1,0,1)))),"N/A",(IF('User Input'!C10=0,"",RANK(M51,M$42:M$66,IF(ranktype=1,0,1))))) -> N/A
A52: =IF('User Input'!C11 = 0,"",'User Input'!C11) -> k | B52: =IF('User Input'!C11=0,"",RANK(C109,C$99:C$123,ranktype)) -> 1 | C52: =IF('User Input'!C11=0,"",RANK(D109,D$99:D$123,ranktype)) -> 1 | D52: =IF('User Input'!C11=0,"",RANK(E109,E$99:E$123,ranktype)) -> 1 | E52: =IF('User Input'!C11=0,"",RANK(F109,F$99:F$123,ranktype)) -> 1 | F52: =IF(ISERROR(IF('User Input'!C11=0,"",RANK(G109,G$99:G$123,ranktype))),"N/A",(IF('User Input'!C11=0,"",RANK(G109,G$99:G$123,ranktype)))) -> N/A | G52: =IF('User Input'!C11=0,"",SUMIF(Players!$AU$3:$AU$915,A52,Players!BB$3:BB$915)) -> 0 | H52: =IF(ISERROR(IF('User Input'!C11=0,"",RANK(I109,I$99:I$123,IF(ranktype=1,0,1)))),"N/A",(IF('User Input'!C11=0,"",RANK(I109,I$99:I$123,IF(ranktype=1,0,1))))) -> N/A | I52: =IF(ISERROR(IF('User Input'!C11=0,"",RANK(J109,J$99:J$123,IF(ranktype=1,0,1)))),"N/A",(IF('User Input'!C11=0,"",RANK(J109,J$99:J$123,IF(ranktype=1,0,1))))) -> N/A | J52: =IF('User Input'!C11=0,"",RANK(K109,K$99:K$123,ranktype)) -> 1 | K52: =IF('User Input'!C11=0,"",RANK(L109,L$99:L$123,ranktype)) -> 1 | L52: =IF('User Input'!C11=0,"",RANK(M109,M$99:M$123,ranktype)) -> 1 | M52: =IF(ISERROR(IF('User Input'!C11=0,"",B52+C52+D52+E52+F52+H52+I52+J52+K52+L52)),"N/A",(IF('User Input'!C11=0,"",B52+C52+D52+E52+F52+H52+I52+J52+K52+L52))) -> N/A | N52: =IF(ISERROR(IF('User Input'!C11=0,"",RANK(M52,M$42:M$66,IF(ranktype=1,0,1)))),"N/A",(IF('User Input'!C11=0,"",RANK(M52,M$42:M$66,IF(ranktype=1,0,1))))) -> N/A
A53: =IF('User Input'!C12 = 0,"",'User Input'!C12) -> l | B53: =IF('User Input'!C12=0,"",RANK(C110,C$99:C$123,ranktype)) -> 1 | C53: =IF('User Input'!C12=0,"",RANK(D110,D$99:D$123,ranktype)) -> 1 | D53: =IF('User Input'!C12=0,"",RANK(E110,E$99:E$123,ranktype)) -> 1 | E53: =IF('User Input'!C12=0,"",RANK(F110,F$99:F$123,ranktype)) -> 1 | F53: =IF(ISERROR(IF('User Input'!C12=0,"",RANK(G110,G$99:G$123,ranktype))),"N/A",(IF('User Input'!C12=0,"",RANK(G110,G$99:G$123,ranktype)))) -> N/A | G53: =IF('User Input'!C12=0,"",SUMIF(Players!$AU$3:$AU$915,A53,Players!BB$3:BB$915)) -> 0 | H53: =IF(ISERROR(IF('User Input'!C12=0,"",RANK(I110,I$99:I$123,IF(ranktype=1,0,1)))),"N/A",(IF('User Input'!C12=0,"",RANK(I110,I$99:I$123,IF(ranktype=1,0,1))))) -> N/A | I53: =IF(ISERROR(IF('User Input'!C12=0,"",RANK(J110,J$99:J$123,IF(ranktype=1,0,1)))),"N/A",(IF('User Input'!C12=0,"",RANK(J110,J$99:J$123,IF(ranktype=1,0,1))))) -> N/A | J53: =IF('User Input'!C12=0,"",RANK(K110,K$99:K$123,ranktype)) -> 1 | K53: =IF('User Input'!C12=0,"",RANK(L110,L$99:L$123,ranktype)) -> 1 | L53: =IF('User Input'!C12=0,"",RANK(M110,M$99:M$123,ranktype)) -> 1 | M53: =IF(ISERROR(IF('User Input'!C12=0,"",B53+C53+D53+E53+F53+H53+I53+J53+K53+L53)),"N/A",(IF('User Input'!C12=0,"",B53+C53+D53+E53+F53+H53+I53+J53+K53+L53))) -> N/A | N53: =IF(ISERROR(IF('User Input'!C12=0,"",RANK(M53,M$42:M$66,IF(ranktype=1,0,1)))),"N/A",(IF('User Input'!C12=0,"",RANK(M53,M$42:M$66,IF(ranktype=1,0,1))))) -> N/A
A54: =IF('User Input'!C13 = 0,"",'User Input'!C13) ->  | B54: =IF('User Input'!C13=0,"",RANK(C111,C$99:C$123,ranktype)) ->  | C54: =IF('User Input'!C13=0,"",RANK(D111,D$99:D$123,ranktype)) ->  | D54: =IF('User Input'!C13=0,"",RANK(E111,E$99:E$123,ranktype)) ->  | E54: =IF('User Input'!C13=0,"",RANK(F111,F$99:F$123,ranktype)) ->  | F54: =IF(ISERROR(IF('User Input'!C13=0,"",RANK(G111,G$99:G$123,ranktype))),"N/A",(IF('User Input'!C13=0,"",RANK(G111,G$99:G$123,ranktype)))) ->  | G54: =IF('User Input'!C13=0,"",SUMIF(Players!$AU$3:$AU$915,A54,Players!BB$3:BB$915)) ->  | H54: =IF(ISERROR(IF('User Input'!C13=0,"",RANK(I111,I$99:I$123,IF(ranktype=1,0,1)))),"N/A",(IF('User Input'!C13=0,"",RANK(I111,I$99:I$123,IF(ranktype=1,0,1))))) ->  | I54: =IF(ISERROR(IF('User Input'!C13=0,"",RANK(J111,J$99:J$123,IF(ranktype=1,0,1)))),"N/A",(IF('User Input'!C13=0,"",RANK(J111,J$99:J$123,IF(ranktype=1,0,1))))) ->  | J54: =IF('User Input'!C13=0,"",RANK(K111,K$99:K$123,ranktype)) ->  | K54: =IF('User Input'!C13=0,"",RANK(L111,L$99:L$123,ranktype)) ->  | L54: =IF('User Input'!C13=0,"",RANK(M111,M$99:M$123,ranktype)) ->  | M54: =IF(ISERROR(IF('User Input'!C13=0,"",B54+C54+D54+E54+F54+H54+I54+J54+K54+L54)),"N/A",(IF('User Input'!C13=0,"",B54+C54+D54+E54+F54+H54+I54+J54+K54+L54))) ->  | N54: =IF(ISERROR(IF('User Input'!C13=0,"",RANK(M54,M$42:M$66,IF(ranktype=1,0,1)))),"N/A",(IF('User Input'!C13=0,"",RANK(M54,M$42:M$66,IF(ranktype=1,0,1))))) -> 
A55: =IF('User Input'!C14 = 0,"",'User Input'!C14) ->  | B55: =IF('User Input'!C14=0,"",RANK(C112,C$99:C$123,ranktype)) ->  | C55: =IF('User Input'!C14=0,"",RANK(D112,D$99:D$123,ranktype)) ->  | D55: =IF('User Input'!C14=0,"",RANK(E112,E$99:E$123,ranktype)) ->  | E55: =IF('User Input'!C14=0,"",RANK(F112,F$99:F$123,ranktype)) ->  | F55: =IF(ISERROR(IF('User Input'!C14=0,"",RANK(G112,G$99:G$123,ranktype))),"N/A",(IF('User Input'!C14=0,"",RANK(G112,G$99:G$123,ranktype)))) ->  | G55: =IF('User Input'!C14=0,"",SUMIF(Players!$AU$3:$AU$915,A55,Players!BB$3:BB$915)) ->  | H55: =IF(ISERROR(IF('User Input'!C14=0,"",RANK(I112,I$99:I$123,IF(ranktype=1,0,1)))),"N/A",(IF('User Input'!C14=0,"",RANK(I112,I$99:I$123,IF(ranktype=1,0,1))))) ->  | I55: =IF(ISERROR(IF('User Input'!C14=0,"",RANK(J112,J$99:J$123,IF(ranktype=1,0,1)))),"N/A",(IF('User Input'!C14=0,"",RANK(J112,J$99:J$123,IF(ranktype=1,0,1))))) ->  | J55: =IF('User Input'!C14=0,"",RANK(K112,K$99:K$123,ranktype)) ->  | K55: =IF('User Input'!C14=0,"",RANK(L112,L$99:L$123,ranktype)) ->  | L55: =IF('User Input'!C14=0,"",RANK(M112,M$99:M$123,ranktype)) ->  | M55: =IF(ISERROR(IF('User Input'!C14=0,"",B55+C55+D55+E55+F55+H55+I55+J55+K55+L55)),"N/A",(IF('User Input'!C14=0,"",B55+C55+D55+E55+F55+H55+I55+J55+K55+L55))) ->  | N55: =IF(ISERROR(IF('User Input'!C14=0,"",RANK(M55,M$42:M$66,IF(ranktype=1,0,1)))),"N/A",(IF('User Input'!C14=0,"",RANK(M55,M$42:M$66,IF(ranktype=1,0,1))))) -> 
A56: =IF('User Input'!C15 = 0,"",'User Input'!C15) ->  | B56: =IF('User Input'!C15=0,"",RANK(C113,C$99:C$123,ranktype)) ->  | C56: =IF('User Input'!C15=0,"",RANK(D113,D$99:D$123,ranktype)) ->  | D56: =IF('User Input'!C15=0,"",RANK(E113,E$99:E$123,ranktype)) ->  | E56: =IF('User Input'!C15=0,"",RANK(F113,F$99:F$123,ranktype)) ->  | F56: =IF(ISERROR(IF('User Input'!C15=0,"",RANK(G113,G$99:G$123,ranktype))),"N/A",(IF('User Input'!C15=0,"",RANK(G113,G$99:G$123,ranktype)))) ->  | G56: =IF('User Input'!C15=0,"",SUMIF(Players!$AU$3:$AU$915,A56,Players!BB$3:BB$915)) ->  | H56: =IF(ISERROR(IF('User Input'!C15=0,"",RANK(I113,I$99:I$123,IF(ranktype=1,0,1)))),"N/A",(IF('User Input'!C15=0,"",RANK(I113,I$99:I$123,IF(ranktype=1,0,1))))) ->  | I56: =IF(ISERROR(IF('User Input'!C15=0,"",RANK(J113,J$99:J$123,IF(ranktype=1,0,1)))),"N/A",(IF('User Input'!C15=0,"",RANK(J113,J$99:J$123,IF(ranktype=1,0,1))))) ->  | J56: =IF('User Input'!C15=0,"",RANK(K113,K$99:K$123,ranktype)) ->  | K56: =IF('User Input'!C15=0,"",RANK(L113,L$99:L$123,ranktype)) ->  | L56: =IF('User Input'!C15=0,"",RANK(M113,M$99:M$123,ranktype)) ->  | M56: =IF(ISERROR(IF('User Input'!C15=0,"",B56+C56+D56+E56+F56+H56+I56+J56+K56+L56)),"N/A",(IF('User Input'!C15=0,"",B56+C56+D56+E56+F56+H56+I56+J56+K56+L56))) ->  | N56: =IF(ISERROR(IF('User Input'!C15=0,"",RANK(M56,M$42:M$66,IF(ranktype=1,0,1)))),"N/A",(IF('User Input'!C15=0,"",RANK(M56,M$42:M$66,IF(ranktype=1,0,1))))) -> 
A57: =IF('User Input'!C16 = 0,"",'User Input'!C16) ->  | B57: =IF('User Input'!C16=0,"",RANK(C114,C$99:C$123,ranktype)) ->  | C57: =IF('User Input'!C16=0,"",RANK(D114,D$99:D$123,ranktype)) ->  | D57: =IF('User Input'!C16=0,"",RANK(E114,E$99:E$123,ranktype)) ->  | E57: =IF('User Input'!C16=0,"",RANK(F114,F$99:F$123,ranktype)) ->  | F57: =IF(ISERROR(IF('User Input'!C16=0,"",RANK(G114,G$99:G$123,ranktype))),"N/A",(IF('User Input'!C16=0,"",RANK(G114,G$99:G$123,ranktype)))) ->  | G57: =IF('User Input'!C16=0,"",SUMIF(Players!$AU$3:$AU$915,A57,Players!BB$3:BB$915)) ->  | H57: =IF(ISERROR(IF('User Input'!C16=0,"",RANK(I114,I$99:I$123,IF(ranktype=1,0,1)))),"N/A",(IF('User Input'!C16=0,"",RANK(I114,I$99:I$123,IF(ranktype=1,0,1))))) ->  | I57: =IF(ISERROR(IF('User Input'!C16=0,"",RANK(J114,J$99:J$123,IF(ranktype=1,0,1)))),"N/A",(IF('User Input'!C16=0,"",RANK(J114,J$99:J$123,IF(ranktype=1,0,1))))) ->  | J57: =IF('User Input'!C16=0,"",RANK(K114,K$99:K$123,ranktype)) ->  | K57: =IF('User Input'!C16=0,"",RANK(L114,L$99:L$123,ranktype)) ->  | L57: =IF('User Input'!C16=0,"",RANK(M114,M$99:M$123,ranktype)) ->  | M57: =IF(ISERROR(IF('User Input'!C16=0,"",B57+C57+D57+E57+F57+H57+I57+J57+K57+L57)),"N/A",(IF('User Input'!C16=0,"",B57+C57+D57+E57+F57+H57+I57+J57+K57+L57))) ->  | N57: =IF(ISERROR(IF('User Input'!C16=0,"",RANK(M57,M$42:M$66,IF(ranktype=1,0,1)))),"N/A",(IF('User Input'!C16=0,"",RANK(M57,M$42:M$66,IF(ranktype=1,0,1))))) -> 
A58: =IF('User Input'!C17 = 0,"",'User Input'!C17) ->  | B58: =IF('User Input'!C17=0,"",RANK(C115,C$99:C$123,ranktype)) ->  | C58: =IF('User Input'!C17=0,"",RANK(D115,D$99:D$123,ranktype)) ->  | D58: =IF('User Input'!C17=0,"",RANK(E115,E$99:E$123,ranktype)) ->  | E58: =IF('User Input'!C17=0,"",RANK(F115,F$99:F$123,ranktype)) ->  | F58: =IF(ISERROR(IF('User Input'!C17=0,"",RANK(G115,G$99:G$123,ranktype))),"N/A",(IF('User Input'!C17=0,"",RANK(G115,G$99:G$123,ranktype)))) ->  | G58: =IF('User Input'!C17=0,"",SUMIF(Players!$AU$3:$AU$915,A58,Players!BB$3:BB$915)) ->  | H58: =IF(ISERROR(IF('User Input'!C17=0,"",RANK(I115,I$99:I$123,IF(ranktype=1,0,1)))),"N/A",(IF('User Input'!C17=0,"",RANK(I115,I$99:I$123,IF(ranktype=1,0,1))))) ->  | I58: =IF(ISERROR(IF('User Input'!C17=0,"",RANK(J115,J$99:J$123,IF(ranktype=1,0,1)))),"N/A",(IF('User Input'!C17=0,"",RANK(J115,J$99:J$123,IF(ranktype=1,0,1))))) ->  | J58: =IF('User Input'!C17=0,"",RANK(K115,K$99:K$123,ranktype)) ->  | K58: =IF('User Input'!C17=0,"",RANK(L115,L$99:L$123,ranktype)) ->  | L58: =IF('User Input'!C17=0,"",RANK(M115,M$99:M$123,ranktype)) ->  | M58: =IF(ISERROR(IF('User Input'!C17=0,"",B58+C58+D58+E58+F58+H58+I58+J58+K58+L58)),"N/A",(IF('User Input'!C17=0,"",B58+C58+D58+E58+F58+H58+I58+J58+K58+L58))) ->  | N58: =IF(ISERROR(IF('User Input'!C17=0,"",RANK(M58,M$42:M$66,IF(ranktype=1,0,1)))),"N/A",(IF('User Input'!C17=0,"",RANK(M58,M$42:M$66,IF(ranktype=1,0,1))))) -> 
A59: =IF('User Input'!C18 = 0,"",'User Input'!C18) ->  | B59: =IF('User Input'!C18=0,"",RANK(C116,C$99:C$123,ranktype)) ->  | C59: =IF('User Input'!C18=0,"",RANK(D116,D$99:D$123,ranktype)) ->  | D59: =IF('User Input'!C18=0,"",RANK(E116,E$99:E$123,ranktype)) ->  | E59: =IF('User Input'!C18=0,"",RANK(F116,F$99:F$123,ranktype)) ->  | F59: =IF(ISERROR(IF('User Input'!C18=0,"",RANK(G116,G$99:G$123,ranktype))),"N/A",(IF('User Input'!C18=0,"",RANK(G116,G$99:G$123,ranktype)))) ->  | G59: =IF('User Input'!C18=0,"",SUMIF(Players!$AU$3:$AU$915,A59,Players!BB$3:BB$915)) ->  | H59: =IF(ISERROR(IF('User Input'!C18=0,"",RANK(I116,I$99:I$123,IF(ranktype=1,0,1)))),"N/A",(IF('User Input'!C18=0,"",RANK(I116,I$99:I$123,IF(ranktype=1,0,1))))) ->  | I59: =IF(ISERROR(IF('User Input'!C18=0,"",RANK(J116,J$99:J$123,IF(ranktype=1,0,1)))),"N/A",(IF('User Input'!C18=0,"",RANK(J116,J$99:J$123,IF(ranktype=1,0,1))))) ->  | J59: =IF('User Input'!C18=0,"",RANK(K116,K$99:K$123,ranktype)) ->  | K59: =IF('User Input'!C18=0,"",RANK(L116,L$99:L$123,ranktype)) ->  | L59: =IF('User Input'!C18=0,"",RANK(M116,M$99:M$123,ranktype)) ->  | M59: =IF(ISERROR(IF('User Input'!C18=0,"",B59+C59+D59+E59+F59+H59+I59+J59+K59+L59)),"N/A",(IF('User Input'!C18=0,"",B59+C59+D59+E59+F59+H59+I59+J59+K59+L59))) ->  | N59: =IF(ISERROR(IF('User Input'!C18=0,"",RANK(M59,M$42:M$66,IF(ranktype=1,0,1)))),"N/A",(IF('User Input'!C18=0,"",RANK(M59,M$42:M$66,IF(ranktype=1,0,1))))) -> 
A60: =IF('User Input'!C19 = 0,"",'User Input'!C19) ->  | B60: =IF('User Input'!C19=0,"",RANK(C117,C$99:C$123,ranktype)) ->  | C60: =IF('User Input'!C19=0,"",RANK(D117,D$99:D$123,ranktype)) ->  | D60: =IF('User Input'!C19=0,"",RANK(E117,E$99:E$123,ranktype)) ->  | E60: =IF('User Input'!C19=0,"",RANK(F117,F$99:F$123,ranktype)) ->  | F60: =IF(ISERROR(IF('User Input'!C19=0,"",RANK(G117,G$99:G$123,ranktype))),"N/A",(IF('User Input'!C19=0,"",RANK(G117,G$99:G$123,ranktype)))) ->  | G60: =IF('User Input'!C19=0,"",SUMIF(Players!$AU$3:$AU$915,A60,Players!BB$3:BB$915)) ->  | H60: =IF(ISERROR(IF('User Input'!C19=0,"",RANK(I117,I$99:I$123,IF(ranktype=1,0,1)))),"N/A",(IF('User Input'!C19=0,"",RANK(I117,I$99:I$123,IF(ranktype=1,0,1))))) ->  | I60: =IF(ISERROR(IF('User Input'!C19=0,"",RANK(J117,J$99:J$123,IF(ranktype=1,0,1)))),"N/A",(IF('User Input'!C19=0,"",RANK(J117,J$99:J$123,IF(ranktype=1,0,1))))) ->  | J60: =IF('User Input'!C19=0,"",RANK(K117,K$99:K$123,ranktype)) ->  | K60: =IF('User Input'!C19=0,"",RANK(L117,L$99:L$123,ranktype)) ->  | L60: =IF('User Input'!C19=0,"",RANK(M117,M$99:M$123,ranktype)) ->  | M60: =IF(ISERROR(IF('User Input'!C19=0,"",B60+C60+D60+E60+F60+H60+I60+J60+K60+L60)),"N/A",(IF('User Input'!C19=0,"",B60+C60+D60+E60+F60+H60+I60+J60+K60+L60))) ->  | N60: =IF(ISERROR(IF('User Input'!C19=0,"",RANK(M60,M$42:M$66,IF(ranktype=1,0,1)))),"N/A",(IF('User Input'!C19=0,"",RANK(M60,M$42:M$66,IF(ranktype=1,0,1))))) -> 
A61: =IF('User Input'!C20 = 0,"",'User Input'!C20) ->  | B61: =IF('User Input'!C20=0,"",RANK(C118,C$99:C$123,ranktype)) ->  | C61: =IF('User Input'!C20=0,"",RANK(D118,D$99:D$123,ranktype)) ->  | D61: =IF('User Input'!C20=0,"",RANK(E118,E$99:E$123,ranktype)) ->  | E61: =IF('User Input'!C20=0,"",RANK(F118,F$99:F$123,ranktype)) ->  | F61: =IF(ISERROR(IF('User Input'!C20=0,"",RANK(G118,G$99:G$123,ranktype))),"N/A",(IF('User Input'!C20=0,"",RANK(G118,G$99:G$123,ranktype)))) ->  | G61: =IF('User Input'!C20=0,"",SUMIF(Players!$AU$3:$AU$915,A61,Players!BB$3:BB$915)) ->  | H61: =IF(ISERROR(IF('User Input'!C20=0,"",RANK(I118,I$99:I$123,IF(ranktype=1,0,1)))),"N/A",(IF('User Input'!C20=0,"",RANK(I118,I$99:I$123,IF(ranktype=1,0,1))))) ->  | I61: =IF(ISERROR(IF('User Input'!C20=0,"",RANK(J118,J$99:J$123,IF(ranktype=1,0,1)))),"N/A",(IF('User Input'!C20=0,"",RANK(J118,J$99:J$123,IF(ranktype=1,0,1))))) ->  | J61: =IF('User Input'!C20=0,"",RANK(K118,K$99:K$123,ranktype)) ->  | K61: =IF('User Input'!C20=0,"",RANK(L118,L$99:L$123,ranktype)) ->  | L61: =IF('User Input'!C20=0,"",RANK(M118,M$99:M$123,ranktype)) ->  | M61: =IF(ISERROR(IF('User Input'!C20=0,"",B61+C61+D61+E61+F61+H61+I61+J61+K61+L61)),"N/A",(IF('User Input'!C20=0,"",B61+C61+D61+E61+F61+H61+I61+J61+K61+L61))) ->  | N61: =IF(ISERROR(IF('User Input'!C20=0,"",RANK(M61,M$42:M$66,IF(ranktype=1,0,1)))),"N/A",(IF('User Input'!C20=0,"",RANK(M61,M$42:M$66,IF(ranktype=1,0,1))))) -> 
A62: =IF('User Input'!C21 = 0,"",'User Input'!C21) ->  | B62: =IF('User Input'!C21=0,"",RANK(C119,C$99:C$123,ranktype)) ->  | C62: =IF('User Input'!C21=0,"",RANK(D119,D$99:D$123,ranktype)) ->  | D62: =IF('User Input'!C21=0,"",RANK(E119,E$99:E$123,ranktype)) ->  | E62: =IF('User Input'!C21=0,"",RANK(F119,F$99:F$123,ranktype)) ->  | F62: =IF(ISERROR(IF('User Input'!C21=0,"",RANK(G119,G$99:G$123,ranktype))),"N/A",(IF('User Input'!C21=0,"",RANK(G119,G$99:G$123,ranktype)))) ->  | G62: =IF('User Input'!C21=0,"",SUMIF(Players!$AU$3:$AU$915,A62,Players!BB$3:BB$915)) ->  | H62: =IF(ISERROR(IF('User Input'!C21=0,"",RANK(I119,I$99:I$123,IF(ranktype=1,0,1)))),"N/A",(IF('User Input'!C21=0,"",RANK(I119,I$99:I$123,IF(ranktype=1,0,1))))) ->  | I62: =IF(ISERROR(IF('User Input'!C21=0,"",RANK(J119,J$99:J$123,IF(ranktype=1,0,1)))),"N/A",(IF('User Input'!C21=0,"",RANK(J119,J$99:J$123,IF(ranktype=1,0,1))))) ->  | J62: =IF('User Input'!C21=0,"",RANK(K119,K$99:K$123,ranktype)) ->  | K62: =IF('User Input'!C21=0,"",RANK(L119,L$99:L$123,ranktype)) ->  | L62: =IF('User Input'!C21=0,"",RANK(M119,M$99:M$123,ranktype)) ->  | M62: =IF(ISERROR(IF('User Input'!C21=0,"",B62+C62+D62+E62+F62+H62+I62+J62+K62+L62)),"N/A",(IF('User Input'!C21=0,"",B62+C62+D62+E62+F62+H62+I62+J62+K62+L62))) ->  | N62: =IF(ISERROR(IF('User Input'!C21=0,"",RANK(M62,M$42:M$66,IF(ranktype=1,0,1)))),"N/A",(IF('User Input'!C21=0,"",RANK(M62,M$42:M$66,IF(ranktype=1,0,1))))) -> 
A63: =IF('User Input'!C22 = 0,"",'User Input'!C22) ->  | B63: =IF('User Input'!C22=0,"",RANK(C120,C$99:C$123,ranktype)) ->  | C63: =IF('User Input'!C22=0,"",RANK(D120,D$99:D$123,ranktype)) ->  | D63: =IF('User Input'!C22=0,"",RANK(E120,E$99:E$123,ranktype)) ->  | E63: =IF('User Input'!C22=0,"",RANK(F120,F$99:F$123,ranktype)) ->  | F63: =IF(ISERROR(IF('User Input'!C22=0,"",RANK(G120,G$99:G$123,ranktype))),"N/A",(IF('User Input'!C22=0,"",RANK(G120,G$99:G$123,ranktype)))) ->  | G63: =IF('User Input'!C22=0,"",SUMIF(Players!$AU$3:$AU$915,A63,Players!BB$3:BB$915)) ->  | H63: =IF(ISERROR(IF('User Input'!C22=0,"",RANK(I120,I$99:I$123,IF(ranktype=1,0,1)))),"N/A",(IF('User Input'!C22=0,"",RANK(I120,I$99:I$123,IF(ranktype=1,0,1))))) ->  | I63: =IF(ISERROR(IF('User Input'!C22=0,"",RANK(J120,J$99:J$123,IF(ranktype=1,0,1)))),"N/A",(IF('User Input'!C22=0,"",RANK(J120,J$99:J$123,IF(ranktype=1,0,1))))) ->  | J63: =IF('User Input'!C22=0,"",RANK(K120,K$99:K$123,ranktype)) ->  | K63: =IF('User Input'!C22=0,"",RANK(L120,L$99:L$123,ranktype)) ->  | L63: =IF('User Input'!C22=0,"",RANK(M120,M$99:M$123,ranktype)) ->  | M63: =IF(ISERROR(IF('User Input'!C22=0,"",B63+C63+D63+E63+F63+H63+I63+J63+K63+L63)),"N/A",(IF('User Input'!C22=0,"",B63+C63+D63+E63+F63+H63+I63+J63+K63+L63))) ->  | N63: =IF(ISERROR(IF('User Input'!C22=0,"",RANK(M63,M$42:M$66,IF(ranktype=1,0,1)))),"N/A",(IF('User Input'!C22=0,"",RANK(M63,M$42:M$66,IF(ranktype=1,0,1))))) -> 
A64: =IF('User Input'!C23 = 0,"",'User Input'!C23) ->  | B64: =IF('User Input'!C23=0,"",RANK(C121,C$99:C$123,ranktype)) ->  | C64: =IF('User Input'!C23=0,"",RANK(D121,D$99:D$123,ranktype)) ->  | D64: =IF('User Input'!C23=0,"",RANK(E121,E$99:E$123,ranktype)) ->  | E64: =IF('User Input'!C23=0,"",RANK(F121,F$99:F$123,ranktype)) ->  | F64: =IF(ISERROR(IF('User Input'!C23=0,"",RANK(G121,G$99:G$123,ranktype))),"N/A",(IF('User Input'!C23=0,"",RANK(G121,G$99:G$123,ranktype)))) ->  | G64: =IF('User Input'!C23=0,"",SUMIF(Players!$AU$3:$AU$915,A64,Players!BB$3:BB$915)) ->  | H64: =IF(ISERROR(IF('User Input'!C23=0,"",RANK(I121,I$99:I$123,IF(ranktype=1,0,1)))),"N/A",(IF('User Input'!C23=0,"",RANK(I121,I$99:I$123,IF(ranktype=1,0,1))))) ->  | I64: =IF(ISERROR(IF('User Input'!C23=0,"",RANK(J121,J$99:J$123,IF(ranktype=1,0,1)))),"N/A",(IF('User Input'!C23=0,"",RANK(J121,J$99:J$123,IF(ranktype=1,0,1))))) ->  | J64: =IF('User Input'!C23=0,"",RANK(K121,K$99:K$123,ranktype)) ->  | K64: =IF('User Input'!C23=0,"",RANK(L121,L$99:L$123,ranktype)) ->  | L64: =IF('User Input'!C23=0,"",RANK(M121,M$99:M$123,ranktype)) ->  | M64: =IF(ISERROR(IF('User Input'!C23=0,"",B64+C64+D64+E64+F64+H64+I64+J64+K64+L64)),"N/A",(IF('User Input'!C23=0,"",B64+C64+D64+E64+F64+H64+I64+J64+K64+L64))) ->  | N64: =IF(ISERROR(IF('User Input'!C23=0,"",RANK(M64,M$42:M$66,IF(ranktype=1,0,1)))),"N/A",(IF('User Input'!C23=0,"",RANK(M64,M$42:M$66,IF(ranktype=1,0,1))))) -> 
A65: =IF('User Input'!C24 = 0,"",'User Input'!C24) ->  | B65: =IF('User Input'!C24=0,"",RANK(C122,C$99:C$123,ranktype)) ->  | C65: =IF('User Input'!C24=0,"",RANK(D122,D$99:D$123,ranktype)) ->  | D65: =IF('User Input'!C24=0,"",RANK(E122,E$99:E$123,ranktype)) ->  | E65: =IF('User Input'!C24=0,"",RANK(F122,F$99:F$123,ranktype)) ->  | F65: =IF(ISERROR(IF('User Input'!C24=0,"",RANK(G122,G$99:G$123,ranktype))),"N/A",(IF('User Input'!C24=0,"",RANK(G122,G$99:G$123,ranktype)))) ->  | G65: =IF('User Input'!C24=0,"",SUMIF(Players!$AU$3:$AU$915,A65,Players!BB$3:BB$915)) ->  | H65: =IF(ISERROR(IF('User Input'!C24=0,"",RANK(I122,I$99:I$123,IF(ranktype=1,0,1)))),"N/A",(IF('User Input'!C24=0,"",RANK(I122,I$99:I$123,IF(ranktype=1,0,1))))) ->  | I65: =IF(ISERROR(IF('User Input'!C24=0,"",RANK(J122,J$99:J$123,IF(ranktype=1,0,1)))),"N/A",(IF('User Input'!C24=0,"",RANK(J122,J$99:J$123,IF(ranktype=1,0,1))))) ->  | J65: =IF('User Input'!C24=0,"",RANK(K122,K$99:K$123,ranktype)) ->  | K65: =IF('User Input'!C24=0,"",RANK(L122,L$99:L$123,ranktype)) ->  | L65: =IF('User Input'!C24=0,"",RANK(M122,M$99:M$123,ranktype)) ->  | M65: =IF(ISERROR(IF('User Input'!C24=0,"",B65+C65+D65+E65+F65+H65+I65+J65+K65+L65)),"N/A",(IF('User Input'!C24=0,"",B65+C65+D65+E65+F65+H65+I65+J65+K65+L65))) ->  | N65: =IF(ISERROR(IF('User Input'!C24=0,"",RANK(M65,M$42:M$66,IF(ranktype=1,0,1)))),"N/A",(IF('User Input'!C24=0,"",RANK(M65,M$42:M$66,IF(ranktype=1,0,1))))) -> 
A66: =IF('User Input'!C25 = 0,"",'User Input'!C25) ->  | B66: =IF('User Input'!C25=0,"",RANK(C123,C$99:C$123,ranktype)) ->  | C66: =IF('User Input'!C25=0,"",RANK(D123,D$99:D$123,ranktype)) ->  | D66: =IF('User Input'!C25=0,"",RANK(E123,E$99:E$123,ranktype)) ->  | E66: =IF('User Input'!C25=0,"",RANK(F123,F$99:F$123,ranktype)) ->  | F66: =IF(ISERROR(IF('User Input'!C25=0,"",RANK(G123,G$99:G$123,ranktype))),"N/A",(IF('User Input'!C25=0,"",RANK(G123,G$99:G$123,ranktype)))) ->  | G66: =IF('User Input'!C25=0,"",SUMIF(Players!$AU$3:$AU$915,A66,Players!BB$3:BB$915)) ->  | H66: =IF(ISERROR(IF('User Input'!C25=0,"",RANK(I123,I$99:I$123,IF(ranktype=1,0,1)))),"N/A",(IF('User Input'!C25=0,"",RANK(I123,I$99:I$123,IF(ranktype=1,0,1))))) ->  | I66: =IF(ISERROR(IF('User Input'!C25=0,"",RANK(J123,J$99:J$123,IF(ranktype=1,0,1)))),"N/A",(IF('User Input'!C25=0,"",RANK(J123,J$99:J$123,IF(ranktype=1,0,1))))) ->  | J66: =IF('User Input'!C25=0,"",RANK(K123,K$99:K$123,ranktype)) ->  | K66: =IF('User Input'!C25=0,"",RANK(L123,L$99:L$123,ranktype)) ->  | L66: =IF('User Input'!C25=0,"",RANK(M123,M$99:M$123,ranktype)) ->  | M66: =IF(ISERROR(IF('User Input'!C25=0,"",B66+C66+D66+E66+F66+H66+I66+J66+K66+L66)),"N/A",(IF('User Input'!C25=0,"",B66+C66+D66+E66+F66+H66+I66+J66+K66+L66))) ->  | N66: =IF(ISERROR(IF('User Input'!C25=0,"",RANK(M66,M$42:M$66,IF(ranktype=1,0,1)))),"N/A",(IF('User Input'!C25=0,"",RANK(M66,M$42:M$66,IF(ranktype=1,0,1))))) -> 
C69: Batting Per Player | I69: Pitching Per Player
A70: Team | C70: R | D70: HR | E70: RBI | F70: SB | G70: AVG | I70: ERA | J70: WHIP | K70: W | L70: S | M70: K
A71: =IF('User Input'!C1 = 0,"",'User Input'!C1) -> a | C71: =IF('User Input'!C1 = 0,"",C99/$B13) ->  | D71: =IF('User Input'!C1 = 0,"",D99/$B13) ->  | E71: =IF('User Input'!C1 = 0,"",E99/$B13) ->  | F71: =IF('User Input'!C1 = 0,"",F99/$B13) ->  | G71: =IF('User Input'!C1 = 0,"",G99) ->  | I71: =IF('User Input'!C1 = 0,"",I99) ->  | J71: =IF('User Input'!C1 = 0,"",J99) ->  | K71: =IF('User Input'!C1 = 0,"",K99/$C13) ->  | L71: =IF('User Input'!C1 = 0,"",L99/$C13) ->  | M71: =IF('User Input'!C1 = 0,"",M99/$C13) ->  | N71: ← ← ← | O71: YOUR TEAM
A72: =IF('User Input'!C2 = 0,"",'User Input'!C2) -> b | C72: =IF('User Input'!C2 = 0,"",C100/$B14) ->  | D72: =IF('User Input'!C2 = 0,"",D100/$B14) ->  | E72: =IF('User Input'!C2 = 0,"",E100/$B14) ->  | F72: =IF('User Input'!C2 = 0,"",F100/$B14) ->  | G72: =IF('User Input'!C2 = 0,"",G100) ->  | I72: =IF('User Input'!C2 = 0,"",I100) ->  | J72: =IF('User Input'!C2 = 0,"",J100) ->  | K72: =IF('User Input'!C2 = 0,"",K100/$C14) ->  | L72: =IF('User Input'!C2 = 0,"",L100/$C14) ->  | M72: =IF('User Input'!C2 = 0,"",M100/$C14) -> 
A73: =IF('User Input'!C3 = 0,"",'User Input'!C3) -> c | C73: =IF('User Input'!C3 = 0,"",C101/$B15) ->  | D73: =IF('User Input'!C3 = 0,"",D101/$B15) ->  | E73: =IF('User Input'!C3 = 0,"",E101/$B15) ->  | F73: =IF('User Input'!C3 = 0,"",F101/$B15) ->  | G73: =IF('User Input'!C3 = 0,"",G101) ->  | I73: =IF('User Input'!C3 = 0,"",I101) ->  | J73: =IF('User Input'!C3 = 0,"",J101) ->  | K73: =IF('User Input'!C3 = 0,"",K101/$C15) ->  | L73: =IF('User Input'!C3 = 0,"",L101/$C15) ->  | M73: =IF('User Input'!C3 = 0,"",M101/$C15) -> 
A74: =IF('User Input'!C4 = 0,"",'User Input'!C4) -> d | C74: =IF('User Input'!C4 = 0,"",C102/$B16) ->  | D74: =IF('User Input'!C4 = 0,"",D102/$B16) ->  | E74: =IF('User Input'!C4 = 0,"",E102/$B16) ->  | F74: =IF('User Input'!C4 = 0,"",F102/$B16) ->  | G74: =IF('User Input'!C4 = 0,"",G102) ->  | I74: =IF('User Input'!C4 = 0,"",I102) ->  | J74: =IF('User Input'!C4 = 0,"",J102) ->  | K74: =IF('User Input'!C4 = 0,"",K102/$C16) ->  | L74: =IF('User Input'!C4 = 0,"",L102/$C16) ->  | M74: =IF('User Input'!C4 = 0,"",M102/$C16) -> 
A75: =IF('User Input'!C5 = 0,"",'User Input'!C5) -> e | C75: =IF('User Input'!C5 = 0,"",C103/$B17) ->  | D75: =IF('User Input'!C5 = 0,"",D103/$B17) ->  | E75: =IF('User Input'!C5 = 0,"",E103/$B17) ->  | F75: =IF('User Input'!C5 = 0,"",F103/$B17) ->  | G75: =IF('User Input'!C5 = 0,"",G103) ->  | I75: =IF('User Input'!C5 = 0,"",I103) ->  | J75: =IF('User Input'!C5 = 0,"",J103) ->  | K75: =IF('User Input'!C5 = 0,"",K103/$C17) ->  | L75: =IF('User Input'!C5 = 0,"",L103/$C17) ->  | M75: =IF('User Input'!C5 = 0,"",M103/$C17) -> 
A76: =IF('User Input'!C6 = 0,"",'User Input'!C6) -> f | C76: =IF('User Input'!C6 = 0,"",C104/$B18) ->  | D76: =IF('User Input'!C6 = 0,"",D104/$B18) ->  | E76: =IF('User Input'!C6 = 0,"",E104/$B18) ->  | F76: =IF('User Input'!C6 = 0,"",F104/$B18) ->  | G76: =IF('User Input'!C6 = 0,"",G104) ->  | I76: =IF('User Input'!C6 = 0,"",I104) ->  | J76: =IF('User Input'!C6 = 0,"",J104) ->  | K76: =IF('User Input'!C6 = 0,"",K104/$C18) ->  | L76: =IF('User Input'!C6 = 0,"",L104/$C18) ->  | M76: =IF('User Input'!C6 = 0,"",M104/$C18) -> 
A77: =IF('User Input'!C7 = 0,"",'User Input'!C7) -> g | C77: =IF('User Input'!C7 = 0,"",C105/$B19) ->  | D77: =IF('User Input'!C7 = 0,"",D105/$B19) ->  | E77: =IF('User Input'!C7 = 0,"",E105/$B19) ->  | F77: =IF('User Input'!C7 = 0,"",F105/$B19) ->  | G77: =IF('User Input'!C7 = 0,"",G105) ->  | I77: =IF('User Input'!C7 = 0,"",I105) ->  | J77: =IF('User Input'!C7 = 0,"",J105) ->  | K77: =IF('User Input'!C7 = 0,"",K105/$C19) ->  | L77: =IF('User Input'!C7 = 0,"",L105/$C19) ->  | M77: =IF('User Input'!C7 = 0,"",M105/$C19) -> 
A78: =IF('User Input'!C8 = 0,"",'User Input'!C8) -> h | C78: =IF('User Input'!C8 = 0,"",C106/$B20) ->  | D78: =IF('User Input'!C8 = 0,"",D106/$B20) ->  | E78: =IF('User Input'!C8 = 0,"",E106/$B20) ->  | F78: =IF('User Input'!C8 = 0,"",F106/$B20) ->  | G78: =IF('User Input'!C8 = 0,"",G106) ->  | I78: =IF('User Input'!C8 = 0,"",I106) ->  | J78: =IF('User Input'!C8 = 0,"",J106) ->  | K78: =IF('User Input'!C8 = 0,"",K106/$C20) ->  | L78: =IF('User Input'!C8 = 0,"",L106/$C20) ->  | M78: =IF('User Input'!C8 = 0,"",M106/$C20) -> 
A79: =IF('User Input'!C9 = 0,"",'User Input'!C9) -> i | C79: =IF('User Input'!C9 = 0,"",C107/$B21) ->  | D79: =IF('User Input'!C9 = 0,"",D107/$B21) ->  | E79: =IF('User Input'!C9 = 0,"",E107/$B21) ->  | F79: =IF('User Input'!C9 = 0,"",F107/$B21) ->  | G79: =IF('User Input'!C9 = 0,"",G107) ->  | I79: =IF('User Input'!C9 = 0,"",I107) ->  | J79: =IF('User Input'!C9 = 0,"",J107) ->  | K79: =IF('User Input'!C9 = 0,"",K107/$C21) ->  | L79: =IF('User Input'!C9 = 0,"",L107/$C21) ->  | M79: =IF('User Input'!C9 = 0,"",M107/$C21) -> 
A80: =IF('User Input'!C10 = 0,"",'User Input'!C10) -> j | C80: =IF('User Input'!C10 = 0,"",C108/$B22) ->  | D80: =IF('User Input'!C10 = 0,"",D108/$B22) ->  | E80: =IF('User Input'!C10 = 0,"",E108/$B22) ->  | F80: =IF('User Input'!C10 = 0,"",F108/$B22) ->  | G80: =IF('User Input'!C10 = 0,"",G108) ->  | I80: =IF('User Input'!C10 = 0,"",I108) ->  | J80: =IF('User Input'!C10 = 0,"",J108) ->  | K80: =IF('User Input'!C10 = 0,"",K108/$C22) ->  | L80: =IF('User Input'!C10 = 0,"",L108/$C22) ->  | M80: =IF('User Input'!C10 = 0,"",M108/$C22) -> 
A81: =IF('User Input'!C11 = 0,"",'User Input'!C11) -> k | C81: =IF('User Input'!C11 = 0,"",C109/$B23) ->  | D81: =IF('User Input'!C11 = 0,"",D109/$B23) ->  | E81: =IF('User Input'!C11 = 0,"",E109/$B23) ->  | F81: =IF('User Input'!C11 = 0,"",F109/$B23) ->  | G81: =IF('User Input'!C11 = 0,"",G109) ->  | I81: =IF('User Input'!C11 = 0,"",I109) ->  | J81: =IF('User Input'!C11 = 0,"",J109) ->  | K81: =IF('User Input'!C11 = 0,"",K109/$C23) ->  | L81: =IF('User Input'!C11 = 0,"",L109/$C23) ->  | M81: =IF('User Input'!C11 = 0,"",M109/$C23) -> 
A82: =IF('User Input'!C12 = 0,"",'User Input'!C12) -> l | C82: =IF('User Input'!C12 = 0,"",C110/$B24) ->  | D82: =IF('User Input'!C12 = 0,"",D110/$B24) ->  | E82: =IF('User Input'!C12 = 0,"",E110/$B24) ->  | F82: =IF('User Input'!C12 = 0,"",F110/$B24) ->  | G82: =IF('User Input'!C12 = 0,"",G110) ->  | I82: =IF('User Input'!C12 = 0,"",I110) ->  | J82: =IF('User Input'!C12 = 0,"",J110) ->  | K82: =IF('User Input'!C12 = 0,"",K110/$C24) ->  | L82: =IF('User Input'!C12 = 0,"",L110/$C24) ->  | M82: =IF('User Input'!C12 = 0,"",M110/$C24) -> 
A83: =IF('User Input'!C13 = 0,"",'User Input'!C13) ->  | C83: =IF('User Input'!C13 = 0,"",C111/$B25) ->  | D83: =IF('User Input'!C13 = 0,"",D111/$B25) ->  | E83: =IF('User Input'!C13 = 0,"",E111/$B25) ->  | F83: =IF('User Input'!C13 = 0,"",F111/$B25) ->  | G83: =IF('User Input'!C13 = 0,"",G111) ->  | I83: =IF('User Input'!C13 = 0,"",I111) ->  | J83: =IF('User Input'!C13 = 0,"",J111) ->  | K83: =IF('User Input'!C13 = 0,"",K111/$C25) ->  | L83: =IF('User Input'!C13 = 0,"",L111/$C25) ->  | M83: =IF('User Input'!C13 = 0,"",M111/$C25) -> 
A84: =IF('User Input'!C14 = 0,"",'User Input'!C14) ->  | C84: =IF('User Input'!C14 = 0,"",C112/$B26) ->  | D84: =IF('User Input'!C14 = 0,"",D112/$B26) ->  | E84: =IF('User Input'!C14 = 0,"",E112/$B26) ->  | F84: =IF('User Input'!C14 = 0,"",F112/$B26) ->  | G84: =IF('User Input'!C14 = 0,"",G112) ->  | I84: =IF('User Input'!C14 = 0,"",I112) ->  | J84: =IF('User Input'!C14 = 0,"",J112) ->  | K84: =IF('User Input'!C14 = 0,"",K112/$C26) ->  | L84: =IF('User Input'!C14 = 0,"",L112/$C26) ->  | M84: =IF('User Input'!C14 = 0,"",M112/$C26) -> 
A85: =IF('User Input'!C15 = 0,"",'User Input'!C15) ->  | C85: =IF('User Input'!C15 = 0,"",C113/$B27) ->  | D85: =IF('User Input'!C15 = 0,"",D113/$B27) ->  | E85: =IF('User Input'!C15 = 0,"",E113/$B27) ->  | F85: =IF('User Input'!C15 = 0,"",F113/$B27) ->  | G85: =IF('User Input'!C15 = 0,"",G113) ->  | I85: =IF('User Input'!C15 = 0,"",I113) ->  | J85: =IF('User Input'!C15 = 0,"",J113) ->  | K85: =IF('User Input'!C15 = 0,"",K113/$C27) ->  | L85: =IF('User Input'!C15 = 0,"",L113/$C27) ->  | M85: =IF('User Input'!C15 = 0,"",M113/$C27) -> 
A86: =IF('User Input'!C16 = 0,"",'User Input'!C16) ->  | C86: =IF('User Input'!C16 = 0,"",C114/$B28) ->  | D86: =IF('User Input'!C16 = 0,"",D114/$B28) ->  | E86: =IF('User Input'!C16 = 0,"",E114/$B28) ->  | F86: =IF('User Input'!C16 = 0,"",F114/$B28) ->  | G86: =IF('User Input'!C16 = 0,"",G114) ->  | I86: =IF('User Input'!C16 = 0,"",I114) ->  | J86: =IF('User Input'!C16 = 0,"",J114) ->  | K86: =IF('User Input'!C16 = 0,"",K114/$C28) ->  | L86: =IF('User Input'!C16 = 0,"",L114/$C28) ->  | M86: =IF('User Input'!C16 = 0,"",M114/$C28) -> 
A87: =IF('User Input'!C17 = 0,"",'User Input'!C17) ->  | C87: =IF('User Input'!C17 = 0,"",C115/$B29) ->  | D87: =IF('User Input'!C17 = 0,"",D115/$B29) ->  | E87: =IF('User Input'!C17 = 0,"",E115/$B29) ->  | F87: =IF('User Input'!C17 = 0,"",F115/$B29) ->  | G87: =IF('User Input'!C17 = 0,"",G115) ->  | I87: =IF('User Input'!C17 = 0,"",I115) ->  | J87: =IF('User Input'!C17 = 0,"",J115) ->  | K87: =IF('User Input'!C17 = 0,"",K115/$C29) ->  | L87: =IF('User Input'!C17 = 0,"",L115/$C29) ->  | M87: =IF('User Input'!C17 = 0,"",M115/$C29) -> 
A88: =IF('User Input'!C18 = 0,"",'User Input'!C18) ->  | C88: =IF('User Input'!C18 = 0,"",C116/$B30) ->  | D88: =IF('User Input'!C18 = 0,"",D116/$B30) ->  | E88: =IF('User Input'!C18 = 0,"",E116/$B30) ->  | F88: =IF('User Input'!C18 = 0,"",F116/$B30) ->  | G88: =IF('User Input'!C18 = 0,"",G116) ->  | I88: =IF('User Input'!C18 = 0,"",I116) ->  | J88: =IF('User Input'!C18 = 0,"",J116) ->  | K88: =IF('User Input'!C18 = 0,"",K116/$C30) ->  | L88: =IF('User Input'!C18 = 0,"",L116/$C30) ->  | M88: =IF('User Input'!C18 = 0,"",M116/$C30) -> 
A89: =IF('User Input'!C19 = 0,"",'User Input'!C19) ->  | C89: =IF('User Input'!C19 = 0,"",C117/$B31) ->  | D89: =IF('User Input'!C19 = 0,"",D117/$B31) ->  | E89: =IF('User Input'!C19 = 0,"",E117/$B31) ->  | F89: =IF('User Input'!C19 = 0,"",F117/$B31) ->  | G89: =IF('User Input'!C19 = 0,"",G117) ->  | I89: =IF('User Input'!C19 = 0,"",I117) ->  | J89: =IF('User Input'!C19 = 0,"",J117) ->  | K89: =IF('User Input'!C19 = 0,"",K117/$C31) ->  | L89: =IF('User Input'!C19 = 0,"",L117/$C31) ->  | M89: =IF('User Input'!C19 = 0,"",M117/$C31) -> 
A90: =IF('User Input'!C20 = 0,"",'User Input'!C20) ->  | C90: =IF('User Input'!C20 = 0,"",C118/$B32) ->  | D90: =IF('User Input'!C20 = 0,"",D118/$B32) ->  | E90: =IF('User Input'!C20 = 0,"",E118/$B32) ->  | F90: =IF('User Input'!C20 = 0,"",F118/$B32) ->  | G90: =IF('User Input'!C20 = 0,"",G118) ->  | I90: =IF('User Input'!C20 = 0,"",I118) ->  | J90: =IF('User Input'!C20 = 0,"",J118) ->  | K90: =IF('User Input'!C20 = 0,"",K118/$C32) ->  | L90: =IF('User Input'!C20 = 0,"",L118/$C32) ->  | M90: =IF('User Input'!C20 = 0,"",M118/$C32) -> 
A91: =IF('User Input'!C21 = 0,"",'User Input'!C21) ->  | C91: =IF('User Input'!C21 = 0,"",C119/$B33) ->  | D91: =IF('User Input'!C21 = 0,"",D119/$B33) ->  | E91: =IF('User Input'!C21 = 0,"",E119/$B33) ->  | F91: =IF('User Input'!C21 = 0,"",F119/$B33) ->  | G91: =IF('User Input'!C21 = 0,"",G119) ->  | I91: =IF('User Input'!C21 = 0,"",I119) ->  | J91: =IF('User Input'!C21 = 0,"",J119) ->  | K91: =IF('User Input'!C21 = 0,"",K119/$C33) ->  | L91: =IF('User Input'!C21 = 0,"",L119/$C33) ->  | M91: =IF('User Input'!C21 = 0,"",M119/$C33) -> 
A92: =IF('User Input'!C22 = 0,"",'User Input'!C22) ->  | C92: =IF('User Input'!C22 = 0,"",C120/$B34) ->  | D92: =IF('User Input'!C22 = 0,"",D120/$B34) ->  | E92: =IF('User Input'!C22 = 0,"",E120/$B34) ->  | F92: =IF('User Input'!C22 = 0,"",F120/$B34) ->  | G92: =IF('User Input'!C22 = 0,"",G120) ->  | I92: =IF('User Input'!C22 = 0,"",I120) ->  | J92: =IF('User Input'!C22 = 0,"",J120) ->  | K92: =IF('User Input'!C22 = 0,"",K120/$C34) ->  | L92: =IF('User Input'!C22 = 0,"",L120/$C34) ->  | M92: =IF('User Input'!C22 = 0,"",M120/$C34) -> 
A93: =IF('User Input'!C23 = 0,"",'User Input'!C23) ->  | C93: =IF('User Input'!C23 = 0,"",C121/$B35) ->  | D93: =IF('User Input'!C23 = 0,"",D121/$B35) ->  | E93: =IF('User Input'!C23 = 0,"",E121/$B35) ->  | F93: =IF('User Input'!C23 = 0,"",F121/$B35) ->  | G93: =IF('User Input'!C23 = 0,"",G121) ->  | I93: =IF('User Input'!C23 = 0,"",I121) ->  | J93: =IF('User Input'!C23 = 0,"",J121) ->  | K93: =IF('User Input'!C23 = 0,"",K121/$C35) ->  | L93: =IF('User Input'!C23 = 0,"",L121/$C35) ->  | M93: =IF('User Input'!C23 = 0,"",M121/$C35) -> 
A94: =IF('User Input'!C24 = 0,"",'User Input'!C24) ->  | C94: =IF('User Input'!C24 = 0,"",C122/$B36) ->  | D94: =IF('User Input'!C24 = 0,"",D122/$B36) ->  | E94: =IF('User Input'!C24 = 0,"",E122/$B36) ->  | F94: =IF('User Input'!C24 = 0,"",F122/$B36) ->  | G94: =IF('User Input'!C24 = 0,"",G122) ->  | I94: =IF('User Input'!C24 = 0,"",I122) ->  | J94: =IF('User Input'!C24 = 0,"",J122) ->  | K94: =IF('User Input'!C24 = 0,"",K122/$C36) ->  | L94: =IF('User Input'!C24 = 0,"",L122/$C36) ->  | M94: =IF('User Input'!C24 = 0,"",M122/$C36) -> 
A95: =IF('User Input'!C25 = 0,"",'User Input'!C25) ->  | C95: =IF('User Input'!C25 = 0,"",C123/$B37) ->  | D95: =IF('User Input'!C25 = 0,"",D123/$B37) ->  | E95: =IF('User Input'!C25 = 0,"",E123/$B37) ->  | F95: =IF('User Input'!C25 = 0,"",F123/$B37) ->  | G95: =IF('User Input'!C25 = 0,"",G123) ->  | I95: =IF('User Input'!C25 = 0,"",I123) ->  | J95: =IF('User Input'!C25 = 0,"",J123) ->  | K95: =IF('User Input'!C25 = 0,"",K123/$C37) ->  | L95: =IF('User Input'!C25 = 0,"",L123/$C37) ->  | M95: =IF('User Input'!C25 = 0,"",M123/$C37) -> 
B97: Projected Batting Totals | H97: Projected Pitching Totals
A98: Team | B98: AB | C98: R | D98: HR | E98: RBI | F98: SB | G98: AVG | H98: IP | I98: ERA | J98: WHIP | K98: W | L98: S | M98: K
A99: =IF('User Input'!C1 = 0,"",'User Input'!C1) -> a | B99: =IF('User Input'!C1=0,"",SUMIF(Players!$N$3:$N$881,A99,Players!U$3:U$881)) -> 0 | C99: =IF('User Input'!C1=0,"",SUMIF(Players!$N$3:$N$881,A99,Players!V$3:V$881)) -> 0 | D99: =IF('User Input'!C1=0,"",SUMIF(Players!$N$3:$N$881,A99,Players!W$3:W$881)) -> 0 | E99: =IF('User Input'!C1=0,"",SUMIF(Players!$N$3:$N$881,A99,Players!X$3:X$881)) -> 0 | F99: =IF('User Input'!C1=0,"",SUMIF(Players!$N$3:$N$881,A99,Players!Y$3:Y$881)) -> 0 | G99: =IF('User Input'!C1=0,"",(SUMIF(Players!$N$3:$N$881,A99,Players!AB$3:AB$997))/B99) ->  | H99: =IF('User Input'!C1=0,"",SUMIF(Players!$AU$3:$AU$915,A99,Players!BB$3:BB$915)) -> 0 | I99: =IF('User Input'!C1=0,"",SUMIF(Players!$AU$3:$AU$915,A99,Players!BI$3:BI$997)/H99) ->  | J99: =IF('User Input'!C1=0,"",SUMIF(Players!$AU$3:$AU$915,A99,Players!BJ$3:BJ$997)/H99) ->  | K99: =IF('User Input'!C1=0,"",SUMIF(Players!$AU$3:$AU$915,A99,Players!BE$3:BE$915)) -> 0 | L99: =IF('User Input'!C1=0,"",SUMIF(Players!$AU$3:$AU$915,A99,Players!BF$3:BF$915)) -> 0 | M99: =IF('User Input'!C1=0,"",SUMIF(Players!$AU$3:$AU$915,A99,Players!BG$3:BG$915)) -> 0 | N99: ← ← ← | O99: YOUR TEAM
A100: =IF('User Input'!C2 = 0,"",'User Input'!C2) -> b | B100: =IF('User Input'!C2=0,"",SUMIF(Players!$N$3:$N$881,A100,Players!U$3:U$881)) -> 0 | C100: =IF('User Input'!C2=0,"",SUMIF(Players!$N$3:$N$881,A100,Players!V$3:V$881)) -> 0 | D100: =IF('User Input'!C2=0,"",SUMIF(Players!$N$3:$N$881,A100,Players!W$3:W$881)) -> 0 | E100: =IF('User Input'!C2=0,"",SUMIF(Players!$N$3:$N$881,A100,Players!X$3:X$881)) -> 0 | F100: =IF('User Input'!C2=0,"",SUMIF(Players!$N$3:$N$881,A100,Players!Y$3:Y$881)) -> 0 | G100: =IF('User Input'!C2=0,"",(SUMIF(Players!$N$3:$N$881,A100,Players!AB$3:AB$997))/B100) ->  | H100: =IF('User Input'!C2=0,"",SUMIF(Players!$AU$3:$AU$915,A100,Players!BB$3:BB$915)) -> 0 | I100: =IF('User Input'!C2=0,"",SUMIF(Players!$AU$3:$AU$915,A100,Players!BI$3:BI$997)/H100) ->  | J100: =IF('User Input'!C2=0,"",SUMIF(Players!$AU$3:$AU$915,A100,Players!BJ$3:BJ$997)/H100) ->  | K100: =IF('User Input'!C2=0,"",SUMIF(Players!$AU$3:$AU$915,A100,Players!BE$3:BE$915)) -> 0 | L100: =IF('User Input'!C2=0,"",SUMIF(Players!$AU$3:$AU$915,A100,Players!BF$3:BF$915)) -> 0 | M100: =IF('User Input'!C2=0,"",SUMIF(Players!$AU$3:$AU$915,A100,Players!BG$3:BG$915)) -> 0
A101: =IF('User Input'!C3 = 0,"",'User Input'!C3) -> c | B101: =IF('User Input'!C3=0,"",SUMIF(Players!$N$3:$N$881,A101,Players!U$3:U$881)) -> 0 | C101: =IF('User Input'!C3=0,"",SUMIF(Players!$N$3:$N$881,A101,Players!V$3:V$881)) -> 0 | D101: =IF('User Input'!C3=0,"",SUMIF(Players!$N$3:$N$881,A101,Players!W$3:W$881)) -> 0 | E101: =IF('User Input'!C3=0,"",SUMIF(Players!$N$3:$N$881,A101,Players!X$3:X$881)) -> 0 | F101: =IF('User Input'!C3=0,"",SUMIF(Players!$N$3:$N$881,A101,Players!Y$3:Y$881)) -> 0 | G101: =IF('User Input'!C3=0,"",(SUMIF(Players!$N$3:$N$881,A101,Players!AB$3:AB$997))/B101) ->  | H101: =IF('User Input'!C3=0,"",SUMIF(Players!$AU$3:$AU$915,A101,Players!BB$3:BB$915)) -> 0 | I101: =IF('User Input'!C3=0,"",SUMIF(Players!$AU$3:$AU$915,A101,Players!BI$3:BI$997)/H101) ->  | J101: =IF('User Input'!C3=0,"",SUMIF(Players!$AU$3:$AU$915,A101,Players!BJ$3:BJ$997)/H101) ->  | K101: =IF('User Input'!C3=0,"",SUMIF(Players!$AU$3:$AU$915,A101,Players!BE$3:BE$915)) -> 0 | L101: =IF('User Input'!C3=0,"",SUMIF(Players!$AU$3:$AU$915,A101,Players!BF$3:BF$915)) -> 0 | M101: =IF('User Input'!C3=0,"",SUMIF(Players!$AU$3:$AU$915,A101,Players!BG$3:BG$915)) -> 0
A102: =IF('User Input'!C4 = 0,"",'User Input'!C4) -> d | B102: =IF('User Input'!C4=0,"",SUMIF(Players!$N$3:$N$881,A102,Players!U$3:U$881)) -> 0 | C102: =IF('User Input'!C4=0,"",SUMIF(Players!$N$3:$N$881,A102,Players!V$3:V$881)) -> 0 | D102: =IF('User Input'!C4=0,"",SUMIF(Players!$N$3:$N$881,A102,Players!W$3:W$881)) -> 0 | E102: =IF('User Input'!C4=0,"",SUMIF(Players!$N$3:$N$881,A102,Players!X$3:X$881)) -> 0 | F102: =IF('User Input'!C4=0,"",SUMIF(Players!$N$3:$N$881,A102,Players!Y$3:Y$881)) -> 0 | G102: =IF('User Input'!C4=0,"",(SUMIF(Players!$N$3:$N$881,A102,Players!AB$3:AB$997))/B102) ->  | H102: =IF('User Input'!C4=0,"",SUMIF(Players!$AU$3:$AU$915,A102,Players!BB$3:BB$915)) -> 0 | I102: =IF('User Input'!C4=0,"",SUMIF(Players!$AU$3:$AU$915,A102,Players!BI$3:BI$997)/H102) ->  | J102: =IF('User Input'!C4=0,"",SUMIF(Players!$AU$3:$AU$915,A102,Players!BJ$3:BJ$997)/H102) ->  | K102: =IF('User Input'!C4=0,"",SUMIF(Players!$AU$3:$AU$915,A102,Players!BE$3:BE$915)) -> 0 | L102: =IF('User Input'!C4=0,"",SUMIF(Players!$AU$3:$AU$915,A102,Players!BF$3:BF$915)) -> 0 | M102: =IF('User Input'!C4=0,"",SUMIF(Players!$AU$3:$AU$915,A102,Players!BG$3:BG$915)) -> 0
A103: =IF('User Input'!C5 = 0,"",'User Input'!C5) -> e | B103: =IF('User Input'!C5=0,"",SUMIF(Players!$N$3:$N$881,A103,Players!U$3:U$881)) -> 0 | C103: =IF('User Input'!C5=0,"",SUMIF(Players!$N$3:$N$881,A103,Players!V$3:V$881)) -> 0 | D103: =IF('User Input'!C5=0,"",SUMIF(Players!$N$3:$N$881,A103,Players!W$3:W$881)) -> 0 | E103: =IF('User Input'!C5=0,"",SUMIF(Players!$N$3:$N$881,A103,Players!X$3:X$881)) -> 0 | F103: =IF('User Input'!C5=0,"",SUMIF(Players!$N$3:$N$881,A103,Players!Y$3:Y$881)) -> 0 | G103: =IF('User Input'!C5=0,"",(SUMIF(Players!$N$3:$N$881,A103,Players!AB$3:AB$997))/B103) ->  | H103: =IF('User Input'!C5=0,"",SUMIF(Players!$AU$3:$AU$915,A103,Players!BB$3:BB$915)) -> 0 | I103: =IF('User Input'!C5=0,"",SUMIF(Players!$AU$3:$AU$915,A103,Players!BI$3:BI$997)/H103) ->  | J103: =IF('User Input'!C5=0,"",SUMIF(Players!$AU$3:$AU$915,A103,Players!BJ$3:BJ$997)/H103) ->  | K103: =IF('User Input'!C5=0,"",SUMIF(Players!$AU$3:$AU$915,A103,Players!BE$3:BE$915)) -> 0 | L103: =IF('User Input'!C5=0,"",SUMIF(Players!$AU$3:$AU$915,A103,Players!BF$3:BF$915)) -> 0 | M103: =IF('User Input'!C5=0,"",SUMIF(Players!$AU$3:$AU$915,A103,Players!BG$3:BG$915)) -> 0
A104: =IF('User Input'!C6 = 0,"",'User Input'!C6) -> f | B104: =IF('User Input'!C6=0,"",SUMIF(Players!$N$3:$N$881,A104,Players!U$3:U$881)) -> 0 | C104: =IF('User Input'!C6=0,"",SUMIF(Players!$N$3:$N$881,A104,Players!V$3:V$881)) -> 0 | D104: =IF('User Input'!C6=0,"",SUMIF(Players!$N$3:$N$881,A104,Players!W$3:W$881)) -> 0 | E104: =IF('User Input'!C6=0,"",SUMIF(Players!$N$3:$N$881,A104,Players!X$3:X$881)) -> 0 | F104: =IF('User Input'!C6=0,"",SUMIF(Players!$N$3:$N$881,A104,Players!Y$3:Y$881)) -> 0 | G104: =IF('User Input'!C6=0,"",(SUMIF(Players!$N$3:$N$881,A104,Players!AB$3:AB$997))/B104) ->  | H104: =IF('User Input'!C6=0,"",SUMIF(Players!$AU$3:$AU$915,A104,Players!BB$3:BB$915)) -> 0 | I104: =IF('User Input'!C6=0,"",SUMIF(Players!$AU$3:$AU$915,A104,Players!BI$3:BI$997)/H104) ->  | J104: =IF('User Input'!C6=0,"",SUMIF(Players!$AU$3:$AU$915,A104,Players!BJ$3:BJ$997)/H104) ->  | K104: =IF('User Input'!C6=0,"",SUMIF(Players!$AU$3:$AU$915,A104,Players!BE$3:BE$915)) -> 0 | L104: =IF('User Input'!C6=0,"",SUMIF(Players!$AU$3:$AU$915,A104,Players!BF$3:BF$915)) -> 0 | M104: =IF('User Input'!C6=0,"",SUMIF(Players!$AU$3:$AU$915,A104,Players!BG$3:BG$915)) -> 0
A105: =IF('User Input'!C7 = 0,"",'User Input'!C7) -> g | B105: =IF('User Input'!C7=0,"",SUMIF(Players!$N$3:$N$881,A105,Players!U$3:U$881)) -> 0 | C105: =IF('User Input'!C7=0,"",SUMIF(Players!$N$3:$N$881,A105,Players!V$3:V$881)) -> 0 | D105: =IF('User Input'!C7=0,"",SUMIF(Players!$N$3:$N$881,A105,Players!W$3:W$881)) -> 0 | E105: =IF('User Input'!C7=0,"",SUMIF(Players!$N$3:$N$881,A105,Players!X$3:X$881)) -> 0 | F105: =IF('User Input'!C7=0,"",SUMIF(Players!$N$3:$N$881,A105,Players!Y$3:Y$881)) -> 0 | G105: =IF('User Input'!C7=0,"",(SUMIF(Players!$N$3:$N$881,A105,Players!AB$3:AB$997))/B105) ->  | H105: =IF('User Input'!C7=0,"",SUMIF(Players!$AU$3:$AU$915,A105,Players!BB$3:BB$915)) -> 0 | I105: =IF('User Input'!C7=0,"",SUMIF(Players!$AU$3:$AU$915,A105,Players!BI$3:BI$997)/H105) ->  | J105: =IF('User Input'!C7=0,"",SUMIF(Players!$AU$3:$AU$915,A105,Players!BJ$3:BJ$997)/H105) ->  | K105: =IF('User Input'!C7=0,"",SUMIF(Players!$AU$3:$AU$915,A105,Players!BE$3:BE$915)) -> 0 | L105: =IF('User Input'!C7=0,"",SUMIF(Players!$AU$3:$AU$915,A105,Players!BF$3:BF$915)) -> 0 | M105: =IF('User Input'!C7=0,"",SUMIF(Players!$AU$3:$AU$915,A105,Players!BG$3:BG$915)) -> 0
A106: =IF('User Input'!C8 = 0,"",'User Input'!C8) -> h | B106: =IF('User Input'!C8=0,"",SUMIF(Players!$N$3:$N$881,A106,Players!U$3:U$881)) -> 0 | C106: =IF('User Input'!C8=0,"",SUMIF(Players!$N$3:$N$881,A106,Players!V$3:V$881)) -> 0 | D106: =IF('User Input'!C8=0,"",SUMIF(Players!$N$3:$N$881,A106,Players!W$3:W$881)) -> 0 | E106: =IF('User Input'!C8=0,"",SUMIF(Players!$N$3:$N$881,A106,Players!X$3:X$881)) -> 0 | F106: =IF('User Input'!C8=0,"",SUMIF(Players!$N$3:$N$881,A106,Players!Y$3:Y$881)) -> 0 | G106: =IF('User Input'!C8=0,"",(SUMIF(Players!$N$3:$N$881,A106,Players!AB$3:AB$997))/B106) ->  | H106: =IF('User Input'!C8=0,"",SUMIF(Players!$AU$3:$AU$915,A106,Players!BB$3:BB$915)) -> 0 | I106: =IF('User Input'!C8=0,"",SUMIF(Players!$AU$3:$AU$915,A106,Players!BI$3:BI$997)/H106) ->  | J106: =IF('User Input'!C8=0,"",SUMIF(Players!$AU$3:$AU$915,A106,Players!BJ$3:BJ$997)/H106) ->  | K106: =IF('User Input'!C8=0,"",SUMIF(Players!$AU$3:$AU$915,A106,Players!BE$3:BE$915)) -> 0 | L106: =IF('User Input'!C8=0,"",SUMIF(Players!$AU$3:$AU$915,A106,Players!BF$3:BF$915)) -> 0 | M106: =IF('User Input'!C8=0,"",SUMIF(Players!$AU$3:$AU$915,A106,Players!BG$3:BG$915)) -> 0
A107: =IF('User Input'!C9 = 0,"",'User Input'!C9) -> i | B107: =IF('User Input'!C9=0,"",SUMIF(Players!$N$3:$N$881,A107,Players!U$3:U$881)) -> 0 | C107: =IF('User Input'!C9=0,"",SUMIF(Players!$N$3:$N$881,A107,Players!V$3:V$881)) -> 0 | D107: =IF('User Input'!C9=0,"",SUMIF(Players!$N$3:$N$881,A107,Players!W$3:W$881)) -> 0 | E107: =IF('User Input'!C9=0,"",SUMIF(Players!$N$3:$N$881,A107,Players!X$3:X$881)) -> 0 | F107: =IF('User Input'!C9=0,"",SUMIF(Players!$N$3:$N$881,A107,Players!Y$3:Y$881)) -> 0 | G107: =IF('User Input'!C9=0,"",(SUMIF(Players!$N$3:$N$881,A107,Players!AB$3:AB$997))/B107) ->  | H107: =IF('User Input'!C9=0,"",SUMIF(Players!$AU$3:$AU$915,A107,Players!BB$3:BB$915)) -> 0 | I107: =IF('User Input'!C9=0,"",SUMIF(Players!$AU$3:$AU$915,A107,Players!BI$3:BI$997)/H107) ->  | J107: =IF('User Input'!C9=0,"",SUMIF(Players!$AU$3:$AU$915,A107,Players!BJ$3:BJ$997)/H107) ->  | K107: =IF('User Input'!C9=0,"",SUMIF(Players!$AU$3:$AU$915,A107,Players!BE$3:BE$915)) -> 0 | L107: =IF('User Input'!C9=0,"",SUMIF(Players!$AU$3:$AU$915,A107,Players!BF$3:BF$915)) -> 0 | M107: =IF('User Input'!C9=0,"",SUMIF(Players!$AU$3:$AU$915,A107,Players!BG$3:BG$915)) -> 0
A108: =IF('User Input'!C10 = 0,"",'User Input'!C10) -> j | B108: =IF('User Input'!C10=0,"",SUMIF(Players!$N$3:$N$881,A108,Players!U$3:U$881)) -> 0 | C108: =IF('User Input'!C10=0,"",SUMIF(Players!$N$3:$N$881,A108,Players!V$3:V$881)) -> 0 | D108: =IF('User Input'!C10=0,"",SUMIF(Players!$N$3:$N$881,A108,Players!W$3:W$881)) -> 0 | E108: =IF('User Input'!C10=0,"",SUMIF(Players!$N$3:$N$881,A108,Players!X$3:X$881)) -> 0 | F108: =IF('User Input'!C10=0,"",SUMIF(Players!$N$3:$N$881,A108,Players!Y$3:Y$881)) -> 0 | G108: =IF('User Input'!C10=0,"",(SUMIF(Players!$N$3:$N$881,A108,Players!AB$3:AB$997))/B108) ->  | H108: =IF('User Input'!C10=0,"",SUMIF(Players!$AU$3:$AU$915,A108,Players!BB$3:BB$915)) -> 0 | I108: =IF('User Input'!C10=0,"",SUMIF(Players!$AU$3:$AU$915,A108,Players!BI$3:BI$997)/H108) ->  | J108: =IF('User Input'!C10=0,"",SUMIF(Players!$AU$3:$AU$915,A108,Players!BJ$3:BJ$997)/H108) ->  | K108: =IF('User Input'!C10=0,"",SUMIF(Players!$AU$3:$AU$915,A108,Players!BE$3:BE$915)) -> 0 | L108: =IF('User Input'!C10=0,"",SUMIF(Players!$AU$3:$AU$915,A108,Players!BF$3:BF$915)) -> 0 | M108: =IF('User Input'!C10=0,"",SUMIF(Players!$AU$3:$AU$915,A108,Players!BG$3:BG$915)) -> 0
A109: =IF('User Input'!C11 = 0,"",'User Input'!C11) -> k | B109: =IF('User Input'!C11=0,"",SUMIF(Players!$N$3:$N$881,A109,Players!U$3:U$881)) -> 0 | C109: =IF('User Input'!C11=0,"",SUMIF(Players!$N$3:$N$881,A109,Players!V$3:V$881)) -> 0 | D109: =IF('User Input'!C11=0,"",SUMIF(Players!$N$3:$N$881,A109,Players!W$3:W$881)) -> 0 | E109: =IF('User Input'!C11=0,"",SUMIF(Players!$N$3:$N$881,A109,Players!X$3:X$881)) -> 0 | F109: =IF('User Input'!C11=0,"",SUMIF(Players!$N$3:$N$881,A109,Players!Y$3:Y$881)) -> 0 | G109: =IF('User Input'!C11=0,"",(SUMIF(Players!$N$3:$N$881,A109,Players!AB$3:AB$997))/B109) ->  | H109: =IF('User Input'!C11=0,"",SUMIF(Players!$AU$3:$AU$915,A109,Players!BB$3:BB$915)) -> 0 | I109: =IF('User Input'!C11=0,"",SUMIF(Players!$AU$3:$AU$915,A109,Players!BI$3:BI$997)/H109) ->  | J109: =IF('User Input'!C11=0,"",SUMIF(Players!$AU$3:$AU$915,A109,Players!BJ$3:BJ$997)/H109) ->  | K109: =IF('User Input'!C11=0,"",SUMIF(Players!$AU$3:$AU$915,A109,Players!BE$3:BE$915)) -> 0 | L109: =IF('User Input'!C11=0,"",SUMIF(Players!$AU$3:$AU$915,A109,Players!BF$3:BF$915)) -> 0 | M109: =IF('User Input'!C11=0,"",SUMIF(Players!$AU$3:$AU$915,A109,Players!BG$3:BG$915)) -> 0
A110: =IF('User Input'!C12 = 0,"",'User Input'!C12) -> l | B110: =IF('User Input'!C12=0,"",SUMIF(Players!$N$3:$N$881,A110,Players!U$3:U$881)) -> 0 | C110: =IF('User Input'!C12=0,"",SUMIF(Players!$N$3:$N$881,A110,Players!V$3:V$881)) -> 0 | D110: =IF('User Input'!C12=0,"",SUMIF(Players!$N$3:$N$881,A110,Players!W$3:W$881)) -> 0 | E110: =IF('User Input'!C12=0,"",SUMIF(Players!$N$3:$N$881,A110,Players!X$3:X$881)) -> 0 | F110: =IF('User Input'!C12=0,"",SUMIF(Players!$N$3:$N$881,A110,Players!Y$3:Y$881)) -> 0 | G110: =IF('User Input'!C12=0,"",(SUMIF(Players!$N$3:$N$881,A110,Players!AB$3:AB$997))/B110) ->  | H110: =IF('User Input'!C12=0,"",SUMIF(Players!$AU$3:$AU$915,A110,Players!BB$3:BB$915)) -> 0 | I110: =IF('User Input'!C12=0,"",SUMIF(Players!$AU$3:$AU$915,A110,Players!BI$3:BI$997)/H110) ->  | J110: =IF('User Input'!C12=0,"",SUMIF(Players!$AU$3:$AU$915,A110,Players!BJ$3:BJ$997)/H110) ->  | K110: =IF('User Input'!C12=0,"",SUMIF(Players!$AU$3:$AU$915,A110,Players!BE$3:BE$915)) -> 0 | L110: =IF('User Input'!C12=0,"",SUMIF(Players!$AU$3:$AU$915,A110,Players!BF$3:BF$915)) -> 0 | M110: =IF('User Input'!C12=0,"",SUMIF(Players!$AU$3:$AU$915,A110,Players!BG$3:BG$915)) -> 0
A111: =IF('User Input'!C13 = 0,"",'User Input'!C13) ->  | B111: =IF('User Input'!C13=0,"",SUMIF(Players!$N$3:$N$881,A111,Players!U$3:U$881)) ->  | C111: =IF('User Input'!C13=0,"",SUMIF(Players!$N$3:$N$881,A111,Players!V$3:V$881)) ->  | D111: =IF('User Input'!C13=0,"",SUMIF(Players!$N$3:$N$881,A111,Players!W$3:W$881)) ->  | E111: =IF('User Input'!C13=0,"",SUMIF(Players!$N$3:$N$881,A111,Players!X$3:X$881)) ->  | F111: =IF('User Input'!C13=0,"",SUMIF(Players!$N$3:$N$881,A111,Players!Y$3:Y$881)) ->  | G111: =IF('User Input'!C13=0,"",(SUMIF(Players!$N$3:$N$881,A111,Players!AB$3:AB$997))/B111) ->  | H111: =IF('User Input'!C13=0,"",SUMIF(Players!$AU$3:$AU$915,A111,Players!BB$3:BB$915)) ->  | I111: =IF('User Input'!C13=0,"",SUMIF(Players!$AU$3:$AU$915,A111,Players!BI$3:BI$997)/H111) ->  | J111: =IF('User Input'!C13=0,"",SUMIF(Players!$AU$3:$AU$915,A111,Players!BJ$3:BJ$997)/H111) ->  | K111: =IF('User Input'!C13=0,"",SUMIF(Players!$AU$3:$AU$915,A111,Players!BE$3:BE$915)) ->  | L111: =IF('User Input'!C13=0,"",SUMIF(Players!$AU$3:$AU$915,A111,Players!BF$3:BF$915)) ->  | M111: =IF('User Input'!C13=0,"",SUMIF(Players!$AU$3:$AU$915,A111,Players!BG$3:BG$915)) -> 
A112: =IF('User Input'!C14 = 0,"",'User Input'!C14) ->  | B112: =IF('User Input'!C14=0,"",SUMIF(Players!$N$3:$N$881,A112,Players!U$3:U$881)) ->  | C112: =IF('User Input'!C14=0,"",SUMIF(Players!$N$3:$N$881,A112,Players!V$3:V$881)) ->  | D112: =IF('User Input'!C14=0,"",SUMIF(Players!$N$3:$N$881,A112,Players!W$3:W$881)) ->  | E112: =IF('User Input'!C14=0,"",SUMIF(Players!$N$3:$N$881,A112,Players!X$3:X$881)) ->  | F112: =IF('User Input'!C14=0,"",SUMIF(Players!$N$3:$N$881,A112,Players!Y$3:Y$881)) ->  | G112: =IF('User Input'!C14=0,"",(SUMIF(Players!$N$3:$N$881,A112,Players!AB$3:AB$997))/B112) ->  | H112: =IF('User Input'!C14=0,"",SUMIF(Players!$AU$3:$AU$915,A112,Players!BB$3:BB$915)) ->  | I112: =IF('User Input'!C14=0,"",SUMIF(Players!$AU$3:$AU$915,A112,Players!BI$3:BI$997)/H112) ->  | J112: =IF('User Input'!C14=0,"",SUMIF(Players!$AU$3:$AU$915,A112,Players!BJ$3:BJ$997)/H112) ->  | K112: =IF('User Input'!C14=0,"",SUMIF(Players!$AU$3:$AU$915,A112,Players!BE$3:BE$915)) ->  | L112: =IF('User Input'!C14=0,"",SUMIF(Players!$AU$3:$AU$915,A112,Players!BF$3:BF$915)) ->  | M112: =IF('User Input'!C14=0,"",SUMIF(Players!$AU$3:$AU$915,A112,Players!BG$3:BG$915)) -> 
A113: =IF('User Input'!C15 = 0,"",'User Input'!C15) ->  | B113: =IF('User Input'!C15=0,"",SUMIF(Players!$N$3:$N$881,A113,Players!U$3:U$881)) ->  | C113: =IF('User Input'!C15=0,"",SUMIF(Players!$N$3:$N$881,A113,Players!V$3:V$881)) ->  | D113: =IF('User Input'!C15=0,"",SUMIF(Players!$N$3:$N$881,A113,Players!W$3:W$881)) ->  | E113: =IF('User Input'!C15=0,"",SUMIF(Players!$N$3:$N$881,A113,Players!X$3:X$881)) ->  | F113: =IF('User Input'!C15=0,"",SUMIF(Players!$N$3:$N$881,A113,Players!Y$3:Y$881)) ->  | G113: =IF('User Input'!C15=0,"",(SUMIF(Players!$N$3:$N$881,A113,Players!AB$3:AB$997))/B113) ->  | H113: =IF('User Input'!C15=0,"",SUMIF(Players!$AU$3:$AU$915,A113,Players!BB$3:BB$915)) ->  | I113: =IF('User Input'!C15=0,"",SUMIF(Players!$AU$3:$AU$915,A113,Players!BI$3:BI$997)/H113) ->  | J113: =IF('User Input'!C15=0,"",SUMIF(Players!$AU$3:$AU$915,A113,Players!BJ$3:BJ$997)/H113) ->  | K113: =IF('User Input'!C15=0,"",SUMIF(Players!$AU$3:$AU$915,A113,Players!BE$3:BE$915)) ->  | L113: =IF('User Input'!C15=0,"",SUMIF(Players!$AU$3:$AU$915,A113,Players!BF$3:BF$915)) ->  | M113: =IF('User Input'!C15=0,"",SUMIF(Players!$AU$3:$AU$915,A113,Players!BG$3:BG$915)) -> 
A114: =IF('User Input'!C16 = 0,"",'User Input'!C16) ->  | B114: =IF('User Input'!C16=0,"",SUMIF(Players!$N$3:$N$881,A114,Players!U$3:U$881)) ->  | C114: =IF('User Input'!C16=0,"",SUMIF(Players!$N$3:$N$881,A114,Players!V$3:V$881)) ->  | D114: =IF('User Input'!C16=0,"",SUMIF(Players!$N$3:$N$881,A114,Players!W$3:W$881)) ->  | E114: =IF('User Input'!C16=0,"",SUMIF(Players!$N$3:$N$881,A114,Players!X$3:X$881)) ->  | F114: =IF('User Input'!C16=0,"",SUMIF(Players!$N$3:$N$881,A114,Players!Y$3:Y$881)) ->  | G114: =IF('User Input'!C16=0,"",(SUMIF(Players!$N$3:$N$881,A114,Players!AB$3:AB$997))/B114) ->  | H114: =IF('User Input'!C16=0,"",SUMIF(Players!$AU$3:$AU$915,A114,Players!BB$3:BB$915)) ->  | I114: =IF('User Input'!C16=0,"",SUMIF(Players!$AU$3:$AU$915,A114,Players!BI$3:BI$997)/H114) ->  | J114: =IF('User Input'!C16=0,"",SUMIF(Players!$AU$3:$AU$915,A114,Players!BJ$3:BJ$997)/H114) ->  | K114: =IF('User Input'!C16=0,"",SUMIF(Players!$AU$3:$AU$915,A114,Players!BE$3:BE$915)) ->  | L114: =IF('User Input'!C16=0,"",SUMIF(Players!$AU$3:$AU$915,A114,Players!BF$3:BF$915)) ->  | M114: =IF('User Input'!C16=0,"",SUMIF(Players!$AU$3:$AU$915,A114,Players!BG$3:BG$915)) -> 
A115: =IF('User Input'!C17 = 0,"",'User Input'!C17) ->  | B115: =IF('User Input'!C17=0,"",SUMIF(Players!$N$3:$N$881,A115,Players!U$3:U$881)) ->  | C115: =IF('User Input'!C17=0,"",SUMIF(Players!$N$3:$N$881,A115,Players!V$3:V$881)) ->  | D115: =IF('User Input'!C17=0,"",SUMIF(Players!$N$3:$N$881,A115,Players!W$3:W$881)) ->  | E115: =IF('User Input'!C17=0,"",SUMIF(Players!$N$3:$N$881,A115,Players!X$3:X$881)) ->  | F115: =IF('User Input'!C17=0,"",SUMIF(Players!$N$3:$N$881,A115,Players!Y$3:Y$881)) ->  | G115: =IF('User Input'!C17=0,"",(SUMIF(Players!$N$3:$N$881,A115,Players!AB$3:AB$997))/B115) ->  | H115: =IF('User Input'!C17=0,"",SUMIF(Players!$AU$3:$AU$915,A115,Players!BB$3:BB$915)) ->  | I115: =IF('User Input'!C17=0,"",SUMIF(Players!$AU$3:$AU$915,A115,Players!BI$3:BI$997)/H115) ->  | J115: =IF('User Input'!C17=0,"",SUMIF(Players!$AU$3:$AU$915,A115,Players!BJ$3:BJ$997)/H115) ->  | K115: =IF('User Input'!C17=0,"",SUMIF(Players!$AU$3:$AU$915,A115,Players!BE$3:BE$915)) ->  | L115: =IF('User Input'!C17=0,"",SUMIF(Players!$AU$3:$AU$915,A115,Players!BF$3:BF$915)) ->  | M115: =IF('User Input'!C17=0,"",SUMIF(Players!$AU$3:$AU$915,A115,Players!BG$3:BG$915)) -> 
A116: =IF('User Input'!C18 = 0,"",'User Input'!C18) ->  | B116: =IF('User Input'!C18=0,"",SUMIF(Players!$N$3:$N$881,A116,Players!U$3:U$881)) ->  | C116: =IF('User Input'!C18=0,"",SUMIF(Players!$N$3:$N$881,A116,Players!V$3:V$881)) ->  | D116: =IF('User Input'!C18=0,"",SUMIF(Players!$N$3:$N$881,A116,Players!W$3:W$881)) ->  | E116: =IF('User Input'!C18=0,"",SUMIF(Players!$N$3:$N$881,A116,Players!X$3:X$881)) ->  | F116: =IF('User Input'!C18=0,"",SUMIF(Players!$N$3:$N$881,A116,Players!Y$3:Y$881)) ->  | G116: =IF('User Input'!C18=0,"",(SUMIF(Players!$N$3:$N$881,A116,Players!AB$3:AB$997))/B116) ->  | H116: =IF('User Input'!C18=0,"",SUMIF(Players!$AU$3:$AU$915,A116,Players!BB$3:BB$915)) ->  | I116: =IF('User Input'!C18=0,"",SUMIF(Players!$AU$3:$AU$915,A116,Players!BI$3:BI$997)/H116) ->  | J116: =IF('User Input'!C18=0,"",SUMIF(Players!$AU$3:$AU$915,A116,Players!BJ$3:BJ$997)/H116) ->  | K116: =IF('User Input'!C18=0,"",SUMIF(Players!$AU$3:$AU$915,A116,Players!BE$3:BE$915)) ->  | L116: =IF('User Input'!C18=0,"",SUMIF(Players!$AU$3:$AU$915,A116,Players!BF$3:BF$915)) ->  | M116: =IF('User Input'!C18=0,"",SUMIF(Players!$AU$3:$AU$915,A116,Players!BG$3:BG$915)) -> 
A117: =IF('User Input'!C19 = 0,"",'User Input'!C19) ->  | B117: =IF('User Input'!C19=0,"",SUMIF(Players!$N$3:$N$881,A117,Players!U$3:U$881)) ->  | C117: =IF('User Input'!C19=0,"",SUMIF(Players!$N$3:$N$881,A117,Players!V$3:V$881)) ->  | D117: =IF('User Input'!C19=0,"",SUMIF(Players!$N$3:$N$881,A117,Players!W$3:W$881)) ->  | E117: =IF('User Input'!C19=0,"",SUMIF(Players!$N$3:$N$881,A117,Players!X$3:X$881)) ->  | F117: =IF('User Input'!C19=0,"",SUMIF(Players!$N$3:$N$881,A117,Players!Y$3:Y$881)) ->  | G117: =IF('User Input'!C19=0,"",(SUMIF(Players!$N$3:$N$881,A117,Players!AB$3:AB$997))/B117) ->  | H117: =IF('User Input'!C19=0,"",SUMIF(Players!$AU$3:$AU$915,A117,Players!BB$3:BB$915)) ->  | I117: =IF('User Input'!C19=0,"",SUMIF(Players!$AU$3:$AU$915,A117,Players!BI$3:BI$997)/H117) ->  | J117: =IF('User Input'!C19=0,"",SUMIF(Players!$AU$3:$AU$915,A117,Players!BJ$3:BJ$997)/H117) ->  | K117: =IF('User Input'!C19=0,"",SUMIF(Players!$AU$3:$AU$915,A117,Players!BE$3:BE$915)) ->  | L117: =IF('User Input'!C19=0,"",SUMIF(Players!$AU$3:$AU$915,A117,Players!BF$3:BF$915)) ->  | M117: =IF('User Input'!C19=0,"",SUMIF(Players!$AU$3:$AU$915,A117,Players!BG$3:BG$915)) -> 
A118: =IF('User Input'!C20 = 0,"",'User Input'!C20) ->  | B118: =IF('User Input'!C20=0,"",SUMIF(Players!$N$3:$N$881,A118,Players!U$3:U$881)) ->  | C118: =IF('User Input'!C20=0,"",SUMIF(Players!$N$3:$N$881,A118,Players!V$3:V$881)) ->  | D118: =IF('User Input'!C20=0,"",SUMIF(Players!$N$3:$N$881,A118,Players!W$3:W$881)) ->  | E118: =IF('User Input'!C20=0,"",SUMIF(Players!$N$3:$N$881,A118,Players!X$3:X$881)) ->  | F118: =IF('User Input'!C20=0,"",SUMIF(Players!$N$3:$N$881,A118,Players!Y$3:Y$881)) ->  | G118: =IF('User Input'!C20=0,"",(SUMIF(Players!$N$3:$N$881,A118,Players!AB$3:AB$997))/B118) ->  | H118: =IF('User Input'!C20=0,"",SUMIF(Players!$AU$3:$AU$915,A118,Players!BB$3:BB$915)) ->  | I118: =IF('User Input'!C20=0,"",SUMIF(Players!$AU$3:$AU$915,A118,Players!BI$3:BI$997)/H118) ->  | J118: =IF('User Input'!C20=0,"",SUMIF(Players!$AU$3:$AU$915,A118,Players!BJ$3:BJ$997)/H118) ->  | K118: =IF('User Input'!C20=0,"",SUMIF(Players!$AU$3:$AU$915,A118,Players!BE$3:BE$915)) ->  | L118: =IF('User Input'!C20=0,"",SUMIF(Players!$AU$3:$AU$915,A118,Players!BF$3:BF$915)) ->  | M118: =IF('User Input'!C20=0,"",SUMIF(Players!$AU$3:$AU$915,A118,Players!BG$3:BG$915)) -> 
A119: =IF('User Input'!C21 = 0,"",'User Input'!C21) ->  | B119: =IF('User Input'!C21=0,"",SUMIF(Players!$N$3:$N$881,A119,Players!U$3:U$881)) ->  | C119: =IF('User Input'!C21=0,"",SUMIF(Players!$N$3:$N$881,A119,Players!V$3:V$881)) ->  | D119: =IF('User Input'!C21=0,"",SUMIF(Players!$N$3:$N$881,A119,Players!W$3:W$881)) ->  | E119: =IF('User Input'!C21=0,"",SUMIF(Players!$N$3:$N$881,A119,Players!X$3:X$881)) ->  | F119: =IF('User Input'!C21=0,"",SUMIF(Players!$N$3:$N$881,A119,Players!Y$3:Y$881)) ->  | G119: =IF('User Input'!C21=0,"",(SUMIF(Players!$N$3:$N$881,A119,Players!AB$3:AB$997))/B119) ->  | H119: =IF('User Input'!C21=0,"",SUMIF(Players!$AU$3:$AU$915,A119,Players!BB$3:BB$915)) ->  | I119: =IF('User Input'!C21=0,"",SUMIF(Players!$AU$3:$AU$915,A119,Players!BI$3:BI$997)/H119) ->  | J119: =IF('User Input'!C21=0,"",SUMIF(Players!$AU$3:$AU$915,A119,Players!BJ$3:BJ$997)/H119) ->  | K119: =IF('User Input'!C21=0,"",SUMIF(Players!$AU$3:$AU$915,A119,Players!BE$3:BE$915)) ->  | L119: =IF('User Input'!C21=0,"",SUMIF(Players!$AU$3:$AU$915,A119,Players!BF$3:BF$915)) ->  | M119: =IF('User Input'!C21=0,"",SUMIF(Players!$AU$3:$AU$915,A119,Players!BG$3:BG$915)) -> 
A120: =IF('User Input'!C22 = 0,"",'User Input'!C22) ->  | B120: =IF('User Input'!C22=0,"",SUMIF(Players!$N$3:$N$881,A120,Players!U$3:U$881)) ->  | C120: =IF('User Input'!C22=0,"",SUMIF(Players!$N$3:$N$881,A120,Players!V$3:V$881)) ->  | D120: =IF('User Input'!C22=0,"",SUMIF(Players!$N$3:$N$881,A120,Players!W$3:W$881)) ->  | E120: =IF('User Input'!C22=0,"",SUMIF(Players!$N$3:$N$881,A120,Players!X$3:X$881)) ->  | F120: =IF('User Input'!C22=0,"",SUMIF(Players!$N$3:$N$881,A120,Players!Y$3:Y$881)) ->  | G120: =IF('User Input'!C22=0,"",(SUMIF(Players!$N$3:$N$881,A120,Players!AB$3:AB$997))/B120) ->  | H120: =IF('User Input'!C22=0,"",SUMIF(Players!$AU$3:$AU$915,A120,Players!BB$3:BB$915)) ->  | I120: =IF('User Input'!C22=0,"",SUMIF(Players!$AU$3:$AU$915,A120,Players!BI$3:BI$997)/H120) ->  | J120: =IF('User Input'!C22=0,"",SUMIF(Players!$AU$3:$AU$915,A120,Players!BJ$3:BJ$997)/H120) ->  | K120: =IF('User Input'!C22=0,"",SUMIF(Players!$AU$3:$AU$915,A120,Players!BE$3:BE$915)) ->  | L120: =IF('User Input'!C22=0,"",SUMIF(Players!$AU$3:$AU$915,A120,Players!BF$3:BF$915)) ->  | M120: =IF('User Input'!C22=0,"",SUMIF(Players!$AU$3:$AU$915,A120,Players!BG$3:BG$915)) -> 
A121: =IF('User Input'!C23 = 0,"",'User Input'!C23) ->  | B121: =IF('User Input'!C23=0,"",SUMIF(Players!$N$3:$N$881,A121,Players!U$3:U$881)) ->  | C121: =IF('User Input'!C23=0,"",SUMIF(Players!$N$3:$N$881,A121,Players!V$3:V$881)) ->  | D121: =IF('User Input'!C23=0,"",SUMIF(Players!$N$3:$N$881,A121,Players!W$3:W$881)) ->  | E121: =IF('User Input'!C23=0,"",SUMIF(Players!$N$3:$N$881,A121,Players!X$3:X$881)) ->  | F121: =IF('User Input'!C23=0,"",SUMIF(Players!$N$3:$N$881,A121,Players!Y$3:Y$881)) ->  | G121: =IF('User Input'!C23=0,"",(SUMIF(Players!$N$3:$N$881,A121,Players!AB$3:AB$997))/B121) ->  | H121: =IF('User Input'!C23=0,"",SUMIF(Players!$AU$3:$AU$915,A121,Players!BB$3:BB$915)) ->  | I121: =IF('User Input'!C23=0,"",SUMIF(Players!$AU$3:$AU$915,A121,Players!BI$3:BI$997)/H121) ->  | J121: =IF('User Input'!C23=0,"",SUMIF(Players!$AU$3:$AU$915,A121,Players!BJ$3:BJ$997)/H121) ->  | K121: =IF('User Input'!C23=0,"",SUMIF(Players!$AU$3:$AU$915,A121,Players!BE$3:BE$915)) ->  | L121: =IF('User Input'!C23=0,"",SUMIF(Players!$AU$3:$AU$915,A121,Players!BF$3:BF$915)) ->  | M121: =IF('User Input'!C23=0,"",SUMIF(Players!$AU$3:$AU$915,A121,Players!BG$3:BG$915)) -> 
A122: =IF('User Input'!C24 = 0,"",'User Input'!C24) ->  | B122: =IF('User Input'!C24=0,"",SUMIF(Players!$N$3:$N$881,A122,Players!U$3:U$881)) ->  | C122: =IF('User Input'!C24=0,"",SUMIF(Players!$N$3:$N$881,A122,Players!V$3:V$881)) ->  | D122: =IF('User Input'!C24=0,"",SUMIF(Players!$N$3:$N$881,A122,Players!W$3:W$881)) ->  | E122: =IF('User Input'!C24=0,"",SUMIF(Players!$N$3:$N$881,A122,Players!X$3:X$881)) ->  | F122: =IF('User Input'!C24=0,"",SUMIF(Players!$N$3:$N$881,A122,Players!Y$3:Y$881)) ->  | G122: =IF('User Input'!C24=0,"",(SUMIF(Players!$N$3:$N$881,A122,Players!AB$3:AB$997))/B122) ->  | H122: =IF('User Input'!C24=0,"",SUMIF(Players!$AU$3:$AU$915,A122,Players!BB$3:BB$915)) ->  | I122: =IF('User Input'!C24=0,"",SUMIF(Players!$AU$3:$AU$915,A122,Players!BI$3:BI$997)/H122) ->  | J122: =IF('User Input'!C24=0,"",SUMIF(Players!$AU$3:$AU$915,A122,Players!BJ$3:BJ$997)/H122) ->  | K122: =IF('User Input'!C24=0,"",SUMIF(Players!$AU$3:$AU$915,A122,Players!BE$3:BE$915)) ->  | L122: =IF('User Input'!C24=0,"",SUMIF(Players!$AU$3:$AU$915,A122,Players!BF$3:BF$915)) ->  | M122: =IF('User Input'!C24=0,"",SUMIF(Players!$AU$3:$AU$915,A122,Players!BG$3:BG$915)) -> 
A123: =IF('User Input'!C25 = 0,"",'User Input'!C25) ->  | B123: =IF('User Input'!C25=0,"",SUMIF(Players!$N$3:$N$881,A123,Players!U$3:U$881)) ->  | C123: =IF('User Input'!C25=0,"",SUMIF(Players!$N$3:$N$881,A123,Players!V$3:V$881)) ->  | D123: =IF('User Input'!C25=0,"",SUMIF(Players!$N$3:$N$881,A123,Players!W$3:W$881)) ->  | E123: =IF('User Input'!C25=0,"",SUMIF(Players!$N$3:$N$881,A123,Players!X$3:X$881)) ->  | F123: =IF('User Input'!C25=0,"",SUMIF(Players!$N$3:$N$881,A123,Players!Y$3:Y$881)) ->  | G123: =IF('User Input'!C25=0,"",(SUMIF(Players!$N$3:$N$881,A123,Players!AB$3:AB$997))/B123) ->  | H123: =IF('User Input'!C25=0,"",SUMIF(Players!$AU$3:$AU$915,A123,Players!BB$3:BB$915)) ->  | I123: =IF('User Input'!C25=0,"",SUMIF(Players!$AU$3:$AU$915,A123,Players!BI$3:BI$997)/H123) ->  | J123: =IF('User Input'!C25=0,"",SUMIF(Players!$AU$3:$AU$915,A123,Players!BJ$3:BJ$997)/H123) ->  | K123: =IF('User Input'!C25=0,"",SUMIF(Players!$AU$3:$AU$915,A123,Players!BE$3:BE$915)) ->  | L123: =IF('User Input'!C25=0,"",SUMIF(Players!$AU$3:$AU$915,A123,Players!BF$3:BF$915)) ->  | M123: =IF('User Input'!C25=0,"",SUMIF(Players!$AU$3:$AU$915,A123,Players!BG$3:BG$915)) -> 

Sheet Players
M1: HITTER Vitals | U1: Average | AB1: Formulas | AT1: PITCHER Vitals | BB1: Average | BI1: Formulas | BR1: 9 | BS1: 7 | BT1: ← | BU1: custom k/9 & 'ace' cutoff | CK1: LISTTEAMS
A2: Grey Hitter Rank | B2: Grey Tot Rank | D2: Keepers - HIT | E2: Prospects-HIT | F2: PTS_TOT_RANK | G2: PTS_Total_PTS | H2: PTS_PPG | J2: OBP_RANK_5x5 | K2: OPS_RANK_6x6 | M2: Name | N2: Owner | O2: Sal | P2: Team | Q2: ESPN | R2: Yahoo | S2: $ | U2: AB | V2: R | W2: HR | X2: RBI | Y2: SB | Z2: AVG | AB2: OBP Calc | AC2: A | AD2: B | AE2: C | AF2: WR Player | AG2: WR Sal | AH2: P S | AI2: Hitter ETA | AK2: Grey Pitch Rank | AL2: Grey Tot Rank | AN2: Keepers - Pitch | AO2: Prospects-PITCH | AP2: PTS_TOT_RANK | AQ2: PTS_Total_PTS | AR2: PTS_PPG | AT2: Name | AU2: Owner | AV2: Salary | AW2: Team | AX2: ESPN | AY2: Yahoo | AZ2: $ P | BB2: IP | BC2: ERA | BD2: WHIP | BE2: W | BF2: S | BG2: K | BI2: ERA Calc | BJ2: WHIP Calc | BK2: A10 | BL2: B11 | BM2: C12 | BN2: WR Player13 | BO2: WR Sal14 | BP2: P S15 | BQ2: Pitch ETA | BR2: K/9 | BS2: "ACE STUFF" (K/9 - BB/9) | BT2: >7 is good per Grey | CI2: =IF(CJ2="","",MAX(CI$1:CI1)+1) -> 1 | CJ2: =IF('User Input'!C1=0,"",'User Input'!C1) -> a | CK2: =IFERROR(INDEX($CJ$2:$CJ$26,MATCH(ROW()-ROW($CK$1),$CI$2:$CI$26,0)),"") -> a
A3: 1 | B3: =IFERROR(VLOOKUP(M3,Import!$B$3:$T$664,19,FALSE),"") -> 1 | D3: =IFERROR(VLOOKUP(M3,Import!$AN$3:$AR$664,4,FALSE),"") ->  | E3: =IFERROR(VLOOKUP(M3,Import!$AD$3:$AH$664,4,FALSE),"") ->  | F3: =IFERROR(VLOOKUP(M3,Import!$AT$3:$BE$664,8,FALSE),"") -> 3 | G3: =IFERROR(VLOOKUP($M3,Import!$AT$3:$BE$664,2,FALSE),"") -> 617.8 | H3: =IFERROR(VLOOKUP($M3,Import!$AT$3:$BE$664,3,FALSE),"") -> 4.32027972 | J3: =IFERROR(VLOOKUP(M3,Import!$AT$3:$BE$664,10,FALSE),"") -> 1 | K3: =IFERROR(VLOOKUP(M3,Import!$AT$3:$BE$664,12,FALSE),"") -> 2 | M3: =IFERROR(VLOOKUP(A3,Import!$V$3:$X$664,3,FALSE),"") -> Mike Trout | P3: =IFERROR(VLOOKUP($M3,Import!$B$3:$AL$663,2,FALSE),"") -> LAA | Q3: =IFERROR(VLOOKUP($M3,Import!$B$3:$AL$663,3,FALSE),"") -> OF | R3: =IFERROR(VLOOKUP($M3,Import!$B$3:$AL$663,4,FALSE),"") -> OF | S3: =IFERROR(VLOOKUP($M3,Import!$B$3:$AL$663,5,FALSE),"") -> 49 | U3: =IFERROR(VLOOKUP($M3,Import!$B$3:$AL$663,6,FALSE),"") -> 541 | V3: =IFERROR(VLOOKUP($M3,Import!$B$3:$AL$663,7,FALSE),"") -> 116 | W3: =IFERROR(VLOOKUP($M3,Import!$B$3:$AL$663,8,FALSE),"") -> 40 | X3: =IFERROR(VLOOKUP($M3,Import!$B$3:$AL$663,9,FALSE),"") -> 105 | Y3: =IFERROR(VLOOKUP($M3,Import!$B$3:$AL$663,10,FALSE),"") -> 18 | Z3: =IFERROR(VLOOKUP($M3,Import!$B$3:$AL$663,11,FALSE),"") -> 0.312 | AB3: =Z3*U3 -> 168.792 | AC3: =IF(N3='User Input'!$C$1,1,0) -> 0 | AD3: =AC3 -> 0 | AE3: =IF(AD3=AD2,0,AD3) -> 0 | AF3: =M3 -> Mike Trout | AG3: =O3 -> 0 | AH3: =S3 -> 49 | AI3: =IFERROR(VLOOKUP($M3,Import!$B$3:$AL$663,35,FALSE),"") ->  | AK3: 1 | AL3: =IFERROR(VLOOKUP(AT3,Import!$B$3:$T$664,19,FALSE),"") -> 20 | AN3: =IFERROR(VLOOKUP(AT3,Import!$AN$3:$AR$664,5,FALSE),"") ->  | AO3: =IFERROR(VLOOKUP(AT3,Import!$AD$3:$AH$664,5,FALSE),"") ->  | AP3: =IFERROR(VLOOKUP(AT3,Import!$AW$3:$BA$664,5,FALSE),"") -> 12 | AQ3: =IFERROR(VLOOKUP($AT3,Import!$AW$3:$BE$664,2,FALSE),"") -> 553.4 | AR3: =IFERROR(VLOOKUP($AT3,Import!$AW$3:$BE$664,3,FALSE),"") -> 17.8516129 | AT3: =IFERROR(VLOOKUP(AK3,Import!$W$3:$X$664,2,FALSE),"") -> Max Scherzer | AW3: =IFERROR(VLOOKUP($AT3,Import!$B$3:$L$663,2,FALSE),"") -> WSH | AX3: =IFERROR(VLOOKUP($AT3,Import!$B$3:$L$663,3,FALSE),"") -> SP | AY3: =IFERROR(VLOOKUP($AT3,Import!$B$3:$L$663,4,FALSE),"") -> SP | AZ3: =IFERROR(VLOOKUP($AT3,Import!$B$3:$L$663,5,FALSE),"") -> 27 | BB3: =IFERROR(VLOOKUP($AT3,Import!$B$3:$X$664,12,FALSE),"") -> 222 | BC3: =IFERROR(VLOOKUP($AT3,Import!$B$3:$X$664,15,FALSE),"") -> 2.46 | BD3: =IFERROR(VLOOKUP($AT3,Import!$B$3:$X$664,16,FALSE),"") -> 0.94 | BE3: =IFERROR(VLOOKUP($AT3,Import!$B$3:$X$664,13,FALSE),"") -> 18 | BF3: =IFERROR(VLOOKUP($AT3,Import!$B$3:$X$664,14,FALSE),"") -> 0 | BG3: =IFERROR(VLOOKUP($AT3,Import!$B$3:$X$664,17,FALSE),"") -> 277 | BI3: =BC3*BB3 -> 546.12 | BJ3: =BD3*BB3 -> 208.68 | BK3: =IF(AU3='User Input'!$C$1,1,0) -> 0 | BL3: =BK3 -> 0 | BM3: =IF(BL3=BL2,0,BL3) -> 0 | BN3: =AT3 -> Max Scherzer | BO3: =AV3 -> 0 | BP3: =AZ3 -> 27 | BQ3: =IFERROR(VLOOKUP($AT3,Import!$B$3:$AL$663,35,FALSE),"") ->  | BR3: =9*(Table2[[#This Row],[K]]/Table2[[#This Row],[IP]]) -> 11.22972973 | BS3: =IFERROR(VLOOKUP($AT3,PITCH!$B$7:$AG$2004,28,FALSE),"N/A") -> 8.718330849 | CI3: =IF(CJ3="","",MAX(CI$1:CI2)+1) -> 2 | CJ3: =IF('User Input'!C2=0,"",'User Input'!C2) -> b | CK3: =IFERROR(INDEX($CJ$2:$CJ$26,MATCH(ROW()-ROW($CK$1),$CI$2:$CI$26,0)),"") -> b
A4: 2 | B4: =IFERROR(VLOOKUP(M4,Import!$B$4:$T$664,19,FALSE),"") -> 2 | D4: =IFERROR(VLOOKUP(M4,Import!$AN$3:$AR$664,4,FALSE),"") ->  | E4: =IFERROR(VLOOKUP(M4,Import!$AD$3:$AH$664,4,FALSE),"") ->  | F4: =IFERROR(VLOOKUP(M4,Import!$AT$3:$BE$664,8,FALSE),"") -> 19 | G4: =IFERROR(VLOOKUP($M4,Import!$AT$3:$BE$664,2,FALSE),"") -> 533.2 | H4: =IFERROR(VLOOKUP($M4,Import!$AT$3:$BE$664,3,FALSE),"") -> 3.57852349 | J4: =IFERROR(VLOOKUP(M4,Import!$AT$3:$BE$664,10,FALSE),"") -> 12 | K4: =IFERROR(VLOOKUP(M4,Import!$AT$3:$BE$664,12,FALSE),"") -> 8 | M4: =IFERROR(VLOOKUP(A4,Import!$V$3:$X$664,3,FALSE),"") -> Jose Altuve | P4: =IFERROR(VLOOKUP($M4,Import!$B$3:$AL$663,2,FALSE),"") -> HOU | Q4: =IFERROR(VLOOKUP($M4,Import!$B$3:$AL$663,3,FALSE),"") -> 2B | R4: =IFERROR(VLOOKUP($M4,Import!$B$3:$AL$663,4,FALSE),"") -> 2B | S4: =IFERROR(VLOOKUP($M4,Import!$B$3:$AL$663,5,FALSE),"") -> 47 | U4: =IFERROR(VLOOKUP($M4,Import!$B$3:$AL$663,6,FALSE),"") -> 593 | V4: =IFERROR(VLOOKUP($M4,Import!$B$3:$AL$663,7,FALSE),"") -> 111 | W4: =IFERROR(VLOOKUP($M4,Import!$B$3:$AL$663,8,FALSE),"") -> 23 | X4: =IFERROR(VLOOKUP($M4,Import!$B$3:$AL$663,9,FALSE),"") -> 92 | Y4: =IFERROR(VLOOKUP($M4,Import!$B$3:$AL$663,10,FALSE),"") -> 30 | Z4: =IFERROR(VLOOKUP($M4,Import!$B$3:$AL$663,11,FALSE),"") -> 0.329 | AB4: 195.097 | AC4: =IF(N4='User Input'!$C$1,1,0) -> 0 | AD4: =AC4+AD3 -> 0 | AE4: 0 | AF4: Jose Altuve | AG4: 0 | AH4: 47 | AI4: =IFERROR(VLOOKUP($M4,Import!$B$3:$AL$663,35,FALSE),"") ->  | AK4: 2 | AL4: =IFERROR(VLOOKUP(AT4,Import!$B$3:$T$664,19,FALSE),"") -> 22 | AN4: =IFERROR(VLOOKUP(AT4,Import!$AN$3:$AR$664,5,FALSE),"") ->  | AO4: =IFERROR(VLOOKUP(AT4,Import!$AD$3:$AH$664,5,FALSE),"") ->  | AP4: =IFERROR(VLOOKUP(AT4,Import!$AW$3:$BA$664,5,FALSE),"") -> 11 | AQ4: =IFERROR(VLOOKUP($AT4,Import!$AW$3:$BE$664,2,FALSE),"") -> 556.9 | AR4: =IFERROR(VLOOKUP($AT4,Import!$AW$3:$BE$664,3,FALSE),"") -> 19.20344828 | AT4: =IFERROR(VLOOKUP(AK4,Import!$W$3:$X$664,2,FALSE),"") -> Clayton Kershaw | AW4: =IFERROR(VLOOKUP($AT4,Import!$B$3:$L$663,2,FALSE),"") -> LAD | AX4: =IFERROR(VLOOKUP($AT4,Import!$B$3:$L$663,3,FALSE),"") -> SP | AY4: =IFERROR(VLOOKUP($AT4,Import!$B$3:$L$663,4,FALSE),"") -> SP | AZ4: =IFERROR(VLOOKUP($AT4,Import!$B$3:$L$663,5,FALSE),"") -> 26 | BB4: =IFERROR(VLOOKUP($AT4,Import!$B$3:$X$664,12,FALSE),"") -> 202 | BC4: =IFERROR(VLOOKUP($AT4,Import!$B$3:$X$664,15,FALSE),"") -> 2.51 | BD4: =IFERROR(VLOOKUP($AT4,Import!$B$3:$X$664,16,FALSE),"") -> 0.94 | BE4: =IFERROR(VLOOKUP($AT4,Import!$B$3:$X$664,13,FALSE),"") -> 17 | BF4: =IFERROR(VLOOKUP($AT4,Import!$B$3:$X$664,14,FALSE),"") -> 0 | BG4: =IFERROR(VLOOKUP($AT4,Import!$B$3:$X$664,17,FALSE),"") -> 225 | BI4: 507.02 | BJ4: 189.88 | BK4: =IF(AU4='User Input'!$C$1,1,0) -> 0 | BL4: =BK4+BL3 -> 0 | BM4: 0 | BN4: Clayton Kershaw | BO4: 0 | BP4: 26 | BQ4: =IFERROR(VLOOKUP($AT4,Import!$B$3:$AL$663,35,FALSE),"") ->  | BR4: =9*(Table2[[#This Row],[K]]/Table2[[#This Row],[IP]]) -> 10.02475248 | BS4: =IFERROR(VLOOKUP($AT4,PITCH!$B$7:$AG$2004,28,FALSE),"N/A") -> 8.630136986 | CI4: =IF(CJ4="","",MAX(CI$1:CI3)+1) -> 3 | CJ4: =IF('User Input'!C3=0,"",'User Input'!C3) -> c | CK4: c
A5: 3 | B5: =IFERROR(VLOOKUP(M5,Import!$B$4:$T$664,19,FALSE),"") -> 3 | D5: =IFERROR(VLOOKUP(M5,Import!$AN$3:$AR$664,4,FALSE),"") ->  | E5: =IFERROR(VLOOKUP(M5,Import!$AD$3:$AL$664,4,FALSE),"") ->  | F5: =IFERROR(VLOOKUP(M5,Import!$AT$3:$BE$664,8,FALSE),"") -> 21 | G5: =IFERROR(VLOOKUP($M5,Import!$AT$3:$BE$664,2,FALSE),"") -> 517.8 | H5: =IFERROR(VLOOKUP($M5,Import!$AT$3:$BE$664,3,FALSE),"") -> 3.620979021 | J5: =IFERROR(VLOOKUP(M5,Import!$AT$3:$BE$664,10,FALSE),"") -> 6 | K5: =IFERROR(VLOOKUP(M5,Import!$AT$3:$BE$664,12,FALSE),"") -> 5 | M5: =IFERROR(VLOOKUP(A5,Import!$V$3:$X$664,3,FALSE),"") -> Trea Turner | P5: =IFERROR(VLOOKUP($M5,Import!$B$3:$AL$663,2,FALSE),"") -> WSH | Q5: =IFERROR(VLOOKUP($M5,Import!$B$3:$AL$663,3,FALSE),"") -> SS | R5: =IFERROR(VLOOKUP($M5,Import!$B$3:$AL$663,4,FALSE),"") -> SS | S5: =IFERROR(VLOOKUP($M5,Import!$B$3:$AL$663,5,FALSE),"") -> 43 | U5: =IFERROR(VLOOKUP($M5,Import!$B$3:$AL$663,6,FALSE),"") -> 581 | V5: =IFERROR(VLOOKUP($M5,Import!$B$3:$AL$663,7,FALSE),"") -> 110 | W5: =IFERROR(VLOOKUP($M5,Import!$B$3:$AL$663,8,FALSE),"") -> 16 | X5: =IFERROR(VLOOKUP($M5,Import!$B$3:$AL$663,9,FALSE),"") -> 63 | Y5: =IFERROR(VLOOKUP($M5,Import!$B$3:$AL$663,10,FALSE),"") -> 47 | Z5: =IFERROR(VLOOKUP($M5,Import!$B$3:$AL$663,11,FALSE),"") -> 0.302 | AB5: 175.462 | AC5: =IF(N5='User Input'!$C$1,1,0) -> 0 | AD5: 0 | AE5: 0 | AF5: Trea Turner | AG5: 0 | AH5: 43 | AI5: =IFERROR(VLOOKUP($M5,Import!$B$3:$AL$663,35,FALSE),"") ->  | AK5: 3 | AL5: =IFERROR(VLOOKUP(AT5,Import!$B$3:$T$664,19,FALSE),"") -> 26 | AN5: =IFERROR(VLOOKUP(AT5,Import!$AN$3:$AR$664,5,FALSE),"") ->  | AO5: =IFERROR(VLOOKUP(AT5,Import!$AD$3:$AH$664,5,FALSE),"") ->  | AP5: =IFERROR(VLOOKUP(AT5,Import!$AW$3:$BA$664,5,FALSE),"") -> 13 | AQ5: =IFERROR(VLOOKUP($AT5,Import!$AW$3:$BE$664,2,FALSE),"") -> 550.1 | AR5: =IFERROR(VLOOKUP($AT5,Import!$AW$3:$BE$664,3,FALSE),"") -> 17.74516129 | AT5: =IFERROR(VLOOKUP(AK5,Import!$W$3:$X$664,2,FALSE),"") -> Corey Kluber | AW5: =IFERROR(VLOOKUP($AT5,Import!$B$3:$L$663,2,FALSE),"") -> CLE | AX5: =IFERROR(VLOOKUP($AT5,Import!$B$3:$L$663,3,FALSE),"") -> SP | AY5: =IFERROR(VLOOKUP($AT5,Import!$B$3:$L$663,4,FALSE),"") -> SP | AZ5: =IFERROR(VLOOKUP($AT5,Import!$B$3:$L$663,5,FALSE),"") -> 24 | BB5: =IFERROR(VLOOKUP($AT5,Import!$B$3:$X$664,12,FALSE),"") -> 205 | BC5: =IFERROR(VLOOKUP($AT5,Import!$B$3:$X$664,15,FALSE),"") -> 2.61 | BD5: =IFERROR(VLOOKUP($AT5,Import!$B$3:$X$664,16,FALSE),"") -> 0.97 | BE5: =IFERROR(VLOOKUP($AT5,Import!$B$3:$X$664,13,FALSE),"") -> 17 | BF5: =IFERROR(VLOOKUP($AT5,Import!$B$3:$X$664,14,FALSE),"") -> 0 | BG5: =IFERROR(VLOOKUP($AT5,Import!$B$3:$X$664,17,FALSE),"") -> 228 | BI5: 535.05 | BJ5: 198.85 | BK5: =IF(AU5='User Input'!$C$1,1,0) -> 0 | BL5: 0 | BM5: 0 | BN5: Corey Kluber | BO5: 0 | BP5: 24 | BQ5: =IFERROR(VLOOKUP($AT5,Import!$B$3:$AL$663,35,FALSE),"") ->  | BR5: =9*(Table2[[#This Row],[K]]/Table2[[#This Row],[IP]]) -> 10.0097561 | BS5: =IFERROR(VLOOKUP($AT5,PITCH!$B$7:$AG$2004,28,FALSE),"N/A") -> 8.316683317 | CI5: =IF(CJ5="","",MAX(CI$1:CI4)+1) -> 4 | CJ5: =IF('User Input'!C4=0,"",'User Input'!C4) -> d | CK5: d
A6: 4 | B6: =IFERROR(VLOOKUP(M6,Import!$B$4:$T$664,19,FALSE),"") -> 4 | D6: =IFERROR(VLOOKUP(M6,Import!$AN$3:$AR$664,4,FALSE),"") ->  | E6: =IFERROR(VLOOKUP(M6,Import!$AD$3:$AL$664,4,FALSE),"") ->  | F6: =IFERROR(VLOOKUP(M6,Import!$AT$3:$BE$664,8,FALSE),"") -> 9 | G6: =IFERROR(VLOOKUP($M6,Import!$AT$3:$BE$664,2,FALSE),"") -> 570.7 | H6: =IFERROR(VLOOKUP($M6,Import!$AT$3:$BE$664,3,FALSE),"") -> 3.990909091 | J6: =IFERROR(VLOOKUP(M6,Import!$AT$3:$BE$664,10,FALSE),"") -> 3 | K6: =IFERROR(VLOOKUP(M6,Import!$AT$3:$BE$664,12,FALSE),"") -> 3 | M6: =IFERROR(VLOOKUP(A6,Import!$V$3:$X$664,3,FALSE),"") -> Bryce Harper | P6: =IFERROR(VLOOKUP($M6,Import!$B$3:$AL$663,2,FALSE),"") -> WSH | Q6: =IFERROR(VLOOKUP($M6,Import!$B$3:$AL$663,3,FALSE),"") -> OF | R6: =IFERROR(VLOOKUP($M6,Import!$B$3:$AL$663,4,FALSE),"") -> OF | S6: =IFERROR(VLOOKUP($M6,Import!$B$3:$AL$663,5,FALSE),"") -> 40 | U6: =IFERROR(VLOOKUP($M6,Import!$B$3:$AL$663,6,FALSE),"") -> 533 | V6: =IFERROR(VLOOKUP($M6,Import!$B$3:$AL$663,7,FALSE),"") -> 96 | W6: =IFERROR(VLOOKUP($M6,Import!$B$3:$AL$663,8,FALSE),"") -> 35 | X6: =IFERROR(VLOOKUP($M6,Import!$B$3:$AL$663,9,FALSE),"") -> 109 | Y6: =IFERROR(VLOOKUP($M6,Import!$B$3:$AL$663,10,FALSE),"") -> 12 | Z6: =IFERROR(VLOOKUP($M6,Import!$B$3:$AL$663,11,FALSE),"") -> 0.308 | AB6: 164.164 | AC6: =IF(N6='User Input'!$C$1,1,0) -> 0 | AD6: 0 | AE6: 0 | AF6: Bryce Harper | AG6: 0 | AH6: 40 | AI6: =IFERROR(VLOOKUP($M6,Import!$B$3:$AL$663,35,FALSE),"") ->  | AK6: 4 | AL6: =IFERROR(VLOOKUP(AT6,Import!$B$3:$T$664,19,FALSE),"") -> 27 | AN6: =IFERROR(VLOOKUP(AT6,Import!$AN$3:$AR$664,5,FALSE),"") ->  | AO6: =IFERROR(VLOOKUP(AT6,Import!$AD$3:$AH$664,5,FALSE),"") ->  | AP6: =IFERROR(VLOOKUP(AT6,Import!$AW$3:$BA$664,5,FALSE),"") -> 5 | AQ6: =IFERROR(VLOOKUP($AT6,Import!$AW$3:$BE$664,2,FALSE),"") -> 572.8 | AR6: =IFERROR(VLOOKUP($AT6,Import!$AW$3:$BE$664,3,FALSE),"") -> 18.47741935 | AT6: =IFERROR(VLOOKUP(AK6,Import!$W$3:$X$664,2,FALSE),"") -> Chris Sale | AW6: =IFERROR(VLOOKUP($AT6,Import!$B$3:$L$663,2,FALSE),"") -> BOS | AX6: =IFERROR(VLOOKUP($AT6,Import!$B$3:$L$663,3,FALSE),"") -> SP | AY6: =IFERROR(VLOOKUP($AT6,Import!$B$3:$L$663,4,FALSE),"") -> SP | AZ6: =IFERROR(VLOOKUP($AT6,Import!$B$3:$L$663,5,FALSE),"") -> 24 | BB6: =IFERROR(VLOOKUP($AT6,Import!$B$3:$X$664,12,FALSE),"") -> 207 | BC6: =IFERROR(VLOOKUP($AT6,Import!$B$3:$X$664,15,FALSE),"") -> 2.87 | BD6: =IFERROR(VLOOKUP($AT6,Import!$B$3:$X$664,16,FALSE),"") -> 1.01 | BE6: =IFERROR(VLOOKUP($AT6,Import!$B$3:$X$664,13,FALSE),"") -> 17 | BF6: =IFERROR(VLOOKUP($AT6,Import!$B$3:$X$664,14,FALSE),"") -> 0 | BG6: =IFERROR(VLOOKUP($AT6,Import!$B$3:$X$664,17,FALSE),"") -> 256 | BI6: 594.09 | BJ6: 209.07 | BK6: =IF(AU6='User Input'!$C$1,1,0) -> 0 | BL6: 0 | BM6: 0 | BN6: Chris Sale | BO6: 0 | BP6: 24 | BQ6: =IFERROR(VLOOKUP($AT6,Import!$B$3:$AL$663,35,FALSE),"") ->  | BR6: =9*(Table2[[#This Row],[K]]/Table2[[#This Row],[IP]]) -> 11.13043478 | BS6: =IFERROR(VLOOKUP($AT6,PITCH!$B$7:$AG$2004,28,FALSE),"N/A") -> 9.269406393 | CI6: =IF(CJ6="","",MAX(CI$1:CI5)+1) -> 5 | CJ6: =IF('User Input'!C5=0,"",'User Input'!C5) -> e | CK6: e
A7: 5 | B7: =IFERROR(VLOOKUP(M7,Import!$B$4:$T$664,19,FALSE),"") -> 5 | D7: =IFERROR(VLOOKUP(M7,Import!$AN$3:$AR$664,4,FALSE),"") ->  | E7: =IFERROR(VLOOKUP(M7,Import!$AD$3:$AL$664,4,FALSE),"") ->  | F7: =IFERROR(VLOOKUP(M7,Import!$AT$3:$BE$664,8,FALSE),"") -> 10 | G7: =IFERROR(VLOOKUP($M7,Import!$AT$3:$BE$664,2,FALSE),"") -> 566.1 | H7: =IFERROR(VLOOKUP($M7,Import!$AT$3:$BE$664,3,FALSE),"") -> 3.799328859 | J7: =IFERROR(VLOOKUP(M7,Import!$AT$3:$BE$664,10,FALSE),"") -> 10 | K7: =IFERROR(VLOOKUP(M7,Import!$AT$3:$BE$664,12,FALSE),"") -> 6 | M7: =IFERROR(VLOOKUP(A7,Import!$V$3:$X$664,3,FALSE),"") -> Nolan Arenado | P7: =IFERROR(VLOOKUP($M7,Import!$B$3:$AL$663,2,FALSE),"") -> COL | Q7: =IFERROR(VLOOKUP($M7,Import!$B$3:$AL$663,3,FALSE),"") -> 3B | R7: =IFERROR(VLOOKUP($M7,Import!$B$3:$AL$663,4,FALSE),"") -> 3B | S7: =IFERROR(VLOOKUP($M7,Import!$B$3:$AL$663,5,FALSE),"") -> 36 | U7: =IFERROR(VLOOKUP($M7,Import!$B$3:$AL$663,6,FALSE),"") -> 602 | V7: =IFERROR(VLOOKUP($M7,Import!$B$3:$AL$663,7,FALSE),"") -> 105 | W7: =IFERROR(VLOOKUP($M7,Import!$B$3:$AL$663,8,FALSE),"") -> 39 | X7: =IFERROR(VLOOKUP($M7,Import!$B$3:$AL$663,9,FALSE),"") -> 126 | Y7: =IFERROR(VLOOKUP($M7,Import!$B$3:$AL$663,10,FALSE),"") -> 3 | Z7: =IFERROR(VLOOKUP($M7,Import!$B$3:$AL$663,11,FALSE),"") -> 0.291 | AB7: 175.182 | AC7: =IF(N7='User Input'!$C$1,1,0) -> 0 | AD7: 0 | AE7: 0 | AF7: Nolan Arenado | AG7: 0 | AH7: 36 | AI7: =IFERROR(VLOOKUP($M7,Import!$B$3:$AL$663,35,FALSE),"") ->  | AK7: 5 | AL7: =IFERROR(VLOOKUP(AT7,Import!$B$3:$T$664,19,FALSE),"") -> 35 | AN7: =IFERROR(VLOOKUP(AT7,Import!$AN$3:$AR$664,5,FALSE),"") ->  | AO7: =IFERROR(VLOOKUP(AT7,Import!$AD$3:$AH$664,5,FALSE),"") ->  | AP7: =IFERROR(VLOOKUP(AT7,Import!$AW$3:$BA$664,5,FALSE),"") -> 46 | AQ7: =IFERROR(VLOOKUP($AT7,Import!$AW$3:$BE$664,2,FALSE),"") -> 471.4 | AR7: =IFERROR(VLOOKUP($AT7,Import!$AW$3:$BE$664,3,FALSE),"") -> 15.20645161 | AT7: =IFERROR(VLOOKUP(AK7,Import!$W$3:$X$664,2,FALSE),"") -> Madison Bumgarner | AW7: =IFERROR(VLOOKUP($AT7,Import!$B$3:$L$663,2,FALSE),"") -> SF | AX7: =IFERROR(VLOOKUP($AT7,Import!$B$3:$L$663,3,FALSE),"") -> SP | AY7: =IFERROR(VLOOKUP($AT7,Import!$B$3:$L$663,4,FALSE),"") -> SP | AZ7: =IFERROR(VLOOKUP($AT7,Import!$B$3:$L$663,5,FALSE),"") -> 23 | BB7: =IFERROR(VLOOKUP($AT7,Import!$B$3:$X$664,12,FALSE),"") -> 208 | BC7: =IFERROR(VLOOKUP($AT7,Import!$B$3:$X$664,15,FALSE),"") -> 2.91 | BD7: =IFERROR(VLOOKUP($AT7,Import!$B$3:$X$664,16,FALSE),"") -> 1.03 | BE7: =IFERROR(VLOOKUP($AT7,Import!$B$3:$X$664,13,FALSE),"") -> 14 | BF7: =IFERROR(VLOOKUP($AT7,Import!$B$3:$X$664,14,FALSE),"") -> 0 | BG7: =IFERROR(VLOOKUP($AT7,Import!$B$3:$X$664,17,FALSE),"") -> 223 | BI7: 605.28 | BJ7: 214.24 | BK7: =IF(AU7='User Input'!$C$1,1,0) -> 0 | BL7: 0 | BM7: 0 | BN7: Madison Bumgarner | BO7: 0 | BP7: 23 | BQ7: =IFERROR(VLOOKUP($AT7,Import!$B$3:$AL$663,35,FALSE),"") ->  | BR7: =9*(Table2[[#This Row],[K]]/Table2[[#This Row],[IP]]) -> 9.649038462 | BS7: =IFERROR(VLOOKUP($AT7,PITCH!$B$7:$AG$2004,28,FALSE),"N/A") -> 6.399394856 | CI7: =IF(CJ7="","",MAX(CI$1:CI6)+1) -> 6 | CJ7: =IF('User Input'!C6=0,"",'User Input'!C6) -> f | CK7: f
A8: 6 | B8: =IFERROR(VLOOKUP(M8,Import!$B$4:$T$664,19,FALSE),"") -> 6 | D8: =IFERROR(VLOOKUP(M8,Import!$AN$3:$AR$664,4,FALSE),"") ->  | E8: =IFERROR(VLOOKUP(M8,Import!$AD$3:$AL$664,4,FALSE),"") ->  | F8: =IFERROR(VLOOKUP(M8,Import!$AT$3:$BE$664,8,FALSE),"") -> 15 | G8: =IFERROR(VLOOKUP($M8,Import!$AT$3:$BE$664,2,FALSE),"") -> 542.4 | H8: =IFERROR(VLOOKUP($M8,Import!$AT$3:$BE$664,3,FALSE),"") -> 3.664864865 | J8: =IFERROR(VLOOKUP(M8,Import!$AT$3:$BE$664,10,FALSE),"") -> 4 | K8: =IFERROR(VLOOKUP(M8,Import!$AT$3:$BE$664,12,FALSE),"") -> 7 | M8: =IFERROR(VLOOKUP(A8,Import!$V$3:$X$664,3,FALSE),"") -> Paul Goldschmidt | P8: =IFERROR(VLOOKUP($M8,Import!$B$3:$AL$663,2,FALSE),"") -> ARI | Q8: =IFERROR(VLOOKUP($M8,Import!$B$3:$AL$663,3,FALSE),"") -> 1B | R8: =IFERROR(VLOOKUP($M8,Import!$B$3:$AL$663,4,FALSE),"") -> 1B | S8: =IFERROR(VLOOKUP($M8,Import!$B$3:$AL$663,5,FALSE),"") -> 35 | U8: =IFERROR(VLOOKUP($M8,Import!$B$3:$AL$663,6,FALSE),"") -> 551 | V8: =IFERROR(VLOOKUP($M8,Import!$B$3:$AL$663,7,FALSE),"") -> 108 | W8: =IFERROR(VLOOKUP($M8,Import!$B$3:$AL$663,8,FALSE),"") -> 30 | X8: =IFERROR(VLOOKUP($M8,Import!$B$3:$AL$663,9,FALSE),"") -> 111 | Y8: =IFERROR(VLOOKUP($M8,Import!$B$3:$AL$663,10,FALSE),"") -> 15 | Z8: =IFERROR(VLOOKUP($M8,Import!$B$3:$AL$663,11,FALSE),"") -> 0.303 | AB8: 166.953 | AC8: =IF(N8='User Input'!$C$1,1,0) -> 0 | AD8: 0 | AE8: 0 | AF8: Paul Goldschmidt | AG8: 0 | AH8: 35 | AI8: =IFERROR(VLOOKUP($M8,Import!$B$3:$AL$663,35,FALSE),"") ->  | AK8: 6 | AL8: =IFERROR(VLOOKUP(AT8,Import!$B$3:$T$664,19,FALSE),"") -> 39 | AN8: =IFERROR(VLOOKUP(AT8,Import!$AN$3:$AR$664,5,FALSE),"") ->  | AO8: =IFERROR(VLOOKUP(AT8,Import!$AD$3:$AH$664,5,FALSE),"") ->  | AP8: =IFERROR(VLOOKUP(AT8,Import!$AW$3:$BA$664,5,FALSE),"") -> 30 | AQ8: =IFERROR(VLOOKUP($AT8,Import!$AW$3:$BE$664,2,FALSE),"") -> 495.4 | AR8: =IFERROR(VLOOKUP($AT8,Import!$AW$3:$BE$664,3,FALSE),"") -> 16.51333333 | AT8: =IFERROR(VLOOKUP(AK8,Import!$W$3:$X$664,2,FALSE),"") -> Stephen Strasburg | AW8: =IFERROR(VLOOKUP($AT8,Import!$B$3:$L$663,2,FALSE),"") -> WSH | AX8: =IFERROR(VLOOKUP($AT8,Import!$B$3:$L$663,3,FALSE),"") -> SP | AY8: =IFERROR(VLOOKUP($AT8,Import!$B$3:$L$663,4,FALSE),"") -> SP | AZ8: =IFERROR(VLOOKUP($AT8,Import!$B$3:$L$663,5,FALSE),"") -> 22 | BB8: =IFERROR(VLOOKUP($AT8,Import!$B$3:$X$664,12,FALSE),"") -> 182 | BC8: =IFERROR(VLOOKUP($AT8,Import!$B$3:$X$664,15,FALSE),"") -> 2.96 | BD8: =IFERROR(VLOOKUP($AT8,Import!$B$3:$X$664,16,FALSE),"") -> 1.04 | BE8: =IFERROR(VLOOKUP($AT8,Import!$B$3:$X$664,13,FALSE),"") -> 16 | BF8: =IFERROR(VLOOKUP($AT8,Import!$B$3:$X$664,14,FALSE),"") -> 0 | BG8: =IFERROR(VLOOKUP($AT8,Import!$B$3:$X$664,17,FALSE),"") -> 211 | BI8: 538.72 | BJ8: 189.28 | BK8: =IF(AU8='User Input'!$C$1,1,0) -> 0 | BL8: 0 | BM8: 0 | BN8: Stephen Strasburg | BO8: 0 | BP8: 22 | BQ8: =IFERROR(VLOOKUP($AT8,Import!$B$3:$AL$663,35,FALSE),"") ->  | BR8: =9*(Table2[[#This Row],[K]]/Table2[[#This Row],[IP]]) -> 10.43406593 | BS8: =IFERROR(VLOOKUP($AT8,PITCH!$B$7:$AG$2004,28,FALSE),"N/A") -> 7.81779661 | CI8: =IF(CJ8="","",MAX(CI$1:CI7)+1) -> 7 | CJ8: =IF('User Input'!C7=0,"",'User Input'!C7) -> g | CK8: g
A9: 7 | B9: =IFERROR(VLOOKUP(M9,Import!$B$4:$T$664,19,FALSE),"") -> 7 | D9: =IFERROR(VLOOKUP(M9,Import!$AN$3:$AR$664,4,FALSE),"") ->  | E9: =IFERROR(VLOOKUP(M9,Import!$AD$3:$AL$664,4,FALSE),"") ->  | F9: =IFERROR(VLOOKUP(M9,Import!$AT$3:$BE$664,8,FALSE),"") -> 4 | G9: =IFERROR(VLOOKUP($M9,Import!$AT$3:$BE$664,2,FALSE),"") -> 594.35 | H9: =IFERROR(VLOOKUP($M9,Import!$AT$3:$BE$664,3,FALSE),"") -> 3.988926174 | J9: =IFERROR(VLOOKUP(M9,Import!$AT$3:$BE$664,10,FALSE),"") -> 5 | K9: =IFERROR(VLOOKUP(M9,Import!$AT$3:$BE$664,12,FALSE),"") -> 4 | M9: =IFERROR(VLOOKUP(A9,Import!$V$3:$X$664,3,FALSE),"") -> Mookie Betts | P9: =IFERROR(VLOOKUP($M9,Import!$B$3:$AL$663,2,FALSE),"") -> BOS | Q9: =IFERROR(VLOOKUP($M9,Import!$B$3:$AL$663,3,FALSE),"") -> OF | R9: =IFERROR(VLOOKUP($M9,Import!$B$3:$AL$663,4,FALSE),"") -> OF | S9: =IFERROR(VLOOKUP($M9,Import!$B$3:$AL$663,5,FALSE),"") -> 34 | U9: =IFERROR(VLOOKUP($M9,Import!$B$3:$AL$663,6,FALSE),"") -> 605 | V9: =IFERROR(VLOOKUP($M9,Import!$B$3:$AL$663,7,FALSE),"") -> 104 | W9: =IFERROR(VLOOKUP($M9,Import!$B$3:$AL$663,8,FALSE),"") -> 25 | X9: =IFERROR(VLOOKUP($M9,Import!$B$3:$AL$663,9,FALSE),"") -> 109 | Y9: =IFERROR(VLOOKUP($M9,Import!$B$3:$AL$663,10,FALSE),"") -> 25 | Z9: =IFERROR(VLOOKUP($M9,Import!$B$3:$AL$663,11,FALSE),"") -> 0.305 | AB9: 184.525 | AC9: =IF(N9='User Input'!$C$1,1,0) -> 0 | AD9: 0 | AE9: 0 | AF9: Mookie Betts | AG9: 0 | AH9: 34 | AI9: =IFERROR(VLOOKUP($M9,Import!$B$3:$AL$663,35,FALSE),"") ->  | AK9: 7 | AL9: =IFERROR(VLOOKUP(AT9,Import!$B$3:$T$664,19,FALSE),"") -> 40 | AN9: =IFERROR(VLOOKUP(AT9,Import!$AN$3:$AR$664,5,FALSE),"") ->  | AO9: =IFERROR(VLOOKUP(AT9,Import!$AD$3:$AH$664,5,FALSE),"") ->  | AP9: =IFERROR(VLOOKUP(AT9,Import!$AW$3:$BA$664,5,FALSE),"") -> 44 | AQ9: =IFERROR(VLOOKUP($AT9,Import!$AW$3:$BE$664,2,FALSE),"") -> 471.5 | AR9: =IFERROR(VLOOKUP($AT9,Import!$AW$3:$BE$664,3,FALSE),"") -> 16.83928571 | AT9: =IFERROR(VLOOKUP(AK9,Import!$W$3:$X$664,2,FALSE),"") -> Noah Syndergaard | AW9: =IFERROR(VLOOKUP($AT9,Import!$B$3:$L$663,2,FALSE),"") -> NYM | AX9: =IFERROR(VLOOKUP($AT9,Import!$B$3:$L$663,3,FALSE),"") -> SP | AY9: =IFERROR(VLOOKUP($AT9,Import!$B$3:$L$663,4,FALSE),"") -> SP | AZ9: =IFERROR(VLOOKUP($AT9,Import!$B$3:$L$663,5,FALSE),"") -> 22 | BB9: =IFERROR(VLOOKUP($AT9,Import!$B$3:$X$664,12,FALSE),"") -> 184 | BC9: =IFERROR(VLOOKUP($AT9,Import!$B$3:$X$664,15,FALSE),"") -> 2.81 | BD9: =IFERROR(VLOOKUP($AT9,Import!$B$3:$X$664,16,FALSE),"") -> 1.06 | BE9: =IFERROR(VLOOKUP($AT9,Import!$B$3:$X$664,13,FALSE),"") -> 15 | BF9: =IFERROR(VLOOKUP($AT9,Import!$B$3:$X$664,14,FALSE),"") -> 0 | BG9: =IFERROR(VLOOKUP($AT9,Import!$B$3:$X$664,17,FALSE),"") -> 215 | BI9: 517.04 | BJ9: 195.04 | BK9: =IF(AU9='User Input'!$C$1,1,0) -> 0 | BL9: 0 | BM9: 0 | BN9: Noah Syndergaard | BO9: 0 | BP9: 22 | BQ9: =IFERROR(VLOOKUP($AT9,Import!$B$3:$AL$663,35,FALSE),"") ->  | BR9: =9*(Table2[[#This Row],[K]]/Table2[[#This Row],[IP]]) -> 10.51630435 | BS9: =IFERROR(VLOOKUP($AT9,PITCH!$B$7:$AG$2004,28,FALSE),"N/A") -> 8.561604585 | CI9: =IF(CJ9="","",MAX(CI$1:CI8)+1) -> 8 | CJ9: =IF('User Input'!C8=0,"",'User Input'!C8) -> h | CK9: h
A10: 8 | B10: =IFERROR(VLOOKUP(M10,Import!$B$4:$T$664,19,FALSE),"") -> 8 | D10: =IFERROR(VLOOKUP(M10,Import!$AN$3:$AR$664,4,FALSE),"") ->  | E10: =IFERROR(VLOOKUP(M10,Import!$AD$3:$AL$664,4,FALSE),"") ->  | F10: =IFERROR(VLOOKUP(M10,Import!$AT$3:$BE$664,8,FALSE),"") -> 17 | G10: =IFERROR(VLOOKUP($M10,Import!$AT$3:$BE$664,2,FALSE),"") -> 540 | H10: =IFERROR(VLOOKUP($M10,Import!$AT$3:$BE$664,3,FALSE),"") -> 3.624161074 | J10: =IFERROR(VLOOKUP(M10,Import!$AT$3:$BE$664,10,FALSE),"") -> 15 | K10: =IFERROR(VLOOKUP(M10,Import!$AT$3:$BE$664,12,FALSE),"") -> 9 | M10: =IFERROR(VLOOKUP(A10,Import!$V$3:$X$664,3,FALSE),"") -> Manny Machado | P10: =IFERROR(VLOOKUP($M10,Import!$B$3:$AL$663,2,FALSE),"") -> BAL | Q10: =IFERROR(VLOOKUP($M10,Import!$B$3:$AL$663,3,FALSE),"") -> 3B | R10: =IFERROR(VLOOKUP($M10,Import!$B$3:$AL$663,4,FALSE),"") -> 3B | S10: =IFERROR(VLOOKUP($M10,Import!$B$3:$AL$663,5,FALSE),"") -> 33 | U10: =IFERROR(VLOOKUP($M10,Import!$B$3:$AL$663,6,FALSE),"") -> 617 | V10: =IFERROR(VLOOKUP($M10,Import!$B$3:$AL$663,7,FALSE),"") -> 103 | W10: =IFERROR(VLOOKUP($M10,Import!$B$3:$AL$663,8,FALSE),"") -> 36 | X10: =IFERROR(VLOOKUP($M10,Import!$B$3:$AL$663,9,FALSE),"") -> 93 | Y10: =IFERROR(VLOOKUP($M10,Import!$B$3:$AL$663,10,FALSE),"") -> 9 | Z10: =IFERROR(VLOOKUP($M10,Import!$B$3:$AL$663,11,FALSE),"") -> 0.288 | AB10: 177.696 | AC10: =IF(N10='User Input'!$C$1,1,0) -> 0 | AD10: 0 | AE10: 0 | AF10: Manny Machado | AG10: 0 | AH10: 33 | AI10: =IFERROR(VLOOKUP($M10,Import!$B$3:$AL$663,35,FALSE),"") ->  | AK10: 8 | AL10: =IFERROR(VLOOKUP(AT10,Import!$B$3:$T$664,19,FALSE),"") -> 41 | AN10: =IFERROR(VLOOKUP(AT10,Import!$AN$3:$AR$664,5,FALSE),"") ->  | AO10: =IFERROR(VLOOKUP(AT10,Import!$AD$3:$AH$664,5,FALSE),"") ->  | AP10: =IFERROR(VLOOKUP(AT10,Import!$AW$3:$BA$664,5,FALSE),"") -> 27 | AQ10: =IFERROR(VLOOKUP($AT10,Import!$AW$3:$BE$664,2,FALSE),"") -> 499.9 | AR10: =IFERROR(VLOOKUP($AT10,Import!$AW$3:$BE$664,3,FALSE),"") -> 16.12580645 | AT10: =IFERROR(VLOOKUP(AK10,Import!$W$3:$X$664,2,FALSE),"") -> Jacob deGrom | AW10: =IFERROR(VLOOKUP($AT10,Import!$B$3:$L$663,2,FALSE),"") -> NYM | AX10: =IFERROR(VLOOKUP($AT10,Import!$B$3:$L$663,3,FALSE),"") -> SP | AY10: =IFERROR(VLOOKUP($AT10,Import!$B$3:$L$663,4,FALSE),"") -> SP | AZ10: =IFERROR(VLOOKUP($AT10,Import!$B$3:$L$663,5,FALSE),"") -> 21 | BB10: =IFERROR(VLOOKUP($AT10,Import!$B$3:$X$664,12,FALSE),"") -> 195 | BC10: =IFERROR(VLOOKUP($AT10,Import!$B$3:$X$664,15,FALSE),"") -> 3.06 | BD10: =IFERROR(VLOOKUP($AT10,Import!$B$3:$X$664,16,FALSE),"") -> 1.15 | BE10: =IFERROR(VLOOKUP($AT10,Import!$B$3:$X$664,13,FALSE),"") -> 16 | BF10: =IFERROR(VLOOKUP($AT10,Import!$B$3:$X$664,14,FALSE),"") -> 0 | BG10: =IFERROR(VLOOKUP($AT10,Import!$B$3:$X$664,17,FALSE),"") -> 221 | BI10: 596.7 | BJ10: 224.25 | BK10: =IF(AU10='User Input'!$C$1,1,0) -> 0 | BL10: 0 | BM10: 0 | BN10: Jacob deGrom | BO10: 0 | BP10: 21 | BQ10: =IFERROR(VLOOKUP($AT10,Import!$B$3:$AL$663,35,FALSE),"") ->  | BR10: =9*(Table2[[#This Row],[K]]/Table2[[#This Row],[IP]]) -> 10.2 | BS10: =IFERROR(VLOOKUP($AT10,PITCH!$B$7:$AG$2004,28,FALSE),"N/A") -> 7.488653555 | CI10: =IF(CJ10="","",MAX(CI$1:CI9)+1) -> 9 | CJ10: =IF('User Input'!C9=0,"",'User Input'!C9) -> i | CK10: i
A11: 9 | B11: =IFERROR(VLOOKUP(M11,Import!$B$4:$T$664,19,FALSE),"") -> 9 | D11: =IFERROR(VLOOKUP(M11,Import!$AN$3:$AR$664,4,FALSE),"") ->  | E11: =IFERROR(VLOOKUP(M11,Import!$AD$3:$AL$664,4,FALSE),"") ->  | F11: =IFERROR(VLOOKUP(M11,Import!$AT$3:$BE$664,8,FALSE),"") -> 2 | G11: =IFERROR(VLOOKUP($M11,Import!$AT$3:$BE$664,2,FALSE),"") -> 625.1 | H11: =IFERROR(VLOOKUP($M11,Import!$AT$3:$BE$664,3,FALSE),"") -> 4.311034483 | J11: =IFERROR(VLOOKUP(M11,Import!$AT$3:$BE$664,10,FALSE),"") -> 2 | K11: =IFERROR(VLOOKUP(M11,Import!$AT$3:$BE$664,12,FALSE),"") -> 1 | M11: =IFERROR(VLOOKUP(A11,Import!$V$3:$X$664,3,FALSE),"") -> Giancarlo Stanton | P11: =IFERROR(VLOOKUP($M11,Import!$B$3:$AL$663,2,FALSE),"") -> NYY | Q11: =IFERROR(VLOOKUP($M11,Import!$B$3:$AL$663,3,FALSE),"") -> OF | R11: =IFERROR(VLOOKUP($M11,Import!$B$3:$AL$663,4,FALSE),"") -> OF | S11: =IFERROR(VLOOKUP($M11,Import!$B$3:$AL$663,5,FALSE),"") -> 32 | U11: =IFERROR(VLOOKUP($M11,Import!$B$3:$AL$663,6,FALSE),"") -> 547 | V11: =IFERROR(VLOOKUP($M11,Import!$B$3:$AL$663,7,FALSE),"") -> 107 | W11: =IFERROR(VLOOKUP($M11,Import!$B$3:$AL$663,8,FALSE),"") -> 53 | X11: =IFERROR(VLOOKUP($M11,Import!$B$3:$AL$663,9,FALSE),"") -> 121 | Y11: =IFERROR(VLOOKUP($M11,Import!$B$3:$AL$663,10,FALSE),"") -> 3 | Z11: =IFERROR(VLOOKUP($M11,Import!$B$3:$AL$663,11,FALSE),"") -> 0.273 | AB11: 149.331 | AC11: =IF(N11='User Input'!$C$1,1,0) -> 0 | AD11: 0 | AE11: 0 | AF11: Giancarlo Stanton | AG11: 0 | AH11: 32 | AI11: =IFERROR(VLOOKUP($M11,Import!$B$3:$AL$663,35,FALSE),"") ->  | AK11: 9 | AL11: =IFERROR(VLOOKUP(AT11,Import!$B$3:$T$664,19,FALSE),"") -> 42 | AN11: =IFERROR(VLOOKUP(AT11,Import!$AN$3:$AR$664,5,FALSE),"") ->  | AO11: =IFERROR(VLOOKUP(AT11,Import!$AD$3:$AH$664,5,FALSE),"") ->  | AP11: =IFERROR(VLOOKUP(AT11,Import!$AW$3:$BA$664,5,FALSE),"") -> 49 | AQ11: =IFERROR(VLOOKUP($AT11,Import!$AW$3:$BE$664,2,FALSE),"") -> 459.3 | AR11: =IFERROR(VLOOKUP($AT11,Import!$AW$3:$BE$664,3,FALSE),"") -> 15.83793103 | AT11: =IFERROR(VLOOKUP(AK11,Import!$W$3:$X$664,2,FALSE),"") -> Carlos Carrasco | AW11: =IFERROR(VLOOKUP($AT11,Import!$B$3:$L$663,2,FALSE),"") -> CLE | AX11: =IFERROR(VLOOKUP($AT11,Import!$B$3:$L$663,3,FALSE),"") -> SP | AY11: =IFERROR(VLOOKUP($AT11,Import!$B$3:$L$663,4,FALSE),"") -> SP | AZ11: =IFERROR(VLOOKUP($AT11,Import!$B$3:$L$663,5,FALSE),"") -> 21 | BB11: =IFERROR(VLOOKUP($AT11,Import!$B$3:$X$664,12,FALSE),"") -> 194 | BC11: =IFERROR(VLOOKUP($AT11,Import!$B$3:$X$664,15,FALSE),"") -> 3.35 | BD11: =IFERROR(VLOOKUP($AT11,Import!$B$3:$X$664,16,FALSE),"") -> 1.12 | BE11: =IFERROR(VLOOKUP($AT11,Import!$B$3:$X$664,13,FALSE),"") -> 15 | BF11: =IFERROR(VLOOKUP($AT11,Import!$B$3:$X$664,14,FALSE),"") -> 0 | BG11: =IFERROR(VLOOKUP($AT11,Import!$B$3:$X$664,17,FALSE),"") -> 217 | BI11: 649.9 | BJ11: 217.28 | BK11: =IF(AU11='User Input'!$C$1,1,0) -> 0 | BL11: 0 | BM11: 0 | BN11: Carlos Carrasco | BO11: 0 | BP11: 21 | BQ11: =IFERROR(VLOOKUP($AT11,Import!$B$3:$AL$663,35,FALSE),"") ->  | BR11: =9*(Table2[[#This Row],[K]]/Table2[[#This Row],[IP]]) -> 10.06701031 | BS11: =IFERROR(VLOOKUP($AT11,PITCH!$B$7:$AG$2004,28,FALSE),"N/A") -> 7.327344189 | CI11: =IF(CJ11="","",MAX(CI$1:CI10)+1) -> 10 | CJ11: =IF('User Input'!C10=0,"",'User Input'!C10) -> j | CK11: j
A12: 10 | B12: =IFERROR(VLOOKUP(M12,Import!$B$4:$T$664,19,FALSE),"") -> 10 | D12: =IFERROR(VLOOKUP(M12,Import!$AN$3:$AR$664,4,FALSE),"") ->  | E12: =IFERROR(VLOOKUP(M12,Import!$AD$3:$AL$664,4,FALSE),"") ->  | F12: =IFERROR(VLOOKUP(M12,Import!$AT$3:$BE$664,8,FALSE),"") -> 18 | G12: =IFERROR(VLOOKUP($M12,Import!$AT$3:$BE$664,2,FALSE),"") -> 537.9 | H12: =IFERROR(VLOOKUP($M12,Import!$AT$3:$BE$664,3,FALSE),"") -> 3.610067114 | J12: =IFERROR(VLOOKUP(M12,Import!$AT$3:$BE$664,10,FALSE),"") -> 7 | K12: =IFERROR(VLOOKUP(M12,Import!$AT$3:$BE$664,12,FALSE),"") -> 10 | M12: =IFERROR(VLOOKUP(A12,Import!$V$3:$X$664,3,FALSE),"") -> Kris Bryant | P12: =IFERROR(VLOOKUP($M12,Import!$B$3:$AL$663,2,FALSE),"") -> CHC | Q12: =IFERROR(VLOOKUP($M12,Import!$B$3:$AL$663,3,FALSE),"") -> 3B | R12: =IFERROR(VLOOKUP($M12,Import!$B$3:$AL$663,4,FALSE),"") -> 3B/OF | S12: =IFERROR(VLOOKUP($M12,Import!$B$3:$AL$663,5,FALSE),"") -> 32 | U12: =IFERROR(VLOOKUP($M12,Import!$B$3:$AL$663,6,FALSE),"") -> 558 | V12: =IFERROR(VLOOKUP($M12,Import!$B$3:$AL$663,7,FALSE),"") -> 108 | W12: =IFERROR(VLOOKUP($M12,Import!$B$3:$AL$663,8,FALSE),"") -> 35 | X12: =IFERROR(VLOOKUP($M12,Import!$B$3:$AL$663,9,FALSE),"") -> 95 | Y12: =IFERROR(VLOOKUP($M12,Import!$B$3:$AL$663,10,FALSE),"") -> 10 | Z12: =IFERROR(VLOOKUP($M12,Import!$B$3:$AL$663,11,FALSE),"") -> 0.29 | AB12: 161.82 | AC12: =IF(N12='User Input'!$C$1,1,0) -> 0 | AD12: 0 | AE12: 0 | AF12: Kris Bryant | AG12: 0 | AH12: 32 | AI12: =IFERROR(VLOOKUP($M12,Import!$B$3:$AL$663,35,FALSE),"") ->  | AK12: 10 | AL12: =IFERROR(VLOOKUP(AT12,Import!$B$3:$T$664,19,FALSE),"") -> 46 | AN12: =IFERROR(VLOOKUP(AT12,Import!$AN$3:$AR$664,5,FALSE),"") ->  | AO12: =IFERROR(VLOOKUP(AT12,Import!$AD$3:$AH$664,5,FALSE),"") ->  | AP12: =IFERROR(VLOOKUP(AT12,Import!$AW$3:$BA$664,5,FALSE),"") -> 38 | AQ12: =IFERROR(VLOOKUP($AT12,Import!$AW$3:$BE$664,2,FALSE),"") -> 481.7 | AR12: =IFERROR(VLOOKUP($AT12,Import!$AW$3:$BE$664,3,FALSE),"") -> 16.05666667 | AT12: =IFERROR(VLOOKUP(AK12,Import!$W$3:$X$664,2,FALSE),"") -> Luis Severino | AW12: =IFERROR(VLOOKUP($AT12,Import!$B$3:$L$663,2,FALSE),"") -> NYY | AX12: =IFERROR(VLOOKUP($AT12,Import!$B$3:$L$663,3,FALSE),"") -> SP | AY12: =IFERROR(VLOOKUP($AT12,Import!$B$3:$L$663,4,FALSE),"") -> SP | AZ12: =IFERROR(VLOOKUP($AT12,Import!$B$3:$L$663,5,FALSE),"") -> 20 | BB12: =IFERROR(VLOOKUP($AT12,Import!$B$3:$X$664,12,FALSE),"") -> 190 | BC12: =IFERROR(VLOOKUP($AT12,Import!$B$3:$X$664,15,FALSE),"") -> 3.1 | BD12: =IFERROR(VLOOKUP($AT12,Import!$B$3:$X$664,16,FALSE),"") -> 1.06 | BE12: =IFERROR(VLOOKUP($AT12,Import!$B$3:$X$664,13,FALSE),"") -> 16 | BF12: =IFERROR(VLOOKUP($AT12,Import!$B$3:$X$664,14,FALSE),"") -> 0 | BG12: =IFERROR(VLOOKUP($AT12,Import!$B$3:$X$664,17,FALSE),"") -> 222 | BI12: 589 | BJ12: 201.4 | BK12: =IF(AU12='User Input'!$C$1,1,0) -> 0 | BL12: 0 | BM12: 0 | BN12: Luis Severino | BO12: 0 | BP12: 20 | BQ12: =IFERROR(VLOOKUP($AT12,Import!$B$3:$AL$663,35,FALSE),"") ->  | BR12: =9*(Table2[[#This Row],[K]]/Table2[[#This Row],[IP]]) -> 10.51578947 | BS12: =IFERROR(VLOOKUP($AT12,PITCH!$B$7:$AG$2004,28,FALSE),"N/A") -> 7.407208176 | CI12: =IF(CJ12="","",MAX(CI$1:CI11)+1) -> 11 | CJ12: =IF('User Input'!C11=0,"",'User Input'!C11) -> k | CK12: k
A13: 11 | B13: =IFERROR(VLOOKUP(M13,Import!$B$4:$T$664,19,FALSE),"") -> 11 | D13: =IFERROR(VLOOKUP(M13,Import!$AN$3:$AR$664,4,FALSE),"") ->  | E13: =IFERROR(VLOOKUP(M13,Import!$AD$3:$AL$664,4,FALSE),"") ->  | F13: =IFERROR(VLOOKUP(M13,Import!$AT$3:$BE$664,8,FALSE),"") -> 16 | G13: =IFERROR(VLOOKUP($M13,Import!$AT$3:$BE$664,2,FALSE),"") -> 541.1 | H13: =IFERROR(VLOOKUP($M13,Import!$AT$3:$BE$664,3,FALSE),"") -> 3.631543624 | J13: =IFERROR(VLOOKUP(M13,Import!$AT$3:$BE$664,10,FALSE),"") -> 17 | K13: =IFERROR(VLOOKUP(M13,Import!$AT$3:$BE$664,12,FALSE),"") -> 13 | M13: =IFERROR(VLOOKUP(A13,Import!$V$3:$X$664,3,FALSE),"") -> Francisco Lindor | P13: =IFERROR(VLOOKUP($M13,Import!$B$3:$AL$663,2,FALSE),"") -> CLE | Q13: =IFERROR(VLOOKUP($M13,Import!$B$3:$AL$663,3,FALSE),"") -> SS | R13: =IFERROR(VLOOKUP($M13,Import!$B$3:$AL$663,4,FALSE),"") -> SS | S13: =IFERROR(VLOOKUP($M13,Import!$B$3:$AL$663,5,FALSE),"") -> 32 | U13: =IFERROR(VLOOKUP($M13,Import!$B$3:$AL$663,6,FALSE),"") -> 601 | V13: =IFERROR(VLOOKUP($M13,Import!$B$3:$AL$663,7,FALSE),"") -> 112 | W13: =IFERROR(VLOOKUP($M13,Import!$B$3:$AL$663,8,FALSE),"") -> 27 | X13: =IFERROR(VLOOKUP($M13,Import!$B$3:$AL$663,9,FALSE),"") -> 81 | Y13: =IFERROR(VLOOKUP($M13,Import!$B$3:$AL$663,10,FALSE),"") -> 17 | Z13: =IFERROR(VLOOKUP($M13,Import!$B$3:$AL$663,11,FALSE),"") -> 0.294 | AB13: 176.694 | AC13: =IF(N13='User Input'!$C$1,1,0) -> 0 | AD13: 0 | AE13: 0 | AF13: Francisco Lindor | AG13: 0 | AH13: 32 | AI13: =IFERROR(VLOOKUP($M13,Import!$B$3:$AL$663,35,FALSE),"") ->  | AK13: 11 | AL13: =IFERROR(VLOOKUP(AT13,Import!$B$3:$T$664,19,FALSE),"") -> 47 | AN13: =IFERROR(VLOOKUP(AT13,Import!$AN$3:$AR$664,5,FALSE),"") ->  | AO13: =IFERROR(VLOOKUP(AT13,Import!$AD$3:$AH$664,5,FALSE),"") ->  | AP13: =IFERROR(VLOOKUP(AT13,Import!$AW$3:$BA$664,5,FALSE),"") -> 71 | AQ13: =IFERROR(VLOOKUP($AT13,Import!$AW$3:$BE$664,2,FALSE),"") -> 433.6 | AR13: =IFERROR(VLOOKUP($AT13,Import!$AW$3:$BE$664,3,FALSE),"") -> 14.95172414 | AT13: =IFERROR(VLOOKUP(AK13,Import!$W$3:$X$664,2,FALSE),"") -> Robbie Ray | AW13: =IFERROR(VLOOKUP($AT13,Import!$B$3:$L$663,2,FALSE),"") -> ARI | AX13: =IFERROR(VLOOKUP($AT13,Import!$B$3:$L$663,3,FALSE),"") -> SP | AY13: =IFERROR(VLOOKUP($AT13,Import!$B$3:$L$663,4,FALSE),"") -> SP | AZ13: =IFERROR(VLOOKUP($AT13,Import!$B$3:$L$663,5,FALSE),"") -> 20 | BB13: =IFERROR(VLOOKUP($AT13,Import!$B$3:$X$664,12,FALSE),"") -> 191 | BC13: =IFERROR(VLOOKUP($AT13,Import!$B$3:$X$664,15,FALSE),"") -> 3.26 | BD13: =IFERROR(VLOOKUP($AT13,Import!$B$3:$X$664,16,FALSE),"") -> 1.16 | BE13: =IFERROR(VLOOKUP($AT13,Import!$B$3:$X$664,13,FALSE),"") -> 16 | BF13: =IFERROR(VLOOKUP($AT13,Import!$B$3:$X$664,14,FALSE),"") -> 0 | BG13: =IFERROR(VLOOKUP($AT13,Import!$B$3:$X$664,17,FALSE),"") -> 234 | BI13: 622.66 | BJ13: 221.56 | BK13: =IF(AU13='User Input'!$C$1,1,0) -> 0 | BL13: 0 | BM13: 0 | BN13: Robbie Ray | BO13: 0 | BP13: 20 | BQ13: =IFERROR(VLOOKUP($AT13,Import!$B$3:$AL$663,35,FALSE),"") ->  | BR13: =9*(Table2[[#This Row],[K]]/Table2[[#This Row],[IP]]) -> 11.02617801 | BS13: =IFERROR(VLOOKUP($AT13,PITCH!$B$7:$AG$2004,28,FALSE),"N/A") -> 7.448630137 | CI13: =IF(CJ13="","",MAX(CI$1:CI12)+1) -> 12 | CJ13: =IF('User Input'!C12=0,"",'User Input'!C12) -> l | CK13: l
A14: 12 | B14: =IFERROR(VLOOKUP(M14,Import!$B$4:$T$664,19,FALSE),"") -> 12 | D14: =IFERROR(VLOOKUP(M14,Import!$AN$3:$AR$664,4,FALSE),"") ->  | E14: =IFERROR(VLOOKUP(M14,Import!$AD$3:$AL$664,4,FALSE),"") ->  | F14: =IFERROR(VLOOKUP(M14,Import!$AT$3:$BE$664,8,FALSE),"") -> 28 | G14: =IFERROR(VLOOKUP($M14,Import!$AT$3:$BE$664,2,FALSE),"") -> 497.1 | H14: =IFERROR(VLOOKUP($M14,Import!$AT$3:$BE$664,3,FALSE),"") -> 3.476223776 | J14: =IFERROR(VLOOKUP(M14,Import!$AT$3:$BE$664,10,FALSE),"") -> 16 | K14: =IFERROR(VLOOKUP(M14,Import!$AT$3:$BE$664,12,FALSE),"") -> 17 | M14: =IFERROR(VLOOKUP(A14,Import!$V$3:$X$664,3,FALSE),"") -> Freddie Freeman | P14: =IFERROR(VLOOKUP($M14,Import!$B$3:$AL$663,2,FALSE),"") -> ATL | Q14: =IFERROR(VLOOKUP($M14,Import!$B$3:$AL$663,3,FALSE),"") -> 1B | R14: =IFERROR(VLOOKUP($M14,Import!$B$3:$AL$663,4,FALSE),"") -> 1B/3B | S14: =IFERROR(VLOOKUP($M14,Import!$B$3:$AL$663,5,FALSE),"") -> 31 | U14: =IFERROR(VLOOKUP($M14,Import!$B$3:$AL$663,6,FALSE),"") -> 577 | V14: =IFERROR(VLOOKUP($M14,Import!$B$3:$AL$663,7,FALSE),"") -> 93 | W14: =IFERROR(VLOOKUP($M14,Import!$B$3:$AL$663,8,FALSE),"") -> 35 | X14: =IFERROR(VLOOKUP($M14,Import!$B$3:$AL$663,9,FALSE),"") -> 103 | Y14: =IFERROR(VLOOKUP($M14,Import!$B$3:$AL$663,10,FALSE),"") -> 8 | Z14: =IFERROR(VLOOKUP($M14,Import!$B$3:$AL$663,11,FALSE),"") -> 0.308 | AB14: 177.716 | AC14: =IF(N14='User Input'!$C$1,1,0) -> 0 | AD14: 0 | AE14: 0 | AF14: Freddie Freeman | AG14: 0 | AH14: 31 | AI14: =IFERROR(VLOOKUP($M14,Import!$B$3:$AL$663,35,FALSE),"") ->  | AK14: 12 | AL14: =IFERROR(VLOOKUP(AT14,Import!$B$3:$T$664,19,FALSE),"") -> 48 | AN14: =IFERROR(VLOOKUP(AT14,Import!$AN$3:$AR$664,5,FALSE),"") ->  | AO14: =IFERROR(VLOOKUP(AT14,Import!$AD$3:$AH$664,5,FALSE),"") ->  | AP14: =IFERROR(VLOOKUP(AT14,Import!$AW$3:$BA$664,5,FALSE),"") -> 56 | AQ14: =IFERROR(VLOOKUP($AT14,Import!$AW$3:$BE$664,2,FALSE),"") -> 446.6 | AR14: =IFERROR(VLOOKUP($AT14,Import!$AW$3:$BE$664,3,FALSE),"") -> 14.40645161 | AT14: =IFERROR(VLOOKUP(AK14,Import!$W$3:$X$664,2,FALSE),"") -> Carlos Martinez | AW14: =IFERROR(VLOOKUP($AT14,Import!$B$3:$L$663,2,FALSE),"") -> STL | AX14: =IFERROR(VLOOKUP($AT14,Import!$B$3:$L$663,3,FALSE),"") -> SP | AY14: =IFERROR(VLOOKUP($AT14,Import!$B$3:$L$663,4,FALSE),"") -> SP | AZ14: =IFERROR(VLOOKUP($AT14,Import!$B$3:$L$663,5,FALSE),"") -> 20 | BB14: =IFERROR(VLOOKUP($AT14,Import!$B$3:$X$664,12,FALSE),"") -> 202 | BC14: =IFERROR(VLOOKUP($AT14,Import!$B$3:$X$664,15,FALSE),"") -> 3.24 | BD14: =IFERROR(VLOOKUP($AT14,Import!$B$3:$X$664,16,FALSE),"") -> 1.19 | BE14: =IFERROR(VLOOKUP($AT14,Import!$B$3:$X$664,13,FALSE),"") -> 15 | BF14: =IFERROR(VLOOKUP($AT14,Import!$B$3:$X$664,14,FALSE),"") -> 0 | BG14: =IFERROR(VLOOKUP($AT14,Import!$B$3:$X$664,17,FALSE),"") -> 212 | BI14: 654.48 | BJ14: 240.38 | BK14: =IF(AU14='User Input'!$C$1,1,0) -> 0 | BL14: 0 | BM14: 0 | BN14: Carlos Martinez | BO14: 0 | BP14: 20 | BQ14: =IFERROR(VLOOKUP($AT14,Import!$B$3:$AL$663,35,FALSE),"") ->  | BR14: =9*(Table2[[#This Row],[K]]/Table2[[#This Row],[IP]]) -> 9.445544554 | BS14: =IFERROR(VLOOKUP($AT14,PITCH!$B$7:$AG$2004,28,FALSE),"N/A") -> 5.80942623 | CI14: =IF(CJ14="","",MAX(CI$1:CI13)+1) ->  | CJ14: =IF('User Input'!C13=0,"",'User Input'!C13) -> 
A15: 13 | B15: =IFERROR(VLOOKUP(M15,Import!$B$4:$T$664,19,FALSE),"") -> 13 | D15: =IFERROR(VLOOKUP(M15,Import!$AN$3:$AR$664,4,FALSE),"") ->  | E15: =IFERROR(VLOOKUP(M15,Import!$AD$3:$AL$664,4,FALSE),"") ->  | F15: =IFERROR(VLOOKUP(M15,Import!$AT$3:$BE$664,8,FALSE),"") -> 1 | G15: =IFERROR(VLOOKUP($M15,Import!$AT$3:$BE$664,2,FALSE),"") -> 537.35 | H15: =IFERROR(VLOOKUP($M15,Import!$AT$3:$BE$664,3,FALSE),"") -> 3.606375839 | J15: =IFERROR(VLOOKUP(M15,Import!$AT$3:$BE$664,10,FALSE),"") -> 21 | K15: =IFERROR(VLOOKUP(M15,Import!$AT$3:$BE$664,12,FALSE),"") -> 15 | M15: =IFERROR(VLOOKUP(A15,Import!$V$3:$X$664,3,FALSE),"") -> Jose Ramirez | P15: =IFERROR(VLOOKUP($M15,Import!$B$3:$AL$663,2,FALSE),"") -> CLE | Q15: =IFERROR(VLOOKUP($M15,Import!$B$3:$AL$663,3,FALSE),"") -> 2B/3B | R15: =IFERROR(VLOOKUP($M15,Import!$B$3:$AL$663,4,FALSE),"") -> 2B/3B | S15: =IFERROR(VLOOKUP($M15,Import!$B$3:$AL$663,5,FALSE),"") -> 30 | U15: =IFERROR(VLOOKUP($M15,Import!$B$3:$AL$663,6,FALSE),"") -> 577 | V15: =IFERROR(VLOOKUP($M15,Import!$B$3:$AL$663,7,FALSE),"") -> 101 | W15: =IFERROR(VLOOKUP($M15,Import!$B$3:$AL$663,8,FALSE),"") -> 25 | X15: =IFERROR(VLOOKUP($M15,Import!$B$3:$AL$663,9,FALSE),"") -> 91 | Y15: =IFERROR(VLOOKUP($M15,Import!$B$3:$AL$663,10,FALSE),"") -> 21 | Z15: =IFERROR(VLOOKUP($M15,Import!$B$3:$AL$663,11,FALSE),"") -> 0.315 | AB15: 181.755 | AC15: =IF(N15='User Input'!$C$1,1,0) -> 0 | AD15: 0 | AE15: 0 | AF15: Jose Ramirez | AG15: 0 | AH15: 30 | AI15: =IFERROR(VLOOKUP($M15,Import!$B$3:$AL$663,35,FALSE),"") ->  | AK15: 13 | AL15: =IFERROR(VLOOKUP(AT15,Import!$B$3:$T$664,19,FALSE),"") -> 49 | AN15: =IFERROR(VLOOKUP(AT15,Import!$AN$3:$AR$664,5,FALSE),"") ->  | AO15: =IFERROR(VLOOKUP(AT15,Import!$AD$3:$AH$664,5,FALSE),"") ->  | AP15: =IFERROR(VLOOKUP(AT15,Import!$AW$3:$BA$664,5,FALSE),"") -> 36 | AQ15: =IFERROR(VLOOKUP($AT15,Import!$AW$3:$BE$664,2,FALSE),"") -> 483.6 | AR15: =IFERROR(VLOOKUP($AT15,Import!$AW$3:$BE$664,3,FALSE),"") -> 15.6 | AT15: =IFERROR(VLOOKUP(AK15,Import!$W$3:$X$664,2,FALSE),"") -> Justin Verlander | AW15: =IFERROR(VLOOKUP($AT15,Import!$B$3:$L$663,2,FALSE),"") -> HOU | AX15: =IFERROR(VLOOKUP($AT15,Import!$B$3:$L$663,3,FALSE),"") -> SP | AY15: =IFERROR(VLOOKUP($AT15,Import!$B$3:$L$663,4,FALSE),"") -> SP | AZ15: =IFERROR(VLOOKUP($AT15,Import!$B$3:$L$663,5,FALSE),"") -> 19 | BB15: =IFERROR(VLOOKUP($AT15,Import!$B$3:$X$664,12,FALSE),"") -> 212 | BC15: =IFERROR(VLOOKUP($AT15,Import!$B$3:$X$664,15,FALSE),"") -> 3.41 | BD15: =IFERROR(VLOOKUP($AT15,Import!$B$3:$X$664,16,FALSE),"") -> 1.15 | BE15: =IFERROR(VLOOKUP($AT15,Import!$B$3:$X$664,13,FALSE),"") -> 16 | BF15: =IFERROR(VLOOKUP($AT15,Import!$B$3:$X$664,14,FALSE),"") -> 0 | BG15: =IFERROR(VLOOKUP($AT15,Import!$B$3:$X$664,17,FALSE),"") -> 223 | BI15: 722.92 | BJ15: 243.8 | BK15: =IF(AU15='User Input'!$C$1,1,0) -> 0 | BL15: 0 | BM15: 0 | BN15: Justin Verlander | BO15: 0 | BP15: 19 | BQ15: =IFERROR(VLOOKUP($AT15,Import!$B$3:$AL$663,35,FALSE),"") ->  | BR15: =9*(Table2[[#This Row],[K]]/Table2[[#This Row],[IP]]) -> 9.466981132 | BS15: =IFERROR(VLOOKUP($AT15,PITCH!$B$7:$AG$2004,28,FALSE),"N/A") -> 7.192622951 | CI15: =IF(CJ15="","",MAX(CI$1:CI14)+1) ->  | CJ15: =IF('User Input'!C14=0,"",'User Input'!C14) -> 
A16: 14 | B16: =IFERROR(VLOOKUP(M16,Import!$B$4:$T$664,19,FALSE),"") -> 14 | D16: =IFERROR(VLOOKUP(M16,Import!$AN$3:$AR$664,4,FALSE),"") ->  | E16: =IFERROR(VLOOKUP(M16,Import!$AD$3:$AL$664,4,FALSE),"") ->  | F16: =IFERROR(VLOOKUP(M16,Import!$AT$3:$BE$664,8,FALSE),"") -> 14 | G16: =IFERROR(VLOOKUP($M16,Import!$AT$3:$BE$664,2,FALSE),"") -> 547.9 | H16: =IFERROR(VLOOKUP($M16,Import!$AT$3:$BE$664,3,FALSE),"") -> 3.677181208 | J16: =IFERROR(VLOOKUP(M16,Import!$AT$3:$BE$664,10,FALSE),"") -> 8 | K16: =IFERROR(VLOOKUP(M16,Import!$AT$3:$BE$664,12,FALSE),"") -> 11 | M16: =IFERROR(VLOOKUP(A16,Import!$V$3:$X$664,3,FALSE),"") -> Anthony Rizzo | P16: =IFERROR(VLOOKUP($M16,Import!$B$3:$AL$663,2,FALSE),"") -> CHC | Q16: =IFERROR(VLOOKUP($M16,Import!$B$3:$AL$663,3,FALSE),"") -> 1B | R16: =IFERROR(VLOOKUP($M16,Import!$B$3:$AL$663,4,FALSE),"") -> 1B/2B | S16: =IFERROR(VLOOKUP($M16,Import!$B$3:$AL$663,5,FALSE),"") -> 30 | U16: =IFERROR(VLOOKUP($M16,Import!$B$3:$AL$663,6,FALSE),"") -> 581 | V16: =IFERROR(VLOOKUP($M16,Import!$B$3:$AL$663,7,FALSE),"") -> 101 | W16: =IFERROR(VLOOKUP($M16,Import!$B$3:$AL$663,8,FALSE),"") -> 34 | X16: =IFERROR(VLOOKUP($M16,Import!$B$3:$AL$663,9,FALSE),"") -> 112 | Y16: =IFERROR(VLOOKUP($M16,Import!$B$3:$AL$663,10,FALSE),"") -> 9 | Z16: =IFERROR(VLOOKUP($M16,Import!$B$3:$AL$663,11,FALSE),"") -> 0.283 | AB16: 164.423 | AC16: =IF(N16='User Input'!$C$1,1,0) -> 0 | AD16: 0 | AE16: 0 | AF16: Anthony Rizzo | AG16: 0 | AH16: 30 | AI16: =IFERROR(VLOOKUP($M16,Import!$B$3:$AL$663,35,FALSE),"") ->  | AK16: 14 | AL16: =IFERROR(VLOOKUP(AT16,Import!$B$3:$T$664,19,FALSE),"") -> 50 | AN16: =IFERROR(VLOOKUP(AT16,Import!$AN$3:$AR$664,5,FALSE),"") ->  | AO16: =IFERROR(VLOOKUP(AT16,Import!$AD$3:$AH$664,5,FALSE),"") ->  | AP16: =IFERROR(VLOOKUP(AT16,Import!$AW$3:$BA$664,5,FALSE),"") -> 51 | AQ16: =IFERROR(VLOOKUP($AT16,Import!$AW$3:$BE$664,2,FALSE),"") -> 455.6 | AR16: =IFERROR(VLOOKUP($AT16,Import!$AW$3:$BE$664,3,FALSE),"") -> 15.71034483 | AT16: =IFERROR(VLOOKUP(AK16,Import!$W$3:$X$664,2,FALSE),"") -> Yu Darvish | AW16: =IFERROR(VLOOKUP($AT16,Import!$B$3:$L$663,2,FALSE),"") -> CHC | AX16: =IFERROR(VLOOKUP($AT16,Import!$B$3:$L$663,3,FALSE),"") -> SP | AY16: =IFERROR(VLOOKUP($AT16,Import!$B$3:$L$663,4,FALSE),"") -> SP | AZ16: =IFERROR(VLOOKUP($AT16,Import!$B$3:$L$663,5,FALSE),"") -> 19 | BB16: =IFERROR(VLOOKUP($AT16,Import!$B$3:$X$664,12,FALSE),"") -> 196 | BC16: =IFERROR(VLOOKUP($AT16,Import!$B$3:$X$664,15,FALSE),"") -> 3.51 | BD16: =IFERROR(VLOOKUP($AT16,Import!$B$3:$X$664,16,FALSE),"") -> 1.15 | BE16: =IFERROR(VLOOKUP($AT16,Import!$B$3:$X$664,13,FALSE),"") -> 14 | BF16: =IFERROR(VLOOKUP($AT16,Import!$B$3:$X$664,14,FALSE),"") -> 0 | BG16: =IFERROR(VLOOKUP($AT16,Import!$B$3:$X$664,17,FALSE),"") -> 221 | BI16: 687.96 | BJ16: 225.4 | BK16: =IF(AU16='User Input'!$C$1,1,0) -> 0 | BL16: 0 | BM16: 0 | BN16: Yu Darvish | BO16: 0 | BP16: 19 | BQ16: =IFERROR(VLOOKUP($AT16,Import!$B$3:$AL$663,35,FALSE),"") ->  | BR16: =9*(Table2[[#This Row],[K]]/Table2[[#This Row],[IP]]) -> 10.14795918 | BS16: =IFERROR(VLOOKUP($AT16,PITCH!$B$7:$AG$2004,28,FALSE),"N/A") -> 7.654109589 | CI16: =IF(CJ16="","",MAX(CI$1:CI15)+1) ->  | CJ16: =IF('User Input'!C15=0,"",'User Input'!C15) -> 
A17: 15 | B17: =IFERROR(VLOOKUP(M17,Import!$B$4:$T$664,19,FALSE),"") -> 15 | D17: =IFERROR(VLOOKUP(M17,Import!$AN$3:$AR$664,4,FALSE),"") ->  | E17: =IFERROR(VLOOKUP(M17,Import!$AD$3:$AL$664,4,FALSE),"") ->  | F17: =IFERROR(VLOOKUP(M17,Import!$AT$3:$BE$664,8,FALSE),"") -> 32 | G17: =IFERROR(VLOOKUP($M17,Import!$AT$3:$BE$664,2,FALSE),"") -> 492.1 | H17: =IFERROR(VLOOKUP($M17,Import!$AT$3:$BE$664,3,FALSE),"") -> 3.515 | J17: =IFERROR(VLOOKUP(M17,Import!$AT$3:$BE$664,10,FALSE),"") -> 18 | K17: =IFERROR(VLOOKUP(M17,Import!$AT$3:$BE$664,12,FALSE),"") -> 12 | M17: =IFERROR(VLOOKUP(A17,Import!$V$3:$X$664,3,FALSE),"") -> J.D. Martinez | P17: =IFERROR(VLOOKUP($M17,Import!$B$3:$AL$663,2,FALSE),"") -> BOS | Q17: =IFERROR(VLOOKUP($M17,Import!$B$3:$AL$663,3,FALSE),"") -> OF | R17: =IFERROR(VLOOKUP($M17,Import!$B$3:$AL$663,4,FALSE),"") -> OF | S17: =IFERROR(VLOOKUP($M17,Import!$B$3:$AL$663,5,FALSE),"") -> 30 | U17: =IFERROR(VLOOKUP($M17,Import!$B$3:$AL$663,6,FALSE),"") -> 505 | V17: =IFERROR(VLOOKUP($M17,Import!$B$3:$AL$663,7,FALSE),"") -> 91 | W17: =IFERROR(VLOOKUP($M17,Import!$B$3:$AL$663,8,FALSE),"") -> 36 | X17: =IFERROR(VLOOKUP($M17,Import!$B$3:$AL$663,9,FALSE),"") -> 109 | Y17: =IFERROR(VLOOKUP($M17,Import!$B$3:$AL$663,10,FALSE),"") -> 4 | Z17: =IFERROR(VLOOKUP($M17,Import!$B$3:$AL$663,11,FALSE),"") -> 0.284 | AB17: 143.42 | AC17: =IF(N17='User Input'!$C$1,1,0) -> 0 | AD17: 0 | AE17: 0 | AF17: J.D. Martinez | AG17: 0 | AH17: 30 | AI17: =IFERROR(VLOOKUP($M17,Import!$B$3:$AL$663,35,FALSE),"") ->  | AK17: 15 | AL17: =IFERROR(VLOOKUP(AT17,Import!$B$3:$T$664,19,FALSE),"") -> 66 | AN17: =IFERROR(VLOOKUP(AT17,Import!$AN$3:$AR$664,5,FALSE),"") ->  | AO17: =IFERROR(VLOOKUP(AT17,Import!$AD$3:$AH$664,5,FALSE),"") ->  | AP17: =IFERROR(VLOOKUP(AT17,Import!$AW$3:$BA$664,5,FALSE),"") -> 72 | AQ17: =IFERROR(VLOOKUP($AT17,Import!$AW$3:$BE$664,2,FALSE),"") -> 432.4 | AR17: =IFERROR(VLOOKUP($AT17,Import!$AW$3:$BE$664,3,FALSE),"") -> 6.652307692 | AT17: =IFERROR(VLOOKUP(AK17,Import!$W$3:$X$664,2,FALSE),"") -> Kenley Jansen | AW17: =IFERROR(VLOOKUP($AT17,Import!$B$3:$L$663,2,FALSE),"") -> LAD | AX17: =IFERROR(VLOOKUP($AT17,Import!$B$3:$L$663,3,FALSE),"") -> RP | AY17: =IFERROR(VLOOKUP($AT17,Import!$B$3:$L$663,4,FALSE),"") -> RP | AZ17: =IFERROR(VLOOKUP($AT17,Import!$B$3:$L$663,5,FALSE),"") -> 17 | BB17: =IFERROR(VLOOKUP($AT17,Import!$B$3:$X$664,12,FALSE),"") -> 67 | BC17: =IFERROR(VLOOKUP($AT17,Import!$B$3:$X$664,15,FALSE),"") -> 1.84 | BD17: =IFERROR(VLOOKUP($AT17,Import!$B$3:$X$664,16,FALSE),"") -> 0.8 | BE17: =IFERROR(VLOOKUP($AT17,Import!$B$3:$X$664,13,FALSE),"") -> 4 | BF17: =IFERROR(VLOOKUP($AT17,Import!$B$3:$X$664,14,FALSE),"") -> 43 | BG17: =IFERROR(VLOOKUP($AT17,Import!$B$3:$X$664,17,FALSE),"") -> 105 | BI17: 123.28 | BJ17: 53.6 | BK17: =IF(AU17='User Input'!$C$1,1,0) -> 0 | BL17: 0 | BM17: 0 | BN17: Kenley Jansen | BO17: 0 | BP17: 17 | BQ17: =IFERROR(VLOOKUP($AT17,Import!$B$3:$AL$663,35,FALSE),"") ->  | BR17: =9*(Table2[[#This Row],[K]]/Table2[[#This Row],[IP]]) -> 14.10447761 | BS17: =IFERROR(VLOOKUP($AT17,PITCH!$B$7:$AG$2004,28,FALSE),"N/A") -> 10.47685835 | CI17: =IF(CJ17="","",MAX(CI$1:CI16)+1) ->  | CJ17: =IF('User Input'!C16=0,"",'User Input'!C16) -> 
A18: 16 | B18: =IFERROR(VLOOKUP(M18,Import!$B$4:$T$664,19,FALSE),"") -> 16 | D18: =IFERROR(VLOOKUP(M18,Import!$AN$3:$AR$664,4,FALSE),"") ->  | E18: =IFERROR(VLOOKUP(M18,Import!$AD$3:$AL$664,4,FALSE),"") ->  | F18: =IFERROR(VLOOKUP(M18,Import!$AT$3:$BE$664,8,FALSE),"") -> 23 | G18: =IFERROR(VLOOKUP($M18,Import!$AT$3:$BE$664,2,FALSE),"") -> 510.2 | H18: =IFERROR(VLOOKUP($M18,Import!$AT$3:$BE$664,3,FALSE),"") -> 3.494520548 | J18: =IFERROR(VLOOKUP(M18,Import!$AT$3:$BE$664,10,FALSE),"") -> 14 | K18: =IFERROR(VLOOKUP(M18,Import!$AT$3:$BE$664,12,FALSE),"") -> 19 | M18: =IFERROR(VLOOKUP(A18,Import!$V$3:$X$664,3,FALSE),"") -> George Springer | P18: =IFERROR(VLOOKUP($M18,Import!$B$3:$AL$663,2,FALSE),"") -> HOU | Q18: =IFERROR(VLOOKUP($M18,Import!$B$3:$AL$663,3,FALSE),"") -> OF | R18: =IFERROR(VLOOKUP($M18,Import!$B$3:$AL$663,4,FALSE),"") -> OF | S18: =IFERROR(VLOOKUP($M18,Import!$B$3:$AL$663,5,FALSE),"") -> 30 | U18: =IFERROR(VLOOKUP($M18,Import!$B$3:$AL$663,6,FALSE),"") -> 611 | V18: =IFERROR(VLOOKUP($M18,Import!$B$3:$AL$663,7,FALSE),"") -> 116 | W18: =IFERROR(VLOOKUP($M18,Import!$B$3:$AL$663,8,FALSE),"") -> 35 | X18: =IFERROR(VLOOKUP($M18,Import!$B$3:$AL$663,9,FALSE),"") -> 84 | Y18: =IFERROR(VLOOKUP($M18,Import!$B$3:$AL$663,10,FALSE),"") -> 8 | Z18: =IFERROR(VLOOKUP($M18,Import!$B$3:$AL$663,11,FALSE),"") -> 0.281 | AB18: 171.691 | AC18: =IF(N18='User Input'!$C$1,1,0) -> 0 | AD18: 0 | AE18: 0 | AF18: George Springer | AG18: 0 | AH18: 30 | AI18: =IFERROR(VLOOKUP($M18,Import!$B$3:$AL$663,35,FALSE),"") ->  | AK18: 16 | AL18: =IFERROR(VLOOKUP(AT18,Import!$B$3:$T$664,19,FALSE),"") -> 70 | AN18: =IFERROR(VLOOKUP(AT18,Import!$AN$3:$AR$664,5,FALSE),"") ->  | AO18: =IFERROR(VLOOKUP(AT18,Import!$AD$3:$AH$664,5,FALSE),"") ->  | AP18: =IFERROR(VLOOKUP(AT18,Import!$AW$3:$BA$664,5,FALSE),"") -> 54 | AQ18: =IFERROR(VLOOKUP($AT18,Import!$AW$3:$BE$664,2,FALSE),"") -> 448.5 | AR18: =IFERROR(VLOOKUP($AT18,Import!$AW$3:$BE$664,3,FALSE),"") -> 14.46774194 | AT18: =IFERROR(VLOOKUP(AK18,Import!$W$3:$X$664,2,FALSE),"") -> Chris Archer | AW18: =IFERROR(VLOOKUP($AT18,Import!$B$3:$L$663,2,FALSE),"") -> TB | AX18: =IFERROR(VLOOKUP($AT18,Import!$B$3:$L$663,3,FALSE),"") -> SP | AY18: =IFERROR(VLOOKUP($AT18,Import!$B$3:$L$663,4,FALSE),"") -> SP | AZ18: =IFERROR(VLOOKUP($AT18,Import!$B$3:$L$663,5,FALSE),"") -> 16 | BB18: =IFERROR(VLOOKUP($AT18,Import!$B$3:$X$664,12,FALSE),"") -> 205 | BC18: =IFERROR(VLOOKUP($AT18,Import!$B$3:$X$664,15,FALSE),"") -> 3.69 | BD18: =IFERROR(VLOOKUP($AT18,Import!$B$3:$X$664,16,FALSE),"") -> 1.22 | BE18: =IFERROR(VLOOKUP($AT18,Import!$B$3:$X$664,13,FALSE),"") -> 11 | BF18: =IFERROR(VLOOKUP($AT18,Import!$B$3:$X$664,14,FALSE),"") -> 0 | BG18: =IFERROR(VLOOKUP($AT18,Import!$B$3:$X$664,17,FALSE),"") -> 237 | BI18: 756.45 | BJ18: 250.1 | BK18: =IF(AU18='User Input'!$C$1,1,0) -> 0 | BL18: 0 | BM18: 0 | BN18: Chris Archer | BO18: 0 | BP18: 16 | BQ18: =IFERROR(VLOOKUP($AT18,Import!$B$3:$AL$663,35,FALSE),"") ->  | BR18: =9*(Table2[[#This Row],[K]]/Table2[[#This Row],[IP]]) -> 10.40487805 | BS18: =IFERROR(VLOOKUP($AT18,PITCH!$B$7:$AG$2004,28,FALSE),"N/A") -> 7.37704918 | CI18: =IF(CJ18="","",MAX(CI$1:CI17)+1) ->  | CJ18: =IF('User Input'!C17=0,"",'User Input'!C17) -> 
A19: 17 | B19: =IFERROR(VLOOKUP(M19,Import!$B$4:$T$664,19,FALSE),"") -> 17 | D19: =IFERROR(VLOOKUP(M19,Import!$AN$3:$AR$664,4,FALSE),"") ->  | E19: =IFERROR(VLOOKUP(M19,Import!$AD$3:$AL$664,4,FALSE),"") ->  | F19: =IFERROR(VLOOKUP(M19,Import!$AT$3:$BE$664,8,FALSE),"") -> 37 | G19: =IFERROR(VLOOKUP($M19,Import!$AT$3:$BE$664,2,FALSE),"") -> 482.3 | H19: =IFERROR(VLOOKUP($M19,Import!$AT$3:$BE$664,3,FALSE),"") -> 3.236912752 | J19: =IFERROR(VLOOKUP(M19,Import!$AT$3:$BE$664,10,FALSE),"") -> 23 | K19: =IFERROR(VLOOKUP(M19,Import!$AT$3:$BE$664,12,FALSE),"") -> 28 | M19: =IFERROR(VLOOKUP(A19,Import!$V$3:$X$664,3,FALSE),"") -> Cody Bellinger | P19: =IFERROR(VLOOKUP($M19,Import!$B$3:$AL$663,2,FALSE),"") -> LAD | Q19: =IFERROR(VLOOKUP($M19,Import!$B$3:$AL$663,3,FALSE),"") -> 1B/OF | R19: =IFERROR(VLOOKUP($M19,Import!$B$3:$AL$663,4,FALSE),"") -> 1B/OF | S19: =IFERROR(VLOOKUP($M19,Import!$B$3:$AL$663,5,FALSE),"") -> 29 | U19: =IFERROR(VLOOKUP($M19,Import!$B$3:$AL$663,6,FALSE),"") -> 561 | V19: =IFERROR(VLOOKUP($M19,Import!$B$3:$AL$663,7,FALSE),"") -> 101 | W19: =IFERROR(VLOOKUP($M19,Import!$B$3:$AL$663,8,FALSE),"") -> 35 | X19: =IFERROR(VLOOKUP($M19,Import!$B$3:$AL$663,9,FALSE),"") -> 109 | Y19: =IFERROR(VLOOKUP($M19,Import!$B$3:$AL$663,10,FALSE),"") -> 12 | Z19: =IFERROR(VLOOKUP($M19,Import!$B$3:$AL$663,11,FALSE),"") -> 0.265 | AB19: 148.665 | AC19: =IF(N19='User Input'!$C$1,1,0) -> 0 | AD19: 0 | AE19: 0 | AF19: Cody Bellinger | AG19: 0 | AH19: 29 | AI19: =IFERROR(VLOOKUP($M19,Import!$B$3:$AL$663,35,FALSE),"") ->  | AK19: 17 | AL19: =IFERROR(VLOOKUP(AT19,Import!$B$3:$T$664,19,FALSE),"") -> 71 | AN19: =IFERROR(VLOOKUP(AT19,Import!$AN$3:$AR$664,5,FALSE),"") ->  | AO19: =IFERROR(VLOOKUP(AT19,Import!$AD$3:$AH$664,5,FALSE),"") ->  | AP19: =IFERROR(VLOOKUP(AT19,Import!$AW$3:$BA$664,5,FALSE),"") -> 68 | AQ19: =IFERROR(VLOOKUP($AT19,Import!$AW$3:$BE$664,2,FALSE),"") -> 438 | AR19: =IFERROR(VLOOKUP($AT19,Import!$AW$3:$BE$664,3,FALSE),"") -> 14.12903226 | AT19: =IFERROR(VLOOKUP(AK19,Import!$W$3:$X$664,2,FALSE),"") -> Zack Greinke | AW19: =IFERROR(VLOOKUP($AT19,Import!$B$3:$L$663,2,FALSE),"") -> ARI | AX19: =IFERROR(VLOOKUP($AT19,Import!$B$3:$L$663,3,FALSE),"") -> SP | AY19: =IFERROR(VLOOKUP($AT19,Import!$B$3:$L$663,4,FALSE),"") -> SP | AZ19: =IFERROR(VLOOKUP($AT19,Import!$B$3:$L$663,5,FALSE),"") -> 16 | BB19: =IFERROR(VLOOKUP($AT19,Import!$B$3:$X$664,12,FALSE),"") -> 205 | BC19: =IFERROR(VLOOKUP($AT19,Import!$B$3:$X$664,15,FALSE),"") -> 3.45 | BD19: =IFERROR(VLOOKUP($AT19,Import!$B$3:$X$664,16,FALSE),"") -> 1.1 | BE19: =IFERROR(VLOOKUP($AT19,Import!$B$3:$X$664,13,FALSE),"") -> 14 | BF19: =IFERROR(VLOOKUP($AT19,Import!$B$3:$X$664,14,FALSE),"") -> 0 | BG19: =IFERROR(VLOOKUP($AT19,Import!$B$3:$X$664,17,FALSE),"") -> 202 | BI19: 707.25 | BJ19: 225.5 | BK19: =IF(AU19='User Input'!$C$1,1,0) -> 0 | BL19: 0 | BM19: 0 | BN19: Zack Greinke | BO19: 0 | BP19: 16 | BQ19: =IFERROR(VLOOKUP($AT19,Import!$B$3:$AL$663,35,FALSE),"") ->  | BR19: =9*(Table2[[#This Row],[K]]/Table2[[#This Row],[IP]]) -> 8.868292683 | BS19: =IFERROR(VLOOKUP($AT19,PITCH!$B$7:$AG$2004,28,FALSE),"N/A") -> 6.361256545 | CI19: =IF(CJ19="","",MAX(CI$1:CI18)+1) ->  | CJ19: =IF('User Input'!C18=0,"",'User Input'!C18) -> 
A20: 18 | B20: =IFERROR(VLOOKUP(M20,Import!$B$4:$T$664,19,FALSE),"") -> 18 | D20: =IFERROR(VLOOKUP(M20,Import!$AN$3:$AR$664,4,FALSE),"") ->  | E20: =IFERROR(VLOOKUP(M20,Import!$AD$3:$AL$664,4,FALSE),"") ->  | F20: =IFERROR(VLOOKUP(M20,Import!$AT$3:$BE$664,8,FALSE),"") -> 26 | G20: =IFERROR(VLOOKUP($M20,Import!$AT$3:$BE$664,2,FALSE),"") -> 500.25 | H20: =IFERROR(VLOOKUP($M20,Import!$AT$3:$BE$664,3,FALSE),"") -> 3.426369863 | J20: =IFERROR(VLOOKUP(M20,Import!$AT$3:$BE$664,10,FALSE),"") -> 20 | K20: =IFERROR(VLOOKUP(M20,Import!$AT$3:$BE$664,12,FALSE),"") -> 14 | M20: =IFERROR(VLOOKUP(A20,Import!$V$3:$X$664,3,FALSE),"") -> Charlie Blackmon | P20: =IFERROR(VLOOKUP($M20,Import!$B$3:$AL$663,2,FALSE),"") -> COL | Q20: =IFERROR(VLOOKUP($M20,Import!$B$3:$AL$663,3,FALSE),"") -> OF | R20: =IFERROR(VLOOKUP($M20,Import!$B$3:$AL$663,4,FALSE),"") -> OF | S20: =IFERROR(VLOOKUP($M20,Import!$B$3:$AL$663,5,FALSE),"") -> 29 | U20: =IFERROR(VLOOKUP($M20,Import!$B$3:$AL$663,6,FALSE),"") -> 597 | V20: =IFERROR(VLOOKUP($M20,Import!$B$3:$AL$663,7,FALSE),"") -> 107 | W20: =IFERROR(VLOOKUP($M20,Import!$B$3:$AL$663,8,FALSE),"") -> 24 | X20: =IFERROR(VLOOKUP($M20,Import!$B$3:$AL$663,9,FALSE),"") -> 71 | Y20: =IFERROR(VLOOKUP($M20,Import!$B$3:$AL$663,10,FALSE),"") -> 15 | Z20: =IFERROR(VLOOKUP($M20,Import!$B$3:$AL$663,11,FALSE),"") -> 0.289 | AB20: 172.533 | AC20: =IF(N20='User Input'!$C$1,1,0) -> 0 | AD20: 0 | AE20: 0 | AF20: Charlie Blackmon | AG20: 0 | AH20: 29 | AI20: =IFERROR(VLOOKUP($M20,Import!$B$3:$AL$663,35,FALSE),"") ->  | AK20: 18 | AL20: =IFERROR(VLOOKUP(AT20,Import!$B$3:$T$664,19,FALSE),"") -> 72 | AN20: =IFERROR(VLOOKUP(AT20,Import!$AN$3:$AR$664,5,FALSE),"") ->  | AO20: =IFERROR(VLOOKUP(AT20,Import!$AD$3:$AH$664,5,FALSE),"") ->  | AP20: =IFERROR(VLOOKUP(AT20,Import!$AW$3:$BA$664,5,FALSE),"") -> 84 | AQ20: =IFERROR(VLOOKUP($AT20,Import!$AW$3:$BE$664,2,FALSE),"") -> 422.4 | AR20: =IFERROR(VLOOKUP($AT20,Import!$AW$3:$BE$664,3,FALSE),"") -> 6.498461538 | AT20: =IFERROR(VLOOKUP(AK20,Import!$W$3:$X$664,2,FALSE),"") -> Craig Kimbrel | AW20: =IFERROR(VLOOKUP($AT20,Import!$B$3:$L$663,2,FALSE),"") -> BOS | AX20: =IFERROR(VLOOKUP($AT20,Import!$B$3:$L$663,3,FALSE),"") -> RP | AY20: =IFERROR(VLOOKUP($AT20,Import!$B$3:$L$663,4,FALSE),"") -> RP | AZ20: =IFERROR(VLOOKUP($AT20,Import!$B$3:$L$663,5,FALSE),"") -> 16 | BB20: =IFERROR(VLOOKUP($AT20,Import!$B$3:$X$664,12,FALSE),"") -> 65 | BC20: =IFERROR(VLOOKUP($AT20,Import!$B$3:$X$664,15,FALSE),"") -> 1.93 | BD20: =IFERROR(VLOOKUP($AT20,Import!$B$3:$X$664,16,FALSE),"") -> 0.82 | BE20: =IFERROR(VLOOKUP($AT20,Import!$B$3:$X$664,13,FALSE),"") -> 5 | BF20: =IFERROR(VLOOKUP($AT20,Import!$B$3:$X$664,14,FALSE),"") -> 42 | BG20: =IFERROR(VLOOKUP($AT20,Import!$B$3:$X$664,17,FALSE),"") -> 102 | BI20: 125.45 | BJ20: 53.3 | BK20: =IF(AU20='User Input'!$C$1,1,0) -> 0 | BL20: 0 | BM20: 0 | BN20: Craig Kimbrel | BO20: 0 | BP20: 16 | BQ20: =IFERROR(VLOOKUP($AT20,Import!$B$3:$AL$663,35,FALSE),"") ->  | BR20: =9*(Table2[[#This Row],[K]]/Table2[[#This Row],[IP]]) -> 14.12307692 | BS20: =IFERROR(VLOOKUP($AT20,PITCH!$B$7:$AG$2004,28,FALSE),"N/A") -> 10.55555556 | CI20: =IF(CJ20="","",MAX(CI$1:CI19)+1) ->  | CJ20: =IF('User Input'!C19=0,"",'User Input'!C19) -> 
A21: 19 | B21: =IFERROR(VLOOKUP(M21,Import!$B$4:$T$664,19,FALSE),"") -> 19 | D21: =IFERROR(VLOOKUP(M21,Import!$AN$3:$AR$664,4,FALSE),"") ->  | E21: =IFERROR(VLOOKUP(M21,Import!$AD$3:$AL$664,4,FALSE),"") ->  | F21: =IFERROR(VLOOKUP(M21,Import!$AT$3:$BE$664,8,FALSE),"") -> 22 | G21: =IFERROR(VLOOKUP($M21,Import!$AT$3:$BE$664,2,FALSE),"") -> 517 | H21: =IFERROR(VLOOKUP($M21,Import!$AT$3:$BE$664,3,FALSE),"") -> 3.493243243 | J21: =IFERROR(VLOOKUP(M21,Import!$AT$3:$BE$664,10,FALSE),"") -> 11 | K21: =IFERROR(VLOOKUP(M21,Import!$AT$3:$BE$664,12,FALSE),"") -> 21 | M21: =IFERROR(VLOOKUP(A21,Import!$V$3:$X$664,3,FALSE),"") -> Joey Votto | P21: =IFERROR(VLOOKUP($M21,Import!$B$3:$AL$663,2,FALSE),"") -> CIN | Q21: =IFERROR(VLOOKUP($M21,Import!$B$3:$AL$663,3,FALSE),"") -> 1B | R21: =IFERROR(VLOOKUP($M21,Import!$B$3:$AL$663,4,FALSE),"") -> 1B | S21: =IFERROR(VLOOKUP($M21,Import!$B$3:$AL$663,5,FALSE),"") -> 29 | U21: =IFERROR(VLOOKUP($M21,Import!$B$3:$AL$663,6,FALSE),"") -> 546 | V21: =IFERROR(VLOOKUP($M21,Import!$B$3:$AL$663,7,FALSE),"") -> 99 | W21: =IFERROR(VLOOKUP($M21,Import!$B$3:$AL$663,8,FALSE),"") -> 28 | X21: =IFERROR(VLOOKUP($M21,Import!$B$3:$AL$663,9,FALSE),"") -> 95 | Y21: =IFERROR(VLOOKUP($M21,Import!$B$3:$AL$663,10,FALSE),"") -> 4 | Z21: =IFERROR(VLOOKUP($M21,Import!$B$3:$AL$663,11,FALSE),"") -> 0.317 | AB21: 173.082 | AC21: =IF(N21='User Input'!$C$1,1,0) -> 0 | AD21: 0 | AE21: 0 | AF21: Joey Votto | AG21: 0 | AH21: 29 | AI21: =IFERROR(VLOOKUP($M21,Import!$B$3:$AL$663,35,FALSE),"") ->  | AK21: 19 | AL21: =IFERROR(VLOOKUP(AT21,Import!$B$3:$T$664,19,FALSE),"") -> 73 | AN21: =IFERROR(VLOOKUP(AT21,Import!$AN$3:$AR$664,5,FALSE),"") ->  | AO21: =IFERROR(VLOOKUP(AT21,Import!$AD$3:$AH$664,5,FALSE),"") ->  | AP21: =IFERROR(VLOOKUP(AT21,Import!$AW$3:$BA$664,5,FALSE),"") -> 95 | AQ21: =IFERROR(VLOOKUP($AT21,Import!$AW$3:$BE$664,2,FALSE),"") -> 411.9 | AR21: =IFERROR(VLOOKUP($AT21,Import!$AW$3:$BE$664,3,FALSE),"") -> 6.336923077 | AT21: =IFERROR(VLOOKUP(AK21,Import!$W$3:$X$664,2,FALSE),"") -> Aroldis Chapman | AW21: =IFERROR(VLOOKUP($AT21,Import!$B$3:$L$663,2,FALSE),"") -> NYY | AX21: =IFERROR(VLOOKUP($AT21,Import!$B$3:$L$663,3,FALSE),"") -> RP | AY21: =IFERROR(VLOOKUP($AT21,Import!$B$3:$L$663,4,FALSE),"") -> RP | AZ21: =IFERROR(VLOOKUP($AT21,Import!$B$3:$L$663,5,FALSE),"") -> 16 | BB21: =IFERROR(VLOOKUP($AT21,Import!$B$3:$X$664,12,FALSE),"") -> 65 | BC21: =IFERROR(VLOOKUP($AT21,Import!$B$3:$X$664,15,FALSE),"") -> 2.19 | BD21: =IFERROR(VLOOKUP($AT21,Import!$B$3:$X$664,16,FALSE),"") -> 1.01 | BE21: =IFERROR(VLOOKUP($AT21,Import!$B$3:$X$664,13,FALSE),"") -> 5 | BF21: =IFERROR(VLOOKUP($AT21,Import!$B$3:$X$664,14,FALSE),"") -> 40 | BG21: =IFERROR(VLOOKUP($AT21,Import!$B$3:$X$664,17,FALSE),"") -> 100 | BI21: 142.35 | BJ21: 65.65 | BK21: =IF(AU21='User Input'!$C$1,1,0) -> 0 | BL21: 0 | BM21: 0 | BN21: Aroldis Chapman | BO21: 0 | BP21: 16 | BQ21: =IFERROR(VLOOKUP($AT21,Import!$B$3:$AL$663,35,FALSE),"") ->  | BR21: =9*(Table2[[#This Row],[K]]/Table2[[#This Row],[IP]]) -> 13.84615385 | BS21: =IFERROR(VLOOKUP($AT21,PITCH!$B$7:$AG$2004,28,FALSE),"N/A") -> 9.444444444 | CI21: =IF(CJ21="","",MAX(CI$1:CI20)+1) ->  | CJ21: =IF('User Input'!C20=0,"",'User Input'!C20) -> 
A22: 20 | B22: =IFERROR(VLOOKUP(M22,Import!$B$4:$T$664,19,FALSE),"") -> 21 | D22: =IFERROR(VLOOKUP(M22,Import!$AN$3:$AR$664,4,FALSE),"") ->  | E22: =IFERROR(VLOOKUP(M22,Import!$AD$3:$AL$664,4,FALSE),"") ->  | F22: =IFERROR(VLOOKUP(M22,Import!$AT$3:$BE$664,8,FALSE),"") -> 29 | G22: =IFERROR(VLOOKUP($M22,Import!$AT$3:$BE$664,2,FALSE),"") -> 495.8 | H22: =IFERROR(VLOOKUP($M22,Import!$AT$3:$BE$664,3,FALSE),"") -> 3.35 | J22: =IFERROR(VLOOKUP(M22,Import!$AT$3:$BE$664,10,FALSE),"") -> 9 | K22: =IFERROR(VLOOKUP(M22,Import!$AT$3:$BE$664,12,FALSE),"") -> 20 | M22: =IFERROR(VLOOKUP(A22,Import!$V$3:$X$664,3,FALSE),"") -> Aaron Judge | P22: =IFERROR(VLOOKUP($M22,Import!$B$3:$AL$663,2,FALSE),"") -> NYY | Q22: =IFERROR(VLOOKUP($M22,Import!$B$3:$AL$663,3,FALSE),"") -> OF | R22: =IFERROR(VLOOKUP($M22,Import!$B$3:$AL$663,4,FALSE),"") -> OF | S22: =IFERROR(VLOOKUP($M22,Import!$B$3:$AL$663,5,FALSE),"") -> 27 | U22: =IFERROR(VLOOKUP($M22,Import!$B$3:$AL$663,6,FALSE),"") -> 511 | V22: =IFERROR(VLOOKUP($M22,Import!$B$3:$AL$663,7,FALSE),"") -> 104 | W22: =IFERROR(VLOOKUP($M22,Import!$B$3:$AL$663,8,FALSE),"") -> 40 | X22: =IFERROR(VLOOKUP($M22,Import!$B$3:$AL$663,9,FALSE),"") -> 94 | Y22: =IFERROR(VLOOKUP($M22,Import!$B$3:$AL$663,10,FALSE),"") -> 7 | Z22: =IFERROR(VLOOKUP($M22,Import!$B$3:$AL$663,11,FALSE),"") -> 0.244 | AB22: 124.684 | AC22: =IF(N22='User Input'!$C$1,1,0) -> 0 | AD22: 0 | AE22: 0 | AF22: Aaron Judge | AG22: 0 | AH22: 27 | AI22: =IFERROR(VLOOKUP($M22,Import!$B$3:$AL$663,35,FALSE),"") ->  | AK22: 20 | AL22: =IFERROR(VLOOKUP(AT22,Import!$B$3:$T$664,19,FALSE),"") -> 74 | AN22: =IFERROR(VLOOKUP(AT22,Import!$AN$3:$AR$664,5,FALSE),"") ->  | AO22: =IFERROR(VLOOKUP(AT22,Import!$AD$3:$AH$664,5,FALSE),"") ->  | AP22: =IFERROR(VLOOKUP(AT22,Import!$AW$3:$BA$664,5,FALSE),"") -> 87 | AQ22: =IFERROR(VLOOKUP($AT22,Import!$AW$3:$BE$664,2,FALSE),"") -> 418.5 | AR22: =IFERROR(VLOOKUP($AT22,Import!$AW$3:$BE$664,3,FALSE),"") -> 14.43103448 | AT22: =IFERROR(VLOOKUP(AK22,Import!$W$3:$X$664,2,FALSE),"") -> Aaron Nola | AW22: =IFERROR(VLOOKUP($AT22,Import!$B$3:$L$663,2,FALSE),"") -> PHI | AX22: =IFERROR(VLOOKUP($AT22,Import!$B$3:$L$663,3,FALSE),"") -> SP | AY22: =IFERROR(VLOOKUP($AT22,Import!$B$3:$L$663,4,FALSE),"") -> SP | AZ22: =IFERROR(VLOOKUP($AT22,Import!$B$3:$L$663,5,FALSE),"") -> 16 | BB22: =IFERROR(VLOOKUP($AT22,Import!$B$3:$X$664,12,FALSE),"") -> 184 | BC22: =IFERROR(VLOOKUP($AT22,Import!$B$3:$X$664,15,FALSE),"") -> 3.41 | BD22: =IFERROR(VLOOKUP($AT22,Import!$B$3:$X$664,16,FALSE),"") -> 1.18 | BE22: =IFERROR(VLOOKUP($AT22,Import!$B$3:$X$664,13,FALSE),"") -> 14 | BF22: =IFERROR(VLOOKUP($AT22,Import!$B$3:$X$664,14,FALSE),"") -> 0 | BG22: =IFERROR(VLOOKUP($AT22,Import!$B$3:$X$664,17,FALSE),"") -> 188 | BI22: 627.44 | BJ22: 217.12 | BK22: =IF(AU22='User Input'!$C$1,1,0) -> 0 | BL22: 0 | BM22: 0 | BN22: Aaron Nola | BO22: 0 | BP22: 16 | BQ22: =IFERROR(VLOOKUP($AT22,Import!$B$3:$AL$663,35,FALSE),"") ->  | BR22: =9*(Table2[[#This Row],[K]]/Table2[[#This Row],[IP]]) -> 9.195652174 | BS22: =IFERROR(VLOOKUP($AT22,PITCH!$B$7:$AG$2004,28,FALSE),"N/A") -> 6.812154696 | CI22: =IF(CJ22="","",MAX(CI$1:CI21)+1) ->  | CJ22: =IF('User Input'!C21=0,"",'User Input'!C21) -> 
A23: 21 | B23: =IFERROR(VLOOKUP(M23,Import!$B$4:$T$664,19,FALSE),"") -> 23 | D23: =IFERROR(VLOOKUP(M23,Import!$AN$3:$AR$664,4,FALSE),"") ->  | E23: =IFERROR(VLOOKUP(M23,Import!$AD$3:$AL$664,4,FALSE),"") ->  | F23: =IFERROR(VLOOKUP(M23,Import!$AT$3:$BE$664,8,FALSE),"") -> 24 | G23: =IFERROR(VLOOKUP($M23,Import!$AT$3:$BE$664,2,FALSE),"") -> 509.05 | H23: =IFERROR(VLOOKUP($M23,Import!$AT$3:$BE$664,3,FALSE),"") -> 3.510689655 | J23: =IFERROR(VLOOKUP(M23,Import!$AT$3:$BE$664,10,FALSE),"") -> 19 | K23: =IFERROR(VLOOKUP(M23,Import!$AT$3:$BE$664,12,FALSE),"") -> 16 | M23: =IFERROR(VLOOKUP(A23,Import!$V$3:$X$664,3,FALSE),"") -> Carlos Correa | P23: =IFERROR(VLOOKUP($M23,Import!$B$3:$AL$663,2,FALSE),"") -> HOU | Q23: =IFERROR(VLOOKUP($M23,Import!$B$3:$AL$663,3,FALSE),"") -> SS | R23: =IFERROR(VLOOKUP($M23,Import!$B$3:$AL$663,4,FALSE),"") -> SS | S23: =IFERROR(VLOOKUP($M23,Import!$B$3:$AL$663,5,FALSE),"") -> 25 | U23: =IFERROR(VLOOKUP($M23,Import!$B$3:$AL$663,6,FALSE),"") -> 572 | V23: =IFERROR(VLOOKUP($M23,Import!$B$3:$AL$663,7,FALSE),"") -> 90 | W23: =IFERROR(VLOOKUP($M23,Import!$B$3:$AL$663,8,FALSE),"") -> 32 | X23: =IFERROR(VLOOKUP($M23,Import!$B$3:$AL$663,9,FALSE),"") -> 107 | Y23: =IFERROR(VLOOKUP($M23,Import!$B$3:$AL$663,10,FALSE),"") -> 5 | Z23: =IFERROR(VLOOKUP($M23,Import!$B$3:$AL$663,11,FALSE),"") -> 0.298 | AB23: 170.456 | AC23: =IF(N23='User Input'!$C$1,1,0) -> 0 | AD23: 0 | AE23: 0 | AF23: Carlos Correa | AG23: 0 | AH23: 25 | AI23: =IFERROR(VLOOKUP($M23,Import!$B$3:$AL$663,35,FALSE),"") ->  | AK23: 21 | AL23: =IFERROR(VLOOKUP(AT23,Import!$B$3:$T$664,19,FALSE),"") -> 75 | AN23: =IFERROR(VLOOKUP(AT23,Import!$AN$3:$AR$664,5,FALSE),"") ->  | AO23: =IFERROR(VLOOKUP(AT23,Import!$AD$3:$AH$664,5,FALSE),"") ->  | AP23: =IFERROR(VLOOKUP(AT23,Import!$AW$3:$BA$664,5,FALSE),"") -> 59 | AQ23: =IFERROR(VLOOKUP($AT23,Import!$AW$3:$BE$664,2,FALSE),"") -> 444.2 | AR23: =IFERROR(VLOOKUP($AT23,Import!$AW$3:$BE$664,3,FALSE),"") -> 14.32903226 | AT23: =IFERROR(VLOOKUP(AK23,Import!$W$3:$X$664,2,FALSE),"") -> Jose Quintana | AW23: =IFERROR(VLOOKUP($AT23,Import!$B$3:$L$663,2,FALSE),"") -> CHC | AX23: =IFERROR(VLOOKUP($AT23,Import!$B$3:$L$663,3,FALSE),"") -> SP | AY23: =IFERROR(VLOOKUP($AT23,Import!$B$3:$L$663,4,FALSE),"") -> SP | AZ23: =IFERROR(VLOOKUP($AT23,Import!$B$3:$L$663,5,FALSE),"") -> 15 | BB23: =IFERROR(VLOOKUP($AT23,Import!$B$3:$X$664,12,FALSE),"") -> 202 | BC23: =IFERROR(VLOOKUP($AT23,Import!$B$3:$X$664,15,FALSE),"") -> 3.49 | BD23: =IFERROR(VLOOKUP($AT23,Import!$B$3:$X$664,16,FALSE),"") -> 1.17 | BE23: =IFERROR(VLOOKUP($AT23,Import!$B$3:$X$664,13,FALSE),"") -> 15 | BF23: =IFERROR(VLOOKUP($AT23,Import!$B$3:$X$664,14,FALSE),"") -> 0 | BG23: =IFERROR(VLOOKUP($AT23,Import!$B$3:$X$664,17,FALSE),"") -> 204 | BI23: 704.98 | BJ23: 236.34 | BK23: =IF(AU23='User Input'!$C$1,1,0) -> 0 | BL23: 0 | BM23: 0 | BN23: Jose Quintana | BO23: 0 | BP23: 15 | BQ23: =IFERROR(VLOOKUP($AT23,Import!$B$3:$AL$663,35,FALSE),"") ->  | BR23: =9*(Table2[[#This Row],[K]]/Table2[[#This Row],[IP]]) -> 9.089108911 | BS23: =IFERROR(VLOOKUP($AT23,PITCH!$B$7:$AG$2004,28,FALSE),"N/A") -> 6.512153759 | CI23: =IF(CJ23="","",MAX(CI$1:CI22)+1) ->  | CJ23: =IF('User Input'!C22=0,"",'User Input'!C22) -> 
A24: 22 | B24: =IFERROR(VLOOKUP(M24,Import!$B$4:$T$664,19,FALSE),"") -> 24 | D24: =IFERROR(VLOOKUP(M24,Import!$AN$3:$AR$664,4,FALSE),"") ->  | E24: =IFERROR(VLOOKUP(M24,Import!$AD$3:$AL$664,4,FALSE),"") ->  | F24: =IFERROR(VLOOKUP(M24,Import!$AT$3:$BE$664,8,FALSE),"") -> 109 | G24: =IFERROR(VLOOKUP($M24,Import!$AT$3:$BE$664,2,FALSE),"") -> 400.35 | H24: =IFERROR(VLOOKUP($M24,Import!$AT$3:$BE$664,3,FALSE),"") -> 2.761034483 | J24: =IFERROR(VLOOKUP(M24,Import!$AT$3:$BE$664,10,FALSE),"") -> 56 | K24: =IFERROR(VLOOKUP(M24,Import!$AT$3:$BE$664,12,FALSE),"") -> 62 | M24: =IFERROR(VLOOKUP(A24,Import!$V$3:$X$664,3,FALSE),"") -> Dee Gordon | P24: =IFERROR(VLOOKUP($M24,Import!$B$3:$AL$663,2,FALSE),"") -> SEA | Q24: =IFERROR(VLOOKUP($M24,Import!$B$3:$AL$663,3,FALSE),"") -> 2B | R24: =IFERROR(VLOOKUP($M24,Import!$B$3:$AL$663,4,FALSE),"") -> 2B | S24: =IFERROR(VLOOKUP($M24,Import!$B$3:$AL$663,5,FALSE),"") -> 25 | U24: =IFERROR(VLOOKUP($M24,Import!$B$3:$AL$663,6,FALSE),"") -> 633 | V24: =IFERROR(VLOOKUP($M24,Import!$B$3:$AL$663,7,FALSE),"") -> 108 | W24: =IFERROR(VLOOKUP($M24,Import!$B$3:$AL$663,8,FALSE),"") -> 2 | X24: =IFERROR(VLOOKUP($M24,Import!$B$3:$AL$663,9,FALSE),"") -> 36 | Y24: =IFERROR(VLOOKUP($M24,Import!$B$3:$AL$663,10,FALSE),"") -> 54 | Z24: =IFERROR(VLOOKUP($M24,Import!$B$3:$AL$663,11,FALSE),"") -> 0.292 | AB24: 184.836 | AC24: =IF(N24='User Input'!$C$1,1,0) -> 0 | AD24: 0 | AE24: 0 | AF24: Dee Gordon | AG24: 0 | AH24: 25 | AI24: =IFERROR(VLOOKUP($M24,Import!$B$3:$AL$663,35,FALSE),"") ->  | AK24: 22 | AL24: =IFERROR(VLOOKUP(AT24,Import!$B$3:$T$664,19,FALSE),"") -> 83 | AN24: =IFERROR(VLOOKUP(AT24,Import!$AN$3:$AR$664,5,FALSE),"") ->  | AO24: =IFERROR(VLOOKUP(AT24,Import!$AD$3:$AH$664,5,FALSE),"") ->  | AP24: =IFERROR(VLOOKUP(AT24,Import!$AW$3:$BA$664,5,FALSE),"") -> 6 | AQ24: =IFERROR(VLOOKUP($AT24,Import!$AW$3:$BE$664,2,FALSE),"") -> 406 | AR24: =IFERROR(VLOOKUP($AT24,Import!$AW$3:$BE$664,3,FALSE),"") -> 14.5 | AT24: =IFERROR(VLOOKUP(AK24,Import!$W$3:$X$664,2,FALSE),"") -> Shohei Ohtani | AW24: =IFERROR(VLOOKUP($AT24,Import!$B$3:$L$663,2,FALSE),"") -> LAA | AX24: =IFERROR(VLOOKUP($AT24,Import!$B$3:$L$663,3,FALSE),"") -> SP | AY24: =IFERROR(VLOOKUP($AT24,Import!$B$3:$L$663,4,FALSE),"") -> SP | AZ24: =IFERROR(VLOOKUP($AT24,Import!$B$3:$L$663,5,FALSE),"") -> 15 | BB24: =IFERROR(VLOOKUP($AT24,Import!$B$3:$X$664,12,FALSE),"") -> 140 | BC24: =IFERROR(VLOOKUP($AT24,Import!$B$3:$X$664,15,FALSE),"") -> 3.28 | BD24: =IFERROR(VLOOKUP($AT24,Import!$B$3:$X$664,16,FALSE),"") -> 1.22 | BE24: =IFERROR(VLOOKUP($AT24,Import!$B$3:$X$664,13,FALSE),"") -> 12 | BF24: =IFERROR(VLOOKUP($AT24,Import!$B$3:$X$664,14,FALSE),"") -> 0 | BG24: =IFERROR(VLOOKUP($AT24,Import!$B$3:$X$664,17,FALSE),"") -> 146 | BI24: 459.2 | BJ24: 170.8 | BK24: =IF(AU24='User Input'!$C$1,1,0) -> 0 | BL24: 0 | BM24: 0 | BN24: Shohei Ohtani | BO24: 0 | BP24: 15 | BQ24: =IFERROR(VLOOKUP($AT24,Import!$B$3:$AL$663,35,FALSE),"") ->  | BR24: =9*(Table2[[#This Row],[K]]/Table2[[#This Row],[IP]]) -> 9.385714286 | BS24: =IFERROR(VLOOKUP($AT24,PITCH!$B$7:$AG$2004,28,FALSE),"N/A") -> 7.504702194 | CI24: =IF(CJ24="","",MAX(CI$1:CI23)+1) ->  | CJ24: =IF('User Input'!C23=0,"",'User Input'!C23) -> 
A25: 23 | B25: =IFERROR(VLOOKUP(M25,Import!$B$4:$T$664,19,FALSE),"") -> 25 | D25: =IFERROR(VLOOKUP(M25,Import!$AN$3:$AR$664,4,FALSE),"") ->  | E25: =IFERROR(VLOOKUP(M25,Import!$AD$3:$AL$664,4,FALSE),"") ->  | F25: =IFERROR(VLOOKUP(M25,Import!$AT$3:$BE$664,8,FALSE),"") -> 45 | G25: =IFERROR(VLOOKUP($M25,Import!$AT$3:$BE$664,2,FALSE),"") -> 471.45 | H25: =IFERROR(VLOOKUP($M25,Import!$AT$3:$BE$664,3,FALSE),"") -> 3.185472973 | J25: =IFERROR(VLOOKUP(M25,Import!$AT$3:$BE$664,10,FALSE),"") -> 40 | K25: =IFERROR(VLOOKUP(M25,Import!$AT$3:$BE$664,12,FALSE),"") -> 25 | M25: =IFERROR(VLOOKUP(A25,Import!$V$3:$X$664,3,FALSE),"") -> Jose Abreu | P25: =IFERROR(VLOOKUP($M25,Import!$B$3:$AL$663,2,FALSE),"") -> CHW | Q25: =IFERROR(VLOOKUP($M25,Import!$B$3:$AL$663,3,FALSE),"") -> 1B | R25: =IFERROR(VLOOKUP($M25,Import!$B$3:$AL$663,4,FALSE),"") -> 1B | S25: =IFERROR(VLOOKUP($M25,Import!$B$3:$AL$663,5,FALSE),"") -> 25 | U25: =IFERROR(VLOOKUP($M25,Import!$B$3:$AL$663,6,FALSE),"") -> 625 | V25: =IFERROR(VLOOKUP($M25,Import!$B$3:$AL$663,7,FALSE),"") -> 92 | W25: =IFERROR(VLOOKUP($M25,Import!$B$3:$AL$663,8,FALSE),"") -> 32 | X25: =IFERROR(VLOOKUP($M25,Import!$B$3:$AL$663,9,FALSE),"") -> 104 | Y25: =IFERROR(VLOOKUP($M25,Import!$B$3:$AL$663,10,FALSE),"") -> 2 | Z25: =IFERROR(VLOOKUP($M25,Import!$B$3:$AL$663,11,FALSE),"") -> 0.296 | AB25: 185 | AC25: =IF(N25='User Input'!$C$1,1,0) -> 0 | AD25: 0 | AE25: 0 | AF25: Jose Abreu | AG25: 0 | AH25: 25 | AI25: =IFERROR(VLOOKUP($M25,Import!$B$3:$AL$663,35,FALSE),"") ->  | AK25: 23 | AL25: =IFERROR(VLOOKUP(AT25,Import!$B$3:$T$664,19,FALSE),"") -> 90 | AN25: =IFERROR(VLOOKUP(AT25,Import!$AN$3:$AR$664,5,FALSE),"") ->  | AO25: =IFERROR(VLOOKUP(AT25,Import!$AD$3:$AH$664,5,FALSE),"") ->  | AP25: =IFERROR(VLOOKUP(AT25,Import!$AW$3:$BA$664,5,FALSE),"") -> 130 | AQ25: =IFERROR(VLOOKUP($AT25,Import!$AW$3:$BE$664,2,FALSE),"") -> 387.6 | AR25: =IFERROR(VLOOKUP($AT25,Import!$AW$3:$BE$664,3,FALSE),"") -> 13.36551724 | AT25: =IFERROR(VLOOKUP(AK25,Import!$W$3:$X$664,2,FALSE),"") -> Trevor Bauer | AW25: =IFERROR(VLOOKUP($AT25,Import!$B$3:$L$663,2,FALSE),"") -> CLE | AX25: =IFERROR(VLOOKUP($AT25,Import!$B$3:$L$663,3,FALSE),"") -> SP | AY25: =IFERROR(VLOOKUP($AT25,Import!$B$3:$L$663,4,FALSE),"") -> SP | AZ25: =IFERROR(VLOOKUP($AT25,Import!$B$3:$L$663,5,FALSE),"") -> 14 | BB25: =IFERROR(VLOOKUP($AT25,Import!$B$3:$X$664,12,FALSE),"") -> 189 | BC25: =IFERROR(VLOOKUP($AT25,Import!$B$3:$X$664,15,FALSE),"") -> 3.59 | BD25: =IFERROR(VLOOKUP($AT25,Import!$B$3:$X$664,16,FALSE),"") -> 1.29 | BE25: =IFERROR(VLOOKUP($AT25,Import!$B$3:$X$664,13,FALSE),"") -> 15 | BF25: =IFERROR(VLOOKUP($AT25,Import!$B$3:$X$664,14,FALSE),"") -> 0 | BG25: =IFERROR(VLOOKUP($AT25,Import!$B$3:$X$664,17,FALSE),"") -> 204 | BI25: 678.51 | BJ25: 243.81 | BK25: =IF(AU25='User Input'!$C$1,1,0) -> 0 | BL25: 0 | BM25: 0 | BN25: Trevor Bauer | BO25: 0 | BP25: 14 | BQ25: =IFERROR(VLOOKUP($AT25,Import!$B$3:$AL$663,35,FALSE),"") ->  | BR25: =9*(Table2[[#This Row],[K]]/Table2[[#This Row],[IP]]) -> 9.714285714 | BS25: =IFERROR(VLOOKUP($AT25,PITCH!$B$7:$AG$2004,28,FALSE),"N/A") -> 5.599315068 | CI25: =IF(CJ25="","",MAX(CI$1:CI24)+1) ->  | CJ25: =IF('User Input'!C24=0,"",'User Input'!C24) -> 
